Workbook

Sheet Start
G2: Risk Dashboard Interactive Tool
G3: =+'Reference Dates'!$C$4 -> Q22020 Data
E4: Please enable macros to ensure the correct functioning of the tool
O5: List showing in Dropdown menu | P5: RI number | Q5: RI Code | R5: Name for tables - change if needs to be different from dropdown names | T5: Tables name for dropdown
O6: Tier 1 capital ratio | P6: 1 | Q6: SVC_1 | R6: Tier 1 capital ratio | T6: Assets
B7: Choose a Risk Indicator: | E7: RI Number (*) | G7: RI Code | O7: Total capital ratio | P7: 2 | Q7: SVC_2 | R7: Total capital ratio | T7: Liabilities
B8: Tier 1 capital ratio | E8: =IFERROR(VLOOKUP(B8,$O$6:$Q$26,2,0),"") -> 1 | G8: =IFERROR(VLOOKUP(B8,$O$6:$Q$26,3,0),"") -> SVC_1 | O8: CET1 ratio | P8: 3 | Q8: SVC_3 | R8: CET1 ratio | T8: Loans Composition
O9: CET1 ratio (fully loaded) | P9: 4 | Q9: SVC_29 | R9: CET1 ratio (fully loaded) | T9: Loans NPL and coverage ratio
B10: Choose a set of Tables from the statistical Annex: | O10: Leverage ratio | P10: 5 | Q10: SVC_13 | R10: Leverage ratio (transitional definition of Tier 1) | T10: NACE composition
B11: Assets | I11: =IFERROR((LEFT($B$11,FIND(" ",$B$11)-1)),$B$11) -> Assets | O11: Leverage ratio (fully phased-in definition of Tier 1) | P11: 6 | Q11: SVC_12 | R11: Leverage ratio (fully phased-in definition of Tier 1) | T11: NPL ratio by NACE
O12: Ratio of non-performing loans and advances (NPL ratio) | P12: 7 | Q12: AQT_3.2 | R12: Ratio of non-performing loans and advances (NPL ratio) | T12: Own funds and RWA
O13: Coverage ratio of non-performing loans and advances | P13: 8 | Q13: AQT_41.2 | R13: Coverage ratio of non-performing loans and advances | T13: Profitability
O14: Forbearance ratio for loans and advances | P14: 9 | Q14: AQT_42.2 | R14: Forbearance ratio for loans and advances | T14: IFRS9
B15: (*) In order of appearance in the Risk Dashboard | O15: Ratio of non-performing exposures (NPE ratio) | P15: 10 | Q15: AQT_3.1 | R15: Ratio of non-performing exposures (NPE ratio) | T15: Sovereigns
O16: Return on equity | P16: 11 | Q16: PFT_21 | R16: Return on equity
O17: Return on assets | P17: 12 | Q17: PFT_24 | R17: Return on assets
O18: Cost to income ratio | P18: 13 | Q18: PFT_23 | R18: Cost to income ratio
O19: Net interest income to total net operating income | P19: 14 | Q19: PFT_25 | R19: Net interest income to total net operating income
O20: Net fee and commission income to total net operating income | P20: 15 | Q20: PFT_26 | R20: Net fee and commission income to total net operating income
O21: Net trading income to total net operating income | P21: 16 | Q21: PFT_29 | R21: Net trading income to total net operating income
O22: Net interest margin | P22: 17 | Q22: PFT_41 | R22: Net interest margin
O23: Cost of Risk | P23: 18 | Q23: PFT_43 | R23: Cost of Risk
O24: Loan-to-deposit ratio for households and non-financial corporations | P24: 19 | Q24: FND_32 | R24: Loan-to-deposit ratio for households and non-financial corporations
O25: Asset encumbrance ratio | P25: 20 | Q25: FND_33 | R25: Asset encumbrance ratio
O26: Liquidity coverage ratio (%) | P26: 21 | Q26: LIQ_17 | R26: Liquidity coverage ratio (%)

Sheet Charts
B2: =$AR$21 -> Solvency
B3: =AM21&" - "&$AO$20 -> 1 - Tier 1 capital ratio
B4: Due to the automation of this file, charts axis are not scaled as in the booklet version. User may need to manually adjust it.
B5: Dispersion | J5: Numerator and denominator: trends
B7: 5th and 95th pct, interquartile range and median. From Q1 2020 onwards, EU aggregates no longer include figures for UK banks and they include data for subsidiaries of UK banks in EU countries. | J7: =IF(AK21="PFT_43","Total numerator and denominator. 2018Q1=100.","Total numerator and denominator. "& IF(NOT(ISNA($AS$25)), YEAR($AM$25), IF(NOT(ISNA($AS$26)), YEAR($AM$26), IF(NOT(ISNA($AS$27)), YEAR($AM$27), IF(NOT(ISNA($AS$28)), YEAR($AM$28), IF(NOT(ISNA($AS$98)), YEAR($AM$29),IF(NOT(ISNA($AS$30)), YEAR($AM$30),IF(NOT(ISNA($AS$31)), YEAR($AM$31),IF(NOT(ISNA($AS$32)), YEAR($AM$32),IF(NOT(ISNA($AS$33)), YEAR($AM$33),IF(NOT(ISNA($AS$34)), YEAR($AM$34),IF(NOT(ISNA($AS$35)), YEAR($AM$35),YEAR($AM$36)))))))))))) &"Q"& IF(NOT(ISNA($AS$25)),ROUNDUP(MONTH($AM$25)/3,0), IF(NOT(ISNA($AS$26)),ROUNDUP(MONTH($AM$26)/3,0), IF(NOT(ISNA($AS$27)), ROUNDUP(MONTH($AM$27)/3,0), IF(NOT(ISNA($AS$28)), ROUNDUP(MONTH($AM$28)/3,0),NOT(ISNA($AS$29)))))) &" = 100.") -> Total numerator and denominator. 2017Q3 = 100.
B9: ="Country dispersion (as of "& YEAR(MAX(AM25:AM45))&" Q"&(ROUNDUP((MONTH(MAX(AM25:AM45))/3),0))&")" -> Country dispersion (as of 2020 Q2) | J9: KRI by size class
B11: ( * ) Not reported. Weighted Averages by country. From Q1 2020 onwards, EU aggregates no longer include figures for UK banks and they include data for subsidiaries of UK banks in EU countries. | J11: ="Weighted average. Banks are classified in the size class according to the their average total assets between 2014Q4 and "&YEAR(MAX(AM25:AM45))&"Q"&(ROUNDUP(MONTH(MAX(AM25:AM45))/3,0))&IF(AN48="Y",". Non-FINREP banks are assigned to the bucket of small banks.",". ") -> Weighted average. Banks are classified in the size class according to the their average total assets between 2014Q4 and 2020Q2.
B14: Period | E14: Weighted average | H14: 25th percentile | K14: 50th percentile | N14: 75th percentile
C16: =AM25 -> 2017-09-01 | F16: =IF(AND(YEAR(C16)<2018,$AK$21="PFT_43"),"",IFERROR(VLOOKUP($C16,$AM$25:$BB$42,8,FALSE), "")) -> 0.1599904233 | I16: =IF(AND(YEAR(C16)<2018,$AK$21="PFT_43"),"",IFERROR(VLOOKUP($C16,$AM$25:$BB$42,5,FALSE), "")) -> 0.1389896408 | L16: =IF(AND(YEAR(C16)<2018,$AK$21="PFT_43"),"",IFERROR(VLOOKUP($C16,$AM$25:$BB$42,6,FALSE), "")) -> 0.1646861786 | O16: =IF(AND(YEAR(C16)<2018,$AK$21="PFT_43"),"",IFERROR(VLOOKUP($C16,$AM$25:$BB$42,9,FALSE), "")) -> 0.1975562656
C17: =AM26 -> 2017-12-01 | F17: =IF(AND(YEAR(C17)<2018,$AK$21="PFT_43"),"",IFERROR(VLOOKUP($C17,$AM$25:$BB$42,8,FALSE), "")) -> 0.1627013133 | I17: =IF(AND(YEAR(C17)<2018,$AK$21="PFT_43"),"",IFERROR(VLOOKUP($C17,$AM$25:$BB$42,5,FALSE), "")) -> 0.1430007603 | L17: =IF(AND(YEAR(C17)<2018,$AK$21="PFT_43"),"",IFERROR(VLOOKUP($C17,$AM$25:$BB$42,6,FALSE), "")) -> 0.1678670428 | O17: =IF(AND(YEAR(C17)<2018,$AK$21="PFT_43"),"",IFERROR(VLOOKUP($C17,$AM$25:$BB$42,9,FALSE), "")) -> 0.2114641455
C18: =AM27 -> 2018-03-01 | F18: 0.160126419 | I18: 0.1406790825 | L18: 0.16410405 | O18: 0.2134825616
C19: =AM28 -> 2018-06-01 | F19: 0.1602693442 | I19: 0.1406711908 | L19: 0.1671969728 | O19: 0.2168852002
C20: 2018-09-01 | F20: 0.1628207497 | I20: 0.1387682158 | L20: 0.1691677188 | O20: 0.2174372573 | AN20: dashboard name | AO20: =VLOOKUP($AM$21*1,List!$A$3:$M$23,8,FALSE) -> Tier 1 capital ratio
C21: 2018-12-01 | F21: 0.1631920606 | I21: 0.1440516175 | L21: 0.1674884738 | O21: 0.2031647335 | AK21: =VLOOKUP($AM$21*1,List!$A$3:$F$23,6,0) -> SVC_1 | AM21: =Start!E8 -> 1 | AN21: =VLOOKUP($AM$21*1,List!$A$3:$F$23,4,0) -> 1 | AO21: =VLOOKUP($AM$21*1,List!$A$3:$E$23,5,0) -> Tier 1 capital ratio | AP21: =VLOOKUP($AM$21*1,List!$A$3:$K$23,11,FALSE) -> 0 | AR21: =VLOOKUP($AM$21*1,List!$A$3:$M$23,13,FALSE) -> Solvency
C22: 2019-03-01 | F22: 0.1623249038 | I22: 0.1450424878 | L22: 0.1666220321 | O22: 0.2006836496 | AT22: WA
C23: 2019-06-01 | F23: =IF(AND(YEAR(C23)<2018,$AK$21="PFT_43"),"",IFERROR(VLOOKUP($C23,$AM$25:$BB$42,8,FALSE), "")) -> 0.161732666 | I23: 0.145910894 | L23: 0.1658085607 | O23: 0.1975597269 | AP23: 5 | AQ23: 6 | AR23: 7 | AS23: 8 | AT23: 9 | AU23: 10 | AV23: 11 | AW23: 14 | AX23: 15 | AY23: Dispersion chart | BD23: 12 | BE23: 13 | BJ23: 16
C24: 2019-09-01 | F24: 0.161385142 | I24: 0.1474070885 | L24: 0.1641262725 | O24: 0.1952269416 | AL24: =+'Reference Dates'!$C$6 -> 2020-06-30 | AP24: 5^ pct | AQ24: First quartile | AR24: Median | AS24: Average | AT24: All banks | AU24: Third quartile | AV24: 95^ pct | AW24: Small | AX24: Medium | AY24: Q1 | AZ24: Q1 Neg | BA24: Q2 | BB24: Q3 | BC24: 5pct | BD24: 95 pct | BE24: Numeratir | BF24: Denominator | BG24: =VLOOKUP($AN$21,List!$D:$L,6,0) -> Tier 1 capital | BH24: =VLOOKUP($AN$21,List!$D:$L,7,0) -> Total risk exposure amount | BI24: Quarter | BJ24: Large
C25: 2019-12-01 | F25: 0.1665368286 | I25: 0.1518558895 | L25: 0.1695190957 | O25: 0.2032288057 | AK25: 1 | AL25: =(+AN25)*1 -> 201709 | AM25: =+'Reference Dates'!$C$7 -> 2017-09-01 | AN25: =+IF(MONTH(AM25)=12,YEAR(AM25)&MONTH(AM25),YEAR(AM25)&0&MONTH(AM25)) -> 201709 | AO25: =CONCATENATE($AO$21,AN25) -> Tier 1 capital ratio201709 | AP25: =VLOOKUP($AO25,Data!$A$1:$P$688,Charts!AP$23,FALSE) -> 0.1144017748 | AQ25: =VLOOKUP($AO25,Data!$A$1:$P$688,Charts!AQ$23,FALSE) -> 0.1389896408 | AR25: =VLOOKUP($AO25,Data!$A$1:$P$688,Charts!AR$23,FALSE) -> 0.1646861786 | AS25: =VLOOKUP($AO25,Data!$A$1:$P$688,Charts!AS$23,FALSE) -> 0.2046359599 | AT25: =VLOOKUP($AO25,Data!$A$1:$P$688,Charts!AT$23,FALSE) -> 0.1599904233 | AU25: =VLOOKUP($AO25,Data!$A$1:$P$688,Charts!AU$23,FALSE) -> 0.1975562656 | AV25: =VLOOKUP($AO25,Data!$A$1:$P$688,Charts!AV$23,FALSE) -> 0.4419978678 | AW25: =VLOOKUP($AO25,Data!$A$1:$P$688,Charts!AW$23,FALSE) -> 0.1623608856 | AX25: =VLOOKUP($AO25,Data!$A$1:$P$688,Charts!AX$23,FALSE) -> 0.1671805751 | AY25: =IF(AQ25<0,0,AQ25) -> 0.1389896408 | AZ25: =IF(AQ25<0,AQ25,0) -> 0 | BA25: =AR25-AY25 -> 0.02569653782 | BB25: =AU25-AR25 -> 0.03287008695 | BC25: =AQ25-AP25 -> 0.02458786602 | BD25: =AV25-AU25 -> 0.2444416022 | BE25: =VLOOKUP($AO25,Data!$A$1:$P$688,BD$23,FALSE) -> 1.234222381e+12 | BF25: =VLOOKUP($AO25,Data!$A$1:$P$688,BE$23,FALSE) -> 7.980937843e+12 | BG25: =IFERROR(IF($AP$21=0,BE25/BE$25*100,(100*(BE25*12/$BI25)/BE$25)),IFERROR(IF($AP$21=0, BE25/BE$26*100, 100*(BE25*12/$BI25)/BE$26), IFERROR(IF($AP$21=0, BE25/BE$27*100, 100*(BE25*12/$BI25)/BE$27),IFERROR(IF($AP$21=0, BE25/BE$28*100, 100*(BE25*12/$BI25)/BE$28), IFERROR(IF($AP$21=0, BE25/BE$29*100, 100*(BE25*12/$BI25)/BE$29),IFERROR(IF($AP$21=0, BE25/BE$30*100, 100*(BE25*12/$BI25)/BE$230),IFERROR(IF($AP$21=0, BE25/BE$31*100, 100*(BE25*12/$BI25)/BE$31),IFERROR(IF($AP$21=0, BE25/BE$31*100, 100*(BE25*12/$BI25)/BE$31),IFERROR(IF($AP$21=0, BE25/BE$32*100, 100*(BE25*12/$BI25)/BE$32),IFERROR(IF($AP$21=0, BE25/BE$33*100, 100*(BE25*12/$BI25)/BE$33),IF($AP$21=0, BE25/BE$34*100, 100*(BE25*12/$BI25)/BE$34))))))))))) -> 100 | BH25: =IFERROR(IF($AP$21=0,BF25/BF$25*100,(100*(BF25*12/$BI25)/BF$25)),IFERROR(IF($AP$21=0, BF25/BF$26*100, 100*(BF25*12/$BI25)/BF$26), IFERROR(IF($AP$21=0, BF25/BF$27*100, 100*(BF25*12/$BI25)/BF$27),IFERROR(IF($AP$21=0, BF25/BF$28*100, 100*(BF25*12/$BI25)/BF$28), IFERROR(IF($AP$21=0, BF25/BF$29*100, 100*(BF25*12/$BI25)/BF$29),IFERROR(IF($AP$21=0, BF25/BF$30*100, 100*(BF25*12/$BI25)/BF$230),IFERROR(IF($AP$21=0, BF25/BF$31*100, 100*(BF25*12/$BI25)/BF$31),IFERROR(IF($AP$21=0, BF25/BF$31*100, 100*(BF25*12/$BI25)/BF$31),IFERROR(IF($AP$21=0, BF25/BF$32*100, 100*(BF25*12/$BI25)/BF$32),IFERROR(IF($AP$21=0, BF25/BF$33*100, 100*(BF25*12/$BI25)/BF$33),IF($AP$21=0, BF25/BF$34*100, 100*(BF25*12/$BI25)/BF$34))))))))))) -> 100 | BI25: =MONTH(AM25) -> 9 | BJ25: =VLOOKUP($AO25,Data!$A$1:$P$688,Charts!BJ$23,FALSE) -> 0.1582484613
C26: =AM35 -> 2020-03-01 | F26: 0.1583097888 | I26: 0.1427134004 | L26: 0.1630313331 | O26: 0.1989703886 | AL26: 201712 | AM26: =IF(AM25<$AL$24,+DATE(YEAR(AM25),MONTH(AM25)+3,DAY(AM25)),"") -> 2017-12-01 | AN26: =+IF(MONTH(AM26)=12,YEAR(AM26)&MONTH(AM26),YEAR(AM26)&0&MONTH(AM26)) -> 201712 | AO26: Tier 1 capital ratio201712 | AP26: =VLOOKUP($AO26,Data!$A$1:$P$688,Charts!AP$23,FALSE) -> 0.1242138008 | AQ26: =VLOOKUP($AO26,Data!$A$1:$P$688,Charts!AQ$23,FALSE) -> 0.1430007603 | AR26: =VLOOKUP($AO26,Data!$A$1:$P$688,Charts!AR$23,FALSE) -> 0.1678670428 | AS26: =VLOOKUP($AO26,Data!$A$1:$P$688,Charts!AS$23,FALSE) -> 0.2192216596 | AT26: =VLOOKUP($AO26,Data!$A$1:$P$688,Charts!AT$23,FALSE) -> 0.1627013133 | AU26: =VLOOKUP($AO26,Data!$A$1:$P$688,Charts!AU$23,FALSE) -> 0.2114641455 | AV26: =VLOOKUP($AO26,Data!$A$1:$P$688,Charts!AV$23,FALSE) -> 0.4371470627 | AW26: =VLOOKUP($AO26,Data!$A$1:$P$688,Charts!AW$23,FALSE) -> 0.163957228 | AX26: =VLOOKUP($AO26,Data!$A$1:$P$688,Charts!AX$23,FALSE) -> 0.173298566 | AY26: =IF(AQ26<0,0,AQ26) -> 0.1430007603 | AZ26: =IF(AQ26<0,AQ26,0) -> 0 | BA26: =AR26-AY26 -> 0.02486628251 | BB26: =AU26-AR26 -> 0.04359710269 | BC26: =AQ26-AP26 -> 0.01878695947 | BD26: =AV26-AU26 -> 0.2256829172 | BE26: =VLOOKUP($AO26,Data!$A$1:$P$688,BD$23,FALSE) -> 1.250183184e+12 | BF26: =VLOOKUP($AO26,Data!$A$1:$P$688,BE$23,FALSE) -> 7.932273393e+12 | BG26: =IFERROR(IF($AP$21=0,BE26/BE$25*100,(100*(BE26*12/$BI26)/BE$25)),IFERROR(IF($AP$21=0, BE26/BE$26*100, 100*(BE26*12/$BI26)/BE$26), IFERROR(IF($AP$21=0, BE26/BE$27*100, 100*(BE26*12/$BI26)/BE$27),IFERROR(IF($AP$21=0, BE26/BE$28*100, 100*(BE26*12/$BI26)/BE$28), IFERROR(IF($AP$21=0, BE26/BE$29*100, 100*(BE26*12/$BI26)/BE$29),IFERROR(IF($AP$21=0, BE26/BE$30*100, 100*(BE26*12/$BI26)/BE$230),IFERROR(IF($AP$21=0, BE26/BE$31*100, 100*(BE26*12/$BI26)/BE$31),IFERROR(IF($AP$21=0, BE26/BE$31*100, 100*(BE26*12/$BI26)/BE$31),IFERROR(IF($AP$21=0, BE26/BE$32*100, 100*(BE26*12/$BI26)/BE$32),IFERROR(IF($AP$21=0, BE26/BE$33*100, 100*(BE26*12/$BI26)/BE$33),IF($AP$21=0, BE26/BE$34*100, 100*(BE26*12/$BI26)/BE$34))))))))))) -> 101.2931869 | BH26: 99.39024146 | BI26: 12 | BJ26: =VLOOKUP($AO26,Data!$A$1:$P$688,Charts!BJ$23,FALSE) -> 0.1603901413
C27: =AM36 -> 2020-06-01 | F27: 0.1630317318 | I27: 0.1477901863 | L27: 0.1699418093 | O27: 0.2024827361 | AL27: 201803 | AM27: =IF(AM26<$AL$24,+DATE(YEAR(AM26),MONTH(AM26)+3,DAY(AM26)),"") -> 2018-03-01 | AN27: 201803 | AO27: Tier 1 capital ratio201803 | AP27: =VLOOKUP($AO27,Data!$A$1:$P$688,Charts!AP$23,FALSE) -> 0.1200358072 | AQ27: =VLOOKUP($AO27,Data!$A$1:$P$688,Charts!AQ$23,FALSE) -> 0.1406790825 | AR27: =VLOOKUP($AO27,Data!$A$1:$P$688,Charts!AR$23,FALSE) -> 0.16410405 | AS27: =VLOOKUP($AO27,Data!$A$1:$P$688,Charts!AS$23,FALSE) -> 0.2143724125 | AT27: =VLOOKUP($AO27,Data!$A$1:$P$688,Charts!AT$23,FALSE) -> 0.160126419 | AU27: =VLOOKUP($AO27,Data!$A$1:$P$688,Charts!AU$23,FALSE) -> 0.2134825616 | AV27: =VLOOKUP($AO27,Data!$A$1:$P$688,Charts!AV$23,FALSE) -> 0.44392567 | AW27: =VLOOKUP($AO27,Data!$A$1:$P$688,Charts!AW$23,FALSE) -> 0.1608587099 | AX27: =VLOOKUP($AO27,Data!$A$1:$P$688,Charts!AX$23,FALSE) -> 0.171136783 | AY27: 0.1406790825 | AZ27: 0 | BA27: 0.02342496744 | BB27: 0.04937851166 | BC27: 0.02064327534 | BD27: 0.2304431084 | BE27: =VLOOKUP($AO27,Data!$A$1:$P$688,BD$23,FALSE) -> 1.230406041e+12 | BF27: =VLOOKUP($AO27,Data!$A$1:$P$688,BE$23,FALSE) -> 7.944798621e+12 | BG27: 99.69078991 | BH27: 99.54718076 | BI27: 3 | BJ27: =VLOOKUP($AO27,Data!$A$1:$P$688,Charts!BJ$23,FALSE) -> 0.1578380914
B28: =IF($AK$21="PFT_43","Data for Cost of Risk are shown here as a positive value, even though they are commonly expenses.","") ->  | AL28: 201806 | AM28: 2018-06-01 | AN28: 201806 | AO28: Tier 1 capital ratio201806 | AP28: =VLOOKUP($AO28,Data!$A$1:$P$688,Charts!AP$23,FALSE) -> 0.1192798065 | AQ28: =VLOOKUP($AO28,Data!$A$1:$P$688,Charts!AQ$23,FALSE) -> 0.1406711908 | AR28: =VLOOKUP($AO28,Data!$A$1:$P$688,Charts!AR$23,FALSE) -> 0.1671969728 | AS28: =VLOOKUP($AO28,Data!$A$1:$P$688,Charts!AS$23,FALSE) -> 0.2138793306 | AT28: =VLOOKUP($AO28,Data!$A$1:$P$688,Charts!AT$23,FALSE) -> 0.1602693442 | AU28: =VLOOKUP($AO28,Data!$A$1:$P$688,Charts!AU$23,FALSE) -> 0.2168852002 | AV28: =VLOOKUP($AO28,Data!$A$1:$P$688,Charts!AV$23,FALSE) -> 0.4475551975 | AW28: =VLOOKUP($AO28,Data!$A$1:$P$688,Charts!AW$23,FALSE) -> 0.1674345133 | AX28: =VLOOKUP($AO28,Data!$A$1:$P$688,Charts!AX$23,FALSE) -> 0.1721586395 | AY28: 0.1406711908 | AZ28: 0 | BA28: 0.02652578198 | BB28: 0.04968822739 | BC28: 0.02139138435 | BD28: 0.2306699974 | BE28: =VLOOKUP($AO28,Data!$A$1:$P$688,BD$23,FALSE) -> 1.23721946e+12 | BF28: =VLOOKUP($AO28,Data!$A$1:$P$688,BE$23,FALSE) -> 8.010719782e+12 | BG28: 100.2428314 | BH28: 100.3731634 | BI28: 6 | BJ28: =VLOOKUP($AO28,Data!$A$1:$P$688,Charts!BJ$23,FALSE) -> 0.1570405253
AL29: 201809 | AM29: 2018-09-01 | AN29: 201809 | AO29: Tier 1 capital ratio201809 | AP29: =VLOOKUP($AO29,Data!$A$1:$P$688,Charts!AP$23,FALSE) -> 0.1189777367 | AQ29: =VLOOKUP($AO29,Data!$A$1:$P$688,Charts!AQ$23,FALSE) -> 0.1387682158 | AR29: =VLOOKUP($AO29,Data!$A$1:$P$688,Charts!AR$23,FALSE) -> 0.1691677188 | AS29: =VLOOKUP($AO29,Data!$A$1:$P$688,Charts!AS$23,FALSE) -> 0.2177076117 | AT29: =VLOOKUP($AO29,Data!$A$1:$P$688,Charts!AT$23,FALSE) -> 0.1628207497 | AU29: =VLOOKUP($AO29,Data!$A$1:$P$688,Charts!AU$23,FALSE) -> 0.2174372573 | AV29: =VLOOKUP($AO29,Data!$A$1:$P$688,Charts!AV$23,FALSE) -> 0.4475878207 | AW29: =VLOOKUP($AO29,Data!$A$1:$P$688,Charts!AW$23,FALSE) -> 0.1759923952 | AX29: =VLOOKUP($AO29,Data!$A$1:$P$688,Charts!AX$23,FALSE) -> 0.1731947119 | AY29: =IF(AQ29<0,0,AQ29) -> 0.1387682158 | AZ29: =IF(AQ29<0,AQ29,0) -> 0 | BA29: =AR29-AY29 -> 0.03039950294 | BB29: =AU29-AR29 -> 0.04826953855 | BC29: =AQ29-AP29 -> 0.01979047909 | BD29: =AV29-AU29 -> 0.2301505633 | BE29: =VLOOKUP($AO29,Data!$A$1:$P$688,BD$23,FALSE) -> 1.237965312e+12 | BF29: =VLOOKUP($AO29,Data!$A$1:$P$688,BE$23,FALSE) -> 7.959873953e+12 | BG29: 100.3032623 | BH29: 99.73607249 | BI29: 9 | BJ29: =VLOOKUP($AO29,Data!$A$1:$P$688,Charts!BJ$23,FALSE) -> 0.1592148766
AL30: 201812 | AM30: 2018-12-01 | AN30: 201812 | AO30: Tier 1 capital ratio201812 | AP30: =VLOOKUP($AO30,Data!$A$1:$P$688,Charts!AP$23,FALSE) -> 0.1217731642 | AQ30: =VLOOKUP($AO30,Data!$A$1:$P$688,Charts!AQ$23,FALSE) -> 0.1440516175 | AR30: =VLOOKUP($AO30,Data!$A$1:$P$688,Charts!AR$23,FALSE) -> 0.1674884738 | AS30: =VLOOKUP($AO30,Data!$A$1:$P$688,Charts!AS$23,FALSE) -> 0.2202134797 | AT30: =VLOOKUP($AO30,Data!$A$1:$P$688,Charts!AT$23,FALSE) -> 0.1631920606 | AU30: =VLOOKUP($AO30,Data!$A$1:$P$688,Charts!AU$23,FALSE) -> 0.2031647335 | AV30: =VLOOKUP($AO30,Data!$A$1:$P$688,Charts!AV$23,FALSE) -> 0.4966677362 | AW30: =VLOOKUP($AO30,Data!$A$1:$P$688,Charts!AW$23,FALSE) -> 0.1863566256 | AX30: =VLOOKUP($AO30,Data!$A$1:$P$688,Charts!AX$23,FALSE) -> 0.1749859284 | AY30: 0.1440516175 | AZ30: 0 | BA30: 0.02343685634 | BB30: 0.0356762597 | BC30: 0.02227845322 | BD30: 0.2935030027 | BE30: =VLOOKUP($AO30,Data!$A$1:$P$688,BD$23,FALSE) -> 1.257847091e+12 | BF30: =VLOOKUP($AO30,Data!$A$1:$P$688,BE$23,FALSE) -> 8.090892132e+12 | BG30: 101.9141372 | BH30: 101.3777114 | BI30: 12 | BJ30: =VLOOKUP($AO30,Data!$A$1:$P$688,Charts!BJ$23,FALSE) -> 0.1583215731
AL31: 201903 | AM31: 2019-03-01 | AN31: 201903 | AO31: =CONCATENATE($AO$21,AN31) -> Tier 1 capital ratio201903 | AP31: =VLOOKUP($AO31,Data!$A$1:$P$688,Charts!AP$23,FALSE) -> 0.1258831946 | AQ31: =VLOOKUP($AO31,Data!$A$1:$P$688,Charts!AQ$23,FALSE) -> 0.1450424878 | AR31: =VLOOKUP($AO31,Data!$A$1:$P$688,Charts!AR$23,FALSE) -> 0.1666220321 | AS31: =VLOOKUP($AO31,Data!$A$1:$P$688,Charts!AS$23,FALSE) -> 0.2041882262 | AT31: =VLOOKUP($AO31,Data!$A$1:$P$688,Charts!AT$23,FALSE) -> 0.1623249038 | AU31: =VLOOKUP($AO31,Data!$A$1:$P$688,Charts!AU$23,FALSE) -> 0.2006836496 | AV31: =VLOOKUP($AO31,Data!$A$1:$P$688,Charts!AV$23,FALSE) -> 0.3960401457 | AW31: =VLOOKUP($AO31,Data!$A$1:$P$688,Charts!AW$23,FALSE) -> 0.1794166897 | AX31: =VLOOKUP($AO31,Data!$A$1:$P$688,Charts!AX$23,FALSE) -> 0.1746008721 | AY31: =IF(AQ31<0,0,AQ31) -> 0.1450424878 | AZ31: =IF(AQ31<0,AQ31,0) -> 0 | BA31: =AR31-AY31 -> 0.0215795443 | BB31: =AU31-AR31 -> 0.03406161754 | BC31: =AQ31-AP31 -> 0.01915929313 | BD31: =AV31-AU31 -> 0.1953564961 | BE31: =VLOOKUP($AO31,Data!$A$1:$P$688,BD$23,FALSE) -> 1.284515723e+12 | BF31: =VLOOKUP($AO31,Data!$A$1:$P$688,BE$23,FALSE) -> 8.28605975e+12 | BG31: 104.0749011 | BH31: 103.8231335 | BI31: =MONTH(AM31) -> 3 | BJ31: =VLOOKUP($AO31,Data!$A$1:$P$688,Charts!BJ$23,FALSE) -> 0.1577765242
AL32: 201906 | AM32: =IF(AM31<$AL$24,+DATE(YEAR(AM31),MONTH(AM31)+3,DAY(AM31)),"") -> 2019-06-01 | AN32: 201906 | AO32: Tier 1 capital ratio201906 | AP32: =VLOOKUP($AO32,Data!$A$1:$P$688,Charts!AP$23,FALSE) -> 0.1286853066 | AQ32: =VLOOKUP($AO32,Data!$A$1:$P$688,Charts!AQ$23,FALSE) -> 0.145910894 | AR32: =VLOOKUP($AO32,Data!$A$1:$P$688,Charts!AR$23,FALSE) -> 0.1658085607 | AS32: =VLOOKUP($AO32,Data!$A$1:$P$688,Charts!AS$23,FALSE) -> 0.2031484998 | AT32: =VLOOKUP($AO32,Data!$A$1:$P$688,Charts!AT$23,FALSE) -> 0.161732666 | AU32: =VLOOKUP($AO32,Data!$A$1:$P$688,Charts!AU$23,FALSE) -> 0.1975597269 | AV32: =VLOOKUP($AO32,Data!$A$1:$P$688,Charts!AV$23,FALSE) -> 0.4305118124 | AW32: =VLOOKUP($AO32,Data!$A$1:$P$688,Charts!AW$23,FALSE) -> 0.1812367087 | AX32: =VLOOKUP($AO32,Data!$A$1:$P$688,Charts!AX$23,FALSE) -> 0.1704225028 | AY32: 0.145910894 | AZ32: 0 | BA32: 0.01989766667 | BB32: 0.03175116618 | BC32: 0.0172255874 | BD32: 0.2329520855 | BE32: =VLOOKUP($AO32,Data!$A$1:$P$688,BD$23,FALSE) -> 1.29702026e+12 | BF32: =VLOOKUP($AO32,Data!$A$1:$P$688,BE$23,FALSE) -> 8.321241288e+12 | BG32: =IFERROR(IF($AP$21=0,BE32/BE$25*100,(100*(BE32*12/$BI32)/BE$25)),IFERROR(IF($AP$21=0, BE32/BE$26*100, 100*(BE32*12/$BI32)/BE$26), IFERROR(IF($AP$21=0, BE32/BE$27*100, 100*(BE32*12/$BI32)/BE$27),IFERROR(IF($AP$21=0, BE32/BE$28*100, 100*(BE32*12/$BI32)/BE$28), IFERROR(IF($AP$21=0, BE32/BE$29*100, 100*(BE32*12/$BI32)/BE$29),IFERROR(IF($AP$21=0, BE32/BE$30*100, 100*(BE32*12/$BI32)/BE$230),IFERROR(IF($AP$21=0, BE32/BE$31*100, 100*(BE32*12/$BI32)/BE$31),IFERROR(IF($AP$21=0, BE32/BE$31*100, 100*(BE32*12/$BI32)/BE$31),IFERROR(IF($AP$21=0, BE32/BE$32*100, 100*(BE32*12/$BI32)/BE$32),IFERROR(IF($AP$21=0, BE32/BE$33*100, 100*(BE32*12/$BI32)/BE$33),IF($AP$21=0, BE32/BE$34*100, 100*(BE32*12/$BI32)/BE$34))))))))))) -> 105.0880522 | BH32: 104.2639531 | BI32: 6 | BJ32: =VLOOKUP($AO32,Data!$A$1:$P$688,Charts!BJ$23,FALSE) -> 0.1577670238
AL33: 201909 | AM33: =IF(AM32<$AL$24,+DATE(YEAR(AM32),MONTH(AM32)+3,DAY(AM32)),"") -> 2019-09-01 | AN33: 201909 | AO33: Tier 1 capital ratio201909 | AP33: =VLOOKUP($AO33,Data!$A$1:$P$688,Charts!AP$23,FALSE) -> 0.1301158391 | AQ33: =VLOOKUP($AO33,Data!$A$1:$P$688,Charts!AQ$23,FALSE) -> 0.1474070885 | AR33: =VLOOKUP($AO33,Data!$A$1:$P$688,Charts!AR$23,FALSE) -> 0.1641262725 | AS33: =VLOOKUP($AO33,Data!$A$1:$P$688,Charts!AS$23,FALSE) -> 0.2014405542 | AT33: =VLOOKUP($AO33,Data!$A$1:$P$688,Charts!AT$23,FALSE) -> 0.161385142 | AU33: =VLOOKUP($AO33,Data!$A$1:$P$688,Charts!AU$23,FALSE) -> 0.1952269416 | AV33: =VLOOKUP($AO33,Data!$A$1:$P$688,Charts!AV$23,FALSE) -> 0.408359682 | AW33: =VLOOKUP($AO33,Data!$A$1:$P$688,Charts!AW$23,FALSE) -> 0.177729436 | AX33: =VLOOKUP($AO33,Data!$A$1:$P$688,Charts!AX$23,FALSE) -> 0.1695318874 | AY33: 0.1474070885 | AZ33: 0 | BA33: 0.01671918395 | BB33: 0.03110066916 | BC33: 0.01729124945 | BD33: 0.2131327404 | BE33: =VLOOKUP($AO33,Data!$A$1:$P$688,BD$23,FALSE) -> 1.311052758e+12 | BF33: =VLOOKUP($AO33,Data!$A$1:$P$688,BE$23,FALSE) -> 8.400390998e+12 | BG33: =IFERROR(IF($AP$21=0,BE33/BE$25*100,(100*(BE33*12/$BI33)/BE$25)),IFERROR(IF($AP$21=0, BE33/BE$26*100, 100*(BE33*12/$BI33)/BE$26), IFERROR(IF($AP$21=0, BE33/BE$27*100, 100*(BE33*12/$BI33)/BE$27),IFERROR(IF($AP$21=0, BE33/BE$28*100, 100*(BE33*12/$BI33)/BE$28), IFERROR(IF($AP$21=0, BE33/BE$29*100, 100*(BE33*12/$BI33)/BE$29),IFERROR(IF($AP$21=0, BE33/BE$30*100, 100*(BE33*12/$BI33)/BE$230),IFERROR(IF($AP$21=0, BE33/BE$31*100, 100*(BE33*12/$BI33)/BE$31),IFERROR(IF($AP$21=0, BE33/BE$31*100, 100*(BE33*12/$BI33)/BE$31),IFERROR(IF($AP$21=0, BE33/BE$32*100, 100*(BE33*12/$BI33)/BE$32),IFERROR(IF($AP$21=0, BE33/BE$33*100, 100*(BE33*12/$BI33)/BE$33),IF($AP$21=0, BE33/BE$34*100, 100*(BE33*12/$BI33)/BE$34))))))))))) -> 106.2250027 | BH33: 105.2556875 | BI33: 9 | BJ33: =VLOOKUP($AO33,Data!$A$1:$P$688,Charts!BJ$23,FALSE) -> 0.1577779281
AL34: 201912 | AM34: 2019-12-01 | AN34: 201912 | AO34: Tier 1 capital ratio201912 | AP34: =VLOOKUP($AO34,Data!$A$1:$P$688,Charts!AP$23,FALSE) -> 0.1318277639 | AQ34: =VLOOKUP($AO34,Data!$A$1:$P$688,Charts!AQ$23,FALSE) -> 0.1518558895 | AR34: =VLOOKUP($AO34,Data!$A$1:$P$688,Charts!AR$23,FALSE) -> 0.1695190957 | AS34: =VLOOKUP($AO34,Data!$A$1:$P$688,Charts!AS$23,FALSE) -> 0.2054514172 | AT34: =VLOOKUP($AO34,Data!$A$1:$P$688,Charts!AT$23,FALSE) -> 0.1665368286 | AU34: =VLOOKUP($AO34,Data!$A$1:$P$688,Charts!AU$23,FALSE) -> 0.2032288057 | AV34: =VLOOKUP($AO34,Data!$A$1:$P$688,Charts!AV$23,FALSE) -> 0.388349476 | AW34: =VLOOKUP($AO34,Data!$A$1:$P$688,Charts!AW$23,FALSE) -> 0.1815463223 | AX34: =VLOOKUP($AO34,Data!$A$1:$P$688,Charts!AX$23,FALSE) -> 0.1743240117 | AY34: 0.1518558895 | AZ34: 0 | BA34: 0.01766320621 | BB34: 0.03370971006 | BC34: 0.02002812556 | BD34: 0.1851206702 | BE34: =VLOOKUP($AO34,Data!$A$1:$P$688,BD$23,FALSE) -> 1.33981509e+12 | BF34: =VLOOKUP($AO34,Data!$A$1:$P$688,BE$23,FALSE) -> 8.308849672e+12 | BG34: =IFERROR(IF($AP$21=0,BE34/BE$25*100,(100*(BE34*12/$BI34)/BE$25)),IFERROR(IF($AP$21=0, BE34/BE$26*100, 100*(BE34*12/$BI34)/BE$26), IFERROR(IF($AP$21=0, BE34/BE$27*100, 100*(BE34*12/$BI34)/BE$27),IFERROR(IF($AP$21=0, BE34/BE$28*100, 100*(BE34*12/$BI34)/BE$28), IFERROR(IF($AP$21=0, BE34/BE$29*100, 100*(BE34*12/$BI34)/BE$29),IFERROR(IF($AP$21=0, BE34/BE$30*100, 100*(BE34*12/$BI34)/BE$230),IFERROR(IF($AP$21=0, BE34/BE$31*100, 100*(BE34*12/$BI34)/BE$31),IFERROR(IF($AP$21=0, BE34/BE$31*100, 100*(BE34*12/$BI34)/BE$31),IFERROR(IF($AP$21=0, BE34/BE$32*100, 100*(BE34*12/$BI34)/BE$32),IFERROR(IF($AP$21=0, BE34/BE$33*100, 100*(BE34*12/$BI34)/BE$33),IF($AP$21=0, BE34/BE$34*100, 100*(BE34*12/$BI34)/BE$34))))))))))) -> 108.5554038 | BH34: 104.1086879 | BI34: 12 | BJ34: =VLOOKUP($AO34,Data!$A$1:$P$688,Charts!BJ$23,FALSE) -> 0.1631957926
AL35: 202003 | AM35: 2020-03-01 | AN35: 202003 | AO35: Tier 1 capital ratio202003 | AP35: =VLOOKUP($AO35,Data!$A$1:$P$688,Charts!AP$23,FALSE) -> 0.1310134759 | AQ35: =VLOOKUP($AO35,Data!$A$1:$P$688,Charts!AQ$23,FALSE) -> 0.1427134004 | AR35: =VLOOKUP($AO35,Data!$A$1:$P$688,Charts!AR$23,FALSE) -> 0.1630313331 | AS35: =VLOOKUP($AO35,Data!$A$1:$P$688,Charts!AS$23,FALSE) -> 0.1989649802 | AT35: =VLOOKUP($AO35,Data!$A$1:$P$688,Charts!AT$23,FALSE) -> 0.1583097888 | AU35: =VLOOKUP($AO35,Data!$A$1:$P$688,Charts!AU$23,FALSE) -> 0.1989703886 | AV35: =VLOOKUP($AO35,Data!$A$1:$P$688,Charts!AV$23,FALSE) -> 0.3691135761 | AW35: =VLOOKUP($AO35,Data!$A$1:$P$688,Charts!AW$23,FALSE) -> 0.2012473979 | AX35: =VLOOKUP($AO35,Data!$A$1:$P$688,Charts!AX$23,FALSE) -> 0.1681722939 | AY35: 0.1427134004 | AZ35: 0 | BA35: 0.02031793275 | BB35: 0.03593905548 | BC35: 0.01169992444 | BD35: 0.1701431875 | BE35: =VLOOKUP($AO35,Data!$A$1:$P$688,BD$23,FALSE) -> 1.325675708e+12 | BF35: =VLOOKUP($AO35,Data!$A$1:$P$688,BE$23,FALSE) -> 8.453832547e+12 | BG35: =IFERROR(IF($AP$21=0,BE35/BE$25*100,(100*(BE35*12/$BI35)/BE$25)),IFERROR(IF($AP$21=0, BE35/BE$26*100, 100*(BE35*12/$BI35)/BE$26), IFERROR(IF($AP$21=0, BE35/BE$27*100, 100*(BE35*12/$BI35)/BE$27),IFERROR(IF($AP$21=0, BE35/BE$28*100, 100*(BE35*12/$BI35)/BE$28), IFERROR(IF($AP$21=0, BE35/BE$29*100, 100*(BE35*12/$BI35)/BE$29),IFERROR(IF($AP$21=0, BE35/BE$30*100, 100*(BE35*12/$BI35)/BE$230),IFERROR(IF($AP$21=0, BE35/BE$31*100, 100*(BE35*12/$BI35)/BE$31),IFERROR(IF($AP$21=0, BE35/BE$31*100, 100*(BE35*12/$BI35)/BE$31),IFERROR(IF($AP$21=0, BE35/BE$32*100, 100*(BE35*12/$BI35)/BE$32),IFERROR(IF($AP$21=0, BE35/BE$33*100, 100*(BE35*12/$BI35)/BE$33),IF($AP$21=0, BE35/BE$34*100, 100*(BE35*12/$BI35)/BE$34))))))))))) -> 107.4097932 | BH35: 105.9253024 | BI35: 3 | BJ35: =VLOOKUP($AO35,Data!$A$1:$P$688,Charts!BJ$23,FALSE) -> 0.1543324887
AL36: 202006 | AM36: =IF(AM35<$AL$24,+DATE(YEAR(AM35),MONTH(AM35)+3,DAY(AM35)),"") -> 2020-06-01 | AN36: =+IF(MONTH(AM36)=12,YEAR(AM36)&MONTH(AM36),YEAR(AM36)&0&MONTH(AM36)) -> 202006 | AO36: Tier 1 capital ratio202006 | AP36: =VLOOKUP($AO36,Data!$A$1:$P$688,Charts!AP$23,FALSE) -> 0.1330936645 | AQ36: =VLOOKUP($AO36,Data!$A$1:$P$688,Charts!AQ$23,FALSE) -> 0.1477901863 | AR36: =VLOOKUP($AO36,Data!$A$1:$P$688,Charts!AR$23,FALSE) -> 0.1699418093 | AS36: =VLOOKUP($AO36,Data!$A$1:$P$688,Charts!AS$23,FALSE) -> 0.2071739714 | AT36: =VLOOKUP($AO36,Data!$A$1:$P$688,Charts!AT$23,FALSE) -> 0.1630317318 | AU36: =VLOOKUP($AO36,Data!$A$1:$P$688,Charts!AU$23,FALSE) -> 0.2024827361 | AV36: =VLOOKUP($AO36,Data!$A$1:$P$688,Charts!AV$23,FALSE) -> 0.3597325392 | AW36: =VLOOKUP($AO36,Data!$A$1:$P$688,Charts!AW$23,FALSE) -> 0.2072806919 | AX36: =VLOOKUP($AO36,Data!$A$1:$P$688,Charts!AX$23,FALSE) -> 0.1722599844 | AY36: 0.1477901863 | AZ36: 0 | BA36: 0.02215162301 | BB36: 0.03254092679 | BC36: 0.01469652183 | BD36: 0.1572498031 | BE36: =VLOOKUP($AO36,Data!$A$1:$P$688,BD$23,FALSE) -> 1.354966633e+12 | BF36: =VLOOKUP($AO36,Data!$A$1:$P$688,BE$23,FALSE) -> 8.40018357e+12 | BG36: =IFERROR(IF($AP$21=0,BE36/BE$25*100,(100*(BE36*12/$BI36)/BE$25)),IFERROR(IF($AP$21=0, BE36/BE$26*100, 100*(BE36*12/$BI36)/BE$26), IFERROR(IF($AP$21=0, BE36/BE$27*100, 100*(BE36*12/$BI36)/BE$27),IFERROR(IF($AP$21=0, BE36/BE$28*100, 100*(BE36*12/$BI36)/BE$28), IFERROR(IF($AP$21=0, BE36/BE$29*100, 100*(BE36*12/$BI36)/BE$29),IFERROR(IF($AP$21=0, BE36/BE$30*100, 100*(BE36*12/$BI36)/BE$230),IFERROR(IF($AP$21=0, BE36/BE$31*100, 100*(BE36*12/$BI36)/BE$31),IFERROR(IF($AP$21=0, BE36/BE$31*100, 100*(BE36*12/$BI36)/BE$31),IFERROR(IF($AP$21=0, BE36/BE$32*100, 100*(BE36*12/$BI36)/BE$32),IFERROR(IF($AP$21=0, BE36/BE$33*100, 100*(BE36*12/$BI36)/BE$33),IF($AP$21=0, BE36/BE$34*100, 100*(BE36*12/$BI36)/BE$34))))))))))) -> 109.7830224 | BH36: 105.2530885 | BI36: 6 | BJ36: =VLOOKUP($AO36,Data!$A$1:$P$688,Charts!BJ$23,FALSE) -> 0.1590612254
AN48: =VLOOKUP(AM21*1,List!$A$1:$I$100,9,FALSE) -> 9 | AO48: Indicator | AP48: Country | AQ48: Country name | AR48: Value | AS48: EU value
AO49: 2 | AQ49: 5 | AR49: 8
AN50: =MAX($AL$25:$AL$45) -> 202006 | AO50: =CONCATENATE(VLOOKUP($AN$21*1,Data!$W$1:$AB$688,AO$49,FALSE),AP50) -> Tier 1 Capital Ratio1 | AP50: 1 | AQ50: =VLOOKUP($AO50,Data!$U$1:$AC$688,AQ$49,FALSE) -> EE | AR50: =VLOOKUP($AO50,Data!$U$1:$AC$688,AR$49,FALSE) -> 0.2761292374 | AS50: =VLOOKUP($AO$80,Data!$U$1:$AC$688,$AR$49,FALSE) -> 0.1630317318
AN51: =MAX($AL$25:$AL$45) -> 202006 | AO51: =CONCATENATE(VLOOKUP($AN$21*1,Data!$W$1:$AB$688,AO$49,FALSE),AP51) -> Tier 1 Capital Ratio2 | AP51: 2 | AQ51: =VLOOKUP($AO51,Data!$U$1:$AC$688,AQ$49,FALSE) -> LV | AR51: =VLOOKUP($AO51,Data!$U$1:$AC$688,AR$49,FALSE) -> 0.2486025487 | AS51: =VLOOKUP($AO$80,Data!$U$1:$AC$688,$AR$49,FALSE) -> 0.1630317318
AN52: 202006 | AO52: =CONCATENATE(VLOOKUP($AN$21*1,Data!$W$1:$AB$688,AO$49,FALSE),AP52) -> Tier 1 Capital Ratio3 | AP52: 3 | AQ52: =VLOOKUP($AO52,Data!$U$1:$AC$688,AQ$49,FALSE) -> HR | AR52: =VLOOKUP($AO52,Data!$U$1:$AC$688,AR$49,FALSE) -> 0.2348376663 | AS52: =VLOOKUP($AO$80,Data!$U$1:$AC$688,$AR$49,FALSE) -> 0.1630317318
AN53: 202006 | AO53: =CONCATENATE(VLOOKUP($AN$21*1,Data!$W$1:$AB$688,AO$49,FALSE),AP53) -> Tier 1 Capital Ratio4 | AP53: 4 | AQ53: =VLOOKUP($AO53,Data!$U$1:$AC$688,AQ$49,FALSE) -> BG | AR53: =VLOOKUP($AO53,Data!$U$1:$AC$688,AR$49,FALSE) -> 0.2344381136 | AS53: =VLOOKUP($AO$80,Data!$U$1:$AC$688,$AR$49,FALSE) -> 0.1630317318
AN54: 202006 | AO54: =CONCATENATE(VLOOKUP($AN$21*1,Data!$W$1:$AB$688,AO$49,FALSE),AP54) -> Tier 1 Capital Ratio5 | AP54: 5 | AQ54: =VLOOKUP($AO54,Data!$U$1:$AC$688,AQ$49,FALSE) -> CZ | AR54: =VLOOKUP($AO54,Data!$U$1:$AC$688,AR$49,FALSE) -> 0.226016201 | AS54: =VLOOKUP($AO$80,Data!$U$1:$AC$688,$AR$49,FALSE) -> 0.1630317318
AN55: 202006 | AO55: =CONCATENATE(VLOOKUP($AN$21*1,Data!$W$1:$AB$688,AO$49,FALSE),AP55) -> Tier 1 Capital Ratio6 | AP55: 6 | AQ55: =VLOOKUP($AO55,Data!$U$1:$AC$688,AQ$49,FALSE) -> LT | AR55: =VLOOKUP($AO55,Data!$U$1:$AC$688,AR$49,FALSE) -> 0.2236753485 | AS55: =VLOOKUP($AO$80,Data!$U$1:$AC$688,$AR$49,FALSE) -> 0.1630317318
AN56: 202006 | AO56: =CONCATENATE(VLOOKUP($AN$21*1,Data!$W$1:$AB$688,AO$49,FALSE),AP56) -> Tier 1 Capital Ratio7 | AP56: 7 | AQ56: =VLOOKUP($AO56,Data!$U$1:$AC$688,AQ$49,FALSE) -> IS | AR56: =VLOOKUP($AO56,Data!$U$1:$AC$688,AR$49,FALSE) -> 0.2225294958 | AS56: =VLOOKUP($AO$80,Data!$U$1:$AC$688,$AR$49,FALSE) -> 0.1630317318
AN57: 202006 | AO57: =CONCATENATE(VLOOKUP($AN$21*1,Data!$W$1:$AB$688,AO$49,FALSE),AP57) -> Tier 1 Capital Ratio8 | AP57: 8 | AQ57: =VLOOKUP($AO57,Data!$U$1:$AC$688,AQ$49,FALSE) -> LU | AR57: =VLOOKUP($AO57,Data!$U$1:$AC$688,AR$49,FALSE) -> 0.2110389546 | AS57: =VLOOKUP($AO$80,Data!$U$1:$AC$688,$AR$49,FALSE) -> 0.1630317318
AN58: 202006 | AO58: =CONCATENATE(VLOOKUP($AN$21*1,Data!$W$1:$AB$688,AO$49,FALSE),AP58) -> Tier 1 Capital Ratio9 | AP58: 9 | AQ58: =VLOOKUP($AO58,Data!$U$1:$AC$688,AQ$49,FALSE) -> IE | AR58: =VLOOKUP($AO58,Data!$U$1:$AC$688,AR$49,FALSE) -> 0.2012894206 | AS58: =VLOOKUP($AO$80,Data!$U$1:$AC$688,$AR$49,FALSE) -> 0.1630317318
AN59: 202006 | AO59: =CONCATENATE(VLOOKUP($AN$21*1,Data!$W$1:$AB$688,AO$49,FALSE),AP59) -> Tier 1 Capital Ratio10 | AP59: 10 | AQ59: =VLOOKUP($AO59,Data!$U$1:$AC$688,AQ$49,FALSE) -> DK | AR59: =VLOOKUP($AO59,Data!$U$1:$AC$688,AR$49,FALSE) -> 0.1994107962 | AS59: =VLOOKUP($AO$80,Data!$U$1:$AC$688,$AR$49,FALSE) -> 0.1630317318
AN60: 202006 | AO60: =CONCATENATE(VLOOKUP($AN$21*1,Data!$W$1:$AB$688,AO$49,FALSE),AP60) -> Tier 1 Capital Ratio11 | AP60: 11 | AQ60: =VLOOKUP($AO60,Data!$U$1:$AC$688,AQ$49,FALSE) -> NO | AR60: =VLOOKUP($AO60,Data!$U$1:$AC$688,AR$49,FALSE) -> 0.1945538099 | AS60: =VLOOKUP($AO$80,Data!$U$1:$AC$688,$AR$49,FALSE) -> 0.1630317318
AN61: 202006 | AO61: =CONCATENATE(VLOOKUP($AN$21*1,Data!$W$1:$AB$688,AO$49,FALSE),AP61) -> Tier 1 Capital Ratio12 | AP61: 12 | AQ61: =VLOOKUP($AO61,Data!$U$1:$AC$688,AQ$49,FALSE) -> SE | AR61: =VLOOKUP($AO61,Data!$U$1:$AC$688,AR$49,FALSE) -> 0.1942040624 | AS61: =VLOOKUP($AO$80,Data!$U$1:$AC$688,$AR$49,FALSE) -> 0.1630317318
AN62: 202006 | AO62: =CONCATENATE(VLOOKUP($AN$21*1,Data!$W$1:$AB$688,AO$49,FALSE),AP62) -> Tier 1 Capital Ratio13 | AP62: 13 | AQ62: =VLOOKUP($AO62,Data!$U$1:$AC$688,AQ$49,FALSE) -> RO | AR62: =VLOOKUP($AO62,Data!$U$1:$AC$688,AR$49,FALSE) -> 0.1918633007 | AS62: =VLOOKUP($AO$80,Data!$U$1:$AC$688,$AR$49,FALSE) -> 0.1630317318
AN63: 202006 | AO63: =CONCATENATE(VLOOKUP($AN$21*1,Data!$W$1:$AB$688,AO$49,FALSE),AP63) -> Tier 1 Capital Ratio14 | AP63: 14 | AQ63: =VLOOKUP($AO63,Data!$U$1:$AC$688,AQ$49,FALSE) -> MT | AR63: =VLOOKUP($AO63,Data!$U$1:$AC$688,AR$49,FALSE) -> 0.1888218477 | AS63: =VLOOKUP($AO$80,Data!$U$1:$AC$688,$AR$49,FALSE) -> 0.1630317318
AN64: 202006 | AO64: =CONCATENATE(VLOOKUP($AN$21*1,Data!$W$1:$AB$688,AO$49,FALSE),AP64) -> Tier 1 Capital Ratio15 | AP64: 15 | AQ64: =VLOOKUP($AO64,Data!$U$1:$AC$688,AQ$49,FALSE) -> NL | AR64: =VLOOKUP($AO64,Data!$U$1:$AC$688,AR$49,FALSE) -> 0.186982237 | AS64: =VLOOKUP($AO$80,Data!$U$1:$AC$688,$AR$49,FALSE) -> 0.1630317318
AN65: 202006 | AO65: =CONCATENATE(VLOOKUP($AN$21*1,Data!$W$1:$AB$688,AO$49,FALSE),AP65) -> Tier 1 Capital Ratio16 | AP65: 16 | AQ65: =VLOOKUP($AO65,Data!$U$1:$AC$688,AQ$49,FALSE) -> FI | AR65: =VLOOKUP($AO65,Data!$U$1:$AC$688,AR$49,FALSE) -> 0.1823040509 | AS65: =VLOOKUP($AO$80,Data!$U$1:$AC$688,$AR$49,FALSE) -> 0.1630317318
AN66: 202006 | AO66: =CONCATENATE(VLOOKUP($AN$21*1,Data!$W$1:$AB$688,AO$49,FALSE),AP66) -> Tier 1 Capital Ratio17 | AP66: 17 | AQ66: =VLOOKUP($AO66,Data!$U$1:$AC$688,AQ$49,FALSE) -> CY | AR66: =VLOOKUP($AO66,Data!$U$1:$AC$688,AR$49,FALSE) -> 0.1820107084 | AS66: =VLOOKUP($AO$80,Data!$U$1:$AC$688,$AR$49,FALSE) -> 0.1630317318
AN67: 202006 | AO67: =CONCATENATE(VLOOKUP($AN$21*1,Data!$W$1:$AB$688,AO$49,FALSE),AP67) -> Tier 1 Capital Ratio18 | AP67: 18 | AQ67: =VLOOKUP($AO67,Data!$U$1:$AC$688,AQ$49,FALSE) -> BE | AR67: =VLOOKUP($AO67,Data!$U$1:$AC$688,AR$49,FALSE) -> 0.1776879007 | AS67: =VLOOKUP($AO$80,Data!$U$1:$AC$688,$AR$49,FALSE) -> 0.1630317318
AN68: 202006 | AO68: =CONCATENATE(VLOOKUP($AN$21*1,Data!$W$1:$AB$688,AO$49,FALSE),AP68) -> Tier 1 Capital Ratio19 | AP68: 19 | AQ68: =VLOOKUP($AO68,Data!$U$1:$AC$688,AQ$49,FALSE) -> SK | AR68: =VLOOKUP($AO68,Data!$U$1:$AC$688,AR$49,FALSE) -> 0.1754257951 | AS68: =VLOOKUP($AO$80,Data!$U$1:$AC$688,$AR$49,FALSE) -> 0.1630317318
AN69: 202006 | AO69: =CONCATENATE(VLOOKUP($AN$21*1,Data!$W$1:$AB$688,AO$49,FALSE),AP69) -> Tier 1 Capital Ratio20 | AP69: 20 | AQ69: =VLOOKUP($AO69,Data!$U$1:$AC$688,AQ$49,FALSE) -> SI | AR69: =VLOOKUP($AO69,Data!$U$1:$AC$688,AR$49,FALSE) -> 0.1720655704 | AS69: =VLOOKUP($AO$80,Data!$U$1:$AC$688,$AR$49,FALSE) -> 0.1630317318
AN70: 202006 | AO70: =CONCATENATE(VLOOKUP($AN$21*1,Data!$W$1:$AB$688,AO$49,FALSE),AP70) -> Tier 1 Capital Ratio21 | AP70: 21 | AQ70: =VLOOKUP($AO70,Data!$U$1:$AC$688,AQ$49,FALSE) -> PL | AR70: =VLOOKUP($AO70,Data!$U$1:$AC$688,AR$49,FALSE) -> 0.166601659 | AS70: =VLOOKUP($AO$80,Data!$U$1:$AC$688,$AR$49,FALSE) -> 0.1630317318
AN71: 202006 | AO71: =CONCATENATE(VLOOKUP($AN$21*1,Data!$W$1:$AB$688,AO$49,FALSE),AP71) -> Tier 1 Capital Ratio22 | AP71: 22 | AQ71: =VLOOKUP($AO71,Data!$U$1:$AC$688,AQ$49,FALSE) -> IT | AR71: =VLOOKUP($AO71,Data!$U$1:$AC$688,AR$49,FALSE) -> 0.1618306649 | AS71: =VLOOKUP($AO$80,Data!$U$1:$AC$688,$AR$49,FALSE) -> 0.1630317318
AN72: 202006 | AO72: =CONCATENATE(VLOOKUP($AN$21*1,Data!$W$1:$AB$688,AO$49,FALSE),AP72) -> Tier 1 Capital Ratio23 | AP72: 23 | AQ72: =VLOOKUP($AO72,Data!$U$1:$AC$688,AQ$49,FALSE) -> FR | AR72: =VLOOKUP($AO72,Data!$U$1:$AC$688,AR$49,FALSE) -> 0.1602805019 | AS72: =VLOOKUP($AO$80,Data!$U$1:$AC$688,$AR$49,FALSE) -> 0.1630317318
AN73: 202006 | AO73: =CONCATENATE(VLOOKUP($AN$21*1,Data!$W$1:$AB$688,AO$49,FALSE),AP73) -> Tier 1 Capital Ratio24 | AP73: 24 | AQ73: =VLOOKUP($AO73,Data!$U$1:$AC$688,AQ$49,FALSE) -> DE | AR73: =VLOOKUP($AO73,Data!$U$1:$AC$688,AR$49,FALSE) -> 0.1596532488 | AS73: =VLOOKUP($AO$80,Data!$U$1:$AC$688,$AR$49,FALSE) -> 0.1630317318
AN74: 202006 | AO74: =CONCATENATE(VLOOKUP($AN$21*1,Data!$W$1:$AB$688,AO$49,FALSE),AP74) -> Tier 1 Capital Ratio25 | AP74: 25 | AQ74: =VLOOKUP($AO74,Data!$U$1:$AC$688,AQ$49,FALSE) -> AT | AR74: =VLOOKUP($AO74,Data!$U$1:$AC$688,AR$49,FALSE) -> 0.1551047035 | AS74: =VLOOKUP($AO$80,Data!$U$1:$AC$688,$AR$49,FALSE) -> 0.1630317318
AN75: 202006 | AO75: =CONCATENATE(VLOOKUP($AN$21*1,Data!$W$1:$AB$688,AO$49,FALSE),AP75) -> Tier 1 Capital Ratio26 | AP75: 26 | AQ75: =VLOOKUP($AO75,Data!$U$1:$AC$688,AQ$49,FALSE) -> PT | AR75: =VLOOKUP($AO75,Data!$U$1:$AC$688,AR$49,FALSE) -> 0.1528229249 | AS75: =VLOOKUP($AO$80,Data!$U$1:$AC$688,$AR$49,FALSE) -> 0.1630317318
AN76: 202006 | AO76: =CONCATENATE(VLOOKUP($AN$21*1,Data!$W$1:$AB$688,AO$49,FALSE),AP76) -> Tier 1 Capital Ratio27 | AP76: 27 | AQ76: =VLOOKUP($AO76,Data!$U$1:$AC$688,AQ$49,FALSE) -> GR | AR76: =VLOOKUP($AO76,Data!$U$1:$AC$688,AR$49,FALSE) -> 0.1479255341 | AS76: =VLOOKUP($AO$80,Data!$U$1:$AC$688,$AR$49,FALSE) -> 0.1630317318
AN77: 202006 | AO77: =CONCATENATE(VLOOKUP($AN$21*1,Data!$W$1:$AB$688,AO$49,FALSE),AP77) -> Tier 1 Capital Ratio28 | AP77: 28 | AQ77: =VLOOKUP($AO77,Data!$U$1:$AC$688,AQ$49,FALSE) -> HU | AR77: =VLOOKUP($AO77,Data!$U$1:$AC$688,AR$49,FALSE) -> 0.1466366038 | AS77: =VLOOKUP($AO$80,Data!$U$1:$AC$688,$AR$49,FALSE) -> 0.1630317318
AN78: 202006 | AO78: =CONCATENATE(VLOOKUP($AN$21*1,Data!$W$1:$AB$688,AO$49,FALSE),AP78) -> Tier 1 Capital Ratio29 | AP78: 29 | AQ78: =VLOOKUP($AO78,Data!$U$1:$AC$688,AQ$49,FALSE) -> ES | AR78: =VLOOKUP($AO78,Data!$U$1:$AC$688,AR$49,FALSE) -> 0.1368086609 | AS78: =VLOOKUP($AO$80,Data!$U$1:$AC$688,$AR$49,FALSE) -> 0.1630317318
AN79: 202006 | AO79: =CONCATENATE(VLOOKUP($AN$21*1,Data!$W$1:$AB$688,AO$49,FALSE),AP79) -> Tier 1 Capital Ratio100 | AP79: 100 | AQ79: =VLOOKUP($AO79,Data!$U$1:$AC$688,AQ$49,FALSE) -> GB | AR79: =VLOOKUP($AO79,Data!$U$1:$AC$688,AR$49,FALSE) -> 0.1776228083 | AS79: =VLOOKUP($AO$80,Data!$U$1:$AC$688,$AR$49,FALSE) -> 0.1630317318
AN80: =MAX($AL$25:$AL$45) -> 202006 | AO80: =CONCATENATE(VLOOKUP($AN$21*1,Data!$W$1:$AB$688,AO$49,FALSE),AP80) -> Tier 1 Capital Ratio99 | AP80: 99 | AQ80: =VLOOKUP($AO80,Data!$U$1:$AC$688,AQ$49,FALSE) -> EU | AR80: =VLOOKUP($AO80,Data!$U$1:$AC$688,AR$49,FALSE) -> 0.1630317318 | AS80: =VLOOKUP($AO$80,Data!$U$1:$AC$688,$AR$49,FALSE) -> 0.1630317318
AS84: =VLOOKUP(AO80,Data!$U:$AD,10,0) -> 

Sheet Assets
D1: =("'"&MID(CELL("filename",$A$1),FIND("]",CELL("filename",$A$1))+1,32)&"'") -> 'Assets' | E1: T01_1 | F1: T01_1 | G1: T01_1 | H1: T01_1 | I1: T01_2 | J1: T01_2 | K1: T01_2 | L1: T01_2 | M1: T01_3 | N1: T01_3 | O1: T01_3 | P1: T01_3 | Q1: T01_4 | R1: T01_4 | S1: T01_4 | T1: T01_4 | U1: T01_5 | V1: T01_5 | W1: T01_5 | X1: T01_5 | Y1: T01_6 | Z1: T01_6 | AA1: T01_6 | AB1: T01_6
A2: 202006 | E2: =TEXT(E12,"YYYYMM")+0 -> 201909 | F2: =TEXT(F12,"YYYYMM")+0 -> 201912 | G2: 202003 | H2: 202006 | I2: 201909 | J2: 201912 | K2: 202003 | L2: 202006 | M2: 201909 | N2: 201912 | O2: 202003 | P2: 202006 | Q2: 201909 | R2: 201912 | S2: 202003 | T2: 202006 | U2: 201909 | V2: 201912 | W2: 202003 | X2: 202006 | Y2: 201909 | Z2: 201912 | AA2: 202003 | AB2: 202006
A3: =DATE(LEFT(A2,4),RIGHT(A2,2),1) -> 2020-06-01
D4: Statistical Annex
D5: Asset composition and volumes
B8: CH_1 | D8: Asset composition
D10: % of total assets
E11: Cash balances | I11: Equity instruments | M11: Debt securities | Q11: Loans and advances | U11: Derivatives | Y11: Other Assets
E12: =EOMONTH($A$3,-9) -> 2019-09-30 | F12: =EOMONTH($A$3,-6) -> 2019-12-31 | G12: =EOMONTH($A$3,-3) -> 2020-03-31 | H12: =$A$3 -> 2020-06-01 | I12: =EOMONTH($A$3,-9) -> 2019-09-30 | J12: =EOMONTH($A$3,-6) -> 2019-12-31 | K12: =EOMONTH($A$3,-3) -> 2020-03-31 | L12: =$A$3 -> 2020-06-01 | M12: =EOMONTH($A$3,-9) -> 2019-09-30 | N12: =EOMONTH($A$3,-6) -> 2019-12-31 | O12: =EOMONTH($A$3,-3) -> 2020-03-31 | P12: =$A$3 -> 2020-06-01 | Q12: =EOMONTH($A$3,-9) -> 2019-09-30 | R12: =EOMONTH($A$3,-6) -> 2019-12-31 | S12: =EOMONTH($A$3,-3) -> 2020-03-31 | T12: =$A$3 -> 2020-06-01 | U12: =EOMONTH($A$3,-9) -> 2019-09-30 | V12: =EOMONTH($A$3,-6) -> 2019-12-31 | W12: =EOMONTH($A$3,-3) -> 2020-03-31 | X12: =$A$3 -> 2020-06-01 | Y12: =EOMONTH($A$3,-9) -> 2019-09-30 | Z12: =EOMONTH($A$3,-6) -> 2019-12-31 | AA12: =EOMONTH($A$3,-3) -> 2020-03-31 | AB12: =$A$3 -> 2020-06-01
B13: AT | D13: =IF(OR(E13="n.a.",F13="n.a.",G13="n.a.",H13="n.a.",I13="n.a.",J13="n.a.",K13="n.a.",L13="n.a.",M13="n.a.",N13="n.a.",O13="n.a.",P13="n.a.",Q13="n.a.",R13="n.a.",S13="n.a.",T13="n.a.",U13="n.a.",V13="n.a.",W13="n.a.",X13="n.a.",Y13="n.a.",Z13="n.a.",AA13="n.a.",AB13="n.a."),$B13&"*",$B13) -> AT | E13: =IFERROR(INDEX('Data Annex'!$K$1:$AO$871,MATCH(Assets!E$1&"|"&Assets!$B13,'Data Annex'!$K$1:$K$871,0),MATCH(Assets!E$2,'Data Annex'!$K$1:$AO$1,0)),"") -> 0.0826946768 | F13: =IFERROR(INDEX('Data Annex'!$K$1:$AO$871,MATCH(Assets!F$1&"|"&Assets!$B13,'Data Annex'!$K$1:$K$871,0),MATCH(Assets!F$2,'Data Annex'!$K$1:$AO$1,0)),"") -> 0.0850316767 | G13: =IFERROR(INDEX('Data Annex'!$K$1:$AO$871,MATCH(Assets!G$1&"|"&Assets!$B13,'Data Annex'!$K$1:$K$871,0),MATCH(Assets!G$2,'Data Annex'!$K$1:$AO$1,0)),"") -> 0.1008947311 | H13: =IFERROR(INDEX('Data Annex'!$K$1:$AO$871,MATCH(Assets!H$1&"|"&Assets!$B13,'Data Annex'!$K$1:$K$871,0),MATCH(Assets!H$2,'Data Annex'!$K$1:$AO$1,0)),"") -> 0.1055645376 | I13: =IFERROR(INDEX('Data Annex'!$K$1:$AO$871,MATCH(Assets!I$1&"|"&Assets!$B13,'Data Annex'!$K$1:$K$871,0),MATCH(Assets!I$2,'Data Annex'!$K$1:$AO$1,0)),"") -> 0.00356609 | J13: =IFERROR(INDEX('Data Annex'!$K$1:$AO$871,MATCH(Assets!J$1&"|"&Assets!$B13,'Data Annex'!$K$1:$K$871,0),MATCH(Assets!J$2,'Data Annex'!$K$1:$AO$1,0)),"") -> 0.0034843315 | K13: =IFERROR(INDEX('Data Annex'!$K$1:$AO$871,MATCH(Assets!K$1&"|"&Assets!$B13,'Data Annex'!$K$1:$K$871,0),MATCH(Assets!K$2,'Data Annex'!$K$1:$AO$1,0)),"") -> 0.0027082215 | L13: =IFERROR(INDEX('Data Annex'!$K$1:$AO$871,MATCH(Assets!L$1&"|"&Assets!$B13,'Data Annex'!$K$1:$K$871,0),MATCH(Assets!L$2,'Data Annex'!$K$1:$AO$1,0)),"") -> 0.0027824716 | M13: =IFERROR(INDEX('Data Annex'!$K$1:$AO$871,MATCH(Assets!M$1&"|"&Assets!$B13,'Data Annex'!$K$1:$K$871,0),MATCH(Assets!M$2,'Data Annex'!$K$1:$AO$1,0)),"") -> 0.1445235226 | N13: =IFERROR(INDEX('Data Annex'!$K$1:$AO$871,MATCH(Assets!N$1&"|"&Assets!$B13,'Data Annex'!$K$1:$K$871,0),MATCH(Assets!N$2,'Data Annex'!$K$1:$AO$1,0)),"") -> 0.1426384968 | O13: =IFERROR(INDEX('Data Annex'!$K$1:$AO$871,MATCH(Assets!O$1&"|"&Assets!$B13,'Data Annex'!$K$1:$K$871,0),MATCH(Assets!O$2,'Data Annex'!$K$1:$AO$1,0)),"") -> 0.1427973546 | P13: =IFERROR(INDEX('Data Annex'!$K$1:$AO$871,MATCH(Assets!P$1&"|"&Assets!$B13,'Data Annex'!$K$1:$K$871,0),MATCH(Assets!P$2,'Data Annex'!$K$1:$AO$1,0)),"") -> 0.1457006144 | Q13: =IFERROR(INDEX('Data Annex'!$K$1:$AO$871,MATCH(Assets!Q$1&"|"&Assets!$B13,'Data Annex'!$K$1:$K$871,0),MATCH(Assets!Q$2,'Data Annex'!$K$1:$AO$1,0)),"") -> 0.7104325982 | R13: =IFERROR(INDEX('Data Annex'!$K$1:$AO$871,MATCH(Assets!R$1&"|"&Assets!$B13,'Data Annex'!$K$1:$K$871,0),MATCH(Assets!R$2,'Data Annex'!$K$1:$AO$1,0)),"") -> 0.7140506045 | S13: =IFERROR(INDEX('Data Annex'!$K$1:$AO$871,MATCH(Assets!S$1&"|"&Assets!$B13,'Data Annex'!$K$1:$K$871,0),MATCH(Assets!S$2,'Data Annex'!$K$1:$AO$1,0)),"") -> 0.6965022883 | T13: =IFERROR(INDEX('Data Annex'!$K$1:$AO$871,MATCH(Assets!T$1&"|"&Assets!$B13,'Data Annex'!$K$1:$K$871,0),MATCH(Assets!T$2,'Data Annex'!$K$1:$AO$1,0)),"") -> 0.6936733177 | U13: =IFERROR(INDEX('Data Annex'!$K$1:$AO$871,MATCH(Assets!U$1&"|"&Assets!$B13,'Data Annex'!$K$1:$K$871,0),MATCH(Assets!U$2,'Data Annex'!$K$1:$AO$1,0)),"") -> 0.0221517879 | V13: =IFERROR(INDEX('Data Annex'!$K$1:$AO$871,MATCH(Assets!V$1&"|"&Assets!$B13,'Data Annex'!$K$1:$K$871,0),MATCH(Assets!V$2,'Data Annex'!$K$1:$AO$1,0)),"") -> 0.01768029 | W13: =IFERROR(INDEX('Data Annex'!$K$1:$AO$871,MATCH(Assets!W$1&"|"&Assets!$B13,'Data Annex'!$K$1:$K$871,0),MATCH(Assets!W$2,'Data Annex'!$K$1:$AO$1,0)),"") -> 0.0220735492 | X13: =IFERROR(INDEX('Data Annex'!$K$1:$AO$871,MATCH(Assets!X$1&"|"&Assets!$B13,'Data Annex'!$K$1:$K$871,0),MATCH(Assets!X$2,'Data Annex'!$K$1:$AO$1,0)),"") -> 0.0189792107 | Y13: =IFERROR(INDEX('Data Annex'!$K$1:$AO$871,MATCH(Assets!Y$1&"|"&Assets!$B13,'Data Annex'!$K$1:$K$871,0),MATCH(Assets!Y$2,'Data Annex'!$K$1:$AO$1,0)),"") -> 0.0366313245 | Z13: =IFERROR(INDEX('Data Annex'!$K$1:$AO$871,MATCH(Assets!Z$1&"|"&Assets!$B13,'Data Annex'!$K$1:$K$871,0),MATCH(Assets!Z$2,'Data Annex'!$K$1:$AO$1,0)),"") -> 0.0371146005 | AA13: =IFERROR(INDEX('Data Annex'!$K$1:$AO$871,MATCH(Assets!AA$1&"|"&Assets!$B13,'Data Annex'!$K$1:$K$871,0),MATCH(Assets!AA$2,'Data Annex'!$K$1:$AO$1,0)),"") -> 0.0350238554 | AB13: =IFERROR(INDEX('Data Annex'!$K$1:$AO$871,MATCH(Assets!AB$1&"|"&Assets!$B13,'Data Annex'!$K$1:$K$871,0),MATCH(Assets!AB$2,'Data Annex'!$K$1:$AO$1,0)),"") -> 0.0332998479 | AC13: =IFERROR(INDEX('Data Annex'!$K$1:$AJ$871,MATCH(Assets!AC$1&"|"&Assets!$B13,'Data Annex'!$K$1:$K$871,0),MATCH(Assets!AC$2,'Data Annex'!$K$1:$AJ$1,0)),"") -> 
B14: BE | D14: =IF(OR(E14="n.a.",F14="n.a.",G14="n.a.",H14="n.a.",I14="n.a.",J14="n.a.",K14="n.a.",L14="n.a.",M14="n.a.",N14="n.a.",O14="n.a.",P14="n.a.",Q14="n.a.",R14="n.a.",S14="n.a.",T14="n.a.",U14="n.a.",V14="n.a.",W14="n.a.",X14="n.a.",Y14="n.a.",Z14="n.a.",AA14="n.a.",AB14="n.a."),$B14&"*",$B14) -> BE | E14: =IFERROR(INDEX('Data Annex'!$K$1:$AO$871,MATCH(Assets!E$1&"|"&Assets!$B14,'Data Annex'!$K$1:$K$871,0),MATCH(Assets!E$2,'Data Annex'!$K$1:$AO$1,0)),"") -> 0.0782262491 | F14: =IFERROR(INDEX('Data Annex'!$K$1:$AO$871,MATCH(Assets!F$1&"|"&Assets!$B14,'Data Annex'!$K$1:$K$871,0),MATCH(Assets!F$2,'Data Annex'!$K$1:$AO$1,0)),"") -> 0.060934037 | G14: =IFERROR(INDEX('Data Annex'!$K$1:$AO$871,MATCH(Assets!G$1&"|"&Assets!$B14,'Data Annex'!$K$1:$K$871,0),MATCH(Assets!G$2,'Data Annex'!$K$1:$AO$1,0)),"") -> 0.0928532273 | H14: =IFERROR(INDEX('Data Annex'!$K$1:$AO$871,MATCH(Assets!H$1&"|"&Assets!$B14,'Data Annex'!$K$1:$K$871,0),MATCH(Assets!H$2,'Data Annex'!$K$1:$AO$1,0)),"") -> 0.1274306146 | I14: =IFERROR(INDEX('Data Annex'!$K$1:$AO$871,MATCH(Assets!I$1&"|"&Assets!$B14,'Data Annex'!$K$1:$K$871,0),MATCH(Assets!I$2,'Data Annex'!$K$1:$AO$1,0)),"") -> 0.0035825664 | J14: =IFERROR(INDEX('Data Annex'!$K$1:$AO$871,MATCH(Assets!J$1&"|"&Assets!$B14,'Data Annex'!$K$1:$K$871,0),MATCH(Assets!J$2,'Data Annex'!$K$1:$AO$1,0)),"") -> 0.0037499644 | K14: =IFERROR(INDEX('Data Annex'!$K$1:$AO$871,MATCH(Assets!K$1&"|"&Assets!$B14,'Data Annex'!$K$1:$K$871,0),MATCH(Assets!K$2,'Data Annex'!$K$1:$AO$1,0)),"") -> 0.0019791346 | L14: =IFERROR(INDEX('Data Annex'!$K$1:$AO$871,MATCH(Assets!L$1&"|"&Assets!$B14,'Data Annex'!$K$1:$K$871,0),MATCH(Assets!L$2,'Data Annex'!$K$1:$AO$1,0)),"") -> 0.0020317278 | M14: =IFERROR(INDEX('Data Annex'!$K$1:$AO$871,MATCH(Assets!M$1&"|"&Assets!$B14,'Data Annex'!$K$1:$K$871,0),MATCH(Assets!M$2,'Data Annex'!$K$1:$AO$1,0)),"") -> 0.1435309729 | N14: =IFERROR(INDEX('Data Annex'!$K$1:$AO$871,MATCH(Assets!N$1&"|"&Assets!$B14,'Data Annex'!$K$1:$K$871,0),MATCH(Assets!N$2,'Data Annex'!$K$1:$AO$1,0)),"") -> 0.1440390283 | O14: =IFERROR(INDEX('Data Annex'!$K$1:$AO$871,MATCH(Assets!O$1&"|"&Assets!$B14,'Data Annex'!$K$1:$K$871,0),MATCH(Assets!O$2,'Data Annex'!$K$1:$AO$1,0)),"") -> 0.1410110151 | P14: =IFERROR(INDEX('Data Annex'!$K$1:$AO$871,MATCH(Assets!P$1&"|"&Assets!$B14,'Data Annex'!$K$1:$K$871,0),MATCH(Assets!P$2,'Data Annex'!$K$1:$AO$1,0)),"") -> 0.1482343175 | Q14: =IFERROR(INDEX('Data Annex'!$K$1:$AO$871,MATCH(Assets!Q$1&"|"&Assets!$B14,'Data Annex'!$K$1:$K$871,0),MATCH(Assets!Q$2,'Data Annex'!$K$1:$AO$1,0)),"") -> 0.65886971 | R14: =IFERROR(INDEX('Data Annex'!$K$1:$AO$871,MATCH(Assets!R$1&"|"&Assets!$B14,'Data Annex'!$K$1:$K$871,0),MATCH(Assets!R$2,'Data Annex'!$K$1:$AO$1,0)),"") -> 0.6839382179 | S14: =IFERROR(INDEX('Data Annex'!$K$1:$AO$871,MATCH(Assets!S$1&"|"&Assets!$B14,'Data Annex'!$K$1:$K$871,0),MATCH(Assets!S$2,'Data Annex'!$K$1:$AO$1,0)),"") -> 0.6512391587 | T14: =IFERROR(INDEX('Data Annex'!$K$1:$AO$871,MATCH(Assets!T$1&"|"&Assets!$B14,'Data Annex'!$K$1:$K$871,0),MATCH(Assets!T$2,'Data Annex'!$K$1:$AO$1,0)),"") -> 0.6133156234 | U14: =IFERROR(INDEX('Data Annex'!$K$1:$AO$871,MATCH(Assets!U$1&"|"&Assets!$B14,'Data Annex'!$K$1:$K$871,0),MATCH(Assets!U$2,'Data Annex'!$K$1:$AO$1,0)),"") -> 0.0552406627 | V14: =IFERROR(INDEX('Data Annex'!$K$1:$AO$871,MATCH(Assets!V$1&"|"&Assets!$B14,'Data Annex'!$K$1:$K$871,0),MATCH(Assets!V$2,'Data Annex'!$K$1:$AO$1,0)),"") -> 0.0471583254 | W14: =IFERROR(INDEX('Data Annex'!$K$1:$AO$871,MATCH(Assets!W$1&"|"&Assets!$B14,'Data Annex'!$K$1:$K$871,0),MATCH(Assets!W$2,'Data Annex'!$K$1:$AO$1,0)),"") -> 0.0536302445 | X14: =IFERROR(INDEX('Data Annex'!$K$1:$AO$871,MATCH(Assets!X$1&"|"&Assets!$B14,'Data Annex'!$K$1:$K$871,0),MATCH(Assets!X$2,'Data Annex'!$K$1:$AO$1,0)),"") -> 0.0502779483 | Y14: =IFERROR(INDEX('Data Annex'!$K$1:$AO$871,MATCH(Assets!Y$1&"|"&Assets!$B14,'Data Annex'!$K$1:$K$871,0),MATCH(Assets!Y$2,'Data Annex'!$K$1:$AO$1,0)),"") -> 0.0605498393 | Z14: =IFERROR(INDEX('Data Annex'!$K$1:$AO$871,MATCH(Assets!Z$1&"|"&Assets!$B14,'Data Annex'!$K$1:$K$871,0),MATCH(Assets!Z$2,'Data Annex'!$K$1:$AO$1,0)),"") -> 0.0601804269 | AA14: =IFERROR(INDEX('Data Annex'!$K$1:$AO$871,MATCH(Assets!AA$1&"|"&Assets!$B14,'Data Annex'!$K$1:$K$871,0),MATCH(Assets!AA$2,'Data Annex'!$K$1:$AO$1,0)),"") -> 0.0592872198 | AB14: =IFERROR(INDEX('Data Annex'!$K$1:$AO$871,MATCH(Assets!AB$1&"|"&Assets!$B14,'Data Annex'!$K$1:$K$871,0),MATCH(Assets!AB$2,'Data Annex'!$K$1:$AO$1,0)),"") -> 0.0587097685 | AC14: =IFERROR(INDEX('Data Annex'!$K$1:$AJ$871,MATCH(Assets!AC$1&"|"&Assets!$B14,'Data Annex'!$K$1:$K$871,0),MATCH(Assets!AC$2,'Data Annex'!$K$1:$AJ$1,0)),"") -> 
B15: BG | D15: BG | E15: =IFERROR(INDEX('Data Annex'!$K$1:$AO$871,MATCH(Assets!E$1&"|"&Assets!$B15,'Data Annex'!$K$1:$K$871,0),MATCH(Assets!E$2,'Data Annex'!$K$1:$AO$1,0)),"") -> 0.1440494643 | F15: =IFERROR(INDEX('Data Annex'!$K$1:$AO$871,MATCH(Assets!F$1&"|"&Assets!$B15,'Data Annex'!$K$1:$K$871,0),MATCH(Assets!F$2,'Data Annex'!$K$1:$AO$1,0)),"") -> 0.1223009995 | G15: =IFERROR(INDEX('Data Annex'!$K$1:$AO$871,MATCH(Assets!G$1&"|"&Assets!$B15,'Data Annex'!$K$1:$K$871,0),MATCH(Assets!G$2,'Data Annex'!$K$1:$AO$1,0)),"") -> 0.1603741362 | H15: =IFERROR(INDEX('Data Annex'!$K$1:$AO$871,MATCH(Assets!H$1&"|"&Assets!$B15,'Data Annex'!$K$1:$K$871,0),MATCH(Assets!H$2,'Data Annex'!$K$1:$AO$1,0)),"") -> 0.1747297514 | I15: =IFERROR(INDEX('Data Annex'!$K$1:$AO$871,MATCH(Assets!I$1&"|"&Assets!$B15,'Data Annex'!$K$1:$K$871,0),MATCH(Assets!I$2,'Data Annex'!$K$1:$AO$1,0)),"") -> 0.0015024581 | J15: =IFERROR(INDEX('Data Annex'!$K$1:$AO$871,MATCH(Assets!J$1&"|"&Assets!$B15,'Data Annex'!$K$1:$K$871,0),MATCH(Assets!J$2,'Data Annex'!$K$1:$AO$1,0)),"") -> 0.001549121 | K15: =IFERROR(INDEX('Data Annex'!$K$1:$AO$871,MATCH(Assets!K$1&"|"&Assets!$B15,'Data Annex'!$K$1:$K$871,0),MATCH(Assets!K$2,'Data Annex'!$K$1:$AO$1,0)),"") -> 0.0014667244 | L15: =IFERROR(INDEX('Data Annex'!$K$1:$AO$871,MATCH(Assets!L$1&"|"&Assets!$B15,'Data Annex'!$K$1:$K$871,0),MATCH(Assets!L$2,'Data Annex'!$K$1:$AO$1,0)),"") -> 0.0015255814 | M15: =IFERROR(INDEX('Data Annex'!$K$1:$AO$871,MATCH(Assets!M$1&"|"&Assets!$B15,'Data Annex'!$K$1:$K$871,0),MATCH(Assets!M$2,'Data Annex'!$K$1:$AO$1,0)),"") -> 0.1372065903 | N15: =IFERROR(INDEX('Data Annex'!$K$1:$AO$871,MATCH(Assets!N$1&"|"&Assets!$B15,'Data Annex'!$K$1:$K$871,0),MATCH(Assets!N$2,'Data Annex'!$K$1:$AO$1,0)),"") -> 0.1398916548 | O15: =IFERROR(INDEX('Data Annex'!$K$1:$AO$871,MATCH(Assets!O$1&"|"&Assets!$B15,'Data Annex'!$K$1:$K$871,0),MATCH(Assets!O$2,'Data Annex'!$K$1:$AO$1,0)),"") -> 0.1505872571 | P15: =IFERROR(INDEX('Data Annex'!$K$1:$AO$871,MATCH(Assets!P$1&"|"&Assets!$B15,'Data Annex'!$K$1:$K$871,0),MATCH(Assets!P$2,'Data Annex'!$K$1:$AO$1,0)),"") -> 0.1543555839 | Q15: =IFERROR(INDEX('Data Annex'!$K$1:$AO$871,MATCH(Assets!Q$1&"|"&Assets!$B15,'Data Annex'!$K$1:$K$871,0),MATCH(Assets!Q$2,'Data Annex'!$K$1:$AO$1,0)),"") -> 0.6685626351 | R15: =IFERROR(INDEX('Data Annex'!$K$1:$AO$871,MATCH(Assets!R$1&"|"&Assets!$B15,'Data Annex'!$K$1:$K$871,0),MATCH(Assets!R$2,'Data Annex'!$K$1:$AO$1,0)),"") -> 0.6874819569 | S15: =IFERROR(INDEX('Data Annex'!$K$1:$AO$871,MATCH(Assets!S$1&"|"&Assets!$B15,'Data Annex'!$K$1:$K$871,0),MATCH(Assets!S$2,'Data Annex'!$K$1:$AO$1,0)),"") -> 0.6332414859 | T15: =IFERROR(INDEX('Data Annex'!$K$1:$AO$871,MATCH(Assets!T$1&"|"&Assets!$B15,'Data Annex'!$K$1:$K$871,0),MATCH(Assets!T$2,'Data Annex'!$K$1:$AO$1,0)),"") -> 0.6209496037 | U15: =IFERROR(INDEX('Data Annex'!$K$1:$AO$871,MATCH(Assets!U$1&"|"&Assets!$B15,'Data Annex'!$K$1:$K$871,0),MATCH(Assets!U$2,'Data Annex'!$K$1:$AO$1,0)),"") -> 0.002700031 | V15: =IFERROR(INDEX('Data Annex'!$K$1:$AO$871,MATCH(Assets!V$1&"|"&Assets!$B15,'Data Annex'!$K$1:$K$871,0),MATCH(Assets!V$2,'Data Annex'!$K$1:$AO$1,0)),"") -> 0.0015180787 | W15: =IFERROR(INDEX('Data Annex'!$K$1:$AO$871,MATCH(Assets!W$1&"|"&Assets!$B15,'Data Annex'!$K$1:$K$871,0),MATCH(Assets!W$2,'Data Annex'!$K$1:$AO$1,0)),"") -> 0.0028739963 | X15: =IFERROR(INDEX('Data Annex'!$K$1:$AO$871,MATCH(Assets!X$1&"|"&Assets!$B15,'Data Annex'!$K$1:$K$871,0),MATCH(Assets!X$2,'Data Annex'!$K$1:$AO$1,0)),"") -> 0.0015296792 | Y15: =IFERROR(INDEX('Data Annex'!$K$1:$AO$871,MATCH(Assets!Y$1&"|"&Assets!$B15,'Data Annex'!$K$1:$K$871,0),MATCH(Assets!Y$2,'Data Annex'!$K$1:$AO$1,0)),"") -> 0.0459788212 | Z15: =IFERROR(INDEX('Data Annex'!$K$1:$AO$871,MATCH(Assets!Z$1&"|"&Assets!$B15,'Data Annex'!$K$1:$K$871,0),MATCH(Assets!Z$2,'Data Annex'!$K$1:$AO$1,0)),"") -> 0.0472581892 | AA15: =IFERROR(INDEX('Data Annex'!$K$1:$AO$871,MATCH(Assets!AA$1&"|"&Assets!$B15,'Data Annex'!$K$1:$K$871,0),MATCH(Assets!AA$2,'Data Annex'!$K$1:$AO$1,0)),"") -> 0.0514564002 | AB15: =IFERROR(INDEX('Data Annex'!$K$1:$AO$871,MATCH(Assets!AB$1&"|"&Assets!$B15,'Data Annex'!$K$1:$K$871,0),MATCH(Assets!AB$2,'Data Annex'!$K$1:$AO$1,0)),"") -> 0.0469098004 | AC15: =IFERROR(INDEX('Data Annex'!$K$1:$AJ$871,MATCH(Assets!AC$1&"|"&Assets!$B15,'Data Annex'!$K$1:$K$871,0),MATCH(Assets!AC$2,'Data Annex'!$K$1:$AJ$1,0)),"") -> 
B16: CY | D16: CY | E16: =IFERROR(INDEX('Data Annex'!$K$1:$AO$871,MATCH(Assets!E$1&"|"&Assets!$B16,'Data Annex'!$K$1:$K$871,0),MATCH(Assets!E$2,'Data Annex'!$K$1:$AO$1,0)),"") -> 0.2524725371 | F16: =IFERROR(INDEX('Data Annex'!$K$1:$AO$871,MATCH(Assets!F$1&"|"&Assets!$B16,'Data Annex'!$K$1:$K$871,0),MATCH(Assets!F$2,'Data Annex'!$K$1:$AO$1,0)),"") -> 0.2811666551 | G16: =IFERROR(INDEX('Data Annex'!$K$1:$AO$871,MATCH(Assets!G$1&"|"&Assets!$B16,'Data Annex'!$K$1:$K$871,0),MATCH(Assets!G$2,'Data Annex'!$K$1:$AO$1,0)),"") -> 0.2460876273 | H16: =IFERROR(INDEX('Data Annex'!$K$1:$AO$871,MATCH(Assets!H$1&"|"&Assets!$B16,'Data Annex'!$K$1:$K$871,0),MATCH(Assets!H$2,'Data Annex'!$K$1:$AO$1,0)),"") -> 0.2403113847 | I16: =IFERROR(INDEX('Data Annex'!$K$1:$AO$871,MATCH(Assets!I$1&"|"&Assets!$B16,'Data Annex'!$K$1:$K$871,0),MATCH(Assets!I$2,'Data Annex'!$K$1:$AO$1,0)),"") -> 0.0008469202 | J16: =IFERROR(INDEX('Data Annex'!$K$1:$AO$871,MATCH(Assets!J$1&"|"&Assets!$B16,'Data Annex'!$K$1:$K$871,0),MATCH(Assets!J$2,'Data Annex'!$K$1:$AO$1,0)),"") -> 0.0008557027 | K16: =IFERROR(INDEX('Data Annex'!$K$1:$AO$871,MATCH(Assets!K$1&"|"&Assets!$B16,'Data Annex'!$K$1:$K$871,0),MATCH(Assets!K$2,'Data Annex'!$K$1:$AO$1,0)),"") -> 0.0008541767 | L16: =IFERROR(INDEX('Data Annex'!$K$1:$AO$871,MATCH(Assets!L$1&"|"&Assets!$B16,'Data Annex'!$K$1:$K$871,0),MATCH(Assets!L$2,'Data Annex'!$K$1:$AO$1,0)),"") -> 0.000946003 | M16: =IFERROR(INDEX('Data Annex'!$K$1:$AO$871,MATCH(Assets!M$1&"|"&Assets!$B16,'Data Annex'!$K$1:$K$871,0),MATCH(Assets!M$2,'Data Annex'!$K$1:$AO$1,0)),"") -> 0.1797583612 | N16: =IFERROR(INDEX('Data Annex'!$K$1:$AO$871,MATCH(Assets!N$1&"|"&Assets!$B16,'Data Annex'!$K$1:$K$871,0),MATCH(Assets!N$2,'Data Annex'!$K$1:$AO$1,0)),"") -> 0.1652211405 | O16: =IFERROR(INDEX('Data Annex'!$K$1:$AO$871,MATCH(Assets!O$1&"|"&Assets!$B16,'Data Annex'!$K$1:$K$871,0),MATCH(Assets!O$2,'Data Annex'!$K$1:$AO$1,0)),"") -> 0.1869197301 | P16: =IFERROR(INDEX('Data Annex'!$K$1:$AO$871,MATCH(Assets!P$1&"|"&Assets!$B16,'Data Annex'!$K$1:$K$871,0),MATCH(Assets!P$2,'Data Annex'!$K$1:$AO$1,0)),"") -> 0.2081079407 | Q16: =IFERROR(INDEX('Data Annex'!$K$1:$AO$871,MATCH(Assets!Q$1&"|"&Assets!$B16,'Data Annex'!$K$1:$K$871,0),MATCH(Assets!Q$2,'Data Annex'!$K$1:$AO$1,0)),"") -> 0.4800689597 | R16: =IFERROR(INDEX('Data Annex'!$K$1:$AO$871,MATCH(Assets!R$1&"|"&Assets!$B16,'Data Annex'!$K$1:$K$871,0),MATCH(Assets!R$2,'Data Annex'!$K$1:$AO$1,0)),"") -> 0.470221583 | S16: =IFERROR(INDEX('Data Annex'!$K$1:$AO$871,MATCH(Assets!S$1&"|"&Assets!$B16,'Data Annex'!$K$1:$K$871,0),MATCH(Assets!S$2,'Data Annex'!$K$1:$AO$1,0)),"") -> 0.4812846716 | T16: =IFERROR(INDEX('Data Annex'!$K$1:$AO$871,MATCH(Assets!T$1&"|"&Assets!$B16,'Data Annex'!$K$1:$K$871,0),MATCH(Assets!T$2,'Data Annex'!$K$1:$AO$1,0)),"") -> 0.4601461442 | U16: =IFERROR(INDEX('Data Annex'!$K$1:$AO$871,MATCH(Assets!U$1&"|"&Assets!$B16,'Data Annex'!$K$1:$K$871,0),MATCH(Assets!U$2,'Data Annex'!$K$1:$AO$1,0)),"") -> 0.0006634965 | V16: =IFERROR(INDEX('Data Annex'!$K$1:$AO$871,MATCH(Assets!V$1&"|"&Assets!$B16,'Data Annex'!$K$1:$K$871,0),MATCH(Assets!V$2,'Data Annex'!$K$1:$AO$1,0)),"") -> 0.0006325451 | W16: =IFERROR(INDEX('Data Annex'!$K$1:$AO$871,MATCH(Assets!W$1&"|"&Assets!$B16,'Data Annex'!$K$1:$K$871,0),MATCH(Assets!W$2,'Data Annex'!$K$1:$AO$1,0)),"") -> 0.0006302171 | X16: =IFERROR(INDEX('Data Annex'!$K$1:$AO$871,MATCH(Assets!X$1&"|"&Assets!$B16,'Data Annex'!$K$1:$K$871,0),MATCH(Assets!X$2,'Data Annex'!$K$1:$AO$1,0)),"") -> 0.0004732561 | Y16: =IFERROR(INDEX('Data Annex'!$K$1:$AO$871,MATCH(Assets!Y$1&"|"&Assets!$B16,'Data Annex'!$K$1:$K$871,0),MATCH(Assets!Y$2,'Data Annex'!$K$1:$AO$1,0)),"") -> 0.0861897254 | Z16: =IFERROR(INDEX('Data Annex'!$K$1:$AO$871,MATCH(Assets!Z$1&"|"&Assets!$B16,'Data Annex'!$K$1:$K$871,0),MATCH(Assets!Z$2,'Data Annex'!$K$1:$AO$1,0)),"") -> 0.0819023736 | AA16: =IFERROR(INDEX('Data Annex'!$K$1:$AO$871,MATCH(Assets!AA$1&"|"&Assets!$B16,'Data Annex'!$K$1:$K$871,0),MATCH(Assets!AA$2,'Data Annex'!$K$1:$AO$1,0)),"") -> 0.0842235772 | AB16: =IFERROR(INDEX('Data Annex'!$K$1:$AO$871,MATCH(Assets!AB$1&"|"&Assets!$B16,'Data Annex'!$K$1:$K$871,0),MATCH(Assets!AB$2,'Data Annex'!$K$1:$AO$1,0)),"") -> 0.0900152713 | AC16: =IFERROR(INDEX('Data Annex'!$K$1:$AJ$871,MATCH(Assets!AC$1&"|"&Assets!$B16,'Data Annex'!$K$1:$K$871,0),MATCH(Assets!AC$2,'Data Annex'!$K$1:$AJ$1,0)),"") -> 
B17: CZ | D17: CZ | E17: =IFERROR(INDEX('Data Annex'!$K$1:$AO$871,MATCH(Assets!E$1&"|"&Assets!$B17,'Data Annex'!$K$1:$K$871,0),MATCH(Assets!E$2,'Data Annex'!$K$1:$AO$1,0)),"") -> 0.0287813399 | F17: =IFERROR(INDEX('Data Annex'!$K$1:$AO$871,MATCH(Assets!F$1&"|"&Assets!$B17,'Data Annex'!$K$1:$K$871,0),MATCH(Assets!F$2,'Data Annex'!$K$1:$AO$1,0)),"") -> 0.025902393 | G17: =IFERROR(INDEX('Data Annex'!$K$1:$AO$871,MATCH(Assets!G$1&"|"&Assets!$B17,'Data Annex'!$K$1:$K$871,0),MATCH(Assets!G$2,'Data Annex'!$K$1:$AO$1,0)),"") -> 0.0430118305 | H17: =IFERROR(INDEX('Data Annex'!$K$1:$AO$871,MATCH(Assets!H$1&"|"&Assets!$B17,'Data Annex'!$K$1:$K$871,0),MATCH(Assets!H$2,'Data Annex'!$K$1:$AO$1,0)),"") -> 0.0256209369 | I17: =IFERROR(INDEX('Data Annex'!$K$1:$AO$871,MATCH(Assets!I$1&"|"&Assets!$B17,'Data Annex'!$K$1:$K$871,0),MATCH(Assets!I$2,'Data Annex'!$K$1:$AO$1,0)),"") -> 0.0009745228 | J17: =IFERROR(INDEX('Data Annex'!$K$1:$AO$871,MATCH(Assets!J$1&"|"&Assets!$B17,'Data Annex'!$K$1:$K$871,0),MATCH(Assets!J$2,'Data Annex'!$K$1:$AO$1,0)),"") -> 0.0005952847 | K17: =IFERROR(INDEX('Data Annex'!$K$1:$AO$871,MATCH(Assets!K$1&"|"&Assets!$B17,'Data Annex'!$K$1:$K$871,0),MATCH(Assets!K$2,'Data Annex'!$K$1:$AO$1,0)),"") -> 0.0005084816 | L17: =IFERROR(INDEX('Data Annex'!$K$1:$AO$871,MATCH(Assets!L$1&"|"&Assets!$B17,'Data Annex'!$K$1:$K$871,0),MATCH(Assets!L$2,'Data Annex'!$K$1:$AO$1,0)),"") -> 0.000627947 | M17: =IFERROR(INDEX('Data Annex'!$K$1:$AO$871,MATCH(Assets!M$1&"|"&Assets!$B17,'Data Annex'!$K$1:$K$871,0),MATCH(Assets!M$2,'Data Annex'!$K$1:$AO$1,0)),"") -> 0.1127691136 | N17: =IFERROR(INDEX('Data Annex'!$K$1:$AO$871,MATCH(Assets!N$1&"|"&Assets!$B17,'Data Annex'!$K$1:$K$871,0),MATCH(Assets!N$2,'Data Annex'!$K$1:$AO$1,0)),"") -> 0.118955843 | O17: =IFERROR(INDEX('Data Annex'!$K$1:$AO$871,MATCH(Assets!O$1&"|"&Assets!$B17,'Data Annex'!$K$1:$K$871,0),MATCH(Assets!O$2,'Data Annex'!$K$1:$AO$1,0)),"") -> 0.1141065751 | P17: =IFERROR(INDEX('Data Annex'!$K$1:$AO$871,MATCH(Assets!P$1&"|"&Assets!$B17,'Data Annex'!$K$1:$K$871,0),MATCH(Assets!P$2,'Data Annex'!$K$1:$AO$1,0)),"") -> 0.1407540098 | Q17: =IFERROR(INDEX('Data Annex'!$K$1:$AO$871,MATCH(Assets!Q$1&"|"&Assets!$B17,'Data Annex'!$K$1:$K$871,0),MATCH(Assets!Q$2,'Data Annex'!$K$1:$AO$1,0)),"") -> 0.8201798001 | R17: =IFERROR(INDEX('Data Annex'!$K$1:$AO$871,MATCH(Assets!R$1&"|"&Assets!$B17,'Data Annex'!$K$1:$K$871,0),MATCH(Assets!R$2,'Data Annex'!$K$1:$AO$1,0)),"") -> 0.8181681823 | S17: =IFERROR(INDEX('Data Annex'!$K$1:$AO$871,MATCH(Assets!S$1&"|"&Assets!$B17,'Data Annex'!$K$1:$K$871,0),MATCH(Assets!S$2,'Data Annex'!$K$1:$AO$1,0)),"") -> 0.7926149374 | T17: =IFERROR(INDEX('Data Annex'!$K$1:$AO$871,MATCH(Assets!T$1&"|"&Assets!$B17,'Data Annex'!$K$1:$K$871,0),MATCH(Assets!T$2,'Data Annex'!$K$1:$AO$1,0)),"") -> 0.7855485901 | U17: =IFERROR(INDEX('Data Annex'!$K$1:$AO$871,MATCH(Assets!U$1&"|"&Assets!$B17,'Data Annex'!$K$1:$K$871,0),MATCH(Assets!U$2,'Data Annex'!$K$1:$AO$1,0)),"") -> 0.0208166532 | V17: =IFERROR(INDEX('Data Annex'!$K$1:$AO$871,MATCH(Assets!V$1&"|"&Assets!$B17,'Data Annex'!$K$1:$K$871,0),MATCH(Assets!V$2,'Data Annex'!$K$1:$AO$1,0)),"") -> 0.0186144958 | W17: =IFERROR(INDEX('Data Annex'!$K$1:$AO$871,MATCH(Assets!W$1&"|"&Assets!$B17,'Data Annex'!$K$1:$K$871,0),MATCH(Assets!W$2,'Data Annex'!$K$1:$AO$1,0)),"") -> 0.0309457287 | X17: =IFERROR(INDEX('Data Annex'!$K$1:$AO$871,MATCH(Assets!X$1&"|"&Assets!$B17,'Data Annex'!$K$1:$K$871,0),MATCH(Assets!X$2,'Data Annex'!$K$1:$AO$1,0)),"") -> 0.0279487 | Y17: =IFERROR(INDEX('Data Annex'!$K$1:$AO$871,MATCH(Assets!Y$1&"|"&Assets!$B17,'Data Annex'!$K$1:$K$871,0),MATCH(Assets!Y$2,'Data Annex'!$K$1:$AO$1,0)),"") -> 0.0164785704 | Z17: =IFERROR(INDEX('Data Annex'!$K$1:$AO$871,MATCH(Assets!Z$1&"|"&Assets!$B17,'Data Annex'!$K$1:$K$871,0),MATCH(Assets!Z$2,'Data Annex'!$K$1:$AO$1,0)),"") -> 0.0177638011 | AA17: =IFERROR(INDEX('Data Annex'!$K$1:$AO$871,MATCH(Assets!AA$1&"|"&Assets!$B17,'Data Annex'!$K$1:$K$871,0),MATCH(Assets!AA$2,'Data Annex'!$K$1:$AO$1,0)),"") -> 0.0188124468 | AB17: =IFERROR(INDEX('Data Annex'!$K$1:$AO$871,MATCH(Assets!AB$1&"|"&Assets!$B17,'Data Annex'!$K$1:$K$871,0),MATCH(Assets!AB$2,'Data Annex'!$K$1:$AO$1,0)),"") -> 0.0194998162 | AC17: =IFERROR(INDEX('Data Annex'!$K$1:$AJ$871,MATCH(Assets!AC$1&"|"&Assets!$B17,'Data Annex'!$K$1:$K$871,0),MATCH(Assets!AC$2,'Data Annex'!$K$1:$AJ$1,0)),"") -> 
B18: DE | D18: DE | E18: =IFERROR(INDEX('Data Annex'!$K$1:$AO$871,MATCH(Assets!E$1&"|"&Assets!$B18,'Data Annex'!$K$1:$K$871,0),MATCH(Assets!E$2,'Data Annex'!$K$1:$AO$1,0)),"") -> 0.1095909835 | F18: =IFERROR(INDEX('Data Annex'!$K$1:$AO$871,MATCH(Assets!F$1&"|"&Assets!$B18,'Data Annex'!$K$1:$K$871,0),MATCH(Assets!F$2,'Data Annex'!$K$1:$AO$1,0)),"") -> 0.0997311377 | G18: =IFERROR(INDEX('Data Annex'!$K$1:$AO$871,MATCH(Assets!G$1&"|"&Assets!$B18,'Data Annex'!$K$1:$K$871,0),MATCH(Assets!G$2,'Data Annex'!$K$1:$AO$1,0)),"") -> 0.1039789879 | H18: =IFERROR(INDEX('Data Annex'!$K$1:$AO$871,MATCH(Assets!H$1&"|"&Assets!$B18,'Data Annex'!$K$1:$K$871,0),MATCH(Assets!H$2,'Data Annex'!$K$1:$AO$1,0)),"") -> 0.1388390524 | I18: =IFERROR(INDEX('Data Annex'!$K$1:$AO$871,MATCH(Assets!I$1&"|"&Assets!$B18,'Data Annex'!$K$1:$K$871,0),MATCH(Assets!I$2,'Data Annex'!$K$1:$AO$1,0)),"") -> 0.0107634583 | J18: =IFERROR(INDEX('Data Annex'!$K$1:$AO$871,MATCH(Assets!J$1&"|"&Assets!$B18,'Data Annex'!$K$1:$K$871,0),MATCH(Assets!J$2,'Data Annex'!$K$1:$AO$1,0)),"") -> 0.0091935724 | K18: =IFERROR(INDEX('Data Annex'!$K$1:$AO$871,MATCH(Assets!K$1&"|"&Assets!$B18,'Data Annex'!$K$1:$K$871,0),MATCH(Assets!K$2,'Data Annex'!$K$1:$AO$1,0)),"") -> 0.0067283457 | L18: =IFERROR(INDEX('Data Annex'!$K$1:$AO$871,MATCH(Assets!L$1&"|"&Assets!$B18,'Data Annex'!$K$1:$K$871,0),MATCH(Assets!L$2,'Data Annex'!$K$1:$AO$1,0)),"") -> 0.0073411475 | M18: =IFERROR(INDEX('Data Annex'!$K$1:$AO$871,MATCH(Assets!M$1&"|"&Assets!$B18,'Data Annex'!$K$1:$K$871,0),MATCH(Assets!M$2,'Data Annex'!$K$1:$AO$1,0)),"") -> 0.1337857549 | N18: =IFERROR(INDEX('Data Annex'!$K$1:$AO$871,MATCH(Assets!N$1&"|"&Assets!$B18,'Data Annex'!$K$1:$K$871,0),MATCH(Assets!N$2,'Data Annex'!$K$1:$AO$1,0)),"") -> 0.1409597197 | O18: =IFERROR(INDEX('Data Annex'!$K$1:$AO$871,MATCH(Assets!O$1&"|"&Assets!$B18,'Data Annex'!$K$1:$K$871,0),MATCH(Assets!O$2,'Data Annex'!$K$1:$AO$1,0)),"") -> 0.134426301 | P18: =IFERROR(INDEX('Data Annex'!$K$1:$AO$871,MATCH(Assets!P$1&"|"&Assets!$B18,'Data Annex'!$K$1:$K$871,0),MATCH(Assets!P$2,'Data Annex'!$K$1:$AO$1,0)),"") -> 0.1369815077 | Q18: =IFERROR(INDEX('Data Annex'!$K$1:$AO$871,MATCH(Assets!Q$1&"|"&Assets!$B18,'Data Annex'!$K$1:$K$871,0),MATCH(Assets!Q$2,'Data Annex'!$K$1:$AO$1,0)),"") -> 0.5617782614 | R18: =IFERROR(INDEX('Data Annex'!$K$1:$AO$871,MATCH(Assets!R$1&"|"&Assets!$B18,'Data Annex'!$K$1:$K$871,0),MATCH(Assets!R$2,'Data Annex'!$K$1:$AO$1,0)),"") -> 0.5883613974 | S18: =IFERROR(INDEX('Data Annex'!$K$1:$AO$871,MATCH(Assets!S$1&"|"&Assets!$B18,'Data Annex'!$K$1:$K$871,0),MATCH(Assets!S$2,'Data Annex'!$K$1:$AO$1,0)),"") -> 0.5717427335 | T18: =IFERROR(INDEX('Data Annex'!$K$1:$AO$871,MATCH(Assets!T$1&"|"&Assets!$B18,'Data Annex'!$K$1:$K$871,0),MATCH(Assets!T$2,'Data Annex'!$K$1:$AO$1,0)),"") -> 0.5521459073 | U18: =IFERROR(INDEX('Data Annex'!$K$1:$AO$871,MATCH(Assets!U$1&"|"&Assets!$B18,'Data Annex'!$K$1:$K$871,0),MATCH(Assets!U$2,'Data Annex'!$K$1:$AO$1,0)),"") -> 0.1550180977 | V18: =IFERROR(INDEX('Data Annex'!$K$1:$AO$871,MATCH(Assets!V$1&"|"&Assets!$B18,'Data Annex'!$K$1:$K$871,0),MATCH(Assets!V$2,'Data Annex'!$K$1:$AO$1,0)),"") -> 0.1321262504 | W18: =IFERROR(INDEX('Data Annex'!$K$1:$AO$871,MATCH(Assets!W$1&"|"&Assets!$B18,'Data Annex'!$K$1:$K$871,0),MATCH(Assets!W$2,'Data Annex'!$K$1:$AO$1,0)),"") -> 0.1561181705 | X18: =IFERROR(INDEX('Data Annex'!$K$1:$AO$871,MATCH(Assets!X$1&"|"&Assets!$B18,'Data Annex'!$K$1:$K$871,0),MATCH(Assets!X$2,'Data Annex'!$K$1:$AO$1,0)),"") -> 0.138706585 | Y18: =IFERROR(INDEX('Data Annex'!$K$1:$AO$871,MATCH(Assets!Y$1&"|"&Assets!$B18,'Data Annex'!$K$1:$K$871,0),MATCH(Assets!Y$2,'Data Annex'!$K$1:$AO$1,0)),"") -> 0.0290634442 | Z18: =IFERROR(INDEX('Data Annex'!$K$1:$AO$871,MATCH(Assets!Z$1&"|"&Assets!$B18,'Data Annex'!$K$1:$K$871,0),MATCH(Assets!Z$2,'Data Annex'!$K$1:$AO$1,0)),"") -> 0.0296279225 | AA18: =IFERROR(INDEX('Data Annex'!$K$1:$AO$871,MATCH(Assets!AA$1&"|"&Assets!$B18,'Data Annex'!$K$1:$K$871,0),MATCH(Assets!AA$2,'Data Annex'!$K$1:$AO$1,0)),"") -> 0.0270054614 | AB18: =IFERROR(INDEX('Data Annex'!$K$1:$AO$871,MATCH(Assets!AB$1&"|"&Assets!$B18,'Data Annex'!$K$1:$K$871,0),MATCH(Assets!AB$2,'Data Annex'!$K$1:$AO$1,0)),"") -> 0.0260072691 | AC18: =IFERROR(INDEX('Data Annex'!$K$1:$AJ$871,MATCH(Assets!AC$1&"|"&Assets!$B18,'Data Annex'!$K$1:$K$871,0),MATCH(Assets!AC$2,'Data Annex'!$K$1:$AJ$1,0)),"") -> 
B19: DK | D19: DK | E19: =IFERROR(INDEX('Data Annex'!$K$1:$AO$871,MATCH(Assets!E$1&"|"&Assets!$B19,'Data Annex'!$K$1:$K$871,0),MATCH(Assets!E$2,'Data Annex'!$K$1:$AO$1,0)),"") -> 0.0298192126 | F19: =IFERROR(INDEX('Data Annex'!$K$1:$AO$871,MATCH(Assets!F$1&"|"&Assets!$B19,'Data Annex'!$K$1:$K$871,0),MATCH(Assets!F$2,'Data Annex'!$K$1:$AO$1,0)),"") -> 0.0302792512 | G19: =IFERROR(INDEX('Data Annex'!$K$1:$AO$871,MATCH(Assets!G$1&"|"&Assets!$B19,'Data Annex'!$K$1:$K$871,0),MATCH(Assets!G$2,'Data Annex'!$K$1:$AO$1,0)),"") -> 0.0383456662 | H19: =IFERROR(INDEX('Data Annex'!$K$1:$AO$871,MATCH(Assets!H$1&"|"&Assets!$B19,'Data Annex'!$K$1:$K$871,0),MATCH(Assets!H$2,'Data Annex'!$K$1:$AO$1,0)),"") -> 0.0474422283 | I19: =IFERROR(INDEX('Data Annex'!$K$1:$AO$871,MATCH(Assets!I$1&"|"&Assets!$B19,'Data Annex'!$K$1:$K$871,0),MATCH(Assets!I$2,'Data Annex'!$K$1:$AO$1,0)),"") -> 0.0051834887 | J19: =IFERROR(INDEX('Data Annex'!$K$1:$AO$871,MATCH(Assets!J$1&"|"&Assets!$B19,'Data Annex'!$K$1:$K$871,0),MATCH(Assets!J$2,'Data Annex'!$K$1:$AO$1,0)),"") -> 0.0057879976 | K19: =IFERROR(INDEX('Data Annex'!$K$1:$AO$871,MATCH(Assets!K$1&"|"&Assets!$B19,'Data Annex'!$K$1:$K$871,0),MATCH(Assets!K$2,'Data Annex'!$K$1:$AO$1,0)),"") -> 0.0048469206 | L19: =IFERROR(INDEX('Data Annex'!$K$1:$AO$871,MATCH(Assets!L$1&"|"&Assets!$B19,'Data Annex'!$K$1:$K$871,0),MATCH(Assets!L$2,'Data Annex'!$K$1:$AO$1,0)),"") -> 0.0044925977 | M19: =IFERROR(INDEX('Data Annex'!$K$1:$AO$871,MATCH(Assets!M$1&"|"&Assets!$B19,'Data Annex'!$K$1:$K$871,0),MATCH(Assets!M$2,'Data Annex'!$K$1:$AO$1,0)),"") -> 0.1274117435 | N19: =IFERROR(INDEX('Data Annex'!$K$1:$AO$871,MATCH(Assets!N$1&"|"&Assets!$B19,'Data Annex'!$K$1:$K$871,0),MATCH(Assets!N$2,'Data Annex'!$K$1:$AO$1,0)),"") -> 0.1237541733 | O19: =IFERROR(INDEX('Data Annex'!$K$1:$AO$871,MATCH(Assets!O$1&"|"&Assets!$B19,'Data Annex'!$K$1:$K$871,0),MATCH(Assets!O$2,'Data Annex'!$K$1:$AO$1,0)),"") -> 0.1288007289 | P19: =IFERROR(INDEX('Data Annex'!$K$1:$AO$871,MATCH(Assets!P$1&"|"&Assets!$B19,'Data Annex'!$K$1:$K$871,0),MATCH(Assets!P$2,'Data Annex'!$K$1:$AO$1,0)),"") -> 0.1315939271 | Q19: =IFERROR(INDEX('Data Annex'!$K$1:$AO$871,MATCH(Assets!Q$1&"|"&Assets!$B19,'Data Annex'!$K$1:$K$871,0),MATCH(Assets!Q$2,'Data Annex'!$K$1:$AO$1,0)),"") -> 0.7317976077 | R19: =IFERROR(INDEX('Data Annex'!$K$1:$AO$871,MATCH(Assets!R$1&"|"&Assets!$B19,'Data Annex'!$K$1:$K$871,0),MATCH(Assets!R$2,'Data Annex'!$K$1:$AO$1,0)),"") -> 0.7514521958 | S19: =IFERROR(INDEX('Data Annex'!$K$1:$AO$871,MATCH(Assets!S$1&"|"&Assets!$B19,'Data Annex'!$K$1:$K$871,0),MATCH(Assets!S$2,'Data Annex'!$K$1:$AO$1,0)),"") -> 0.7133548122 | T19: =IFERROR(INDEX('Data Annex'!$K$1:$AO$871,MATCH(Assets!T$1&"|"&Assets!$B19,'Data Annex'!$K$1:$K$871,0),MATCH(Assets!T$2,'Data Annex'!$K$1:$AO$1,0)),"") -> 0.7140153624 | U19: =IFERROR(INDEX('Data Annex'!$K$1:$AO$871,MATCH(Assets!U$1&"|"&Assets!$B19,'Data Annex'!$K$1:$K$871,0),MATCH(Assets!U$2,'Data Annex'!$K$1:$AO$1,0)),"") -> 0.0806367249 | V19: =IFERROR(INDEX('Data Annex'!$K$1:$AO$871,MATCH(Assets!V$1&"|"&Assets!$B19,'Data Annex'!$K$1:$K$871,0),MATCH(Assets!V$2,'Data Annex'!$K$1:$AO$1,0)),"") -> 0.0629530915 | W19: =IFERROR(INDEX('Data Annex'!$K$1:$AO$871,MATCH(Assets!W$1&"|"&Assets!$B19,'Data Annex'!$K$1:$K$871,0),MATCH(Assets!W$2,'Data Annex'!$K$1:$AO$1,0)),"") -> 0.0890478975 | X19: =IFERROR(INDEX('Data Annex'!$K$1:$AO$871,MATCH(Assets!X$1&"|"&Assets!$B19,'Data Annex'!$K$1:$K$871,0),MATCH(Assets!X$2,'Data Annex'!$K$1:$AO$1,0)),"") -> 0.078688225 | Y19: =IFERROR(INDEX('Data Annex'!$K$1:$AO$871,MATCH(Assets!Y$1&"|"&Assets!$B19,'Data Annex'!$K$1:$K$871,0),MATCH(Assets!Y$2,'Data Annex'!$K$1:$AO$1,0)),"") -> 0.0251512227 | Z19: =IFERROR(INDEX('Data Annex'!$K$1:$AO$871,MATCH(Assets!Z$1&"|"&Assets!$B19,'Data Annex'!$K$1:$K$871,0),MATCH(Assets!Z$2,'Data Annex'!$K$1:$AO$1,0)),"") -> 0.0257732906 | AA19: =IFERROR(INDEX('Data Annex'!$K$1:$AO$871,MATCH(Assets!AA$1&"|"&Assets!$B19,'Data Annex'!$K$1:$K$871,0),MATCH(Assets!AA$2,'Data Annex'!$K$1:$AO$1,0)),"") -> 0.0256039745 | AB19: =IFERROR(INDEX('Data Annex'!$K$1:$AO$871,MATCH(Assets!AB$1&"|"&Assets!$B19,'Data Annex'!$K$1:$K$871,0),MATCH(Assets!AB$2,'Data Annex'!$K$1:$AO$1,0)),"") -> 0.0237676595 | AC19: =IFERROR(INDEX('Data Annex'!$K$1:$AJ$871,MATCH(Assets!AC$1&"|"&Assets!$B19,'Data Annex'!$K$1:$K$871,0),MATCH(Assets!AC$2,'Data Annex'!$K$1:$AJ$1,0)),"") -> 
B20: EE | D20: EE | E20: =IFERROR(INDEX('Data Annex'!$K$1:$AO$871,MATCH(Assets!E$1&"|"&Assets!$B20,'Data Annex'!$K$1:$K$871,0),MATCH(Assets!E$2,'Data Annex'!$K$1:$AO$1,0)),"") -> 0.2105742632 | F20: =IFERROR(INDEX('Data Annex'!$K$1:$AO$871,MATCH(Assets!F$1&"|"&Assets!$B20,'Data Annex'!$K$1:$K$871,0),MATCH(Assets!F$2,'Data Annex'!$K$1:$AO$1,0)),"") -> 0.2185602924 | G20: =IFERROR(INDEX('Data Annex'!$K$1:$AO$871,MATCH(Assets!G$1&"|"&Assets!$B20,'Data Annex'!$K$1:$K$871,0),MATCH(Assets!G$2,'Data Annex'!$K$1:$AO$1,0)),"") -> 0.2244967649 | H20: =IFERROR(INDEX('Data Annex'!$K$1:$AO$871,MATCH(Assets!H$1&"|"&Assets!$B20,'Data Annex'!$K$1:$K$871,0),MATCH(Assets!H$2,'Data Annex'!$K$1:$AO$1,0)),"") -> 0.2346068731 | I20: =IFERROR(INDEX('Data Annex'!$K$1:$AO$871,MATCH(Assets!I$1&"|"&Assets!$B20,'Data Annex'!$K$1:$K$871,0),MATCH(Assets!I$2,'Data Annex'!$K$1:$AO$1,0)),"") -> 0.0008701154 | J20: =IFERROR(INDEX('Data Annex'!$K$1:$AO$871,MATCH(Assets!J$1&"|"&Assets!$B20,'Data Annex'!$K$1:$K$871,0),MATCH(Assets!J$2,'Data Annex'!$K$1:$AO$1,0)),"") -> 0.0005851622 | K20: =IFERROR(INDEX('Data Annex'!$K$1:$AO$871,MATCH(Assets!K$1&"|"&Assets!$B20,'Data Annex'!$K$1:$K$871,0),MATCH(Assets!K$2,'Data Annex'!$K$1:$AO$1,0)),"") -> 0.0004816005 | L20: =IFERROR(INDEX('Data Annex'!$K$1:$AO$871,MATCH(Assets!L$1&"|"&Assets!$B20,'Data Annex'!$K$1:$K$871,0),MATCH(Assets!L$2,'Data Annex'!$K$1:$AO$1,0)),"") -> 0.0004839829 | M20: =IFERROR(INDEX('Data Annex'!$K$1:$AO$871,MATCH(Assets!M$1&"|"&Assets!$B20,'Data Annex'!$K$1:$K$871,0),MATCH(Assets!M$2,'Data Annex'!$K$1:$AO$1,0)),"") -> 0.0193250627 | N20: =IFERROR(INDEX('Data Annex'!$K$1:$AO$871,MATCH(Assets!N$1&"|"&Assets!$B20,'Data Annex'!$K$1:$K$871,0),MATCH(Assets!N$2,'Data Annex'!$K$1:$AO$1,0)),"") -> 0.0171253795 | O20: =IFERROR(INDEX('Data Annex'!$K$1:$AO$871,MATCH(Assets!O$1&"|"&Assets!$B20,'Data Annex'!$K$1:$K$871,0),MATCH(Assets!O$2,'Data Annex'!$K$1:$AO$1,0)),"") -> 0.0218480249 | P20: =IFERROR(INDEX('Data Annex'!$K$1:$AO$871,MATCH(Assets!P$1&"|"&Assets!$B20,'Data Annex'!$K$1:$K$871,0),MATCH(Assets!P$2,'Data Annex'!$K$1:$AO$1,0)),"") -> 0.0799827384 | Q20: =IFERROR(INDEX('Data Annex'!$K$1:$AO$871,MATCH(Assets!Q$1&"|"&Assets!$B20,'Data Annex'!$K$1:$K$871,0),MATCH(Assets!Q$2,'Data Annex'!$K$1:$AO$1,0)),"") -> 0.7525122097 | R20: =IFERROR(INDEX('Data Annex'!$K$1:$AO$871,MATCH(Assets!R$1&"|"&Assets!$B20,'Data Annex'!$K$1:$K$871,0),MATCH(Assets!R$2,'Data Annex'!$K$1:$AO$1,0)),"") -> 0.748900709 | S20: =IFERROR(INDEX('Data Annex'!$K$1:$AO$871,MATCH(Assets!S$1&"|"&Assets!$B20,'Data Annex'!$K$1:$K$871,0),MATCH(Assets!S$2,'Data Annex'!$K$1:$AO$1,0)),"") -> 0.739219644 | T20: =IFERROR(INDEX('Data Annex'!$K$1:$AO$871,MATCH(Assets!T$1&"|"&Assets!$B20,'Data Annex'!$K$1:$K$871,0),MATCH(Assets!T$2,'Data Annex'!$K$1:$AO$1,0)),"") -> 0.6724347335 | U20: =IFERROR(INDEX('Data Annex'!$K$1:$AO$871,MATCH(Assets!U$1&"|"&Assets!$B20,'Data Annex'!$K$1:$K$871,0),MATCH(Assets!U$2,'Data Annex'!$K$1:$AO$1,0)),"") -> 0.0026746871 | V20: =IFERROR(INDEX('Data Annex'!$K$1:$AO$871,MATCH(Assets!V$1&"|"&Assets!$B20,'Data Annex'!$K$1:$K$871,0),MATCH(Assets!V$2,'Data Annex'!$K$1:$AO$1,0)),"") -> 0.0021479763 | W20: =IFERROR(INDEX('Data Annex'!$K$1:$AO$871,MATCH(Assets!W$1&"|"&Assets!$B20,'Data Annex'!$K$1:$K$871,0),MATCH(Assets!W$2,'Data Annex'!$K$1:$AO$1,0)),"") -> 0.0025018768 | X20: =IFERROR(INDEX('Data Annex'!$K$1:$AO$871,MATCH(Assets!X$1&"|"&Assets!$B20,'Data Annex'!$K$1:$K$871,0),MATCH(Assets!X$2,'Data Annex'!$K$1:$AO$1,0)),"") -> 0.0018372178 | Y20: =IFERROR(INDEX('Data Annex'!$K$1:$AO$871,MATCH(Assets!Y$1&"|"&Assets!$B20,'Data Annex'!$K$1:$K$871,0),MATCH(Assets!Y$2,'Data Annex'!$K$1:$AO$1,0)),"") -> 0.0140436619 | Z20: =IFERROR(INDEX('Data Annex'!$K$1:$AO$871,MATCH(Assets!Z$1&"|"&Assets!$B20,'Data Annex'!$K$1:$K$871,0),MATCH(Assets!Z$2,'Data Annex'!$K$1:$AO$1,0)),"") -> 0.0126804807 | AA20: =IFERROR(INDEX('Data Annex'!$K$1:$AO$871,MATCH(Assets!AA$1&"|"&Assets!$B20,'Data Annex'!$K$1:$K$871,0),MATCH(Assets!AA$2,'Data Annex'!$K$1:$AO$1,0)),"") -> 0.0114520889 | AB20: =IFERROR(INDEX('Data Annex'!$K$1:$AO$871,MATCH(Assets!AB$1&"|"&Assets!$B20,'Data Annex'!$K$1:$K$871,0),MATCH(Assets!AB$2,'Data Annex'!$K$1:$AO$1,0)),"") -> 0.0106544542 | AC20: =IFERROR(INDEX('Data Annex'!$K$1:$AJ$871,MATCH(Assets!AC$1&"|"&Assets!$B20,'Data Annex'!$K$1:$K$871,0),MATCH(Assets!AC$2,'Data Annex'!$K$1:$AJ$1,0)),"") -> 
B21: ES | D21: ES | E21: =IFERROR(INDEX('Data Annex'!$K$1:$AO$871,MATCH(Assets!E$1&"|"&Assets!$B21,'Data Annex'!$K$1:$K$871,0),MATCH(Assets!E$2,'Data Annex'!$K$1:$AO$1,0)),"") -> 0.0603575501 | F21: =IFERROR(INDEX('Data Annex'!$K$1:$AO$871,MATCH(Assets!F$1&"|"&Assets!$B21,'Data Annex'!$K$1:$K$871,0),MATCH(Assets!F$2,'Data Annex'!$K$1:$AO$1,0)),"") -> 0.064518743 | G21: =IFERROR(INDEX('Data Annex'!$K$1:$AO$871,MATCH(Assets!G$1&"|"&Assets!$B21,'Data Annex'!$K$1:$K$871,0),MATCH(Assets!G$2,'Data Annex'!$K$1:$AO$1,0)),"") -> 0.0730799914 | H21: =IFERROR(INDEX('Data Annex'!$K$1:$AO$871,MATCH(Assets!H$1&"|"&Assets!$B21,'Data Annex'!$K$1:$K$871,0),MATCH(Assets!H$2,'Data Annex'!$K$1:$AO$1,0)),"") -> 0.0939519757 | I21: =IFERROR(INDEX('Data Annex'!$K$1:$AO$871,MATCH(Assets!I$1&"|"&Assets!$B21,'Data Annex'!$K$1:$K$871,0),MATCH(Assets!I$2,'Data Annex'!$K$1:$AO$1,0)),"") -> 0.0099962978 | J21: =IFERROR(INDEX('Data Annex'!$K$1:$AO$871,MATCH(Assets!J$1&"|"&Assets!$B21,'Data Annex'!$K$1:$K$871,0),MATCH(Assets!J$2,'Data Annex'!$K$1:$AO$1,0)),"") -> 0.0108140415 | K21: =IFERROR(INDEX('Data Annex'!$K$1:$AO$871,MATCH(Assets!K$1&"|"&Assets!$B21,'Data Annex'!$K$1:$K$871,0),MATCH(Assets!K$2,'Data Annex'!$K$1:$AO$1,0)),"") -> 0.0078738769 | L21: =IFERROR(INDEX('Data Annex'!$K$1:$AO$871,MATCH(Assets!L$1&"|"&Assets!$B21,'Data Annex'!$K$1:$K$871,0),MATCH(Assets!L$2,'Data Annex'!$K$1:$AO$1,0)),"") -> 0.0072989544 | M21: =IFERROR(INDEX('Data Annex'!$K$1:$AO$871,MATCH(Assets!M$1&"|"&Assets!$B21,'Data Annex'!$K$1:$K$871,0),MATCH(Assets!M$2,'Data Annex'!$K$1:$AO$1,0)),"") -> 0.1379246012 | N21: =IFERROR(INDEX('Data Annex'!$K$1:$AO$871,MATCH(Assets!N$1&"|"&Assets!$B21,'Data Annex'!$K$1:$K$871,0),MATCH(Assets!N$2,'Data Annex'!$K$1:$AO$1,0)),"") -> 0.1342828011 | O21: =IFERROR(INDEX('Data Annex'!$K$1:$AO$871,MATCH(Assets!O$1&"|"&Assets!$B21,'Data Annex'!$K$1:$K$871,0),MATCH(Assets!O$2,'Data Annex'!$K$1:$AO$1,0)),"") -> 0.1292309584 | P21: =IFERROR(INDEX('Data Annex'!$K$1:$AO$871,MATCH(Assets!P$1&"|"&Assets!$B21,'Data Annex'!$K$1:$K$871,0),MATCH(Assets!P$2,'Data Annex'!$K$1:$AO$1,0)),"") -> 0.135005813 | Q21: =IFERROR(INDEX('Data Annex'!$K$1:$AO$871,MATCH(Assets!Q$1&"|"&Assets!$B21,'Data Annex'!$K$1:$K$871,0),MATCH(Assets!Q$2,'Data Annex'!$K$1:$AO$1,0)),"") -> 0.6624979866 | R21: =IFERROR(INDEX('Data Annex'!$K$1:$AO$871,MATCH(Assets!R$1&"|"&Assets!$B21,'Data Annex'!$K$1:$K$871,0),MATCH(Assets!R$2,'Data Annex'!$K$1:$AO$1,0)),"") -> 0.6715030563 | S21: =IFERROR(INDEX('Data Annex'!$K$1:$AO$871,MATCH(Assets!S$1&"|"&Assets!$B21,'Data Annex'!$K$1:$K$871,0),MATCH(Assets!S$2,'Data Annex'!$K$1:$AO$1,0)),"") -> 0.6578765965 | T21: =IFERROR(INDEX('Data Annex'!$K$1:$AO$871,MATCH(Assets!T$1&"|"&Assets!$B21,'Data Annex'!$K$1:$K$871,0),MATCH(Assets!T$2,'Data Annex'!$K$1:$AO$1,0)),"") -> 0.6454992137 | U21: =IFERROR(INDEX('Data Annex'!$K$1:$AO$871,MATCH(Assets!U$1&"|"&Assets!$B21,'Data Annex'!$K$1:$K$871,0),MATCH(Assets!U$2,'Data Annex'!$K$1:$AO$1,0)),"") -> 0.0483594683 | V21: =IFERROR(INDEX('Data Annex'!$K$1:$AO$871,MATCH(Assets!V$1&"|"&Assets!$B21,'Data Annex'!$K$1:$K$871,0),MATCH(Assets!V$2,'Data Annex'!$K$1:$AO$1,0)),"") -> 0.0406987164 | W21: =IFERROR(INDEX('Data Annex'!$K$1:$AO$871,MATCH(Assets!W$1&"|"&Assets!$B21,'Data Annex'!$K$1:$K$871,0),MATCH(Assets!W$2,'Data Annex'!$K$1:$AO$1,0)),"") -> 0.0553272613 | X21: =IFERROR(INDEX('Data Annex'!$K$1:$AO$871,MATCH(Assets!X$1&"|"&Assets!$B21,'Data Annex'!$K$1:$K$871,0),MATCH(Assets!X$2,'Data Annex'!$K$1:$AO$1,0)),"") -> 0.0503817189 | Y21: =IFERROR(INDEX('Data Annex'!$K$1:$AO$871,MATCH(Assets!Y$1&"|"&Assets!$B21,'Data Annex'!$K$1:$K$871,0),MATCH(Assets!Y$2,'Data Annex'!$K$1:$AO$1,0)),"") -> 0.0808640954 | Z21: =IFERROR(INDEX('Data Annex'!$K$1:$AO$871,MATCH(Assets!Z$1&"|"&Assets!$B21,'Data Annex'!$K$1:$K$871,0),MATCH(Assets!Z$2,'Data Annex'!$K$1:$AO$1,0)),"") -> 0.0781826416 | AA21: =IFERROR(INDEX('Data Annex'!$K$1:$AO$871,MATCH(Assets!AA$1&"|"&Assets!$B21,'Data Annex'!$K$1:$K$871,0),MATCH(Assets!AA$2,'Data Annex'!$K$1:$AO$1,0)),"") -> 0.0766113157 | AB21: =IFERROR(INDEX('Data Annex'!$K$1:$AO$871,MATCH(Assets!AB$1&"|"&Assets!$B21,'Data Annex'!$K$1:$K$871,0),MATCH(Assets!AB$2,'Data Annex'!$K$1:$AO$1,0)),"") -> 0.0678623245 | AC21: =IFERROR(INDEX('Data Annex'!$K$1:$AJ$871,MATCH(Assets!AC$1&"|"&Assets!$B21,'Data Annex'!$K$1:$K$871,0),MATCH(Assets!AC$2,'Data Annex'!$K$1:$AJ$1,0)),"") -> 
B22: FI | D22: FI | E22: =IFERROR(INDEX('Data Annex'!$K$1:$AO$871,MATCH(Assets!E$1&"|"&Assets!$B22,'Data Annex'!$K$1:$K$871,0),MATCH(Assets!E$2,'Data Annex'!$K$1:$AO$1,0)),"") -> 0.073076325 | F22: =IFERROR(INDEX('Data Annex'!$K$1:$AO$871,MATCH(Assets!F$1&"|"&Assets!$B22,'Data Annex'!$K$1:$K$871,0),MATCH(Assets!F$2,'Data Annex'!$K$1:$AO$1,0)),"") -> 0.0867906044 | G22: =IFERROR(INDEX('Data Annex'!$K$1:$AO$871,MATCH(Assets!G$1&"|"&Assets!$B22,'Data Annex'!$K$1:$K$871,0),MATCH(Assets!G$2,'Data Annex'!$K$1:$AO$1,0)),"") -> 0.0858919432 | H22: =IFERROR(INDEX('Data Annex'!$K$1:$AO$871,MATCH(Assets!H$1&"|"&Assets!$B22,'Data Annex'!$K$1:$K$871,0),MATCH(Assets!H$2,'Data Annex'!$K$1:$AO$1,0)),"") -> 0.1079413938 | I22: =IFERROR(INDEX('Data Annex'!$K$1:$AO$871,MATCH(Assets!I$1&"|"&Assets!$B22,'Data Annex'!$K$1:$K$871,0),MATCH(Assets!I$2,'Data Annex'!$K$1:$AO$1,0)),"") -> 0.0098984274 | J22: =IFERROR(INDEX('Data Annex'!$K$1:$AO$871,MATCH(Assets!J$1&"|"&Assets!$B22,'Data Annex'!$K$1:$K$871,0),MATCH(Assets!J$2,'Data Annex'!$K$1:$AO$1,0)),"") -> 0.0083126309 | K22: =IFERROR(INDEX('Data Annex'!$K$1:$AO$871,MATCH(Assets!K$1&"|"&Assets!$B22,'Data Annex'!$K$1:$K$871,0),MATCH(Assets!K$2,'Data Annex'!$K$1:$AO$1,0)),"") -> 0.0074372599 | L22: =IFERROR(INDEX('Data Annex'!$K$1:$AO$871,MATCH(Assets!L$1&"|"&Assets!$B22,'Data Annex'!$K$1:$K$871,0),MATCH(Assets!L$2,'Data Annex'!$K$1:$AO$1,0)),"") -> 0.0074864538 | M22: =IFERROR(INDEX('Data Annex'!$K$1:$AO$871,MATCH(Assets!M$1&"|"&Assets!$B22,'Data Annex'!$K$1:$K$871,0),MATCH(Assets!M$2,'Data Annex'!$K$1:$AO$1,0)),"") -> 0.122097695 | N22: =IFERROR(INDEX('Data Annex'!$K$1:$AO$871,MATCH(Assets!N$1&"|"&Assets!$B22,'Data Annex'!$K$1:$K$871,0),MATCH(Assets!N$2,'Data Annex'!$K$1:$AO$1,0)),"") -> 0.1258898072 | O22: =IFERROR(INDEX('Data Annex'!$K$1:$AO$871,MATCH(Assets!O$1&"|"&Assets!$B22,'Data Annex'!$K$1:$K$871,0),MATCH(Assets!O$2,'Data Annex'!$K$1:$AO$1,0)),"") -> 0.1294032941 | P22: =IFERROR(INDEX('Data Annex'!$K$1:$AO$871,MATCH(Assets!P$1&"|"&Assets!$B22,'Data Annex'!$K$1:$K$871,0),MATCH(Assets!P$2,'Data Annex'!$K$1:$AO$1,0)),"") -> 0.1295644483 | Q22: =IFERROR(INDEX('Data Annex'!$K$1:$AO$871,MATCH(Assets!Q$1&"|"&Assets!$B22,'Data Annex'!$K$1:$K$871,0),MATCH(Assets!Q$2,'Data Annex'!$K$1:$AO$1,0)),"") -> 0.6641650636 | R22: =IFERROR(INDEX('Data Annex'!$K$1:$AO$871,MATCH(Assets!R$1&"|"&Assets!$B22,'Data Annex'!$K$1:$K$871,0),MATCH(Assets!R$2,'Data Annex'!$K$1:$AO$1,0)),"") -> 0.6883902265 | S22: =IFERROR(INDEX('Data Annex'!$K$1:$AO$871,MATCH(Assets!S$1&"|"&Assets!$B22,'Data Annex'!$K$1:$K$871,0),MATCH(Assets!S$2,'Data Annex'!$K$1:$AO$1,0)),"") -> 0.664337971 | T22: =IFERROR(INDEX('Data Annex'!$K$1:$AO$871,MATCH(Assets!T$1&"|"&Assets!$B22,'Data Annex'!$K$1:$K$871,0),MATCH(Assets!T$2,'Data Annex'!$K$1:$AO$1,0)),"") -> 0.6573599788 | U22: =IFERROR(INDEX('Data Annex'!$K$1:$AO$871,MATCH(Assets!U$1&"|"&Assets!$B22,'Data Annex'!$K$1:$K$871,0),MATCH(Assets!U$2,'Data Annex'!$K$1:$AO$1,0)),"") -> 0.0844123844 | V22: =IFERROR(INDEX('Data Annex'!$K$1:$AO$871,MATCH(Assets!V$1&"|"&Assets!$B22,'Data Annex'!$K$1:$K$871,0),MATCH(Assets!V$2,'Data Annex'!$K$1:$AO$1,0)),"") -> 0.0672752756 | W22: =IFERROR(INDEX('Data Annex'!$K$1:$AO$871,MATCH(Assets!W$1&"|"&Assets!$B22,'Data Annex'!$K$1:$K$871,0),MATCH(Assets!W$2,'Data Annex'!$K$1:$AO$1,0)),"") -> 0.0877680056 | X22: =IFERROR(INDEX('Data Annex'!$K$1:$AO$871,MATCH(Assets!X$1&"|"&Assets!$B22,'Data Annex'!$K$1:$K$871,0),MATCH(Assets!X$2,'Data Annex'!$K$1:$AO$1,0)),"") -> 0.0745197952 | Y22: =IFERROR(INDEX('Data Annex'!$K$1:$AO$871,MATCH(Assets!Y$1&"|"&Assets!$B22,'Data Annex'!$K$1:$K$871,0),MATCH(Assets!Y$2,'Data Annex'!$K$1:$AO$1,0)),"") -> 0.0463501046 | Z22: =IFERROR(INDEX('Data Annex'!$K$1:$AO$871,MATCH(Assets!Z$1&"|"&Assets!$B22,'Data Annex'!$K$1:$K$871,0),MATCH(Assets!Z$2,'Data Annex'!$K$1:$AO$1,0)),"") -> 0.0233414554 | AA22: =IFERROR(INDEX('Data Annex'!$K$1:$AO$871,MATCH(Assets!AA$1&"|"&Assets!$B22,'Data Annex'!$K$1:$K$871,0),MATCH(Assets!AA$2,'Data Annex'!$K$1:$AO$1,0)),"") -> 0.0251615261 | AB22: =IFERROR(INDEX('Data Annex'!$K$1:$AO$871,MATCH(Assets!AB$1&"|"&Assets!$B22,'Data Annex'!$K$1:$K$871,0),MATCH(Assets!AB$2,'Data Annex'!$K$1:$AO$1,0)),"") -> 0.0231279301 | AC22: =IFERROR(INDEX('Data Annex'!$K$1:$AJ$871,MATCH(Assets!AC$1&"|"&Assets!$B22,'Data Annex'!$K$1:$K$871,0),MATCH(Assets!AC$2,'Data Annex'!$K$1:$AJ$1,0)),"") -> 
B23: FR | D23: FR | E23: =IFERROR(INDEX('Data Annex'!$K$1:$AO$871,MATCH(Assets!E$1&"|"&Assets!$B23,'Data Annex'!$K$1:$K$871,0),MATCH(Assets!E$2,'Data Annex'!$K$1:$AO$1,0)),"") -> 0.0755581635 | F23: =IFERROR(INDEX('Data Annex'!$K$1:$AO$871,MATCH(Assets!F$1&"|"&Assets!$B23,'Data Annex'!$K$1:$K$871,0),MATCH(Assets!F$2,'Data Annex'!$K$1:$AO$1,0)),"") -> 0.0826036781 | G23: =IFERROR(INDEX('Data Annex'!$K$1:$AO$871,MATCH(Assets!G$1&"|"&Assets!$B23,'Data Annex'!$K$1:$K$871,0),MATCH(Assets!G$2,'Data Annex'!$K$1:$AO$1,0)),"") -> 0.0909148618 | H23: =IFERROR(INDEX('Data Annex'!$K$1:$AO$871,MATCH(Assets!H$1&"|"&Assets!$B23,'Data Annex'!$K$1:$K$871,0),MATCH(Assets!H$2,'Data Annex'!$K$1:$AO$1,0)),"") -> 0.1178318255 | I23: =IFERROR(INDEX('Data Annex'!$K$1:$AO$871,MATCH(Assets!I$1&"|"&Assets!$B23,'Data Annex'!$K$1:$K$871,0),MATCH(Assets!I$2,'Data Annex'!$K$1:$AO$1,0)),"") -> 0.0265997754 | J23: =IFERROR(INDEX('Data Annex'!$K$1:$AO$871,MATCH(Assets!J$1&"|"&Assets!$B23,'Data Annex'!$K$1:$K$871,0),MATCH(Assets!J$2,'Data Annex'!$K$1:$AO$1,0)),"") -> 0.0284179388 | K23: =IFERROR(INDEX('Data Annex'!$K$1:$AO$871,MATCH(Assets!K$1&"|"&Assets!$B23,'Data Annex'!$K$1:$K$871,0),MATCH(Assets!K$2,'Data Annex'!$K$1:$AO$1,0)),"") -> 0.0191322393 | L23: =IFERROR(INDEX('Data Annex'!$K$1:$AO$871,MATCH(Assets!L$1&"|"&Assets!$B23,'Data Annex'!$K$1:$K$871,0),MATCH(Assets!L$2,'Data Annex'!$K$1:$AO$1,0)),"") -> 0.0223877776 | M23: =IFERROR(INDEX('Data Annex'!$K$1:$AO$871,MATCH(Assets!M$1&"|"&Assets!$B23,'Data Annex'!$K$1:$K$871,0),MATCH(Assets!M$2,'Data Annex'!$K$1:$AO$1,0)),"") -> 0.106768593 | N23: =IFERROR(INDEX('Data Annex'!$K$1:$AO$871,MATCH(Assets!N$1&"|"&Assets!$B23,'Data Annex'!$K$1:$K$871,0),MATCH(Assets!N$2,'Data Annex'!$K$1:$AO$1,0)),"") -> 0.1014496435 | O23: =IFERROR(INDEX('Data Annex'!$K$1:$AO$871,MATCH(Assets!O$1&"|"&Assets!$B23,'Data Annex'!$K$1:$K$871,0),MATCH(Assets!O$2,'Data Annex'!$K$1:$AO$1,0)),"") -> 0.1075436495 | P23: =IFERROR(INDEX('Data Annex'!$K$1:$AO$871,MATCH(Assets!P$1&"|"&Assets!$B23,'Data Annex'!$K$1:$K$871,0),MATCH(Assets!P$2,'Data Annex'!$K$1:$AO$1,0)),"") -> 0.1114818275 | Q23: =IFERROR(INDEX('Data Annex'!$K$1:$AO$871,MATCH(Assets!Q$1&"|"&Assets!$B23,'Data Annex'!$K$1:$K$871,0),MATCH(Assets!Q$2,'Data Annex'!$K$1:$AO$1,0)),"") -> 0.6166411675 | R23: =IFERROR(INDEX('Data Annex'!$K$1:$AO$871,MATCH(Assets!R$1&"|"&Assets!$B23,'Data Annex'!$K$1:$K$871,0),MATCH(Assets!R$2,'Data Annex'!$K$1:$AO$1,0)),"") -> 0.6300295027 | S23: =IFERROR(INDEX('Data Annex'!$K$1:$AO$871,MATCH(Assets!S$1&"|"&Assets!$B23,'Data Annex'!$K$1:$K$871,0),MATCH(Assets!S$2,'Data Annex'!$K$1:$AO$1,0)),"") -> 0.599613484 | T23: =IFERROR(INDEX('Data Annex'!$K$1:$AO$871,MATCH(Assets!T$1&"|"&Assets!$B23,'Data Annex'!$K$1:$K$871,0),MATCH(Assets!T$2,'Data Annex'!$K$1:$AO$1,0)),"") -> 0.59060693 | U23: =IFERROR(INDEX('Data Annex'!$K$1:$AO$871,MATCH(Assets!U$1&"|"&Assets!$B23,'Data Annex'!$K$1:$K$871,0),MATCH(Assets!U$2,'Data Annex'!$K$1:$AO$1,0)),"") -> 0.1019059389 | V23: =IFERROR(INDEX('Data Annex'!$K$1:$AO$871,MATCH(Assets!V$1&"|"&Assets!$B23,'Data Annex'!$K$1:$K$871,0),MATCH(Assets!V$2,'Data Annex'!$K$1:$AO$1,0)),"") -> 0.0873391087 | W23: =IFERROR(INDEX('Data Annex'!$K$1:$AO$871,MATCH(Assets!W$1&"|"&Assets!$B23,'Data Annex'!$K$1:$K$871,0),MATCH(Assets!W$2,'Data Annex'!$K$1:$AO$1,0)),"") -> 0.1097397696 | X23: =IFERROR(INDEX('Data Annex'!$K$1:$AO$871,MATCH(Assets!X$1&"|"&Assets!$B23,'Data Annex'!$K$1:$K$871,0),MATCH(Assets!X$2,'Data Annex'!$K$1:$AO$1,0)),"") -> 0.0926243332 | Y23: =IFERROR(INDEX('Data Annex'!$K$1:$AO$871,MATCH(Assets!Y$1&"|"&Assets!$B23,'Data Annex'!$K$1:$K$871,0),MATCH(Assets!Y$2,'Data Annex'!$K$1:$AO$1,0)),"") -> 0.0725263618 | Z23: =IFERROR(INDEX('Data Annex'!$K$1:$AO$871,MATCH(Assets!Z$1&"|"&Assets!$B23,'Data Annex'!$K$1:$K$871,0),MATCH(Assets!Z$2,'Data Annex'!$K$1:$AO$1,0)),"") -> 0.0701601282 | AA23: =IFERROR(INDEX('Data Annex'!$K$1:$AO$871,MATCH(Assets!AA$1&"|"&Assets!$B23,'Data Annex'!$K$1:$K$871,0),MATCH(Assets!AA$2,'Data Annex'!$K$1:$AO$1,0)),"") -> 0.0730559958 | AB23: =IFERROR(INDEX('Data Annex'!$K$1:$AO$871,MATCH(Assets!AB$1&"|"&Assets!$B23,'Data Annex'!$K$1:$K$871,0),MATCH(Assets!AB$2,'Data Annex'!$K$1:$AO$1,0)),"") -> 0.0650673062 | AC23: =IFERROR(INDEX('Data Annex'!$K$1:$AJ$871,MATCH(Assets!AC$1&"|"&Assets!$B23,'Data Annex'!$K$1:$K$871,0),MATCH(Assets!AC$2,'Data Annex'!$K$1:$AJ$1,0)),"") -> 
B24: GR | D24: GR | E24: =IFERROR(INDEX('Data Annex'!$K$1:$AO$871,MATCH(Assets!E$1&"|"&Assets!$B24,'Data Annex'!$K$1:$K$871,0),MATCH(Assets!E$2,'Data Annex'!$K$1:$AO$1,0)),"") -> 0.0561753917 | F24: =IFERROR(INDEX('Data Annex'!$K$1:$AO$871,MATCH(Assets!F$1&"|"&Assets!$B24,'Data Annex'!$K$1:$K$871,0),MATCH(Assets!F$2,'Data Annex'!$K$1:$AO$1,0)),"") -> 0.0706701282 | G24: =IFERROR(INDEX('Data Annex'!$K$1:$AO$871,MATCH(Assets!G$1&"|"&Assets!$B24,'Data Annex'!$K$1:$K$871,0),MATCH(Assets!G$2,'Data Annex'!$K$1:$AO$1,0)),"") -> 0.079497549 | H24: =IFERROR(INDEX('Data Annex'!$K$1:$AO$871,MATCH(Assets!H$1&"|"&Assets!$B24,'Data Annex'!$K$1:$K$871,0),MATCH(Assets!H$2,'Data Annex'!$K$1:$AO$1,0)),"") -> 0.0959096473 | I24: =IFERROR(INDEX('Data Annex'!$K$1:$AO$871,MATCH(Assets!I$1&"|"&Assets!$B24,'Data Annex'!$K$1:$K$871,0),MATCH(Assets!I$2,'Data Annex'!$K$1:$AO$1,0)),"") -> 0.0031365854 | J24: =IFERROR(INDEX('Data Annex'!$K$1:$AO$871,MATCH(Assets!J$1&"|"&Assets!$B24,'Data Annex'!$K$1:$K$871,0),MATCH(Assets!J$2,'Data Annex'!$K$1:$AO$1,0)),"") -> 0.0033267884 | K24: =IFERROR(INDEX('Data Annex'!$K$1:$AO$871,MATCH(Assets!K$1&"|"&Assets!$B24,'Data Annex'!$K$1:$K$871,0),MATCH(Assets!K$2,'Data Annex'!$K$1:$AO$1,0)),"") -> 0.0024219805 | L24: =IFERROR(INDEX('Data Annex'!$K$1:$AO$871,MATCH(Assets!L$1&"|"&Assets!$B24,'Data Annex'!$K$1:$K$871,0),MATCH(Assets!L$2,'Data Annex'!$K$1:$AO$1,0)),"") -> 0.0024796424 | M24: =IFERROR(INDEX('Data Annex'!$K$1:$AO$871,MATCH(Assets!M$1&"|"&Assets!$B24,'Data Annex'!$K$1:$K$871,0),MATCH(Assets!M$2,'Data Annex'!$K$1:$AO$1,0)),"") -> 0.1104122973 | N24: =IFERROR(INDEX('Data Annex'!$K$1:$AO$871,MATCH(Assets!N$1&"|"&Assets!$B24,'Data Annex'!$K$1:$K$871,0),MATCH(Assets!N$2,'Data Annex'!$K$1:$AO$1,0)),"") -> 0.1130533003 | O24: =IFERROR(INDEX('Data Annex'!$K$1:$AO$871,MATCH(Assets!O$1&"|"&Assets!$B24,'Data Annex'!$K$1:$K$871,0),MATCH(Assets!O$2,'Data Annex'!$K$1:$AO$1,0)),"") -> 0.1261279231 | P24: =IFERROR(INDEX('Data Annex'!$K$1:$AO$871,MATCH(Assets!P$1&"|"&Assets!$B24,'Data Annex'!$K$1:$K$871,0),MATCH(Assets!P$2,'Data Annex'!$K$1:$AO$1,0)),"") -> 0.1459718174 | Q24: =IFERROR(INDEX('Data Annex'!$K$1:$AO$871,MATCH(Assets!Q$1&"|"&Assets!$B24,'Data Annex'!$K$1:$K$871,0),MATCH(Assets!Q$2,'Data Annex'!$K$1:$AO$1,0)),"") -> 0.6078666513 | R24: =IFERROR(INDEX('Data Annex'!$K$1:$AO$871,MATCH(Assets!R$1&"|"&Assets!$B24,'Data Annex'!$K$1:$K$871,0),MATCH(Assets!R$2,'Data Annex'!$K$1:$AO$1,0)),"") -> 0.6053391121 | S24: =IFERROR(INDEX('Data Annex'!$K$1:$AO$871,MATCH(Assets!S$1&"|"&Assets!$B24,'Data Annex'!$K$1:$K$871,0),MATCH(Assets!S$2,'Data Annex'!$K$1:$AO$1,0)),"") -> 0.588692231 | T24: =IFERROR(INDEX('Data Annex'!$K$1:$AO$871,MATCH(Assets!T$1&"|"&Assets!$B24,'Data Annex'!$K$1:$K$871,0),MATCH(Assets!T$2,'Data Annex'!$K$1:$AO$1,0)),"") -> 0.549570817 | U24: =IFERROR(INDEX('Data Annex'!$K$1:$AO$871,MATCH(Assets!U$1&"|"&Assets!$B24,'Data Annex'!$K$1:$K$871,0),MATCH(Assets!U$2,'Data Annex'!$K$1:$AO$1,0)),"") -> 0.0412769111 | V24: =IFERROR(INDEX('Data Annex'!$K$1:$AO$871,MATCH(Assets!V$1&"|"&Assets!$B24,'Data Annex'!$K$1:$K$871,0),MATCH(Assets!V$2,'Data Annex'!$K$1:$AO$1,0)),"") -> 0.0343140279 | W24: =IFERROR(INDEX('Data Annex'!$K$1:$AO$871,MATCH(Assets!W$1&"|"&Assets!$B24,'Data Annex'!$K$1:$K$871,0),MATCH(Assets!W$2,'Data Annex'!$K$1:$AO$1,0)),"") -> 0.0365240867 | X24: =IFERROR(INDEX('Data Annex'!$K$1:$AO$871,MATCH(Assets!X$1&"|"&Assets!$B24,'Data Annex'!$K$1:$K$871,0),MATCH(Assets!X$2,'Data Annex'!$K$1:$AO$1,0)),"") -> 0.0373780135 | Y24: =IFERROR(INDEX('Data Annex'!$K$1:$AO$871,MATCH(Assets!Y$1&"|"&Assets!$B24,'Data Annex'!$K$1:$K$871,0),MATCH(Assets!Y$2,'Data Annex'!$K$1:$AO$1,0)),"") -> 0.1811321632 | Z24: =IFERROR(INDEX('Data Annex'!$K$1:$AO$871,MATCH(Assets!Z$1&"|"&Assets!$B24,'Data Annex'!$K$1:$K$871,0),MATCH(Assets!Z$2,'Data Annex'!$K$1:$AO$1,0)),"") -> 0.1732966432 | AA24: =IFERROR(INDEX('Data Annex'!$K$1:$AO$871,MATCH(Assets!AA$1&"|"&Assets!$B24,'Data Annex'!$K$1:$K$871,0),MATCH(Assets!AA$2,'Data Annex'!$K$1:$AO$1,0)),"") -> 0.1667362297 | AB24: =IFERROR(INDEX('Data Annex'!$K$1:$AO$871,MATCH(Assets!AB$1&"|"&Assets!$B24,'Data Annex'!$K$1:$K$871,0),MATCH(Assets!AB$2,'Data Annex'!$K$1:$AO$1,0)),"") -> 0.1686900624 | AC24: =IFERROR(INDEX('Data Annex'!$K$1:$AJ$871,MATCH(Assets!AC$1&"|"&Assets!$B24,'Data Annex'!$K$1:$K$871,0),MATCH(Assets!AC$2,'Data Annex'!$K$1:$AJ$1,0)),"") -> 
B25: HR | D25: HR | E25: =IFERROR(INDEX('Data Annex'!$K$1:$AO$871,MATCH(Assets!E$1&"|"&Assets!$B25,'Data Annex'!$K$1:$K$871,0),MATCH(Assets!E$2,'Data Annex'!$K$1:$AO$1,0)),"") -> 0.1463840529 | F25: =IFERROR(INDEX('Data Annex'!$K$1:$AO$871,MATCH(Assets!F$1&"|"&Assets!$B25,'Data Annex'!$K$1:$K$871,0),MATCH(Assets!F$2,'Data Annex'!$K$1:$AO$1,0)),"") -> 0.1493440492 | G25: =IFERROR(INDEX('Data Annex'!$K$1:$AO$871,MATCH(Assets!G$1&"|"&Assets!$B25,'Data Annex'!$K$1:$K$871,0),MATCH(Assets!G$2,'Data Annex'!$K$1:$AO$1,0)),"") -> 0.15896955 | H25: =IFERROR(INDEX('Data Annex'!$K$1:$AO$871,MATCH(Assets!H$1&"|"&Assets!$B25,'Data Annex'!$K$1:$K$871,0),MATCH(Assets!H$2,'Data Annex'!$K$1:$AO$1,0)),"") -> 0.1620112667 | I25: =IFERROR(INDEX('Data Annex'!$K$1:$AO$871,MATCH(Assets!I$1&"|"&Assets!$B25,'Data Annex'!$K$1:$K$871,0),MATCH(Assets!I$2,'Data Annex'!$K$1:$AO$1,0)),"") -> 0.0026550134 | J25: =IFERROR(INDEX('Data Annex'!$K$1:$AO$871,MATCH(Assets!J$1&"|"&Assets!$B25,'Data Annex'!$K$1:$K$871,0),MATCH(Assets!J$2,'Data Annex'!$K$1:$AO$1,0)),"") -> 0.0028710476 | K25: =IFERROR(INDEX('Data Annex'!$K$1:$AO$871,MATCH(Assets!K$1&"|"&Assets!$B25,'Data Annex'!$K$1:$K$871,0),MATCH(Assets!K$2,'Data Annex'!$K$1:$AO$1,0)),"") -> 0.0025783307 | L25: =IFERROR(INDEX('Data Annex'!$K$1:$AO$871,MATCH(Assets!L$1&"|"&Assets!$B25,'Data Annex'!$K$1:$K$871,0),MATCH(Assets!L$2,'Data Annex'!$K$1:$AO$1,0)),"") -> 0.0025443064 | M25: =IFERROR(INDEX('Data Annex'!$K$1:$AO$871,MATCH(Assets!M$1&"|"&Assets!$B25,'Data Annex'!$K$1:$K$871,0),MATCH(Assets!M$2,'Data Annex'!$K$1:$AO$1,0)),"") -> 0.1173967135 | N25: =IFERROR(INDEX('Data Annex'!$K$1:$AO$871,MATCH(Assets!N$1&"|"&Assets!$B25,'Data Annex'!$K$1:$K$871,0),MATCH(Assets!N$2,'Data Annex'!$K$1:$AO$1,0)),"") -> 0.113935895 | O25: =IFERROR(INDEX('Data Annex'!$K$1:$AO$871,MATCH(Assets!O$1&"|"&Assets!$B25,'Data Annex'!$K$1:$K$871,0),MATCH(Assets!O$2,'Data Annex'!$K$1:$AO$1,0)),"") -> 0.1121804029 | P25: =IFERROR(INDEX('Data Annex'!$K$1:$AO$871,MATCH(Assets!P$1&"|"&Assets!$B25,'Data Annex'!$K$1:$K$871,0),MATCH(Assets!P$2,'Data Annex'!$K$1:$AO$1,0)),"") -> 0.108733985 | Q25: =IFERROR(INDEX('Data Annex'!$K$1:$AO$871,MATCH(Assets!Q$1&"|"&Assets!$B25,'Data Annex'!$K$1:$K$871,0),MATCH(Assets!Q$2,'Data Annex'!$K$1:$AO$1,0)),"") -> 0.7018354845 | R25: =IFERROR(INDEX('Data Annex'!$K$1:$AO$871,MATCH(Assets!R$1&"|"&Assets!$B25,'Data Annex'!$K$1:$K$871,0),MATCH(Assets!R$2,'Data Annex'!$K$1:$AO$1,0)),"") -> 0.7037363888 | S25: =IFERROR(INDEX('Data Annex'!$K$1:$AO$871,MATCH(Assets!S$1&"|"&Assets!$B25,'Data Annex'!$K$1:$K$871,0),MATCH(Assets!S$2,'Data Annex'!$K$1:$AO$1,0)),"") -> 0.6952027911 | T25: =IFERROR(INDEX('Data Annex'!$K$1:$AO$871,MATCH(Assets!T$1&"|"&Assets!$B25,'Data Annex'!$K$1:$K$871,0),MATCH(Assets!T$2,'Data Annex'!$K$1:$AO$1,0)),"") -> 0.6965766963 | U25: =IFERROR(INDEX('Data Annex'!$K$1:$AO$871,MATCH(Assets!U$1&"|"&Assets!$B25,'Data Annex'!$K$1:$K$871,0),MATCH(Assets!U$2,'Data Annex'!$K$1:$AO$1,0)),"") -> 0.0058388246 | V25: =IFERROR(INDEX('Data Annex'!$K$1:$AO$871,MATCH(Assets!V$1&"|"&Assets!$B25,'Data Annex'!$K$1:$K$871,0),MATCH(Assets!V$2,'Data Annex'!$K$1:$AO$1,0)),"") -> 0.004940704 | W25: =IFERROR(INDEX('Data Annex'!$K$1:$AO$871,MATCH(Assets!W$1&"|"&Assets!$B25,'Data Annex'!$K$1:$K$871,0),MATCH(Assets!W$2,'Data Annex'!$K$1:$AO$1,0)),"") -> 0.0065799679 | X25: =IFERROR(INDEX('Data Annex'!$K$1:$AO$871,MATCH(Assets!X$1&"|"&Assets!$B25,'Data Annex'!$K$1:$K$871,0),MATCH(Assets!X$2,'Data Annex'!$K$1:$AO$1,0)),"") -> 0.0055206715 | Y25: =IFERROR(INDEX('Data Annex'!$K$1:$AO$871,MATCH(Assets!Y$1&"|"&Assets!$B25,'Data Annex'!$K$1:$K$871,0),MATCH(Assets!Y$2,'Data Annex'!$K$1:$AO$1,0)),"") -> 0.0258899111 | Z25: =IFERROR(INDEX('Data Annex'!$K$1:$AO$871,MATCH(Assets!Z$1&"|"&Assets!$B25,'Data Annex'!$K$1:$K$871,0),MATCH(Assets!Z$2,'Data Annex'!$K$1:$AO$1,0)),"") -> 0.0251719154 | AA25: =IFERROR(INDEX('Data Annex'!$K$1:$AO$871,MATCH(Assets!AA$1&"|"&Assets!$B25,'Data Annex'!$K$1:$K$871,0),MATCH(Assets!AA$2,'Data Annex'!$K$1:$AO$1,0)),"") -> 0.0244889574 | AB25: =IFERROR(INDEX('Data Annex'!$K$1:$AO$871,MATCH(Assets!AB$1&"|"&Assets!$B25,'Data Annex'!$K$1:$K$871,0),MATCH(Assets!AB$2,'Data Annex'!$K$1:$AO$1,0)),"") -> 0.0246130741 | AC25: =IFERROR(INDEX('Data Annex'!$K$1:$AJ$871,MATCH(Assets!AC$1&"|"&Assets!$B25,'Data Annex'!$K$1:$K$871,0),MATCH(Assets!AC$2,'Data Annex'!$K$1:$AJ$1,0)),"") -> 
B26: HU | D26: HU | E26: =IFERROR(INDEX('Data Annex'!$K$1:$AO$871,MATCH(Assets!E$1&"|"&Assets!$B26,'Data Annex'!$K$1:$K$871,0),MATCH(Assets!E$2,'Data Annex'!$K$1:$AO$1,0)),"") -> 0.0892101882 | F26: =IFERROR(INDEX('Data Annex'!$K$1:$AO$871,MATCH(Assets!F$1&"|"&Assets!$B26,'Data Annex'!$K$1:$K$871,0),MATCH(Assets!F$2,'Data Annex'!$K$1:$AO$1,0)),"") -> 0.1018911797 | G26: =IFERROR(INDEX('Data Annex'!$K$1:$AO$871,MATCH(Assets!G$1&"|"&Assets!$B26,'Data Annex'!$K$1:$K$871,0),MATCH(Assets!G$2,'Data Annex'!$K$1:$AO$1,0)),"") -> 0.0948675142 | H26: =IFERROR(INDEX('Data Annex'!$K$1:$AO$871,MATCH(Assets!H$1&"|"&Assets!$B26,'Data Annex'!$K$1:$K$871,0),MATCH(Assets!H$2,'Data Annex'!$K$1:$AO$1,0)),"") -> 0.0948139321 | I26: =IFERROR(INDEX('Data Annex'!$K$1:$AO$871,MATCH(Assets!I$1&"|"&Assets!$B26,'Data Annex'!$K$1:$K$871,0),MATCH(Assets!I$2,'Data Annex'!$K$1:$AO$1,0)),"") -> 0.0042357882 | J26: =IFERROR(INDEX('Data Annex'!$K$1:$AO$871,MATCH(Assets!J$1&"|"&Assets!$B26,'Data Annex'!$K$1:$K$871,0),MATCH(Assets!J$2,'Data Annex'!$K$1:$AO$1,0)),"") -> 0.0038981265 | K26: =IFERROR(INDEX('Data Annex'!$K$1:$AO$871,MATCH(Assets!K$1&"|"&Assets!$B26,'Data Annex'!$K$1:$K$871,0),MATCH(Assets!K$2,'Data Annex'!$K$1:$AO$1,0)),"") -> 0.0038578433 | L26: =IFERROR(INDEX('Data Annex'!$K$1:$AO$871,MATCH(Assets!L$1&"|"&Assets!$B26,'Data Annex'!$K$1:$K$871,0),MATCH(Assets!L$2,'Data Annex'!$K$1:$AO$1,0)),"") -> 0.0031207756 | M26: =IFERROR(INDEX('Data Annex'!$K$1:$AO$871,MATCH(Assets!M$1&"|"&Assets!$B26,'Data Annex'!$K$1:$K$871,0),MATCH(Assets!M$2,'Data Annex'!$K$1:$AO$1,0)),"") -> 0.2378098596 | N26: =IFERROR(INDEX('Data Annex'!$K$1:$AO$871,MATCH(Assets!N$1&"|"&Assets!$B26,'Data Annex'!$K$1:$K$871,0),MATCH(Assets!N$2,'Data Annex'!$K$1:$AO$1,0)),"") -> 0.2305221014 | O26: =IFERROR(INDEX('Data Annex'!$K$1:$AO$871,MATCH(Assets!O$1&"|"&Assets!$B26,'Data Annex'!$K$1:$K$871,0),MATCH(Assets!O$2,'Data Annex'!$K$1:$AO$1,0)),"") -> 0.2232649648 | P26: =IFERROR(INDEX('Data Annex'!$K$1:$AO$871,MATCH(Assets!P$1&"|"&Assets!$B26,'Data Annex'!$K$1:$K$871,0),MATCH(Assets!P$2,'Data Annex'!$K$1:$AO$1,0)),"") -> 0.215359666 | Q26: =IFERROR(INDEX('Data Annex'!$K$1:$AO$871,MATCH(Assets!Q$1&"|"&Assets!$B26,'Data Annex'!$K$1:$K$871,0),MATCH(Assets!Q$2,'Data Annex'!$K$1:$AO$1,0)),"") -> 0.6073601447 | R26: =IFERROR(INDEX('Data Annex'!$K$1:$AO$871,MATCH(Assets!R$1&"|"&Assets!$B26,'Data Annex'!$K$1:$K$871,0),MATCH(Assets!R$2,'Data Annex'!$K$1:$AO$1,0)),"") -> 0.6077174643 | S26: =IFERROR(INDEX('Data Annex'!$K$1:$AO$871,MATCH(Assets!S$1&"|"&Assets!$B26,'Data Annex'!$K$1:$K$871,0),MATCH(Assets!S$2,'Data Annex'!$K$1:$AO$1,0)),"") -> 0.6149510058 | T26: =IFERROR(INDEX('Data Annex'!$K$1:$AO$871,MATCH(Assets!T$1&"|"&Assets!$B26,'Data Annex'!$K$1:$K$871,0),MATCH(Assets!T$2,'Data Annex'!$K$1:$AO$1,0)),"") -> 0.6274576897 | U26: =IFERROR(INDEX('Data Annex'!$K$1:$AO$871,MATCH(Assets!U$1&"|"&Assets!$B26,'Data Annex'!$K$1:$K$871,0),MATCH(Assets!U$2,'Data Annex'!$K$1:$AO$1,0)),"") -> 0.0163156513 | V26: =IFERROR(INDEX('Data Annex'!$K$1:$AO$871,MATCH(Assets!V$1&"|"&Assets!$B26,'Data Annex'!$K$1:$K$871,0),MATCH(Assets!V$2,'Data Annex'!$K$1:$AO$1,0)),"") -> 0.0123836478 | W26: =IFERROR(INDEX('Data Annex'!$K$1:$AO$871,MATCH(Assets!W$1&"|"&Assets!$B26,'Data Annex'!$K$1:$K$871,0),MATCH(Assets!W$2,'Data Annex'!$K$1:$AO$1,0)),"") -> 0.0200223224 | X26: =IFERROR(INDEX('Data Annex'!$K$1:$AO$871,MATCH(Assets!X$1&"|"&Assets!$B26,'Data Annex'!$K$1:$K$871,0),MATCH(Assets!X$2,'Data Annex'!$K$1:$AO$1,0)),"") -> 0.0154974838 | Y26: =IFERROR(INDEX('Data Annex'!$K$1:$AO$871,MATCH(Assets!Y$1&"|"&Assets!$B26,'Data Annex'!$K$1:$K$871,0),MATCH(Assets!Y$2,'Data Annex'!$K$1:$AO$1,0)),"") -> 0.045068368 | Z26: =IFERROR(INDEX('Data Annex'!$K$1:$AO$871,MATCH(Assets!Z$1&"|"&Assets!$B26,'Data Annex'!$K$1:$K$871,0),MATCH(Assets!Z$2,'Data Annex'!$K$1:$AO$1,0)),"") -> 0.0435874802 | AA26: =IFERROR(INDEX('Data Annex'!$K$1:$AO$871,MATCH(Assets!AA$1&"|"&Assets!$B26,'Data Annex'!$K$1:$K$871,0),MATCH(Assets!AA$2,'Data Annex'!$K$1:$AO$1,0)),"") -> 0.0430363495 | AB26: =IFERROR(INDEX('Data Annex'!$K$1:$AO$871,MATCH(Assets!AB$1&"|"&Assets!$B26,'Data Annex'!$K$1:$K$871,0),MATCH(Assets!AB$2,'Data Annex'!$K$1:$AO$1,0)),"") -> 0.0437504527 | AC26: =IFERROR(INDEX('Data Annex'!$K$1:$AJ$871,MATCH(Assets!AC$1&"|"&Assets!$B26,'Data Annex'!$K$1:$K$871,0),MATCH(Assets!AC$2,'Data Annex'!$K$1:$AJ$1,0)),"") -> 
B27: IE | D27: IE | E27: =IFERROR(INDEX('Data Annex'!$K$1:$AO$871,MATCH(Assets!E$1&"|"&Assets!$B27,'Data Annex'!$K$1:$K$871,0),MATCH(Assets!E$2,'Data Annex'!$K$1:$AO$1,0)),"") -> 0.117666182 | F27: =IFERROR(INDEX('Data Annex'!$K$1:$AO$871,MATCH(Assets!F$1&"|"&Assets!$B27,'Data Annex'!$K$1:$K$871,0),MATCH(Assets!F$2,'Data Annex'!$K$1:$AO$1,0)),"") -> 0.1441549265 | G27: =IFERROR(INDEX('Data Annex'!$K$1:$AO$871,MATCH(Assets!G$1&"|"&Assets!$B27,'Data Annex'!$K$1:$K$871,0),MATCH(Assets!G$2,'Data Annex'!$K$1:$AO$1,0)),"") -> 0.1410943955 | H27: =IFERROR(INDEX('Data Annex'!$K$1:$AO$871,MATCH(Assets!H$1&"|"&Assets!$B27,'Data Annex'!$K$1:$K$871,0),MATCH(Assets!H$2,'Data Annex'!$K$1:$AO$1,0)),"") -> 0.1557062174 | I27: =IFERROR(INDEX('Data Annex'!$K$1:$AO$871,MATCH(Assets!I$1&"|"&Assets!$B27,'Data Annex'!$K$1:$K$871,0),MATCH(Assets!I$2,'Data Annex'!$K$1:$AO$1,0)),"") -> 0.0037477327 | J27: =IFERROR(INDEX('Data Annex'!$K$1:$AO$871,MATCH(Assets!J$1&"|"&Assets!$B27,'Data Annex'!$K$1:$K$871,0),MATCH(Assets!J$2,'Data Annex'!$K$1:$AO$1,0)),"") -> 0.0038553929 | K27: =IFERROR(INDEX('Data Annex'!$K$1:$AO$871,MATCH(Assets!K$1&"|"&Assets!$B27,'Data Annex'!$K$1:$K$871,0),MATCH(Assets!K$2,'Data Annex'!$K$1:$AO$1,0)),"") -> 0.0019390191 | L27: =IFERROR(INDEX('Data Annex'!$K$1:$AO$871,MATCH(Assets!L$1&"|"&Assets!$B27,'Data Annex'!$K$1:$K$871,0),MATCH(Assets!L$2,'Data Annex'!$K$1:$AO$1,0)),"") -> 0.0021386656 | M27: =IFERROR(INDEX('Data Annex'!$K$1:$AO$871,MATCH(Assets!M$1&"|"&Assets!$B27,'Data Annex'!$K$1:$K$871,0),MATCH(Assets!M$2,'Data Annex'!$K$1:$AO$1,0)),"") -> 0.1455007122 | N27: =IFERROR(INDEX('Data Annex'!$K$1:$AO$871,MATCH(Assets!N$1&"|"&Assets!$B27,'Data Annex'!$K$1:$K$871,0),MATCH(Assets!N$2,'Data Annex'!$K$1:$AO$1,0)),"") -> 0.1356963941 | O27: =IFERROR(INDEX('Data Annex'!$K$1:$AO$871,MATCH(Assets!O$1&"|"&Assets!$B27,'Data Annex'!$K$1:$K$871,0),MATCH(Assets!O$2,'Data Annex'!$K$1:$AO$1,0)),"") -> 0.1363104475 | P27: =IFERROR(INDEX('Data Annex'!$K$1:$AO$871,MATCH(Assets!P$1&"|"&Assets!$B27,'Data Annex'!$K$1:$K$871,0),MATCH(Assets!P$2,'Data Annex'!$K$1:$AO$1,0)),"") -> 0.1483591749 | Q27: =IFERROR(INDEX('Data Annex'!$K$1:$AO$871,MATCH(Assets!Q$1&"|"&Assets!$B27,'Data Annex'!$K$1:$K$871,0),MATCH(Assets!Q$2,'Data Annex'!$K$1:$AO$1,0)),"") -> 0.6574578598 | R27: =IFERROR(INDEX('Data Annex'!$K$1:$AO$871,MATCH(Assets!R$1&"|"&Assets!$B27,'Data Annex'!$K$1:$K$871,0),MATCH(Assets!R$2,'Data Annex'!$K$1:$AO$1,0)),"") -> 0.6454794906 | S27: =IFERROR(INDEX('Data Annex'!$K$1:$AO$871,MATCH(Assets!S$1&"|"&Assets!$B27,'Data Annex'!$K$1:$K$871,0),MATCH(Assets!S$2,'Data Annex'!$K$1:$AO$1,0)),"") -> 0.6296879291 | T27: =IFERROR(INDEX('Data Annex'!$K$1:$AO$871,MATCH(Assets!T$1&"|"&Assets!$B27,'Data Annex'!$K$1:$K$871,0),MATCH(Assets!T$2,'Data Annex'!$K$1:$AO$1,0)),"") -> 0.6041807918 | U27: =IFERROR(INDEX('Data Annex'!$K$1:$AO$871,MATCH(Assets!U$1&"|"&Assets!$B27,'Data Annex'!$K$1:$K$871,0),MATCH(Assets!U$2,'Data Annex'!$K$1:$AO$1,0)),"") -> 0.0266424089 | V27: =IFERROR(INDEX('Data Annex'!$K$1:$AO$871,MATCH(Assets!V$1&"|"&Assets!$B27,'Data Annex'!$K$1:$K$871,0),MATCH(Assets!V$2,'Data Annex'!$K$1:$AO$1,0)),"") -> 0.0229588362 | W27: =IFERROR(INDEX('Data Annex'!$K$1:$AO$871,MATCH(Assets!W$1&"|"&Assets!$B27,'Data Annex'!$K$1:$K$871,0),MATCH(Assets!W$2,'Data Annex'!$K$1:$AO$1,0)),"") -> 0.0340775845 | X27: =IFERROR(INDEX('Data Annex'!$K$1:$AO$871,MATCH(Assets!X$1&"|"&Assets!$B27,'Data Annex'!$K$1:$K$871,0),MATCH(Assets!X$2,'Data Annex'!$K$1:$AO$1,0)),"") -> 0.035332501 | Y27: =IFERROR(INDEX('Data Annex'!$K$1:$AO$871,MATCH(Assets!Y$1&"|"&Assets!$B27,'Data Annex'!$K$1:$K$871,0),MATCH(Assets!Y$2,'Data Annex'!$K$1:$AO$1,0)),"") -> 0.0489851043 | Z27: =IFERROR(INDEX('Data Annex'!$K$1:$AO$871,MATCH(Assets!Z$1&"|"&Assets!$B27,'Data Annex'!$K$1:$K$871,0),MATCH(Assets!Z$2,'Data Annex'!$K$1:$AO$1,0)),"") -> 0.0478549597 | AA27: =IFERROR(INDEX('Data Annex'!$K$1:$AO$871,MATCH(Assets!AA$1&"|"&Assets!$B27,'Data Annex'!$K$1:$K$871,0),MATCH(Assets!AA$2,'Data Annex'!$K$1:$AO$1,0)),"") -> 0.0568906243 | AB27: =IFERROR(INDEX('Data Annex'!$K$1:$AO$871,MATCH(Assets!AB$1&"|"&Assets!$B27,'Data Annex'!$K$1:$K$871,0),MATCH(Assets!AB$2,'Data Annex'!$K$1:$AO$1,0)),"") -> 0.0542826492 | AC27: =IFERROR(INDEX('Data Annex'!$K$1:$AJ$871,MATCH(Assets!AC$1&"|"&Assets!$B27,'Data Annex'!$K$1:$K$871,0),MATCH(Assets!AC$2,'Data Annex'!$K$1:$AJ$1,0)),"") -> 
B28: IS | D28: IS | E28: =IFERROR(INDEX('Data Annex'!$K$1:$AO$871,MATCH(Assets!E$1&"|"&Assets!$B28,'Data Annex'!$K$1:$K$871,0),MATCH(Assets!E$2,'Data Annex'!$K$1:$AO$1,0)),"") -> 0.1053156137 | F28: =IFERROR(INDEX('Data Annex'!$K$1:$AO$871,MATCH(Assets!F$1&"|"&Assets!$B28,'Data Annex'!$K$1:$K$871,0),MATCH(Assets!F$2,'Data Annex'!$K$1:$AO$1,0)),"") -> 0.1012581074 | G28: =IFERROR(INDEX('Data Annex'!$K$1:$AO$871,MATCH(Assets!G$1&"|"&Assets!$B28,'Data Annex'!$K$1:$K$871,0),MATCH(Assets!G$2,'Data Annex'!$K$1:$AO$1,0)),"") -> 0.1086482261 | H28: =IFERROR(INDEX('Data Annex'!$K$1:$AO$871,MATCH(Assets!H$1&"|"&Assets!$B28,'Data Annex'!$K$1:$K$871,0),MATCH(Assets!H$2,'Data Annex'!$K$1:$AO$1,0)),"") -> 0.0955727781 | I28: =IFERROR(INDEX('Data Annex'!$K$1:$AO$871,MATCH(Assets!I$1&"|"&Assets!$B28,'Data Annex'!$K$1:$K$871,0),MATCH(Assets!I$2,'Data Annex'!$K$1:$AO$1,0)),"") -> 0.0198514736 | J28: =IFERROR(INDEX('Data Annex'!$K$1:$AO$871,MATCH(Assets!J$1&"|"&Assets!$B28,'Data Annex'!$K$1:$K$871,0),MATCH(Assets!J$2,'Data Annex'!$K$1:$AO$1,0)),"") -> 0.0222529923 | K28: =IFERROR(INDEX('Data Annex'!$K$1:$AO$871,MATCH(Assets!K$1&"|"&Assets!$B28,'Data Annex'!$K$1:$K$871,0),MATCH(Assets!K$2,'Data Annex'!$K$1:$AO$1,0)),"") -> 0.016978291 | L28: =IFERROR(INDEX('Data Annex'!$K$1:$AO$871,MATCH(Assets!L$1&"|"&Assets!$B28,'Data Annex'!$K$1:$K$871,0),MATCH(Assets!L$2,'Data Annex'!$K$1:$AO$1,0)),"") -> 0.0168973006 | M28: =IFERROR(INDEX('Data Annex'!$K$1:$AO$871,MATCH(Assets!M$1&"|"&Assets!$B28,'Data Annex'!$K$1:$K$871,0),MATCH(Assets!M$2,'Data Annex'!$K$1:$AO$1,0)),"") -> 0.0766280247 | N28: =IFERROR(INDEX('Data Annex'!$K$1:$AO$871,MATCH(Assets!N$1&"|"&Assets!$B28,'Data Annex'!$K$1:$K$871,0),MATCH(Assets!N$2,'Data Annex'!$K$1:$AO$1,0)),"") -> 0.0660408607 | O28: =IFERROR(INDEX('Data Annex'!$K$1:$AO$871,MATCH(Assets!O$1&"|"&Assets!$B28,'Data Annex'!$K$1:$K$871,0),MATCH(Assets!O$2,'Data Annex'!$K$1:$AO$1,0)),"") -> 0.0854939033 | P28: =IFERROR(INDEX('Data Annex'!$K$1:$AO$871,MATCH(Assets!P$1&"|"&Assets!$B28,'Data Annex'!$K$1:$K$871,0),MATCH(Assets!P$2,'Data Annex'!$K$1:$AO$1,0)),"") -> 0.1012850336 | Q28: =IFERROR(INDEX('Data Annex'!$K$1:$AO$871,MATCH(Assets!Q$1&"|"&Assets!$B28,'Data Annex'!$K$1:$K$871,0),MATCH(Assets!Q$2,'Data Annex'!$K$1:$AO$1,0)),"") -> 0.7583039322 | R28: =IFERROR(INDEX('Data Annex'!$K$1:$AO$871,MATCH(Assets!R$1&"|"&Assets!$B28,'Data Annex'!$K$1:$K$871,0),MATCH(Assets!R$2,'Data Annex'!$K$1:$AO$1,0)),"") -> 0.7742779702 | S28: =IFERROR(INDEX('Data Annex'!$K$1:$AO$871,MATCH(Assets!S$1&"|"&Assets!$B28,'Data Annex'!$K$1:$K$871,0),MATCH(Assets!S$2,'Data Annex'!$K$1:$AO$1,0)),"") -> 0.7521897663 | T28: =IFERROR(INDEX('Data Annex'!$K$1:$AO$871,MATCH(Assets!T$1&"|"&Assets!$B28,'Data Annex'!$K$1:$K$871,0),MATCH(Assets!T$2,'Data Annex'!$K$1:$AO$1,0)),"") -> 0.7493355771 | U28: =IFERROR(INDEX('Data Annex'!$K$1:$AO$871,MATCH(Assets!U$1&"|"&Assets!$B28,'Data Annex'!$K$1:$K$871,0),MATCH(Assets!U$2,'Data Annex'!$K$1:$AO$1,0)),"") -> 0.0036794802 | V28: =IFERROR(INDEX('Data Annex'!$K$1:$AO$871,MATCH(Assets!V$1&"|"&Assets!$B28,'Data Annex'!$K$1:$K$871,0),MATCH(Assets!V$2,'Data Annex'!$K$1:$AO$1,0)),"") -> 0.0040272631 | W28: =IFERROR(INDEX('Data Annex'!$K$1:$AO$871,MATCH(Assets!W$1&"|"&Assets!$B28,'Data Annex'!$K$1:$K$871,0),MATCH(Assets!W$2,'Data Annex'!$K$1:$AO$1,0)),"") -> 0.0044426667 | X28: =IFERROR(INDEX('Data Annex'!$K$1:$AO$871,MATCH(Assets!X$1&"|"&Assets!$B28,'Data Annex'!$K$1:$K$871,0),MATCH(Assets!X$2,'Data Annex'!$K$1:$AO$1,0)),"") -> 0.0042507669 | Y28: =IFERROR(INDEX('Data Annex'!$K$1:$AO$871,MATCH(Assets!Y$1&"|"&Assets!$B28,'Data Annex'!$K$1:$K$871,0),MATCH(Assets!Y$2,'Data Annex'!$K$1:$AO$1,0)),"") -> 0.0362214757 | Z28: =IFERROR(INDEX('Data Annex'!$K$1:$AO$871,MATCH(Assets!Z$1&"|"&Assets!$B28,'Data Annex'!$K$1:$K$871,0),MATCH(Assets!Z$2,'Data Annex'!$K$1:$AO$1,0)),"") -> 0.0321427473 | AA28: =IFERROR(INDEX('Data Annex'!$K$1:$AO$871,MATCH(Assets!AA$1&"|"&Assets!$B28,'Data Annex'!$K$1:$K$871,0),MATCH(Assets!AA$2,'Data Annex'!$K$1:$AO$1,0)),"") -> 0.0322471466 | AB28: =IFERROR(INDEX('Data Annex'!$K$1:$AO$871,MATCH(Assets!AB$1&"|"&Assets!$B28,'Data Annex'!$K$1:$K$871,0),MATCH(Assets!AB$2,'Data Annex'!$K$1:$AO$1,0)),"") -> 0.032657565 | AC28: =IFERROR(INDEX('Data Annex'!$K$1:$AJ$871,MATCH(Assets!AC$1&"|"&Assets!$B28,'Data Annex'!$K$1:$K$871,0),MATCH(Assets!AC$2,'Data Annex'!$K$1:$AJ$1,0)),"") -> 
B29: IT | D29: IT | E29: =IFERROR(INDEX('Data Annex'!$K$1:$AO$871,MATCH(Assets!E$1&"|"&Assets!$B29,'Data Annex'!$K$1:$K$871,0),MATCH(Assets!E$2,'Data Annex'!$K$1:$AO$1,0)),"") -> 0.048968009 | F29: =IFERROR(INDEX('Data Annex'!$K$1:$AO$871,MATCH(Assets!F$1&"|"&Assets!$B29,'Data Annex'!$K$1:$K$871,0),MATCH(Assets!F$2,'Data Annex'!$K$1:$AO$1,0)),"") -> 0.0364875862 | G29: =IFERROR(INDEX('Data Annex'!$K$1:$AO$871,MATCH(Assets!G$1&"|"&Assets!$B29,'Data Annex'!$K$1:$K$871,0),MATCH(Assets!G$2,'Data Annex'!$K$1:$AO$1,0)),"") -> 0.0457713308 | H29: =IFERROR(INDEX('Data Annex'!$K$1:$AO$871,MATCH(Assets!H$1&"|"&Assets!$B29,'Data Annex'!$K$1:$K$871,0),MATCH(Assets!H$2,'Data Annex'!$K$1:$AO$1,0)),"") -> 0.0536225775 | I29: =IFERROR(INDEX('Data Annex'!$K$1:$AO$871,MATCH(Assets!I$1&"|"&Assets!$B29,'Data Annex'!$K$1:$K$871,0),MATCH(Assets!I$2,'Data Annex'!$K$1:$AO$1,0)),"") -> 0.0113949216 | J29: =IFERROR(INDEX('Data Annex'!$K$1:$AO$871,MATCH(Assets!J$1&"|"&Assets!$B29,'Data Annex'!$K$1:$K$871,0),MATCH(Assets!J$2,'Data Annex'!$K$1:$AO$1,0)),"") -> 0.0125411605 | K29: =IFERROR(INDEX('Data Annex'!$K$1:$AO$871,MATCH(Assets!K$1&"|"&Assets!$B29,'Data Annex'!$K$1:$K$871,0),MATCH(Assets!K$2,'Data Annex'!$K$1:$AO$1,0)),"") -> 0.0096018948 | L29: =IFERROR(INDEX('Data Annex'!$K$1:$AO$871,MATCH(Assets!L$1&"|"&Assets!$B29,'Data Annex'!$K$1:$K$871,0),MATCH(Assets!L$2,'Data Annex'!$K$1:$AO$1,0)),"") -> 0.0105106608 | M29: =IFERROR(INDEX('Data Annex'!$K$1:$AO$871,MATCH(Assets!M$1&"|"&Assets!$B29,'Data Annex'!$K$1:$K$871,0),MATCH(Assets!M$2,'Data Annex'!$K$1:$AO$1,0)),"") -> 0.1953905978 | N29: =IFERROR(INDEX('Data Annex'!$K$1:$AO$871,MATCH(Assets!N$1&"|"&Assets!$B29,'Data Annex'!$K$1:$K$871,0),MATCH(Assets!N$2,'Data Annex'!$K$1:$AO$1,0)),"") -> 0.1975004491 | O29: =IFERROR(INDEX('Data Annex'!$K$1:$AO$871,MATCH(Assets!O$1&"|"&Assets!$B29,'Data Annex'!$K$1:$K$871,0),MATCH(Assets!O$2,'Data Annex'!$K$1:$AO$1,0)),"") -> 0.2000611395 | P29: =IFERROR(INDEX('Data Annex'!$K$1:$AO$871,MATCH(Assets!P$1&"|"&Assets!$B29,'Data Annex'!$K$1:$K$871,0),MATCH(Assets!P$2,'Data Annex'!$K$1:$AO$1,0)),"") -> 0.2080407153 | Q29: =IFERROR(INDEX('Data Annex'!$K$1:$AO$871,MATCH(Assets!Q$1&"|"&Assets!$B29,'Data Annex'!$K$1:$K$871,0),MATCH(Assets!Q$2,'Data Annex'!$K$1:$AO$1,0)),"") -> 0.641752367 | R29: =IFERROR(INDEX('Data Annex'!$K$1:$AO$871,MATCH(Assets!R$1&"|"&Assets!$B29,'Data Annex'!$K$1:$K$871,0),MATCH(Assets!R$2,'Data Annex'!$K$1:$AO$1,0)),"") -> 0.6596646316 | S29: =IFERROR(INDEX('Data Annex'!$K$1:$AO$871,MATCH(Assets!S$1&"|"&Assets!$B29,'Data Annex'!$K$1:$K$871,0),MATCH(Assets!S$2,'Data Annex'!$K$1:$AO$1,0)),"") -> 0.6446666466 | T29: =IFERROR(INDEX('Data Annex'!$K$1:$AO$871,MATCH(Assets!T$1&"|"&Assets!$B29,'Data Annex'!$K$1:$K$871,0),MATCH(Assets!T$2,'Data Annex'!$K$1:$AO$1,0)),"") -> 0.6317388731 | U29: =IFERROR(INDEX('Data Annex'!$K$1:$AO$871,MATCH(Assets!U$1&"|"&Assets!$B29,'Data Annex'!$K$1:$K$871,0),MATCH(Assets!U$2,'Data Annex'!$K$1:$AO$1,0)),"") -> 0.0390257205 | V29: =IFERROR(INDEX('Data Annex'!$K$1:$AO$871,MATCH(Assets!V$1&"|"&Assets!$B29,'Data Annex'!$K$1:$K$871,0),MATCH(Assets!V$2,'Data Annex'!$K$1:$AO$1,0)),"") -> 0.0330053095 | W29: =IFERROR(INDEX('Data Annex'!$K$1:$AO$871,MATCH(Assets!W$1&"|"&Assets!$B29,'Data Annex'!$K$1:$K$871,0),MATCH(Assets!W$2,'Data Annex'!$K$1:$AO$1,0)),"") -> 0.0408468871 | X29: =IFERROR(INDEX('Data Annex'!$K$1:$AO$871,MATCH(Assets!X$1&"|"&Assets!$B29,'Data Annex'!$K$1:$K$871,0),MATCH(Assets!X$2,'Data Annex'!$K$1:$AO$1,0)),"") -> 0.0379108108 | Y29: =IFERROR(INDEX('Data Annex'!$K$1:$AO$871,MATCH(Assets!Y$1&"|"&Assets!$B29,'Data Annex'!$K$1:$K$871,0),MATCH(Assets!Y$2,'Data Annex'!$K$1:$AO$1,0)),"") -> 0.0634683841 | Z29: =IFERROR(INDEX('Data Annex'!$K$1:$AO$871,MATCH(Assets!Z$1&"|"&Assets!$B29,'Data Annex'!$K$1:$K$871,0),MATCH(Assets!Z$2,'Data Annex'!$K$1:$AO$1,0)),"") -> 0.0608008628 | AA29: =IFERROR(INDEX('Data Annex'!$K$1:$AO$871,MATCH(Assets!AA$1&"|"&Assets!$B29,'Data Annex'!$K$1:$K$871,0),MATCH(Assets!AA$2,'Data Annex'!$K$1:$AO$1,0)),"") -> 0.0590521012 | AB29: =IFERROR(INDEX('Data Annex'!$K$1:$AO$871,MATCH(Assets!AB$1&"|"&Assets!$B29,'Data Annex'!$K$1:$K$871,0),MATCH(Assets!AB$2,'Data Annex'!$K$1:$AO$1,0)),"") -> 0.0581763624 | AC29: =IFERROR(INDEX('Data Annex'!$K$1:$AJ$871,MATCH(Assets!AC$1&"|"&Assets!$B29,'Data Annex'!$K$1:$K$871,0),MATCH(Assets!AC$2,'Data Annex'!$K$1:$AJ$1,0)),"") -> 
B30: LT | D30: LT | E30: =IFERROR(INDEX('Data Annex'!$K$1:$AO$871,MATCH(Assets!E$1&"|"&Assets!$B30,'Data Annex'!$K$1:$K$871,0),MATCH(Assets!E$2,'Data Annex'!$K$1:$AO$1,0)),"") -> 0.2300095559 | F30: =IFERROR(INDEX('Data Annex'!$K$1:$AO$871,MATCH(Assets!F$1&"|"&Assets!$B30,'Data Annex'!$K$1:$K$871,0),MATCH(Assets!F$2,'Data Annex'!$K$1:$AO$1,0)),"") -> 0.2813683736 | G30: =IFERROR(INDEX('Data Annex'!$K$1:$AO$871,MATCH(Assets!G$1&"|"&Assets!$B30,'Data Annex'!$K$1:$K$871,0),MATCH(Assets!G$2,'Data Annex'!$K$1:$AO$1,0)),"") -> 0.3048811638 | H30: =IFERROR(INDEX('Data Annex'!$K$1:$AO$871,MATCH(Assets!H$1&"|"&Assets!$B30,'Data Annex'!$K$1:$K$871,0),MATCH(Assets!H$2,'Data Annex'!$K$1:$AO$1,0)),"") -> 0.3393282414 | I30: =IFERROR(INDEX('Data Annex'!$K$1:$AO$871,MATCH(Assets!I$1&"|"&Assets!$B30,'Data Annex'!$K$1:$K$871,0),MATCH(Assets!I$2,'Data Annex'!$K$1:$AO$1,0)),"") -> 0.0007884065 | J30: =IFERROR(INDEX('Data Annex'!$K$1:$AO$871,MATCH(Assets!J$1&"|"&Assets!$B30,'Data Annex'!$K$1:$K$871,0),MATCH(Assets!J$2,'Data Annex'!$K$1:$AO$1,0)),"") -> 0.0007593724 | K30: =IFERROR(INDEX('Data Annex'!$K$1:$AO$871,MATCH(Assets!K$1&"|"&Assets!$B30,'Data Annex'!$K$1:$K$871,0),MATCH(Assets!K$2,'Data Annex'!$K$1:$AO$1,0)),"") -> 0.000670633 | L30: =IFERROR(INDEX('Data Annex'!$K$1:$AO$871,MATCH(Assets!L$1&"|"&Assets!$B30,'Data Annex'!$K$1:$K$871,0),MATCH(Assets!L$2,'Data Annex'!$K$1:$AO$1,0)),"") -> 0.000667688 | M30: =IFERROR(INDEX('Data Annex'!$K$1:$AO$871,MATCH(Assets!M$1&"|"&Assets!$B30,'Data Annex'!$K$1:$K$871,0),MATCH(Assets!M$2,'Data Annex'!$K$1:$AO$1,0)),"") -> 0.0579890599 | N30: =IFERROR(INDEX('Data Annex'!$K$1:$AO$871,MATCH(Assets!N$1&"|"&Assets!$B30,'Data Annex'!$K$1:$K$871,0),MATCH(Assets!N$2,'Data Annex'!$K$1:$AO$1,0)),"") -> 0.0539263895 | O30: =IFERROR(INDEX('Data Annex'!$K$1:$AO$871,MATCH(Assets!O$1&"|"&Assets!$B30,'Data Annex'!$K$1:$K$871,0),MATCH(Assets!O$2,'Data Annex'!$K$1:$AO$1,0)),"") -> 0.0443293659 | P30: =IFERROR(INDEX('Data Annex'!$K$1:$AO$871,MATCH(Assets!P$1&"|"&Assets!$B30,'Data Annex'!$K$1:$K$871,0),MATCH(Assets!P$2,'Data Annex'!$K$1:$AO$1,0)),"") -> 0.0563768684 | Q30: =IFERROR(INDEX('Data Annex'!$K$1:$AO$871,MATCH(Assets!Q$1&"|"&Assets!$B30,'Data Annex'!$K$1:$K$871,0),MATCH(Assets!Q$2,'Data Annex'!$K$1:$AO$1,0)),"") -> 0.6947300374 | R30: =IFERROR(INDEX('Data Annex'!$K$1:$AO$871,MATCH(Assets!R$1&"|"&Assets!$B30,'Data Annex'!$K$1:$K$871,0),MATCH(Assets!R$2,'Data Annex'!$K$1:$AO$1,0)),"") -> 0.649910675 | S30: =IFERROR(INDEX('Data Annex'!$K$1:$AO$871,MATCH(Assets!S$1&"|"&Assets!$B30,'Data Annex'!$K$1:$K$871,0),MATCH(Assets!S$2,'Data Annex'!$K$1:$AO$1,0)),"") -> 0.6402706392 | T30: =IFERROR(INDEX('Data Annex'!$K$1:$AO$871,MATCH(Assets!T$1&"|"&Assets!$B30,'Data Annex'!$K$1:$K$871,0),MATCH(Assets!T$2,'Data Annex'!$K$1:$AO$1,0)),"") -> 0.5932569777 | U30: =IFERROR(INDEX('Data Annex'!$K$1:$AO$871,MATCH(Assets!U$1&"|"&Assets!$B30,'Data Annex'!$K$1:$K$871,0),MATCH(Assets!U$2,'Data Annex'!$K$1:$AO$1,0)),"") -> 0.00557823 | V30: =IFERROR(INDEX('Data Annex'!$K$1:$AO$871,MATCH(Assets!V$1&"|"&Assets!$B30,'Data Annex'!$K$1:$K$871,0),MATCH(Assets!V$2,'Data Annex'!$K$1:$AO$1,0)),"") -> 0.0045961354 | W30: =IFERROR(INDEX('Data Annex'!$K$1:$AO$871,MATCH(Assets!W$1&"|"&Assets!$B30,'Data Annex'!$K$1:$K$871,0),MATCH(Assets!W$2,'Data Annex'!$K$1:$AO$1,0)),"") -> 0.0014132102 | X30: =IFERROR(INDEX('Data Annex'!$K$1:$AO$871,MATCH(Assets!X$1&"|"&Assets!$B30,'Data Annex'!$K$1:$K$871,0),MATCH(Assets!X$2,'Data Annex'!$K$1:$AO$1,0)),"") -> 0.0010231076 | Y30: =IFERROR(INDEX('Data Annex'!$K$1:$AO$871,MATCH(Assets!Y$1&"|"&Assets!$B30,'Data Annex'!$K$1:$K$871,0),MATCH(Assets!Y$2,'Data Annex'!$K$1:$AO$1,0)),"") -> 0.0109047104 | Z30: =IFERROR(INDEX('Data Annex'!$K$1:$AO$871,MATCH(Assets!Z$1&"|"&Assets!$B30,'Data Annex'!$K$1:$K$871,0),MATCH(Assets!Z$2,'Data Annex'!$K$1:$AO$1,0)),"") -> 0.0094390541 | AA30: =IFERROR(INDEX('Data Annex'!$K$1:$AO$871,MATCH(Assets!AA$1&"|"&Assets!$B30,'Data Annex'!$K$1:$K$871,0),MATCH(Assets!AA$2,'Data Annex'!$K$1:$AO$1,0)),"") -> 0.0084349879 | AB30: =IFERROR(INDEX('Data Annex'!$K$1:$AO$871,MATCH(Assets!AB$1&"|"&Assets!$B30,'Data Annex'!$K$1:$K$871,0),MATCH(Assets!AB$2,'Data Annex'!$K$1:$AO$1,0)),"") -> 0.0093471169 | AC30: =IFERROR(INDEX('Data Annex'!$K$1:$AJ$871,MATCH(Assets!AC$1&"|"&Assets!$B30,'Data Annex'!$K$1:$K$871,0),MATCH(Assets!AC$2,'Data Annex'!$K$1:$AJ$1,0)),"") -> 
B31: LU | D31: LU | E31: =IFERROR(INDEX('Data Annex'!$K$1:$AO$871,MATCH(Assets!E$1&"|"&Assets!$B31,'Data Annex'!$K$1:$K$871,0),MATCH(Assets!E$2,'Data Annex'!$K$1:$AO$1,0)),"") -> 0.1440659682 | F31: =IFERROR(INDEX('Data Annex'!$K$1:$AO$871,MATCH(Assets!F$1&"|"&Assets!$B31,'Data Annex'!$K$1:$K$871,0),MATCH(Assets!F$2,'Data Annex'!$K$1:$AO$1,0)),"") -> 0.1169226265 | G31: =IFERROR(INDEX('Data Annex'!$K$1:$AO$871,MATCH(Assets!G$1&"|"&Assets!$B31,'Data Annex'!$K$1:$K$871,0),MATCH(Assets!G$2,'Data Annex'!$K$1:$AO$1,0)),"") -> 0.1596667168 | H31: =IFERROR(INDEX('Data Annex'!$K$1:$AO$871,MATCH(Assets!H$1&"|"&Assets!$B31,'Data Annex'!$K$1:$K$871,0),MATCH(Assets!H$2,'Data Annex'!$K$1:$AO$1,0)),"") -> 0.1645737006 | I31: =IFERROR(INDEX('Data Annex'!$K$1:$AO$871,MATCH(Assets!I$1&"|"&Assets!$B31,'Data Annex'!$K$1:$K$871,0),MATCH(Assets!I$2,'Data Annex'!$K$1:$AO$1,0)),"") -> 0.0028396038 | J31: =IFERROR(INDEX('Data Annex'!$K$1:$AO$871,MATCH(Assets!J$1&"|"&Assets!$B31,'Data Annex'!$K$1:$K$871,0),MATCH(Assets!J$2,'Data Annex'!$K$1:$AO$1,0)),"") -> 0.0026417678 | K31: =IFERROR(INDEX('Data Annex'!$K$1:$AO$871,MATCH(Assets!K$1&"|"&Assets!$B31,'Data Annex'!$K$1:$K$871,0),MATCH(Assets!K$2,'Data Annex'!$K$1:$AO$1,0)),"") -> 0.0028205222 | L31: =IFERROR(INDEX('Data Annex'!$K$1:$AO$871,MATCH(Assets!L$1&"|"&Assets!$B31,'Data Annex'!$K$1:$K$871,0),MATCH(Assets!L$2,'Data Annex'!$K$1:$AO$1,0)),"") -> 0.0033836231 | M31: =IFERROR(INDEX('Data Annex'!$K$1:$AO$871,MATCH(Assets!M$1&"|"&Assets!$B31,'Data Annex'!$K$1:$K$871,0),MATCH(Assets!M$2,'Data Annex'!$K$1:$AO$1,0)),"") -> 0.110762487 | N31: =IFERROR(INDEX('Data Annex'!$K$1:$AO$871,MATCH(Assets!N$1&"|"&Assets!$B31,'Data Annex'!$K$1:$K$871,0),MATCH(Assets!N$2,'Data Annex'!$K$1:$AO$1,0)),"") -> 0.1096718901 | O31: =IFERROR(INDEX('Data Annex'!$K$1:$AO$871,MATCH(Assets!O$1&"|"&Assets!$B31,'Data Annex'!$K$1:$K$871,0),MATCH(Assets!O$2,'Data Annex'!$K$1:$AO$1,0)),"") -> 0.1134329415 | P31: =IFERROR(INDEX('Data Annex'!$K$1:$AO$871,MATCH(Assets!P$1&"|"&Assets!$B31,'Data Annex'!$K$1:$K$871,0),MATCH(Assets!P$2,'Data Annex'!$K$1:$AO$1,0)),"") -> 0.127975496 | Q31: =IFERROR(INDEX('Data Annex'!$K$1:$AO$871,MATCH(Assets!Q$1&"|"&Assets!$B31,'Data Annex'!$K$1:$K$871,0),MATCH(Assets!Q$2,'Data Annex'!$K$1:$AO$1,0)),"") -> 0.6908357638 | R31: =IFERROR(INDEX('Data Annex'!$K$1:$AO$871,MATCH(Assets!R$1&"|"&Assets!$B31,'Data Annex'!$K$1:$K$871,0),MATCH(Assets!R$2,'Data Annex'!$K$1:$AO$1,0)),"") -> 0.7128547565 | S31: =IFERROR(INDEX('Data Annex'!$K$1:$AO$871,MATCH(Assets!S$1&"|"&Assets!$B31,'Data Annex'!$K$1:$K$871,0),MATCH(Assets!S$2,'Data Annex'!$K$1:$AO$1,0)),"") -> 0.6558817801 | T31: =IFERROR(INDEX('Data Annex'!$K$1:$AO$871,MATCH(Assets!T$1&"|"&Assets!$B31,'Data Annex'!$K$1:$K$871,0),MATCH(Assets!T$2,'Data Annex'!$K$1:$AO$1,0)),"") -> 0.6632791813 | U31: =IFERROR(INDEX('Data Annex'!$K$1:$AO$871,MATCH(Assets!U$1&"|"&Assets!$B31,'Data Annex'!$K$1:$K$871,0),MATCH(Assets!U$2,'Data Annex'!$K$1:$AO$1,0)),"") -> 0.0252686229 | V31: =IFERROR(INDEX('Data Annex'!$K$1:$AO$871,MATCH(Assets!V$1&"|"&Assets!$B31,'Data Annex'!$K$1:$K$871,0),MATCH(Assets!V$2,'Data Annex'!$K$1:$AO$1,0)),"") -> 0.035456527 | W31: =IFERROR(INDEX('Data Annex'!$K$1:$AO$871,MATCH(Assets!W$1&"|"&Assets!$B31,'Data Annex'!$K$1:$K$871,0),MATCH(Assets!W$2,'Data Annex'!$K$1:$AO$1,0)),"") -> 0.0431905717 | X31: =IFERROR(INDEX('Data Annex'!$K$1:$AO$871,MATCH(Assets!X$1&"|"&Assets!$B31,'Data Annex'!$K$1:$K$871,0),MATCH(Assets!X$2,'Data Annex'!$K$1:$AO$1,0)),"") -> 0.0152414732 | Y31: =IFERROR(INDEX('Data Annex'!$K$1:$AO$871,MATCH(Assets!Y$1&"|"&Assets!$B31,'Data Annex'!$K$1:$K$871,0),MATCH(Assets!Y$2,'Data Annex'!$K$1:$AO$1,0)),"") -> 0.0262275543 | Z31: =IFERROR(INDEX('Data Annex'!$K$1:$AO$871,MATCH(Assets!Z$1&"|"&Assets!$B31,'Data Annex'!$K$1:$K$871,0),MATCH(Assets!Z$2,'Data Annex'!$K$1:$AO$1,0)),"") -> 0.0224524321 | AA31: =IFERROR(INDEX('Data Annex'!$K$1:$AO$871,MATCH(Assets!AA$1&"|"&Assets!$B31,'Data Annex'!$K$1:$K$871,0),MATCH(Assets!AA$2,'Data Annex'!$K$1:$AO$1,0)),"") -> 0.0250074677 | AB31: =IFERROR(INDEX('Data Annex'!$K$1:$AO$871,MATCH(Assets!AB$1&"|"&Assets!$B31,'Data Annex'!$K$1:$K$871,0),MATCH(Assets!AB$2,'Data Annex'!$K$1:$AO$1,0)),"") -> 0.0255465258 | AC31: =IFERROR(INDEX('Data Annex'!$K$1:$AJ$871,MATCH(Assets!AC$1&"|"&Assets!$B31,'Data Annex'!$K$1:$K$871,0),MATCH(Assets!AC$2,'Data Annex'!$K$1:$AJ$1,0)),"") -> 
B32: LV | D32: LV | E32: =IFERROR(INDEX('Data Annex'!$K$1:$AO$871,MATCH(Assets!E$1&"|"&Assets!$B32,'Data Annex'!$K$1:$K$871,0),MATCH(Assets!E$2,'Data Annex'!$K$1:$AO$1,0)),"") -> 0.2354108885 | F32: =IFERROR(INDEX('Data Annex'!$K$1:$AO$871,MATCH(Assets!F$1&"|"&Assets!$B32,'Data Annex'!$K$1:$K$871,0),MATCH(Assets!F$2,'Data Annex'!$K$1:$AO$1,0)),"") -> 0.2581953469 | G32: =IFERROR(INDEX('Data Annex'!$K$1:$AO$871,MATCH(Assets!G$1&"|"&Assets!$B32,'Data Annex'!$K$1:$K$871,0),MATCH(Assets!G$2,'Data Annex'!$K$1:$AO$1,0)),"") -> 0.2999802396 | H32: =IFERROR(INDEX('Data Annex'!$K$1:$AO$871,MATCH(Assets!H$1&"|"&Assets!$B32,'Data Annex'!$K$1:$K$871,0),MATCH(Assets!H$2,'Data Annex'!$K$1:$AO$1,0)),"") -> 0.2799142931 | I32: =IFERROR(INDEX('Data Annex'!$K$1:$AO$871,MATCH(Assets!I$1&"|"&Assets!$B32,'Data Annex'!$K$1:$K$871,0),MATCH(Assets!I$2,'Data Annex'!$K$1:$AO$1,0)),"") -> 0.0015079524 | J32: =IFERROR(INDEX('Data Annex'!$K$1:$AO$871,MATCH(Assets!J$1&"|"&Assets!$B32,'Data Annex'!$K$1:$K$871,0),MATCH(Assets!J$2,'Data Annex'!$K$1:$AO$1,0)),"") -> 0.0015122342 | K32: =IFERROR(INDEX('Data Annex'!$K$1:$AO$871,MATCH(Assets!K$1&"|"&Assets!$B32,'Data Annex'!$K$1:$K$871,0),MATCH(Assets!K$2,'Data Annex'!$K$1:$AO$1,0)),"") -> 0.0012982352 | L32: =IFERROR(INDEX('Data Annex'!$K$1:$AO$871,MATCH(Assets!L$1&"|"&Assets!$B32,'Data Annex'!$K$1:$K$871,0),MATCH(Assets!L$2,'Data Annex'!$K$1:$AO$1,0)),"") -> 0.001755582 | M32: =IFERROR(INDEX('Data Annex'!$K$1:$AO$871,MATCH(Assets!M$1&"|"&Assets!$B32,'Data Annex'!$K$1:$K$871,0),MATCH(Assets!M$2,'Data Annex'!$K$1:$AO$1,0)),"") -> 0.1136511377 | N32: =IFERROR(INDEX('Data Annex'!$K$1:$AO$871,MATCH(Assets!N$1&"|"&Assets!$B32,'Data Annex'!$K$1:$K$871,0),MATCH(Assets!N$2,'Data Annex'!$K$1:$AO$1,0)),"") -> 0.1056513821 | O32: =IFERROR(INDEX('Data Annex'!$K$1:$AO$871,MATCH(Assets!O$1&"|"&Assets!$B32,'Data Annex'!$K$1:$K$871,0),MATCH(Assets!O$2,'Data Annex'!$K$1:$AO$1,0)),"") -> 0.0854535449 | P32: =IFERROR(INDEX('Data Annex'!$K$1:$AO$871,MATCH(Assets!P$1&"|"&Assets!$B32,'Data Annex'!$K$1:$K$871,0),MATCH(Assets!P$2,'Data Annex'!$K$1:$AO$1,0)),"") -> 0.1660895115 | Q32: =IFERROR(INDEX('Data Annex'!$K$1:$AO$871,MATCH(Assets!Q$1&"|"&Assets!$B32,'Data Annex'!$K$1:$K$871,0),MATCH(Assets!Q$2,'Data Annex'!$K$1:$AO$1,0)),"") -> 0.6299965174 | R32: =IFERROR(INDEX('Data Annex'!$K$1:$AO$871,MATCH(Assets!R$1&"|"&Assets!$B32,'Data Annex'!$K$1:$K$871,0),MATCH(Assets!R$2,'Data Annex'!$K$1:$AO$1,0)),"") -> 0.6170121429 | S32: =IFERROR(INDEX('Data Annex'!$K$1:$AO$871,MATCH(Assets!S$1&"|"&Assets!$B32,'Data Annex'!$K$1:$K$871,0),MATCH(Assets!S$2,'Data Annex'!$K$1:$AO$1,0)),"") -> 0.5959124605 | T32: =IFERROR(INDEX('Data Annex'!$K$1:$AO$871,MATCH(Assets!T$1&"|"&Assets!$B32,'Data Annex'!$K$1:$K$871,0),MATCH(Assets!T$2,'Data Annex'!$K$1:$AO$1,0)),"") -> 0.5371440451 | U32: =IFERROR(INDEX('Data Annex'!$K$1:$AO$871,MATCH(Assets!U$1&"|"&Assets!$B32,'Data Annex'!$K$1:$K$871,0),MATCH(Assets!U$2,'Data Annex'!$K$1:$AO$1,0)),"") -> 0.0049132113 | V32: =IFERROR(INDEX('Data Annex'!$K$1:$AO$871,MATCH(Assets!V$1&"|"&Assets!$B32,'Data Annex'!$K$1:$K$871,0),MATCH(Assets!V$2,'Data Annex'!$K$1:$AO$1,0)),"") -> 0.0038695418 | W32: =IFERROR(INDEX('Data Annex'!$K$1:$AO$871,MATCH(Assets!W$1&"|"&Assets!$B32,'Data Annex'!$K$1:$K$871,0),MATCH(Assets!W$2,'Data Annex'!$K$1:$AO$1,0)),"") -> 0.0046908657 | X32: =IFERROR(INDEX('Data Annex'!$K$1:$AO$871,MATCH(Assets!X$1&"|"&Assets!$B32,'Data Annex'!$K$1:$K$871,0),MATCH(Assets!X$2,'Data Annex'!$K$1:$AO$1,0)),"") -> 0.0037364435 | Y32: =IFERROR(INDEX('Data Annex'!$K$1:$AO$871,MATCH(Assets!Y$1&"|"&Assets!$B32,'Data Annex'!$K$1:$K$871,0),MATCH(Assets!Y$2,'Data Annex'!$K$1:$AO$1,0)),"") -> 0.0145202926 | Z32: =IFERROR(INDEX('Data Annex'!$K$1:$AO$871,MATCH(Assets!Z$1&"|"&Assets!$B32,'Data Annex'!$K$1:$K$871,0),MATCH(Assets!Z$2,'Data Annex'!$K$1:$AO$1,0)),"") -> 0.013759352 | AA32: =IFERROR(INDEX('Data Annex'!$K$1:$AO$871,MATCH(Assets!AA$1&"|"&Assets!$B32,'Data Annex'!$K$1:$K$871,0),MATCH(Assets!AA$2,'Data Annex'!$K$1:$AO$1,0)),"") -> 0.0126646542 | AB32: =IFERROR(INDEX('Data Annex'!$K$1:$AO$871,MATCH(Assets!AB$1&"|"&Assets!$B32,'Data Annex'!$K$1:$K$871,0),MATCH(Assets!AB$2,'Data Annex'!$K$1:$AO$1,0)),"") -> 0.0113601247 | AC32: =IFERROR(INDEX('Data Annex'!$K$1:$AJ$871,MATCH(Assets!AC$1&"|"&Assets!$B32,'Data Annex'!$K$1:$K$871,0),MATCH(Assets!AC$2,'Data Annex'!$K$1:$AJ$1,0)),"") -> 
B33: MT | D33: MT | E33: =IFERROR(INDEX('Data Annex'!$K$1:$AO$871,MATCH(Assets!E$1&"|"&Assets!$B33,'Data Annex'!$K$1:$K$871,0),MATCH(Assets!E$2,'Data Annex'!$K$1:$AO$1,0)),"") -> 0.2150109576 | F33: =IFERROR(INDEX('Data Annex'!$K$1:$AO$871,MATCH(Assets!F$1&"|"&Assets!$B33,'Data Annex'!$K$1:$K$871,0),MATCH(Assets!F$2,'Data Annex'!$K$1:$AO$1,0)),"") -> 0.227743153 | G33: =IFERROR(INDEX('Data Annex'!$K$1:$AO$871,MATCH(Assets!G$1&"|"&Assets!$B33,'Data Annex'!$K$1:$K$871,0),MATCH(Assets!G$2,'Data Annex'!$K$1:$AO$1,0)),"") -> 0.2167631039 | H33: =IFERROR(INDEX('Data Annex'!$K$1:$AO$871,MATCH(Assets!H$1&"|"&Assets!$B33,'Data Annex'!$K$1:$K$871,0),MATCH(Assets!H$2,'Data Annex'!$K$1:$AO$1,0)),"") -> 0.2054653382 | I33: =IFERROR(INDEX('Data Annex'!$K$1:$AO$871,MATCH(Assets!I$1&"|"&Assets!$B33,'Data Annex'!$K$1:$K$871,0),MATCH(Assets!I$2,'Data Annex'!$K$1:$AO$1,0)),"") -> 0.0027483399 | J33: =IFERROR(INDEX('Data Annex'!$K$1:$AO$871,MATCH(Assets!J$1&"|"&Assets!$B33,'Data Annex'!$K$1:$K$871,0),MATCH(Assets!J$2,'Data Annex'!$K$1:$AO$1,0)),"") -> 0.0028293973 | K33: =IFERROR(INDEX('Data Annex'!$K$1:$AO$871,MATCH(Assets!K$1&"|"&Assets!$B33,'Data Annex'!$K$1:$K$871,0),MATCH(Assets!K$2,'Data Annex'!$K$1:$AO$1,0)),"") -> 0.0023596046 | L33: =IFERROR(INDEX('Data Annex'!$K$1:$AO$871,MATCH(Assets!L$1&"|"&Assets!$B33,'Data Annex'!$K$1:$K$871,0),MATCH(Assets!L$2,'Data Annex'!$K$1:$AO$1,0)),"") -> 0.0022282171 | M33: =IFERROR(INDEX('Data Annex'!$K$1:$AO$871,MATCH(Assets!M$1&"|"&Assets!$B33,'Data Annex'!$K$1:$K$871,0),MATCH(Assets!M$2,'Data Annex'!$K$1:$AO$1,0)),"") -> 0.2471583351 | N33: =IFERROR(INDEX('Data Annex'!$K$1:$AO$871,MATCH(Assets!N$1&"|"&Assets!$B33,'Data Annex'!$K$1:$K$871,0),MATCH(Assets!N$2,'Data Annex'!$K$1:$AO$1,0)),"") -> 0.2577028639 | O33: =IFERROR(INDEX('Data Annex'!$K$1:$AO$871,MATCH(Assets!O$1&"|"&Assets!$B33,'Data Annex'!$K$1:$K$871,0),MATCH(Assets!O$2,'Data Annex'!$K$1:$AO$1,0)),"") -> 0.2438414119 | P33: =IFERROR(INDEX('Data Annex'!$K$1:$AO$871,MATCH(Assets!P$1&"|"&Assets!$B33,'Data Annex'!$K$1:$K$871,0),MATCH(Assets!P$2,'Data Annex'!$K$1:$AO$1,0)),"") -> 0.274514576 | Q33: =IFERROR(INDEX('Data Annex'!$K$1:$AO$871,MATCH(Assets!Q$1&"|"&Assets!$B33,'Data Annex'!$K$1:$K$871,0),MATCH(Assets!Q$2,'Data Annex'!$K$1:$AO$1,0)),"") -> 0.5024810335 | R33: =IFERROR(INDEX('Data Annex'!$K$1:$AO$871,MATCH(Assets!R$1&"|"&Assets!$B33,'Data Annex'!$K$1:$K$871,0),MATCH(Assets!R$2,'Data Annex'!$K$1:$AO$1,0)),"") -> 0.476533382 | S33: =IFERROR(INDEX('Data Annex'!$K$1:$AO$871,MATCH(Assets!S$1&"|"&Assets!$B33,'Data Annex'!$K$1:$K$871,0),MATCH(Assets!S$2,'Data Annex'!$K$1:$AO$1,0)),"") -> 0.5034556033 | T33: =IFERROR(INDEX('Data Annex'!$K$1:$AO$871,MATCH(Assets!T$1&"|"&Assets!$B33,'Data Annex'!$K$1:$K$871,0),MATCH(Assets!T$2,'Data Annex'!$K$1:$AO$1,0)),"") -> 0.4859051764 | U33: =IFERROR(INDEX('Data Annex'!$K$1:$AO$871,MATCH(Assets!U$1&"|"&Assets!$B33,'Data Annex'!$K$1:$K$871,0),MATCH(Assets!U$2,'Data Annex'!$K$1:$AO$1,0)),"") -> 0.0006356911 | V33: =IFERROR(INDEX('Data Annex'!$K$1:$AO$871,MATCH(Assets!V$1&"|"&Assets!$B33,'Data Annex'!$K$1:$K$871,0),MATCH(Assets!V$2,'Data Annex'!$K$1:$AO$1,0)),"") -> 0.0004082501 | W33: =IFERROR(INDEX('Data Annex'!$K$1:$AO$871,MATCH(Assets!W$1&"|"&Assets!$B33,'Data Annex'!$K$1:$K$871,0),MATCH(Assets!W$2,'Data Annex'!$K$1:$AO$1,0)),"") -> 0.0010600629 | X33: =IFERROR(INDEX('Data Annex'!$K$1:$AO$871,MATCH(Assets!X$1&"|"&Assets!$B33,'Data Annex'!$K$1:$K$871,0),MATCH(Assets!X$2,'Data Annex'!$K$1:$AO$1,0)),"") -> 0.0007891128 | Y33: =IFERROR(INDEX('Data Annex'!$K$1:$AO$871,MATCH(Assets!Y$1&"|"&Assets!$B33,'Data Annex'!$K$1:$K$871,0),MATCH(Assets!Y$2,'Data Annex'!$K$1:$AO$1,0)),"") -> 0.0319656428 | Z33: =IFERROR(INDEX('Data Annex'!$K$1:$AO$871,MATCH(Assets!Z$1&"|"&Assets!$B33,'Data Annex'!$K$1:$K$871,0),MATCH(Assets!Z$2,'Data Annex'!$K$1:$AO$1,0)),"") -> 0.0347829538 | AA33: =IFERROR(INDEX('Data Annex'!$K$1:$AO$871,MATCH(Assets!AA$1&"|"&Assets!$B33,'Data Annex'!$K$1:$K$871,0),MATCH(Assets!AA$2,'Data Annex'!$K$1:$AO$1,0)),"") -> 0.0325202133 | AB33: =IFERROR(INDEX('Data Annex'!$K$1:$AO$871,MATCH(Assets!AB$1&"|"&Assets!$B33,'Data Annex'!$K$1:$K$871,0),MATCH(Assets!AB$2,'Data Annex'!$K$1:$AO$1,0)),"") -> 0.0310975795 | AC33: =IFERROR(INDEX('Data Annex'!$K$1:$AJ$871,MATCH(Assets!AC$1&"|"&Assets!$B33,'Data Annex'!$K$1:$K$871,0),MATCH(Assets!AC$2,'Data Annex'!$K$1:$AJ$1,0)),"") -> 
B34: NL | D34: NL | E34: =IFERROR(INDEX('Data Annex'!$K$1:$AO$871,MATCH(Assets!E$1&"|"&Assets!$B34,'Data Annex'!$K$1:$K$871,0),MATCH(Assets!E$2,'Data Annex'!$K$1:$AO$1,0)),"") -> 0.0840722527 | F34: =IFERROR(INDEX('Data Annex'!$K$1:$AO$871,MATCH(Assets!F$1&"|"&Assets!$B34,'Data Annex'!$K$1:$K$871,0),MATCH(Assets!F$2,'Data Annex'!$K$1:$AO$1,0)),"") -> 0.0733162272 | G34: =IFERROR(INDEX('Data Annex'!$K$1:$AO$871,MATCH(Assets!G$1&"|"&Assets!$B34,'Data Annex'!$K$1:$K$871,0),MATCH(Assets!G$2,'Data Annex'!$K$1:$AO$1,0)),"") -> 0.0908856021 | H34: =IFERROR(INDEX('Data Annex'!$K$1:$AO$871,MATCH(Assets!H$1&"|"&Assets!$B34,'Data Annex'!$K$1:$K$871,0),MATCH(Assets!H$2,'Data Annex'!$K$1:$AO$1,0)),"") -> 0.1212178169 | I34: =IFERROR(INDEX('Data Annex'!$K$1:$AO$871,MATCH(Assets!I$1&"|"&Assets!$B34,'Data Annex'!$K$1:$K$871,0),MATCH(Assets!I$2,'Data Annex'!$K$1:$AO$1,0)),"") -> 0.005871467 | J34: =IFERROR(INDEX('Data Annex'!$K$1:$AO$871,MATCH(Assets!J$1&"|"&Assets!$B34,'Data Annex'!$K$1:$K$871,0),MATCH(Assets!J$2,'Data Annex'!$K$1:$AO$1,0)),"") -> 0.0062772594 | K34: =IFERROR(INDEX('Data Annex'!$K$1:$AO$871,MATCH(Assets!K$1&"|"&Assets!$B34,'Data Annex'!$K$1:$K$871,0),MATCH(Assets!K$2,'Data Annex'!$K$1:$AO$1,0)),"") -> 0.0043787553 | L34: =IFERROR(INDEX('Data Annex'!$K$1:$AO$871,MATCH(Assets!L$1&"|"&Assets!$B34,'Data Annex'!$K$1:$K$871,0),MATCH(Assets!L$2,'Data Annex'!$K$1:$AO$1,0)),"") -> 0.0040121991 | M34: =IFERROR(INDEX('Data Annex'!$K$1:$AO$871,MATCH(Assets!M$1&"|"&Assets!$B34,'Data Annex'!$K$1:$K$871,0),MATCH(Assets!M$2,'Data Annex'!$K$1:$AO$1,0)),"") -> 0.080629196 | N34: =IFERROR(INDEX('Data Annex'!$K$1:$AO$871,MATCH(Assets!N$1&"|"&Assets!$B34,'Data Annex'!$K$1:$K$871,0),MATCH(Assets!N$2,'Data Annex'!$K$1:$AO$1,0)),"") -> 0.0820169861 | O34: =IFERROR(INDEX('Data Annex'!$K$1:$AO$871,MATCH(Assets!O$1&"|"&Assets!$B34,'Data Annex'!$K$1:$K$871,0),MATCH(Assets!O$2,'Data Annex'!$K$1:$AO$1,0)),"") -> 0.0816076279 | P34: =IFERROR(INDEX('Data Annex'!$K$1:$AO$871,MATCH(Assets!P$1&"|"&Assets!$B34,'Data Annex'!$K$1:$K$871,0),MATCH(Assets!P$2,'Data Annex'!$K$1:$AO$1,0)),"") -> 0.0847036345 | Q34: =IFERROR(INDEX('Data Annex'!$K$1:$AO$871,MATCH(Assets!Q$1&"|"&Assets!$B34,'Data Annex'!$K$1:$K$871,0),MATCH(Assets!Q$2,'Data Annex'!$K$1:$AO$1,0)),"") -> 0.7544505998 | R34: =IFERROR(INDEX('Data Annex'!$K$1:$AO$871,MATCH(Assets!R$1&"|"&Assets!$B34,'Data Annex'!$K$1:$K$871,0),MATCH(Assets!R$2,'Data Annex'!$K$1:$AO$1,0)),"") -> 0.7744324582 | S34: =IFERROR(INDEX('Data Annex'!$K$1:$AO$871,MATCH(Assets!S$1&"|"&Assets!$B34,'Data Annex'!$K$1:$K$871,0),MATCH(Assets!S$2,'Data Annex'!$K$1:$AO$1,0)),"") -> 0.749224448 | T34: =IFERROR(INDEX('Data Annex'!$K$1:$AO$871,MATCH(Assets!T$1&"|"&Assets!$B34,'Data Annex'!$K$1:$K$871,0),MATCH(Assets!T$2,'Data Annex'!$K$1:$AO$1,0)),"") -> 0.7210042227 | U34: =IFERROR(INDEX('Data Annex'!$K$1:$AO$871,MATCH(Assets!U$1&"|"&Assets!$B34,'Data Annex'!$K$1:$K$871,0),MATCH(Assets!U$2,'Data Annex'!$K$1:$AO$1,0)),"") -> 0.0391094328 | V34: =IFERROR(INDEX('Data Annex'!$K$1:$AO$871,MATCH(Assets!V$1&"|"&Assets!$B34,'Data Annex'!$K$1:$K$871,0),MATCH(Assets!V$2,'Data Annex'!$K$1:$AO$1,0)),"") -> 0.0309080407 | W34: =IFERROR(INDEX('Data Annex'!$K$1:$AO$871,MATCH(Assets!W$1&"|"&Assets!$B34,'Data Annex'!$K$1:$K$871,0),MATCH(Assets!W$2,'Data Annex'!$K$1:$AO$1,0)),"") -> 0.0394598109 | X34: =IFERROR(INDEX('Data Annex'!$K$1:$AO$871,MATCH(Assets!X$1&"|"&Assets!$B34,'Data Annex'!$K$1:$K$871,0),MATCH(Assets!X$2,'Data Annex'!$K$1:$AO$1,0)),"") -> 0.0345213598 | Y34: =IFERROR(INDEX('Data Annex'!$K$1:$AO$871,MATCH(Assets!Y$1&"|"&Assets!$B34,'Data Annex'!$K$1:$K$871,0),MATCH(Assets!Y$2,'Data Annex'!$K$1:$AO$1,0)),"") -> 0.0358670518 | Z34: =IFERROR(INDEX('Data Annex'!$K$1:$AO$871,MATCH(Assets!Z$1&"|"&Assets!$B34,'Data Annex'!$K$1:$K$871,0),MATCH(Assets!Z$2,'Data Annex'!$K$1:$AO$1,0)),"") -> 0.0330490285 | AA34: =IFERROR(INDEX('Data Annex'!$K$1:$AO$871,MATCH(Assets!AA$1&"|"&Assets!$B34,'Data Annex'!$K$1:$K$871,0),MATCH(Assets!AA$2,'Data Annex'!$K$1:$AO$1,0)),"") -> 0.0344437559 | AB34: =IFERROR(INDEX('Data Annex'!$K$1:$AO$871,MATCH(Assets!AB$1&"|"&Assets!$B34,'Data Annex'!$K$1:$K$871,0),MATCH(Assets!AB$2,'Data Annex'!$K$1:$AO$1,0)),"") -> 0.0345407671 | AC34: =IFERROR(INDEX('Data Annex'!$K$1:$AJ$871,MATCH(Assets!AC$1&"|"&Assets!$B34,'Data Annex'!$K$1:$K$871,0),MATCH(Assets!AC$2,'Data Annex'!$K$1:$AJ$1,0)),"") -> 
B35: NO | D35: NO | E35: =IFERROR(INDEX('Data Annex'!$K$1:$AO$871,MATCH(Assets!E$1&"|"&Assets!$B35,'Data Annex'!$K$1:$K$871,0),MATCH(Assets!E$2,'Data Annex'!$K$1:$AO$1,0)),"") -> 0.1225401659 | F35: =IFERROR(INDEX('Data Annex'!$K$1:$AO$871,MATCH(Assets!F$1&"|"&Assets!$B35,'Data Annex'!$K$1:$K$871,0),MATCH(Assets!F$2,'Data Annex'!$K$1:$AO$1,0)),"") -> 0.0927121161 | G35: =IFERROR(INDEX('Data Annex'!$K$1:$AO$871,MATCH(Assets!G$1&"|"&Assets!$B35,'Data Annex'!$K$1:$K$871,0),MATCH(Assets!G$2,'Data Annex'!$K$1:$AO$1,0)),"") -> 0.1136092744 | H35: =IFERROR(INDEX('Data Annex'!$K$1:$AO$871,MATCH(Assets!H$1&"|"&Assets!$B35,'Data Annex'!$K$1:$K$871,0),MATCH(Assets!H$2,'Data Annex'!$K$1:$AO$1,0)),"") -> 0.0954325403 | I35: =IFERROR(INDEX('Data Annex'!$K$1:$AO$871,MATCH(Assets!I$1&"|"&Assets!$B35,'Data Annex'!$K$1:$K$871,0),MATCH(Assets!I$2,'Data Annex'!$K$1:$AO$1,0)),"") -> 0.0034064947 | J35: =IFERROR(INDEX('Data Annex'!$K$1:$AO$871,MATCH(Assets!J$1&"|"&Assets!$B35,'Data Annex'!$K$1:$K$871,0),MATCH(Assets!J$2,'Data Annex'!$K$1:$AO$1,0)),"") -> 0.0041453594 | K35: =IFERROR(INDEX('Data Annex'!$K$1:$AO$871,MATCH(Assets!K$1&"|"&Assets!$B35,'Data Annex'!$K$1:$K$871,0),MATCH(Assets!K$2,'Data Annex'!$K$1:$AO$1,0)),"") -> 0.0025117043 | L35: =IFERROR(INDEX('Data Annex'!$K$1:$AO$871,MATCH(Assets!L$1&"|"&Assets!$B35,'Data Annex'!$K$1:$K$871,0),MATCH(Assets!L$2,'Data Annex'!$K$1:$AO$1,0)),"") -> 0.0029805465 | M35: =IFERROR(INDEX('Data Annex'!$K$1:$AO$871,MATCH(Assets!M$1&"|"&Assets!$B35,'Data Annex'!$K$1:$K$871,0),MATCH(Assets!M$2,'Data Annex'!$K$1:$AO$1,0)),"") -> 0.0900570375 | N35: =IFERROR(INDEX('Data Annex'!$K$1:$AO$871,MATCH(Assets!N$1&"|"&Assets!$B35,'Data Annex'!$K$1:$K$871,0),MATCH(Assets!N$2,'Data Annex'!$K$1:$AO$1,0)),"") -> 0.0969853207 | O35: =IFERROR(INDEX('Data Annex'!$K$1:$AO$871,MATCH(Assets!O$1&"|"&Assets!$B35,'Data Annex'!$K$1:$K$871,0),MATCH(Assets!O$2,'Data Annex'!$K$1:$AO$1,0)),"") -> 0.0997219112 | P35: =IFERROR(INDEX('Data Annex'!$K$1:$AO$871,MATCH(Assets!P$1&"|"&Assets!$B35,'Data Annex'!$K$1:$K$871,0),MATCH(Assets!P$2,'Data Annex'!$K$1:$AO$1,0)),"") -> 0.1184995935 | Q35: =IFERROR(INDEX('Data Annex'!$K$1:$AO$871,MATCH(Assets!Q$1&"|"&Assets!$B35,'Data Annex'!$K$1:$K$871,0),MATCH(Assets!Q$2,'Data Annex'!$K$1:$AO$1,0)),"") -> 0.7183882301 | R35: =IFERROR(INDEX('Data Annex'!$K$1:$AO$871,MATCH(Assets!R$1&"|"&Assets!$B35,'Data Annex'!$K$1:$K$871,0),MATCH(Assets!R$2,'Data Annex'!$K$1:$AO$1,0)),"") -> 0.7460083454 | S35: =IFERROR(INDEX('Data Annex'!$K$1:$AO$871,MATCH(Assets!S$1&"|"&Assets!$B35,'Data Annex'!$K$1:$K$871,0),MATCH(Assets!S$2,'Data Annex'!$K$1:$AO$1,0)),"") -> 0.689843028 | T35: =IFERROR(INDEX('Data Annex'!$K$1:$AO$871,MATCH(Assets!T$1&"|"&Assets!$B35,'Data Annex'!$K$1:$K$871,0),MATCH(Assets!T$2,'Data Annex'!$K$1:$AO$1,0)),"") -> 0.6976554425 | U35: =IFERROR(INDEX('Data Annex'!$K$1:$AO$871,MATCH(Assets!U$1&"|"&Assets!$B35,'Data Annex'!$K$1:$K$871,0),MATCH(Assets!U$2,'Data Annex'!$K$1:$AO$1,0)),"") -> 0.0505042944 | V35: =IFERROR(INDEX('Data Annex'!$K$1:$AO$871,MATCH(Assets!V$1&"|"&Assets!$B35,'Data Annex'!$K$1:$K$871,0),MATCH(Assets!V$2,'Data Annex'!$K$1:$AO$1,0)),"") -> 0.0462640797 | W35: =IFERROR(INDEX('Data Annex'!$K$1:$AO$871,MATCH(Assets!W$1&"|"&Assets!$B35,'Data Annex'!$K$1:$K$871,0),MATCH(Assets!W$2,'Data Annex'!$K$1:$AO$1,0)),"") -> 0.0797105079 | X35: =IFERROR(INDEX('Data Annex'!$K$1:$AO$871,MATCH(Assets!X$1&"|"&Assets!$B35,'Data Annex'!$K$1:$K$871,0),MATCH(Assets!X$2,'Data Annex'!$K$1:$AO$1,0)),"") -> 0.0690086051 | Y35: =IFERROR(INDEX('Data Annex'!$K$1:$AO$871,MATCH(Assets!Y$1&"|"&Assets!$B35,'Data Annex'!$K$1:$K$871,0),MATCH(Assets!Y$2,'Data Annex'!$K$1:$AO$1,0)),"") -> 0.0151037775 | Z35: =IFERROR(INDEX('Data Annex'!$K$1:$AO$871,MATCH(Assets!Z$1&"|"&Assets!$B35,'Data Annex'!$K$1:$K$871,0),MATCH(Assets!Z$2,'Data Annex'!$K$1:$AO$1,0)),"") -> 0.0138847786 | AA35: =IFERROR(INDEX('Data Annex'!$K$1:$AO$871,MATCH(Assets!AA$1&"|"&Assets!$B35,'Data Annex'!$K$1:$K$871,0),MATCH(Assets!AA$2,'Data Annex'!$K$1:$AO$1,0)),"") -> 0.0146035741 | AB35: =IFERROR(INDEX('Data Annex'!$K$1:$AO$871,MATCH(Assets!AB$1&"|"&Assets!$B35,'Data Annex'!$K$1:$K$871,0),MATCH(Assets!AB$2,'Data Annex'!$K$1:$AO$1,0)),"") -> 0.0164232721 | AC35: =IFERROR(INDEX('Data Annex'!$K$1:$AJ$871,MATCH(Assets!AC$1&"|"&Assets!$B35,'Data Annex'!$K$1:$K$871,0),MATCH(Assets!AC$2,'Data Annex'!$K$1:$AJ$1,0)),"") -> 
B36: PL | D36: PL | E36: =IFERROR(INDEX('Data Annex'!$K$1:$AO$871,MATCH(Assets!E$1&"|"&Assets!$B36,'Data Annex'!$K$1:$K$871,0),MATCH(Assets!E$2,'Data Annex'!$K$1:$AO$1,0)),"") -> 0.0418802145 | F36: =IFERROR(INDEX('Data Annex'!$K$1:$AO$871,MATCH(Assets!F$1&"|"&Assets!$B36,'Data Annex'!$K$1:$K$871,0),MATCH(Assets!F$2,'Data Annex'!$K$1:$AO$1,0)),"") -> 0.0412365011 | G36: =IFERROR(INDEX('Data Annex'!$K$1:$AO$871,MATCH(Assets!G$1&"|"&Assets!$B36,'Data Annex'!$K$1:$K$871,0),MATCH(Assets!G$2,'Data Annex'!$K$1:$AO$1,0)),"") -> 0.0454109461 | H36: =IFERROR(INDEX('Data Annex'!$K$1:$AO$871,MATCH(Assets!H$1&"|"&Assets!$B36,'Data Annex'!$K$1:$K$871,0),MATCH(Assets!H$2,'Data Annex'!$K$1:$AO$1,0)),"") -> 0.0297432168 | I36: =IFERROR(INDEX('Data Annex'!$K$1:$AO$871,MATCH(Assets!I$1&"|"&Assets!$B36,'Data Annex'!$K$1:$K$871,0),MATCH(Assets!I$2,'Data Annex'!$K$1:$AO$1,0)),"") -> 0.0021138664 | J36: =IFERROR(INDEX('Data Annex'!$K$1:$AO$871,MATCH(Assets!J$1&"|"&Assets!$B36,'Data Annex'!$K$1:$K$871,0),MATCH(Assets!J$2,'Data Annex'!$K$1:$AO$1,0)),"") -> 0.0023444992 | K36: =IFERROR(INDEX('Data Annex'!$K$1:$AO$871,MATCH(Assets!K$1&"|"&Assets!$B36,'Data Annex'!$K$1:$K$871,0),MATCH(Assets!K$2,'Data Annex'!$K$1:$AO$1,0)),"") -> 0.0020869771 | L36: =IFERROR(INDEX('Data Annex'!$K$1:$AO$871,MATCH(Assets!L$1&"|"&Assets!$B36,'Data Annex'!$K$1:$K$871,0),MATCH(Assets!L$2,'Data Annex'!$K$1:$AO$1,0)),"") -> 0.0019685917 | M36: =IFERROR(INDEX('Data Annex'!$K$1:$AO$871,MATCH(Assets!M$1&"|"&Assets!$B36,'Data Annex'!$K$1:$K$871,0),MATCH(Assets!M$2,'Data Annex'!$K$1:$AO$1,0)),"") -> 0.2093865771 | N36: =IFERROR(INDEX('Data Annex'!$K$1:$AO$871,MATCH(Assets!N$1&"|"&Assets!$B36,'Data Annex'!$K$1:$K$871,0),MATCH(Assets!N$2,'Data Annex'!$K$1:$AO$1,0)),"") -> 0.2202710544 | O36: =IFERROR(INDEX('Data Annex'!$K$1:$AO$871,MATCH(Assets!O$1&"|"&Assets!$B36,'Data Annex'!$K$1:$K$871,0),MATCH(Assets!O$2,'Data Annex'!$K$1:$AO$1,0)),"") -> 0.2208318188 | P36: =IFERROR(INDEX('Data Annex'!$K$1:$AO$871,MATCH(Assets!P$1&"|"&Assets!$B36,'Data Annex'!$K$1:$K$871,0),MATCH(Assets!P$2,'Data Annex'!$K$1:$AO$1,0)),"") -> 0.2866385452 | Q36: =IFERROR(INDEX('Data Annex'!$K$1:$AO$871,MATCH(Assets!Q$1&"|"&Assets!$B36,'Data Annex'!$K$1:$K$871,0),MATCH(Assets!Q$2,'Data Annex'!$K$1:$AO$1,0)),"") -> 0.6974565002 | R36: =IFERROR(INDEX('Data Annex'!$K$1:$AO$871,MATCH(Assets!R$1&"|"&Assets!$B36,'Data Annex'!$K$1:$K$871,0),MATCH(Assets!R$2,'Data Annex'!$K$1:$AO$1,0)),"") -> 0.6901512865 | S36: =IFERROR(INDEX('Data Annex'!$K$1:$AO$871,MATCH(Assets!S$1&"|"&Assets!$B36,'Data Annex'!$K$1:$K$871,0),MATCH(Assets!S$2,'Data Annex'!$K$1:$AO$1,0)),"") -> 0.6757696624 | T36: =IFERROR(INDEX('Data Annex'!$K$1:$AO$871,MATCH(Assets!T$1&"|"&Assets!$B36,'Data Annex'!$K$1:$K$871,0),MATCH(Assets!T$2,'Data Annex'!$K$1:$AO$1,0)),"") -> 0.6304494281 | U36: =IFERROR(INDEX('Data Annex'!$K$1:$AO$871,MATCH(Assets!U$1&"|"&Assets!$B36,'Data Annex'!$K$1:$K$871,0),MATCH(Assets!U$2,'Data Annex'!$K$1:$AO$1,0)),"") -> 0.0113960241 | V36: =IFERROR(INDEX('Data Annex'!$K$1:$AO$871,MATCH(Assets!V$1&"|"&Assets!$B36,'Data Annex'!$K$1:$K$871,0),MATCH(Assets!V$2,'Data Annex'!$K$1:$AO$1,0)),"") -> 0.009775226 | W36: =IFERROR(INDEX('Data Annex'!$K$1:$AO$871,MATCH(Assets!W$1&"|"&Assets!$B36,'Data Annex'!$K$1:$K$871,0),MATCH(Assets!W$2,'Data Annex'!$K$1:$AO$1,0)),"") -> 0.0212022534 | X36: =IFERROR(INDEX('Data Annex'!$K$1:$AO$871,MATCH(Assets!X$1&"|"&Assets!$B36,'Data Annex'!$K$1:$K$871,0),MATCH(Assets!X$2,'Data Annex'!$K$1:$AO$1,0)),"") -> 0.0190418666 | Y36: =IFERROR(INDEX('Data Annex'!$K$1:$AO$871,MATCH(Assets!Y$1&"|"&Assets!$B36,'Data Annex'!$K$1:$K$871,0),MATCH(Assets!Y$2,'Data Annex'!$K$1:$AO$1,0)),"") -> 0.0377668177 | Z36: =IFERROR(INDEX('Data Annex'!$K$1:$AO$871,MATCH(Assets!Z$1&"|"&Assets!$B36,'Data Annex'!$K$1:$K$871,0),MATCH(Assets!Z$2,'Data Annex'!$K$1:$AO$1,0)),"") -> 0.0362214328 | AA36: =IFERROR(INDEX('Data Annex'!$K$1:$AO$871,MATCH(Assets!AA$1&"|"&Assets!$B36,'Data Annex'!$K$1:$K$871,0),MATCH(Assets!AA$2,'Data Annex'!$K$1:$AO$1,0)),"") -> 0.0346983422 | AB36: =IFERROR(INDEX('Data Annex'!$K$1:$AO$871,MATCH(Assets!AB$1&"|"&Assets!$B36,'Data Annex'!$K$1:$K$871,0),MATCH(Assets!AB$2,'Data Annex'!$K$1:$AO$1,0)),"") -> 0.0321583517 | AC36: =IFERROR(INDEX('Data Annex'!$K$1:$AJ$871,MATCH(Assets!AC$1&"|"&Assets!$B36,'Data Annex'!$K$1:$K$871,0),MATCH(Assets!AC$2,'Data Annex'!$K$1:$AJ$1,0)),"") -> 
B37: PT | D37: PT | E37: =IFERROR(INDEX('Data Annex'!$K$1:$AO$871,MATCH(Assets!E$1&"|"&Assets!$B37,'Data Annex'!$K$1:$K$871,0),MATCH(Assets!E$2,'Data Annex'!$K$1:$AO$1,0)),"") -> 0.051443577 | F37: =IFERROR(INDEX('Data Annex'!$K$1:$AO$871,MATCH(Assets!F$1&"|"&Assets!$B37,'Data Annex'!$K$1:$K$871,0),MATCH(Assets!F$2,'Data Annex'!$K$1:$AO$1,0)),"") -> 0.0659383614 | G37: =IFERROR(INDEX('Data Annex'!$K$1:$AO$871,MATCH(Assets!G$1&"|"&Assets!$B37,'Data Annex'!$K$1:$K$871,0),MATCH(Assets!G$2,'Data Annex'!$K$1:$AO$1,0)),"") -> 0.0640093599 | H37: =IFERROR(INDEX('Data Annex'!$K$1:$AO$871,MATCH(Assets!H$1&"|"&Assets!$B37,'Data Annex'!$K$1:$K$871,0),MATCH(Assets!H$2,'Data Annex'!$K$1:$AO$1,0)),"") -> 0.089722854 | I37: =IFERROR(INDEX('Data Annex'!$K$1:$AO$871,MATCH(Assets!I$1&"|"&Assets!$B37,'Data Annex'!$K$1:$K$871,0),MATCH(Assets!I$2,'Data Annex'!$K$1:$AO$1,0)),"") -> 0.0168130643 | J37: =IFERROR(INDEX('Data Annex'!$K$1:$AO$871,MATCH(Assets!J$1&"|"&Assets!$B37,'Data Annex'!$K$1:$K$871,0),MATCH(Assets!J$2,'Data Annex'!$K$1:$AO$1,0)),"") -> 0.0158752829 | K37: =IFERROR(INDEX('Data Annex'!$K$1:$AO$871,MATCH(Assets!K$1&"|"&Assets!$B37,'Data Annex'!$K$1:$K$871,0),MATCH(Assets!K$2,'Data Annex'!$K$1:$AO$1,0)),"") -> 0.0152171872 | L37: =IFERROR(INDEX('Data Annex'!$K$1:$AO$871,MATCH(Assets!L$1&"|"&Assets!$B37,'Data Annex'!$K$1:$K$871,0),MATCH(Assets!L$2,'Data Annex'!$K$1:$AO$1,0)),"") -> 0.013654053 | M37: =IFERROR(INDEX('Data Annex'!$K$1:$AO$871,MATCH(Assets!M$1&"|"&Assets!$B37,'Data Annex'!$K$1:$K$871,0),MATCH(Assets!M$2,'Data Annex'!$K$1:$AO$1,0)),"") -> 0.23068065 | N37: =IFERROR(INDEX('Data Annex'!$K$1:$AO$871,MATCH(Assets!N$1&"|"&Assets!$B37,'Data Annex'!$K$1:$K$871,0),MATCH(Assets!N$2,'Data Annex'!$K$1:$AO$1,0)),"") -> 0.226464796 | O37: =IFERROR(INDEX('Data Annex'!$K$1:$AO$871,MATCH(Assets!O$1&"|"&Assets!$B37,'Data Annex'!$K$1:$K$871,0),MATCH(Assets!O$2,'Data Annex'!$K$1:$AO$1,0)),"") -> 0.2304185539 | P37: =IFERROR(INDEX('Data Annex'!$K$1:$AO$871,MATCH(Assets!P$1&"|"&Assets!$B37,'Data Annex'!$K$1:$K$871,0),MATCH(Assets!P$2,'Data Annex'!$K$1:$AO$1,0)),"") -> 0.2391291377 | Q37: =IFERROR(INDEX('Data Annex'!$K$1:$AO$871,MATCH(Assets!Q$1&"|"&Assets!$B37,'Data Annex'!$K$1:$K$871,0),MATCH(Assets!Q$2,'Data Annex'!$K$1:$AO$1,0)),"") -> 0.6177429052 | R37: =IFERROR(INDEX('Data Annex'!$K$1:$AO$871,MATCH(Assets!R$1&"|"&Assets!$B37,'Data Annex'!$K$1:$K$871,0),MATCH(Assets!R$2,'Data Annex'!$K$1:$AO$1,0)),"") -> 0.6147340624 | S37: =IFERROR(INDEX('Data Annex'!$K$1:$AO$871,MATCH(Assets!S$1&"|"&Assets!$B37,'Data Annex'!$K$1:$K$871,0),MATCH(Assets!S$2,'Data Annex'!$K$1:$AO$1,0)),"") -> 0.612871151 | T37: =IFERROR(INDEX('Data Annex'!$K$1:$AO$871,MATCH(Assets!T$1&"|"&Assets!$B37,'Data Annex'!$K$1:$K$871,0),MATCH(Assets!T$2,'Data Annex'!$K$1:$AO$1,0)),"") -> 0.5883103017 | U37: =IFERROR(INDEX('Data Annex'!$K$1:$AO$871,MATCH(Assets!U$1&"|"&Assets!$B37,'Data Annex'!$K$1:$K$871,0),MATCH(Assets!U$2,'Data Annex'!$K$1:$AO$1,0)),"") -> 0.0130058759 | V37: =IFERROR(INDEX('Data Annex'!$K$1:$AO$871,MATCH(Assets!V$1&"|"&Assets!$B37,'Data Annex'!$K$1:$K$871,0),MATCH(Assets!V$2,'Data Annex'!$K$1:$AO$1,0)),"") -> 0.010586453 | W37: =IFERROR(INDEX('Data Annex'!$K$1:$AO$871,MATCH(Assets!W$1&"|"&Assets!$B37,'Data Annex'!$K$1:$K$871,0),MATCH(Assets!W$2,'Data Annex'!$K$1:$AO$1,0)),"") -> 0.0118389576 | X37: =IFERROR(INDEX('Data Annex'!$K$1:$AO$871,MATCH(Assets!X$1&"|"&Assets!$B37,'Data Annex'!$K$1:$K$871,0),MATCH(Assets!X$2,'Data Annex'!$K$1:$AO$1,0)),"") -> 0.0103126884 | Y37: =IFERROR(INDEX('Data Annex'!$K$1:$AO$871,MATCH(Assets!Y$1&"|"&Assets!$B37,'Data Annex'!$K$1:$K$871,0),MATCH(Assets!Y$2,'Data Annex'!$K$1:$AO$1,0)),"") -> 0.0703139277 | Z37: =IFERROR(INDEX('Data Annex'!$K$1:$AO$871,MATCH(Assets!Z$1&"|"&Assets!$B37,'Data Annex'!$K$1:$K$871,0),MATCH(Assets!Z$2,'Data Annex'!$K$1:$AO$1,0)),"") -> 0.0664010443 | AA37: =IFERROR(INDEX('Data Annex'!$K$1:$AO$871,MATCH(Assets!AA$1&"|"&Assets!$B37,'Data Annex'!$K$1:$K$871,0),MATCH(Assets!AA$2,'Data Annex'!$K$1:$AO$1,0)),"") -> 0.0656447904 | AB37: =IFERROR(INDEX('Data Annex'!$K$1:$AO$871,MATCH(Assets!AB$1&"|"&Assets!$B37,'Data Annex'!$K$1:$K$871,0),MATCH(Assets!AB$2,'Data Annex'!$K$1:$AO$1,0)),"") -> 0.0588709652 | AC37: =IFERROR(INDEX('Data Annex'!$K$1:$AJ$871,MATCH(Assets!AC$1&"|"&Assets!$B37,'Data Annex'!$K$1:$K$871,0),MATCH(Assets!AC$2,'Data Annex'!$K$1:$AJ$1,0)),"") -> 
B38: RO | D38: RO | E38: =IFERROR(INDEX('Data Annex'!$K$1:$AO$871,MATCH(Assets!E$1&"|"&Assets!$B38,'Data Annex'!$K$1:$K$871,0),MATCH(Assets!E$2,'Data Annex'!$K$1:$AO$1,0)),"") -> 0.1435205236 | F38: =IFERROR(INDEX('Data Annex'!$K$1:$AO$871,MATCH(Assets!F$1&"|"&Assets!$B38,'Data Annex'!$K$1:$K$871,0),MATCH(Assets!F$2,'Data Annex'!$K$1:$AO$1,0)),"") -> 0.1466553682 | G38: =IFERROR(INDEX('Data Annex'!$K$1:$AO$871,MATCH(Assets!G$1&"|"&Assets!$B38,'Data Annex'!$K$1:$K$871,0),MATCH(Assets!G$2,'Data Annex'!$K$1:$AO$1,0)),"") -> 0.1595684364 | H38: =IFERROR(INDEX('Data Annex'!$K$1:$AO$871,MATCH(Assets!H$1&"|"&Assets!$B38,'Data Annex'!$K$1:$K$871,0),MATCH(Assets!H$2,'Data Annex'!$K$1:$AO$1,0)),"") -> 0.1583654416 | I38: =IFERROR(INDEX('Data Annex'!$K$1:$AO$871,MATCH(Assets!I$1&"|"&Assets!$B38,'Data Annex'!$K$1:$K$871,0),MATCH(Assets!I$2,'Data Annex'!$K$1:$AO$1,0)),"") -> 0.0018531037 | J38: =IFERROR(INDEX('Data Annex'!$K$1:$AO$871,MATCH(Assets!J$1&"|"&Assets!$B38,'Data Annex'!$K$1:$K$871,0),MATCH(Assets!J$2,'Data Annex'!$K$1:$AO$1,0)),"") -> 0.0014023862 | K38: =IFERROR(INDEX('Data Annex'!$K$1:$AO$871,MATCH(Assets!K$1&"|"&Assets!$B38,'Data Annex'!$K$1:$K$871,0),MATCH(Assets!K$2,'Data Annex'!$K$1:$AO$1,0)),"") -> 0.0012385923 | L38: =IFERROR(INDEX('Data Annex'!$K$1:$AO$871,MATCH(Assets!L$1&"|"&Assets!$B38,'Data Annex'!$K$1:$K$871,0),MATCH(Assets!L$2,'Data Annex'!$K$1:$AO$1,0)),"") -> 0.0016135904 | M38: =IFERROR(INDEX('Data Annex'!$K$1:$AO$871,MATCH(Assets!M$1&"|"&Assets!$B38,'Data Annex'!$K$1:$K$871,0),MATCH(Assets!M$2,'Data Annex'!$K$1:$AO$1,0)),"") -> 0.2758078738 | N38: =IFERROR(INDEX('Data Annex'!$K$1:$AO$871,MATCH(Assets!N$1&"|"&Assets!$B38,'Data Annex'!$K$1:$K$871,0),MATCH(Assets!N$2,'Data Annex'!$K$1:$AO$1,0)),"") -> 0.2822214625 | O38: =IFERROR(INDEX('Data Annex'!$K$1:$AO$871,MATCH(Assets!O$1&"|"&Assets!$B38,'Data Annex'!$K$1:$K$871,0),MATCH(Assets!O$2,'Data Annex'!$K$1:$AO$1,0)),"") -> 0.2770843173 | P38: =IFERROR(INDEX('Data Annex'!$K$1:$AO$871,MATCH(Assets!P$1&"|"&Assets!$B38,'Data Annex'!$K$1:$K$871,0),MATCH(Assets!P$2,'Data Annex'!$K$1:$AO$1,0)),"") -> 0.2837749906 | Q38: =IFERROR(INDEX('Data Annex'!$K$1:$AO$871,MATCH(Assets!Q$1&"|"&Assets!$B38,'Data Annex'!$K$1:$K$871,0),MATCH(Assets!Q$2,'Data Annex'!$K$1:$AO$1,0)),"") -> 0.549061561 | R38: =IFERROR(INDEX('Data Annex'!$K$1:$AO$871,MATCH(Assets!R$1&"|"&Assets!$B38,'Data Annex'!$K$1:$K$871,0),MATCH(Assets!R$2,'Data Annex'!$K$1:$AO$1,0)),"") -> 0.5420340003 | S38: =IFERROR(INDEX('Data Annex'!$K$1:$AO$871,MATCH(Assets!S$1&"|"&Assets!$B38,'Data Annex'!$K$1:$K$871,0),MATCH(Assets!S$2,'Data Annex'!$K$1:$AO$1,0)),"") -> 0.5356035072 | T38: =IFERROR(INDEX('Data Annex'!$K$1:$AO$871,MATCH(Assets!T$1&"|"&Assets!$B38,'Data Annex'!$K$1:$K$871,0),MATCH(Assets!T$2,'Data Annex'!$K$1:$AO$1,0)),"") -> 0.5297529308 | U38: =IFERROR(INDEX('Data Annex'!$K$1:$AO$871,MATCH(Assets!U$1&"|"&Assets!$B38,'Data Annex'!$K$1:$K$871,0),MATCH(Assets!U$2,'Data Annex'!$K$1:$AO$1,0)),"") -> 0.0012246369 | V38: =IFERROR(INDEX('Data Annex'!$K$1:$AO$871,MATCH(Assets!V$1&"|"&Assets!$B38,'Data Annex'!$K$1:$K$871,0),MATCH(Assets!V$2,'Data Annex'!$K$1:$AO$1,0)),"") -> 0.0007657456 | W38: =IFERROR(INDEX('Data Annex'!$K$1:$AO$871,MATCH(Assets!W$1&"|"&Assets!$B38,'Data Annex'!$K$1:$K$871,0),MATCH(Assets!W$2,'Data Annex'!$K$1:$AO$1,0)),"") -> 0.0010202785 | X38: =IFERROR(INDEX('Data Annex'!$K$1:$AO$871,MATCH(Assets!X$1&"|"&Assets!$B38,'Data Annex'!$K$1:$K$871,0),MATCH(Assets!X$2,'Data Annex'!$K$1:$AO$1,0)),"") -> 0.0010318584 | Y38: =IFERROR(INDEX('Data Annex'!$K$1:$AO$871,MATCH(Assets!Y$1&"|"&Assets!$B38,'Data Annex'!$K$1:$K$871,0),MATCH(Assets!Y$2,'Data Annex'!$K$1:$AO$1,0)),"") -> 0.0285323009 | Z38: =IFERROR(INDEX('Data Annex'!$K$1:$AO$871,MATCH(Assets!Z$1&"|"&Assets!$B38,'Data Annex'!$K$1:$K$871,0),MATCH(Assets!Z$2,'Data Annex'!$K$1:$AO$1,0)),"") -> 0.0269210371 | AA38: =IFERROR(INDEX('Data Annex'!$K$1:$AO$871,MATCH(Assets!AA$1&"|"&Assets!$B38,'Data Annex'!$K$1:$K$871,0),MATCH(Assets!AA$2,'Data Annex'!$K$1:$AO$1,0)),"") -> 0.0254848682 | AB38: =IFERROR(INDEX('Data Annex'!$K$1:$AO$871,MATCH(Assets!AB$1&"|"&Assets!$B38,'Data Annex'!$K$1:$K$871,0),MATCH(Assets!AB$2,'Data Annex'!$K$1:$AO$1,0)),"") -> 0.0254611882
B39: SE | D39: SE | E39: =IFERROR(INDEX('Data Annex'!$K$1:$AO$871,MATCH(Assets!E$1&"|"&Assets!$B39,'Data Annex'!$K$1:$K$871,0),MATCH(Assets!E$2,'Data Annex'!$K$1:$AO$1,0)),"") -> 0.0850806555 | F39: =IFERROR(INDEX('Data Annex'!$K$1:$AO$871,MATCH(Assets!F$1&"|"&Assets!$B39,'Data Annex'!$K$1:$K$871,0),MATCH(Assets!F$2,'Data Annex'!$K$1:$AO$1,0)),"") -> 0.0798720053 | G39: =IFERROR(INDEX('Data Annex'!$K$1:$AO$871,MATCH(Assets!G$1&"|"&Assets!$B39,'Data Annex'!$K$1:$K$871,0),MATCH(Assets!G$2,'Data Annex'!$K$1:$AO$1,0)),"") -> 0.1245545398 | H39: =IFERROR(INDEX('Data Annex'!$K$1:$AO$871,MATCH(Assets!H$1&"|"&Assets!$B39,'Data Annex'!$K$1:$K$871,0),MATCH(Assets!H$2,'Data Annex'!$K$1:$AO$1,0)),"") -> 0.1336866688 | I39: =IFERROR(INDEX('Data Annex'!$K$1:$AO$871,MATCH(Assets!I$1&"|"&Assets!$B39,'Data Annex'!$K$1:$K$871,0),MATCH(Assets!I$2,'Data Annex'!$K$1:$AO$1,0)),"") -> 0.0092388903 | J39: =IFERROR(INDEX('Data Annex'!$K$1:$AO$871,MATCH(Assets!J$1&"|"&Assets!$B39,'Data Annex'!$K$1:$K$871,0),MATCH(Assets!J$2,'Data Annex'!$K$1:$AO$1,0)),"") -> 0.0100148022 | K39: =IFERROR(INDEX('Data Annex'!$K$1:$AO$871,MATCH(Assets!K$1&"|"&Assets!$B39,'Data Annex'!$K$1:$K$871,0),MATCH(Assets!K$2,'Data Annex'!$K$1:$AO$1,0)),"") -> 0.0069238627 | L39: =IFERROR(INDEX('Data Annex'!$K$1:$AO$871,MATCH(Assets!L$1&"|"&Assets!$B39,'Data Annex'!$K$1:$K$871,0),MATCH(Assets!L$2,'Data Annex'!$K$1:$AO$1,0)),"") -> 0.0061961812 | M39: =IFERROR(INDEX('Data Annex'!$K$1:$AO$871,MATCH(Assets!M$1&"|"&Assets!$B39,'Data Annex'!$K$1:$K$871,0),MATCH(Assets!M$2,'Data Annex'!$K$1:$AO$1,0)),"") -> 0.0952442975 | N39: =IFERROR(INDEX('Data Annex'!$K$1:$AO$871,MATCH(Assets!N$1&"|"&Assets!$B39,'Data Annex'!$K$1:$K$871,0),MATCH(Assets!N$2,'Data Annex'!$K$1:$AO$1,0)),"") -> 0.0805686973 | O39: =IFERROR(INDEX('Data Annex'!$K$1:$AO$871,MATCH(Assets!O$1&"|"&Assets!$B39,'Data Annex'!$K$1:$K$871,0),MATCH(Assets!O$2,'Data Annex'!$K$1:$AO$1,0)),"") -> 0.1030574969 | P39: =IFERROR(INDEX('Data Annex'!$K$1:$AO$871,MATCH(Assets!P$1&"|"&Assets!$B39,'Data Annex'!$K$1:$K$871,0),MATCH(Assets!P$2,'Data Annex'!$K$1:$AO$1,0)),"") -> 0.0996669637 | Q39: =IFERROR(INDEX('Data Annex'!$K$1:$AO$871,MATCH(Assets!Q$1&"|"&Assets!$B39,'Data Annex'!$K$1:$K$871,0),MATCH(Assets!Q$2,'Data Annex'!$K$1:$AO$1,0)),"") -> 0.7594112253 | R39: =IFERROR(INDEX('Data Annex'!$K$1:$AO$871,MATCH(Assets!R$1&"|"&Assets!$B39,'Data Annex'!$K$1:$K$871,0),MATCH(Assets!R$2,'Data Annex'!$K$1:$AO$1,0)),"") -> 0.7873306193 | S39: =IFERROR(INDEX('Data Annex'!$K$1:$AO$871,MATCH(Assets!S$1&"|"&Assets!$B39,'Data Annex'!$K$1:$K$871,0),MATCH(Assets!S$2,'Data Annex'!$K$1:$AO$1,0)),"") -> 0.7094452135 | T39: =IFERROR(INDEX('Data Annex'!$K$1:$AO$871,MATCH(Assets!T$1&"|"&Assets!$B39,'Data Annex'!$K$1:$K$871,0),MATCH(Assets!T$2,'Data Annex'!$K$1:$AO$1,0)),"") -> 0.7193962991 | U39: =IFERROR(INDEX('Data Annex'!$K$1:$AO$871,MATCH(Assets!U$1&"|"&Assets!$B39,'Data Annex'!$K$1:$K$871,0),MATCH(Assets!U$2,'Data Annex'!$K$1:$AO$1,0)),"") -> 0.0370251907 | V39: =IFERROR(INDEX('Data Annex'!$K$1:$AO$871,MATCH(Assets!V$1&"|"&Assets!$B39,'Data Annex'!$K$1:$K$871,0),MATCH(Assets!V$2,'Data Annex'!$K$1:$AO$1,0)),"") -> 0.0285306434 | W39: =IFERROR(INDEX('Data Annex'!$K$1:$AO$871,MATCH(Assets!W$1&"|"&Assets!$B39,'Data Annex'!$K$1:$K$871,0),MATCH(Assets!W$2,'Data Annex'!$K$1:$AO$1,0)),"") -> 0.0435837578 | X39: =IFERROR(INDEX('Data Annex'!$K$1:$AO$871,MATCH(Assets!X$1&"|"&Assets!$B39,'Data Annex'!$K$1:$K$871,0),MATCH(Assets!X$2,'Data Annex'!$K$1:$AO$1,0)),"") -> 0.028527136 | Y39: =IFERROR(INDEX('Data Annex'!$K$1:$AO$871,MATCH(Assets!Y$1&"|"&Assets!$B39,'Data Annex'!$K$1:$K$871,0),MATCH(Assets!Y$2,'Data Annex'!$K$1:$AO$1,0)),"") -> 0.0139997407 | Z39: =IFERROR(INDEX('Data Annex'!$K$1:$AO$871,MATCH(Assets!Z$1&"|"&Assets!$B39,'Data Annex'!$K$1:$K$871,0),MATCH(Assets!Z$2,'Data Annex'!$K$1:$AO$1,0)),"") -> 0.0136832326 | AA39: =IFERROR(INDEX('Data Annex'!$K$1:$AO$871,MATCH(Assets!AA$1&"|"&Assets!$B39,'Data Annex'!$K$1:$K$871,0),MATCH(Assets!AA$2,'Data Annex'!$K$1:$AO$1,0)),"") -> 0.0124351292 | AB39: =IFERROR(INDEX('Data Annex'!$K$1:$AO$871,MATCH(Assets!AB$1&"|"&Assets!$B39,'Data Annex'!$K$1:$K$871,0),MATCH(Assets!AB$2,'Data Annex'!$K$1:$AO$1,0)),"") -> 0.0125267512
B40: SI | D40: SI | E40: =IFERROR(INDEX('Data Annex'!$K$1:$AO$871,MATCH(Assets!E$1&"|"&Assets!$B40,'Data Annex'!$K$1:$K$871,0),MATCH(Assets!E$2,'Data Annex'!$K$1:$AO$1,0)),"") -> 0.1208531352 | F40: =IFERROR(INDEX('Data Annex'!$K$1:$AO$871,MATCH(Assets!F$1&"|"&Assets!$B40,'Data Annex'!$K$1:$K$871,0),MATCH(Assets!F$2,'Data Annex'!$K$1:$AO$1,0)),"") -> 0.1580452128 | G40: =IFERROR(INDEX('Data Annex'!$K$1:$AO$871,MATCH(Assets!G$1&"|"&Assets!$B40,'Data Annex'!$K$1:$K$871,0),MATCH(Assets!G$2,'Data Annex'!$K$1:$AO$1,0)),"") -> 0.1367993551 | H40: =IFERROR(INDEX('Data Annex'!$K$1:$AO$871,MATCH(Assets!H$1&"|"&Assets!$B40,'Data Annex'!$K$1:$K$871,0),MATCH(Assets!H$2,'Data Annex'!$K$1:$AO$1,0)),"") -> 0.1911769854 | I40: =IFERROR(INDEX('Data Annex'!$K$1:$AO$871,MATCH(Assets!I$1&"|"&Assets!$B40,'Data Annex'!$K$1:$K$871,0),MATCH(Assets!I$2,'Data Annex'!$K$1:$AO$1,0)),"") -> 0.006615471 | J40: =IFERROR(INDEX('Data Annex'!$K$1:$AO$871,MATCH(Assets!J$1&"|"&Assets!$B40,'Data Annex'!$K$1:$K$871,0),MATCH(Assets!J$2,'Data Annex'!$K$1:$AO$1,0)),"") -> 0.005994278 | K40: =IFERROR(INDEX('Data Annex'!$K$1:$AO$871,MATCH(Assets!K$1&"|"&Assets!$B40,'Data Annex'!$K$1:$K$871,0),MATCH(Assets!K$2,'Data Annex'!$K$1:$AO$1,0)),"") -> 0.005349916 | L40: =IFERROR(INDEX('Data Annex'!$K$1:$AO$871,MATCH(Assets!L$1&"|"&Assets!$B40,'Data Annex'!$K$1:$K$871,0),MATCH(Assets!L$2,'Data Annex'!$K$1:$AO$1,0)),"") -> 0.0051909617 | M40: =IFERROR(INDEX('Data Annex'!$K$1:$AO$871,MATCH(Assets!M$1&"|"&Assets!$B40,'Data Annex'!$K$1:$K$871,0),MATCH(Assets!M$2,'Data Annex'!$K$1:$AO$1,0)),"") -> 0.2718771472 | N40: =IFERROR(INDEX('Data Annex'!$K$1:$AO$871,MATCH(Assets!N$1&"|"&Assets!$B40,'Data Annex'!$K$1:$K$871,0),MATCH(Assets!N$2,'Data Annex'!$K$1:$AO$1,0)),"") -> 0.2588170675 | O40: =IFERROR(INDEX('Data Annex'!$K$1:$AO$871,MATCH(Assets!O$1&"|"&Assets!$B40,'Data Annex'!$K$1:$K$871,0),MATCH(Assets!O$2,'Data Annex'!$K$1:$AO$1,0)),"") -> 0.2354817283 | P40: =IFERROR(INDEX('Data Annex'!$K$1:$AO$871,MATCH(Assets!P$1&"|"&Assets!$B40,'Data Annex'!$K$1:$K$871,0),MATCH(Assets!P$2,'Data Annex'!$K$1:$AO$1,0)),"") -> 0.221532008 | Q40: =IFERROR(INDEX('Data Annex'!$K$1:$AO$871,MATCH(Assets!Q$1&"|"&Assets!$B40,'Data Annex'!$K$1:$K$871,0),MATCH(Assets!Q$2,'Data Annex'!$K$1:$AO$1,0)),"") -> 0.570070124 | R40: =IFERROR(INDEX('Data Annex'!$K$1:$AO$871,MATCH(Assets!R$1&"|"&Assets!$B40,'Data Annex'!$K$1:$K$871,0),MATCH(Assets!R$2,'Data Annex'!$K$1:$AO$1,0)),"") -> 0.5481214965 | S40: =IFERROR(INDEX('Data Annex'!$K$1:$AO$871,MATCH(Assets!S$1&"|"&Assets!$B40,'Data Annex'!$K$1:$K$871,0),MATCH(Assets!S$2,'Data Annex'!$K$1:$AO$1,0)),"") -> 0.5933165746 | T40: =IFERROR(INDEX('Data Annex'!$K$1:$AO$871,MATCH(Assets!T$1&"|"&Assets!$B40,'Data Annex'!$K$1:$K$871,0),MATCH(Assets!T$2,'Data Annex'!$K$1:$AO$1,0)),"") -> 0.5549826725 | U40: =IFERROR(INDEX('Data Annex'!$K$1:$AO$871,MATCH(Assets!U$1&"|"&Assets!$B40,'Data Annex'!$K$1:$K$871,0),MATCH(Assets!U$2,'Data Annex'!$K$1:$AO$1,0)),"") -> 0.0015907784 | V40: =IFERROR(INDEX('Data Annex'!$K$1:$AO$871,MATCH(Assets!V$1&"|"&Assets!$B40,'Data Annex'!$K$1:$K$871,0),MATCH(Assets!V$2,'Data Annex'!$K$1:$AO$1,0)),"") -> 0.0011796421 | W40: =IFERROR(INDEX('Data Annex'!$K$1:$AO$871,MATCH(Assets!W$1&"|"&Assets!$B40,'Data Annex'!$K$1:$K$871,0),MATCH(Assets!W$2,'Data Annex'!$K$1:$AO$1,0)),"") -> 0.001694995 | X40: =IFERROR(INDEX('Data Annex'!$K$1:$AO$871,MATCH(Assets!X$1&"|"&Assets!$B40,'Data Annex'!$K$1:$K$871,0),MATCH(Assets!X$2,'Data Annex'!$K$1:$AO$1,0)),"") -> 0.001462927 | Y40: =IFERROR(INDEX('Data Annex'!$K$1:$AO$871,MATCH(Assets!Y$1&"|"&Assets!$B40,'Data Annex'!$K$1:$K$871,0),MATCH(Assets!Y$2,'Data Annex'!$K$1:$AO$1,0)),"") -> 0.0289933442 | Z40: =IFERROR(INDEX('Data Annex'!$K$1:$AO$871,MATCH(Assets!Z$1&"|"&Assets!$B40,'Data Annex'!$K$1:$K$871,0),MATCH(Assets!Z$2,'Data Annex'!$K$1:$AO$1,0)),"") -> 0.0278423465 | AA40: =IFERROR(INDEX('Data Annex'!$K$1:$AO$871,MATCH(Assets!AA$1&"|"&Assets!$B40,'Data Annex'!$K$1:$K$871,0),MATCH(Assets!AA$2,'Data Annex'!$K$1:$AO$1,0)),"") -> 0.0273573559 | AB40: =IFERROR(INDEX('Data Annex'!$K$1:$AO$871,MATCH(Assets!AB$1&"|"&Assets!$B40,'Data Annex'!$K$1:$K$871,0),MATCH(Assets!AB$2,'Data Annex'!$K$1:$AO$1,0)),"") -> 0.0256544089
B41: SK | D41: =IF(OR(E41="n.a.",F41="n.a.",G41="n.a.",H41="n.a.",I41="n.a.",J41="n.a.",K41="n.a.",L41="n.a.",M41="n.a.",N41="n.a.",O41="n.a.",P41="n.a.",Q41="n.a.",R41="n.a.",S41="n.a.",T41="n.a.",U41="n.a.",V41="n.a.",W41="n.a.",X41="n.a.",Y41="n.a.",Z41="n.a.",AA41="n.a.",AB41="n.a."),$B41&"*",$B41) -> SK | E41: =IFERROR(INDEX('Data Annex'!$K$1:$AO$871,MATCH(Assets!E$1&"|"&Assets!$B41,'Data Annex'!$K$1:$K$871,0),MATCH(Assets!E$2,'Data Annex'!$K$1:$AO$1,0)),"") -> 0.0458734448 | F41: =IFERROR(INDEX('Data Annex'!$K$1:$AO$871,MATCH(Assets!F$1&"|"&Assets!$B41,'Data Annex'!$K$1:$K$871,0),MATCH(Assets!F$2,'Data Annex'!$K$1:$AO$1,0)),"") -> 0.052559146 | G41: =IFERROR(INDEX('Data Annex'!$K$1:$AO$871,MATCH(Assets!G$1&"|"&Assets!$B41,'Data Annex'!$K$1:$K$871,0),MATCH(Assets!G$2,'Data Annex'!$K$1:$AO$1,0)),"") -> 0.0427070065 | H41: =IFERROR(INDEX('Data Annex'!$K$1:$AO$871,MATCH(Assets!H$1&"|"&Assets!$B41,'Data Annex'!$K$1:$K$871,0),MATCH(Assets!H$2,'Data Annex'!$K$1:$AO$1,0)),"") -> 0.0522861265 | I41: =IFERROR(INDEX('Data Annex'!$K$1:$AO$871,MATCH(Assets!I$1&"|"&Assets!$B41,'Data Annex'!$K$1:$K$871,0),MATCH(Assets!I$2,'Data Annex'!$K$1:$AO$1,0)),"") -> 0.0028559954 | J41: =IFERROR(INDEX('Data Annex'!$K$1:$AO$871,MATCH(Assets!J$1&"|"&Assets!$B41,'Data Annex'!$K$1:$K$871,0),MATCH(Assets!J$2,'Data Annex'!$K$1:$AO$1,0)),"") -> 0.0028723221 | K41: =IFERROR(INDEX('Data Annex'!$K$1:$AO$871,MATCH(Assets!K$1&"|"&Assets!$B41,'Data Annex'!$K$1:$K$871,0),MATCH(Assets!K$2,'Data Annex'!$K$1:$AO$1,0)),"") -> 0.0009596223 | L41: =IFERROR(INDEX('Data Annex'!$K$1:$AO$871,MATCH(Assets!L$1&"|"&Assets!$B41,'Data Annex'!$K$1:$K$871,0),MATCH(Assets!L$2,'Data Annex'!$K$1:$AO$1,0)),"") -> 0.0009959384 | M41: =IFERROR(INDEX('Data Annex'!$K$1:$AO$871,MATCH(Assets!M$1&"|"&Assets!$B41,'Data Annex'!$K$1:$K$871,0),MATCH(Assets!M$2,'Data Annex'!$K$1:$AO$1,0)),"") -> 0.1268972191 | N41: =IFERROR(INDEX('Data Annex'!$K$1:$AO$871,MATCH(Assets!N$1&"|"&Assets!$B41,'Data Annex'!$K$1:$K$871,0),MATCH(Assets!N$2,'Data Annex'!$K$1:$AO$1,0)),"") -> 0.1374199865 | O41: =IFERROR(INDEX('Data Annex'!$K$1:$AO$871,MATCH(Assets!O$1&"|"&Assets!$B41,'Data Annex'!$K$1:$K$871,0),MATCH(Assets!O$2,'Data Annex'!$K$1:$AO$1,0)),"") -> 0.1348033234 | P41: =IFERROR(INDEX('Data Annex'!$K$1:$AO$871,MATCH(Assets!P$1&"|"&Assets!$B41,'Data Annex'!$K$1:$K$871,0),MATCH(Assets!P$2,'Data Annex'!$K$1:$AO$1,0)),"") -> 0.1548088841 | Q41: =IFERROR(INDEX('Data Annex'!$K$1:$AO$871,MATCH(Assets!Q$1&"|"&Assets!$B41,'Data Annex'!$K$1:$K$871,0),MATCH(Assets!Q$2,'Data Annex'!$K$1:$AO$1,0)),"") -> 0.7977551384 | R41: =IFERROR(INDEX('Data Annex'!$K$1:$AO$871,MATCH(Assets!R$1&"|"&Assets!$B41,'Data Annex'!$K$1:$K$871,0),MATCH(Assets!R$2,'Data Annex'!$K$1:$AO$1,0)),"") -> 0.7840559416 | S41: =IFERROR(INDEX('Data Annex'!$K$1:$AO$871,MATCH(Assets!S$1&"|"&Assets!$B41,'Data Annex'!$K$1:$K$871,0),MATCH(Assets!S$2,'Data Annex'!$K$1:$AO$1,0)),"") -> 0.7968015689 | T41: =IFERROR(INDEX('Data Annex'!$K$1:$AO$871,MATCH(Assets!T$1&"|"&Assets!$B41,'Data Annex'!$K$1:$K$871,0),MATCH(Assets!T$2,'Data Annex'!$K$1:$AO$1,0)),"") -> 0.7677594642 | U41: =IFERROR(INDEX('Data Annex'!$K$1:$AO$871,MATCH(Assets!U$1&"|"&Assets!$B41,'Data Annex'!$K$1:$K$871,0),MATCH(Assets!U$2,'Data Annex'!$K$1:$AO$1,0)),"") -> 0.0062830506 | V41: =IFERROR(INDEX('Data Annex'!$K$1:$AO$871,MATCH(Assets!V$1&"|"&Assets!$B41,'Data Annex'!$K$1:$K$871,0),MATCH(Assets!V$2,'Data Annex'!$K$1:$AO$1,0)),"") -> 0.0039557479 | W41: =IFERROR(INDEX('Data Annex'!$K$1:$AO$871,MATCH(Assets!W$1&"|"&Assets!$B41,'Data Annex'!$K$1:$K$871,0),MATCH(Assets!W$2,'Data Annex'!$K$1:$AO$1,0)),"") -> 0.0053179192 | X41: =IFERROR(INDEX('Data Annex'!$K$1:$AO$871,MATCH(Assets!X$1&"|"&Assets!$B41,'Data Annex'!$K$1:$K$871,0),MATCH(Assets!X$2,'Data Annex'!$K$1:$AO$1,0)),"") -> 0.0052994906 | Y41: =IFERROR(INDEX('Data Annex'!$K$1:$AO$871,MATCH(Assets!Y$1&"|"&Assets!$B41,'Data Annex'!$K$1:$K$871,0),MATCH(Assets!Y$2,'Data Annex'!$K$1:$AO$1,0)),"") -> 0.0203351517 | Z41: =IFERROR(INDEX('Data Annex'!$K$1:$AO$871,MATCH(Assets!Z$1&"|"&Assets!$B41,'Data Annex'!$K$1:$K$871,0),MATCH(Assets!Z$2,'Data Annex'!$K$1:$AO$1,0)),"") -> 0.0191368559 | AA41: =IFERROR(INDEX('Data Annex'!$K$1:$AO$871,MATCH(Assets!AA$1&"|"&Assets!$B41,'Data Annex'!$K$1:$K$871,0),MATCH(Assets!AA$2,'Data Annex'!$K$1:$AO$1,0)),"") -> 0.0194105597 | AB41: =IFERROR(INDEX('Data Annex'!$K$1:$AO$871,MATCH(Assets!AB$1&"|"&Assets!$B41,'Data Annex'!$K$1:$K$871,0),MATCH(Assets!AB$2,'Data Annex'!$K$1:$AO$1,0)),"") -> 0.0188500961
B42: EU | D42: EU/EEA | E42: =IFERROR(INDEX('Data Annex'!$K$1:$AO$871,MATCH(Assets!E$1&"|"&Assets!$B42,'Data Annex'!$K$1:$K$871,0),MATCH(Assets!E$2,'Data Annex'!$K$1:$AO$1,0)),"") -> 0.0787375269 | F42: =IFERROR(INDEX('Data Annex'!$K$1:$AO$871,MATCH(Assets!F$1&"|"&Assets!$B42,'Data Annex'!$K$1:$K$871,0),MATCH(Assets!F$2,'Data Annex'!$K$1:$AO$1,0)),"") -> 0.0796510543 | G42: =IFERROR(INDEX('Data Annex'!$K$1:$AO$871,MATCH(Assets!G$1&"|"&Assets!$B42,'Data Annex'!$K$1:$K$871,0),MATCH(Assets!G$2,'Data Annex'!$K$1:$AO$1,0)),"") -> 0.0874058562 | H42: =IFERROR(INDEX('Data Annex'!$K$1:$AO$871,MATCH(Assets!H$1&"|"&Assets!$B42,'Data Annex'!$K$1:$K$871,0),MATCH(Assets!H$2,'Data Annex'!$K$1:$AO$1,0)),"") -> 0.110370146 | I42: =IFERROR(INDEX('Data Annex'!$K$1:$AO$871,MATCH(Assets!I$1&"|"&Assets!$B42,'Data Annex'!$K$1:$K$871,0),MATCH(Assets!I$2,'Data Annex'!$K$1:$AO$1,0)),"") -> 0.0172386428 | J42: =IFERROR(INDEX('Data Annex'!$K$1:$AO$871,MATCH(Assets!J$1&"|"&Assets!$B42,'Data Annex'!$K$1:$K$871,0),MATCH(Assets!J$2,'Data Annex'!$K$1:$AO$1,0)),"") -> 0.0191313723 | K42: =IFERROR(INDEX('Data Annex'!$K$1:$AO$871,MATCH(Assets!K$1&"|"&Assets!$B42,'Data Annex'!$K$1:$K$871,0),MATCH(Assets!K$2,'Data Annex'!$K$1:$AO$1,0)),"") -> 0.0106779981 | L42: =IFERROR(INDEX('Data Annex'!$K$1:$AO$871,MATCH(Assets!L$1&"|"&Assets!$B42,'Data Annex'!$K$1:$K$871,0),MATCH(Assets!L$2,'Data Annex'!$K$1:$AO$1,0)),"") -> 0.0117370201 | M42: =IFERROR(INDEX('Data Annex'!$K$1:$AO$871,MATCH(Assets!M$1&"|"&Assets!$B42,'Data Annex'!$K$1:$K$871,0),MATCH(Assets!M$2,'Data Annex'!$K$1:$AO$1,0)),"") -> 0.1324826745 | N42: =IFERROR(INDEX('Data Annex'!$K$1:$AO$871,MATCH(Assets!N$1&"|"&Assets!$B42,'Data Annex'!$K$1:$K$871,0),MATCH(Assets!N$2,'Data Annex'!$K$1:$AO$1,0)),"") -> 0.1317685529 | O42: =IFERROR(INDEX('Data Annex'!$K$1:$AO$871,MATCH(Assets!O$1&"|"&Assets!$B42,'Data Annex'!$K$1:$K$871,0),MATCH(Assets!O$2,'Data Annex'!$K$1:$AO$1,0)),"") -> 0.1285121514 | P42: =IFERROR(INDEX('Data Annex'!$K$1:$AO$871,MATCH(Assets!P$1&"|"&Assets!$B42,'Data Annex'!$K$1:$K$871,0),MATCH(Assets!P$2,'Data Annex'!$K$1:$AO$1,0)),"") -> 0.1334714187 | Q42: =IFERROR(INDEX('Data Annex'!$K$1:$AO$871,MATCH(Assets!Q$1&"|"&Assets!$B42,'Data Annex'!$K$1:$K$871,0),MATCH(Assets!Q$2,'Data Annex'!$K$1:$AO$1,0)),"") -> 0.6228036003 | R42: =IFERROR(INDEX('Data Annex'!$K$1:$AO$871,MATCH(Assets!R$1&"|"&Assets!$B42,'Data Annex'!$K$1:$K$871,0),MATCH(Assets!R$2,'Data Annex'!$K$1:$AO$1,0)),"") -> 0.6391553681 | S42: =IFERROR(INDEX('Data Annex'!$K$1:$AO$871,MATCH(Assets!S$1&"|"&Assets!$B42,'Data Annex'!$K$1:$K$871,0),MATCH(Assets!S$2,'Data Annex'!$K$1:$AO$1,0)),"") -> 0.6333966461 | T42: =IFERROR(INDEX('Data Annex'!$K$1:$AO$871,MATCH(Assets!T$1&"|"&Assets!$B42,'Data Annex'!$K$1:$K$871,0),MATCH(Assets!T$2,'Data Annex'!$K$1:$AO$1,0)),"") -> 0.6202867757 | U42: =IFERROR(INDEX('Data Annex'!$K$1:$AO$871,MATCH(Assets!U$1&"|"&Assets!$B42,'Data Annex'!$K$1:$K$871,0),MATCH(Assets!U$2,'Data Annex'!$K$1:$AO$1,0)),"") -> 0.0950678742 | V42: =IFERROR(INDEX('Data Annex'!$K$1:$AO$871,MATCH(Assets!V$1&"|"&Assets!$B42,'Data Annex'!$K$1:$K$871,0),MATCH(Assets!V$2,'Data Annex'!$K$1:$AO$1,0)),"") -> 0.0816184678 | W42: =IFERROR(INDEX('Data Annex'!$K$1:$AO$871,MATCH(Assets!W$1&"|"&Assets!$B42,'Data Annex'!$K$1:$K$871,0),MATCH(Assets!W$2,'Data Annex'!$K$1:$AO$1,0)),"") -> 0.0855856993 | X42: =IFERROR(INDEX('Data Annex'!$K$1:$AO$871,MATCH(Assets!X$1&"|"&Assets!$B42,'Data Annex'!$K$1:$K$871,0),MATCH(Assets!X$2,'Data Annex'!$K$1:$AO$1,0)),"") -> 0.073817189 | Y42: =IFERROR(INDEX('Data Annex'!$K$1:$AO$871,MATCH(Assets!Y$1&"|"&Assets!$B42,'Data Annex'!$K$1:$K$871,0),MATCH(Assets!Y$2,'Data Annex'!$K$1:$AO$1,0)),"") -> 0.0536696813 | Z42: =IFERROR(INDEX('Data Annex'!$K$1:$AO$871,MATCH(Assets!Z$1&"|"&Assets!$B42,'Data Annex'!$K$1:$K$871,0),MATCH(Assets!Z$2,'Data Annex'!$K$1:$AO$1,0)),"") -> 0.051822046 | AA42: =IFERROR(INDEX('Data Annex'!$K$1:$AO$871,MATCH(Assets!AA$1&"|"&Assets!$B42,'Data Annex'!$K$1:$K$871,0),MATCH(Assets!AA$2,'Data Annex'!$K$1:$AO$1,0)),"") -> 0.0544216489 | AB42: =IFERROR(INDEX('Data Annex'!$K$1:$AO$871,MATCH(Assets!AB$1&"|"&Assets!$B42,'Data Annex'!$K$1:$K$871,0),MATCH(Assets!AB$2,'Data Annex'!$K$1:$AO$1,0)),"") -> 0.0503207015
B43: GB | D43: =IF(OR(E43="n.a.",F43="n.a.",G43="n.a.",H43="n.a.",I43="n.a.",J43="n.a.",K43="n.a.",L43="n.a.",M43="n.a.",N43="n.a.",O43="n.a.",P43="n.a.",Q43="n.a.",R43="n.a.",S43="n.a.",T43="n.a.",U43="n.a.",V43="n.a.",W43="n.a.",X43="n.a.",Y43="n.a.",Z43="n.a.",AA43="n.a.",AB43="n.a."),$B43&"*",$B43) -> GB | E43: =IFERROR(INDEX('Data Annex'!$K$1:$AO$871,MATCH(Assets!E$1&"|"&Assets!$B43,'Data Annex'!$K$1:$K$871,0),MATCH(Assets!E$2,'Data Annex'!$K$1:$AO$1,0)),"") -> 0.0834920164 | F43: =IFERROR(INDEX('Data Annex'!$K$1:$AO$871,MATCH(Assets!F$1&"|"&Assets!$B43,'Data Annex'!$K$1:$K$871,0),MATCH(Assets!F$2,'Data Annex'!$K$1:$AO$1,0)),"") -> 0.0882125829 | G43: =IFERROR(INDEX('Data Annex'!$K$1:$AO$871,MATCH(Assets!G$1&"|"&Assets!$B43,'Data Annex'!$K$1:$K$871,0),MATCH(Assets!G$2,'Data Annex'!$K$1:$AO$1,0)),"") -> 0.0848565252 | H43: =IFERROR(INDEX('Data Annex'!$K$1:$AO$871,MATCH(Assets!H$1&"|"&Assets!$B43,'Data Annex'!$K$1:$K$871,0),MATCH(Assets!H$2,'Data Annex'!$K$1:$AO$1,0)),"") -> 0.1064568241 | I43: =IFERROR(INDEX('Data Annex'!$K$1:$AO$871,MATCH(Assets!I$1&"|"&Assets!$B43,'Data Annex'!$K$1:$K$871,0),MATCH(Assets!I$2,'Data Annex'!$K$1:$AO$1,0)),"") -> 0.0260596651 | J43: =IFERROR(INDEX('Data Annex'!$K$1:$AO$871,MATCH(Assets!J$1&"|"&Assets!$B43,'Data Annex'!$K$1:$K$871,0),MATCH(Assets!J$2,'Data Annex'!$K$1:$AO$1,0)),"") -> 0.0328226512 | K43: =IFERROR(INDEX('Data Annex'!$K$1:$AO$871,MATCH(Assets!K$1&"|"&Assets!$B43,'Data Annex'!$K$1:$K$871,0),MATCH(Assets!K$2,'Data Annex'!$K$1:$AO$1,0)),"") -> 0.0165040584 | L43: =IFERROR(INDEX('Data Annex'!$K$1:$AO$871,MATCH(Assets!L$1&"|"&Assets!$B43,'Data Annex'!$K$1:$K$871,0),MATCH(Assets!L$2,'Data Annex'!$K$1:$AO$1,0)),"") -> 0.0212366257 | M43: =IFERROR(INDEX('Data Annex'!$K$1:$AO$871,MATCH(Assets!M$1&"|"&Assets!$B43,'Data Annex'!$K$1:$K$871,0),MATCH(Assets!M$2,'Data Annex'!$K$1:$AO$1,0)),"") -> 0.1437831578 | N43: =IFERROR(INDEX('Data Annex'!$K$1:$AO$871,MATCH(Assets!N$1&"|"&Assets!$B43,'Data Annex'!$K$1:$K$871,0),MATCH(Assets!N$2,'Data Annex'!$K$1:$AO$1,0)),"") -> 0.1452245272 | O43: =IFERROR(INDEX('Data Annex'!$K$1:$AO$871,MATCH(Assets!O$1&"|"&Assets!$B43,'Data Annex'!$K$1:$K$871,0),MATCH(Assets!O$2,'Data Annex'!$K$1:$AO$1,0)),"") -> 0.1353087562 | P43: =IFERROR(INDEX('Data Annex'!$K$1:$AO$871,MATCH(Assets!P$1&"|"&Assets!$B43,'Data Annex'!$K$1:$K$871,0),MATCH(Assets!P$2,'Data Annex'!$K$1:$AO$1,0)),"") -> 0.1420316069 | Q43: =IFERROR(INDEX('Data Annex'!$K$1:$AO$871,MATCH(Assets!Q$1&"|"&Assets!$B43,'Data Annex'!$K$1:$K$871,0),MATCH(Assets!Q$2,'Data Annex'!$K$1:$AO$1,0)),"") -> 0.5510111292 | R43: =IFERROR(INDEX('Data Annex'!$K$1:$AO$871,MATCH(Assets!R$1&"|"&Assets!$B43,'Data Annex'!$K$1:$K$871,0),MATCH(Assets!R$2,'Data Annex'!$K$1:$AO$1,0)),"") -> 0.5671032168 | S43: =IFERROR(INDEX('Data Annex'!$K$1:$AO$871,MATCH(Assets!S$1&"|"&Assets!$B43,'Data Annex'!$K$1:$K$871,0),MATCH(Assets!S$2,'Data Annex'!$K$1:$AO$1,0)),"") -> 0.5404571479 | T43: =IFERROR(INDEX('Data Annex'!$K$1:$AO$871,MATCH(Assets!T$1&"|"&Assets!$B43,'Data Annex'!$K$1:$K$871,0),MATCH(Assets!T$2,'Data Annex'!$K$1:$AO$1,0)),"") -> 0.5277939144 | U43: =IFERROR(INDEX('Data Annex'!$K$1:$AO$871,MATCH(Assets!U$1&"|"&Assets!$B43,'Data Annex'!$K$1:$K$871,0),MATCH(Assets!U$2,'Data Annex'!$K$1:$AO$1,0)),"") -> 0.1503988853 | V43: =IFERROR(INDEX('Data Annex'!$K$1:$AO$871,MATCH(Assets!V$1&"|"&Assets!$B43,'Data Annex'!$K$1:$K$871,0),MATCH(Assets!V$2,'Data Annex'!$K$1:$AO$1,0)),"") -> 0.1362002172 | W43: =IFERROR(INDEX('Data Annex'!$K$1:$AO$871,MATCH(Assets!W$1&"|"&Assets!$B43,'Data Annex'!$K$1:$K$871,0),MATCH(Assets!W$2,'Data Annex'!$K$1:$AO$1,0)),"") -> 0.1778297434 | X43: =IFERROR(INDEX('Data Annex'!$K$1:$AO$871,MATCH(Assets!X$1&"|"&Assets!$B43,'Data Annex'!$K$1:$K$871,0),MATCH(Assets!X$2,'Data Annex'!$K$1:$AO$1,0)),"") -> 0.1556732591 | Y43: =IFERROR(INDEX('Data Annex'!$K$1:$AO$871,MATCH(Assets!Y$1&"|"&Assets!$B43,'Data Annex'!$K$1:$K$871,0),MATCH(Assets!Y$2,'Data Annex'!$K$1:$AO$1,0)),"") -> 0.0452551461 | Z43: =IFERROR(INDEX('Data Annex'!$K$1:$AO$871,MATCH(Assets!Z$1&"|"&Assets!$B43,'Data Annex'!$K$1:$K$871,0),MATCH(Assets!Z$2,'Data Annex'!$K$1:$AO$1,0)),"") -> 0.0443838259 | AA43: =IFERROR(INDEX('Data Annex'!$K$1:$AO$871,MATCH(Assets!AA$1&"|"&Assets!$B43,'Data Annex'!$K$1:$K$871,0),MATCH(Assets!AA$2,'Data Annex'!$K$1:$AO$1,0)),"") -> 0.0450437689 | AB43: =IFERROR(INDEX('Data Annex'!$K$1:$AO$871,MATCH(Assets!AB$1&"|"&Assets!$B43,'Data Annex'!$K$1:$K$871,0),MATCH(Assets!AB$2,'Data Annex'!$K$1:$AO$1,0)),"") -> 0.0446895751 | AC43: =IFERROR(INDEX('Data Annex'!$K$1:$AJ$871,MATCH(Assets!AC$1&"|"&Assets!$B43,'Data Annex'!$K$1:$K$871,0),MATCH(Assets!AC$2,'Data Annex'!$K$1:$AJ$1,0)),"") -> 
F46: T02_1 | G46: T02_1 | H46: T02_1 | I46: T02_1 | J46: T02_2 | K46: T02_2 | L46: T02_2 | M46: T02_2 | P46: T03_1 | Q46: T03_1 | R46: T03_1 | S46: T03_1 | T46: T03_1 | U46: T03_2 | V46: T03_2 | W46: T03_2 | X46: T03_2 | Y46: T03_3 | Z46: T03_3 | AA46: T03_3 | AB46: T03_3
F47: =TEXT(F52,"YYYYMM")+0 -> 201909 | G47: 201912 | H47: 202003 | I47: 202006 | J47: 201909 | K47: 201912 | L47: 202003 | M47: 202006 | Q47: =TEXT(Q52,"YYYYMM")+0 -> 201909 | R47: =TEXT(R52,"YYYYMM")+0 -> 201912 | S47: =TEXT(S52,"YYYYMM")+0 -> 202003 | T47: =TEXT(T52,"YYYYMM")+0 -> 202006 | U47: =TEXT(U52,"YYYYMM")+0 -> 201909 | V47: 201912 | W47: 202003 | X47: 202006 | Y47: 201909 | Z47: 201912 | AA47: 202003 | AB47: 202006
D48: Assets | O48: Financial Assets
D50: Volumes bn EUR | O50: % of total financial assets
F51: Total Assets | J51: Total Financial Assets | Q51: Share of financial assets valued at (amortised) cost | U51: Share of financial assets at fair value through OCI | Y51: Share of financial assets at fair value through profit&loss
F52: =EOMONTH($A$3,-9) -> 2019-09-30 | G52: =EOMONTH($A$3,-6) -> 2019-12-31 | H52: =EOMONTH($A$3,-3) -> 2020-03-31 | I52: =$A$3 -> 2020-06-01 | J52: =EOMONTH($A$3,-9) -> 2019-09-30 | K52: =EOMONTH($A$3,-6) -> 2019-12-31 | L52: =EOMONTH($A$3,-3) -> 2020-03-31 | M52: =$A$3 -> 2020-06-01 | Q52: =EOMONTH($A$3,-9) -> 2019-09-30 | R52: =EOMONTH($A$3,-6) -> 2019-12-31 | S52: =EOMONTH($A$3,-3) -> 2020-03-31 | T52: =$A$3 -> 2020-06-01 | U52: =EOMONTH($A$3,-9) -> 2019-09-30 | V52: =EOMONTH($A$3,-6) -> 2019-12-31 | W52: =EOMONTH($A$3,-3) -> 2020-03-31 | X52: =$A$3 -> 2020-06-01 | Y52: =EOMONTH($A$3,-9) -> 2019-09-30 | Z52: =EOMONTH($A$3,-6) -> 2019-12-31 | AA52: =EOMONTH($A$3,-3) -> 2020-03-31 | AB52: =$A$3 -> 2020-06-01
B53: AT | D53: =IF(OR(F53="n.a.",G53="n.a.",H53="n.a.",I53="n.a.",J53="n.a.",K53="n.a.",L53="n.a.",M53="n.a."),$B53&"*",$B53) -> AT | F53: =IFERROR(INDEX('Data Annex'!$K$1:$AO$871,MATCH(Assets!F$46&"|"&Assets!$B53,'Data Annex'!$K$1:$K$871,0),MATCH(Assets!F$47,'Data Annex'!$K$1:$AO$1,0)),"") -> 631.7959047 | G53: =IFERROR(INDEX('Data Annex'!$K$1:$AO$871,MATCH(Assets!G$46&"|"&Assets!$B53,'Data Annex'!$K$1:$K$871,0),MATCH(Assets!G$47,'Data Annex'!$K$1:$AO$1,0)),"") -> 627.8517257 | H53: =IFERROR(INDEX('Data Annex'!$K$1:$AO$871,MATCH(Assets!H$46&"|"&Assets!$B53,'Data Annex'!$K$1:$K$871,0),MATCH(Assets!H$47,'Data Annex'!$K$1:$AO$1,0)),"") -> 650.3351427 | I53: =IFERROR(INDEX('Data Annex'!$K$1:$AO$871,MATCH(Assets!I$46&"|"&Assets!$B53,'Data Annex'!$K$1:$K$871,0),MATCH(Assets!I$47,'Data Annex'!$K$1:$AO$1,0)),"") -> 683.4007252 | J53: =IFERROR(INDEX('Data Annex'!$K$1:$AO$871,MATCH(Assets!J$46&"|"&Assets!$B53,'Data Annex'!$K$1:$K$871,0),MATCH(Assets!J$47,'Data Annex'!$K$1:$AO$1,0)),"") -> 608.6523839 | K53: =IFERROR(INDEX('Data Annex'!$K$1:$AO$871,MATCH(Assets!K$46&"|"&Assets!$B53,'Data Annex'!$K$1:$K$871,0),MATCH(Assets!K$47,'Data Annex'!$K$1:$AO$1,0)),"") -> 604.5492597 | L53: =IFERROR(INDEX('Data Annex'!$K$1:$AO$871,MATCH(Assets!L$46&"|"&Assets!$B53,'Data Annex'!$K$1:$K$871,0),MATCH(Assets!L$47,'Data Annex'!$K$1:$AO$1,0)),"") -> 627.5578988 | M53: =IFERROR(INDEX('Data Annex'!$K$1:$AO$871,MATCH(Assets!M$46&"|"&Assets!$B53,'Data Annex'!$K$1:$K$871,0),MATCH(Assets!M$47,'Data Annex'!$K$1:$AO$1,0)),"") -> 660.643585 | N53: =M53/I53 -> 0.966700152 | O53: =+D53 -> AT | Q53: =IFERROR(INDEX('Data Annex'!$K$1:$AO$871,MATCH(Assets!Q$46&"|"&Assets!$B53,'Data Annex'!$K$1:$K$871,0),MATCH(Assets!Q$47,'Data Annex'!$K$1:$AO$1,0)),"") -> 0.8877210353 | R53: =IFERROR(INDEX('Data Annex'!$K$1:$AO$871,MATCH(Assets!R$46&"|"&Assets!$B53,'Data Annex'!$K$1:$K$871,0),MATCH(Assets!R$47,'Data Annex'!$K$1:$AO$1,0)),"") -> 0.8932203085 | S53: =IFERROR(INDEX('Data Annex'!$K$1:$AO$871,MATCH(Assets!S$46&"|"&Assets!$B53,'Data Annex'!$K$1:$K$871,0),MATCH(Assets!S$47,'Data Annex'!$K$1:$AO$1,0)),"") -> 0.8905835008 | T53: =IFERROR(INDEX('Data Annex'!$K$1:$AO$871,MATCH(Assets!T$46&"|"&Assets!$B53,'Data Annex'!$K$1:$K$871,0),MATCH(Assets!T$47,'Data Annex'!$K$1:$AO$1,0)),"") -> 0.8968952138 | U53: =IFERROR(INDEX('Data Annex'!$K$1:$AO$871,MATCH(Assets!U$46&"|"&Assets!$B53,'Data Annex'!$K$1:$K$871,0),MATCH(Assets!U$47,'Data Annex'!$K$1:$AO$1,0)),"") -> 0.0614904722 | V53: =IFERROR(INDEX('Data Annex'!$K$1:$AO$871,MATCH(Assets!V$46&"|"&Assets!$B53,'Data Annex'!$K$1:$K$871,0),MATCH(Assets!V$47,'Data Annex'!$K$1:$AO$1,0)),"") -> 0.0626507729 | W53: =IFERROR(INDEX('Data Annex'!$K$1:$AO$871,MATCH(Assets!W$46&"|"&Assets!$B53,'Data Annex'!$K$1:$K$871,0),MATCH(Assets!W$47,'Data Annex'!$K$1:$AO$1,0)),"") -> 0.0614478503 | X53: =IFERROR(INDEX('Data Annex'!$K$1:$AO$871,MATCH(Assets!X$46&"|"&Assets!$B53,'Data Annex'!$K$1:$K$871,0),MATCH(Assets!X$47,'Data Annex'!$K$1:$AO$1,0)),"") -> 0.0609447226 | Y53: =IFERROR(INDEX('Data Annex'!$K$1:$AO$871,MATCH(Assets!Y$46&"|"&Assets!$B53,'Data Annex'!$K$1:$K$871,0),MATCH(Assets!Y$47,'Data Annex'!$K$1:$AO$1,0)),"") -> 0.0507884925 | Z53: =IFERROR(INDEX('Data Annex'!$K$1:$AO$871,MATCH(Assets!Z$46&"|"&Assets!$B53,'Data Annex'!$K$1:$K$871,0),MATCH(Assets!Z$47,'Data Annex'!$K$1:$AO$1,0)),"") -> 0.0441289187 | AA53: =IFERROR(INDEX('Data Annex'!$K$1:$AO$871,MATCH(Assets!AA$46&"|"&Assets!$B53,'Data Annex'!$K$1:$K$871,0),MATCH(Assets!AA$47,'Data Annex'!$K$1:$AO$1,0)),"") -> 0.0479686488 | AB53: =IFERROR(INDEX('Data Annex'!$K$1:$AO$871,MATCH(Assets!AB$46&"|"&Assets!$B53,'Data Annex'!$K$1:$K$871,0),MATCH(Assets!AB$47,'Data Annex'!$K$1:$AO$1,0)),"") -> 0.0421600635
B54: BE | D54: =IF(OR(F54="n.a.",G54="n.a.",H54="n.a.",I54="n.a.",J54="n.a.",K54="n.a.",L54="n.a.",M54="n.a."),$B54&"*",$B54) -> BE | F54: =IFERROR(INDEX('Data Annex'!$K$1:$AO$871,MATCH(Assets!F$46&"|"&Assets!$B54,'Data Annex'!$K$1:$K$871,0),MATCH(Assets!F$47,'Data Annex'!$K$1:$AO$1,0)),"") -> 1162.224144 | G54: =IFERROR(INDEX('Data Annex'!$K$1:$AO$871,MATCH(Assets!G$46&"|"&Assets!$B54,'Data Annex'!$K$1:$K$871,0),MATCH(Assets!G$47,'Data Annex'!$K$1:$AO$1,0)),"") -> 1116.809269 | H54: =IFERROR(INDEX('Data Annex'!$K$1:$AO$871,MATCH(Assets!H$46&"|"&Assets!$B54,'Data Annex'!$K$1:$K$871,0),MATCH(Assets!H$47,'Data Annex'!$K$1:$AO$1,0)),"") -> 1184.206513 | I54: =IFERROR(INDEX('Data Annex'!$K$1:$AO$871,MATCH(Assets!I$46&"|"&Assets!$B54,'Data Annex'!$K$1:$K$871,0),MATCH(Assets!I$47,'Data Annex'!$K$1:$AO$1,0)),"") -> 1203.992874 | J54: =IFERROR(INDEX('Data Annex'!$K$1:$AO$871,MATCH(Assets!J$46&"|"&Assets!$B54,'Data Annex'!$K$1:$K$871,0),MATCH(Assets!J$47,'Data Annex'!$K$1:$AO$1,0)),"") -> 1091.85166 | K54: =IFERROR(INDEX('Data Annex'!$K$1:$AO$871,MATCH(Assets!K$46&"|"&Assets!$B54,'Data Annex'!$K$1:$K$871,0),MATCH(Assets!K$47,'Data Annex'!$K$1:$AO$1,0)),"") -> 1049.59921 | L54: =IFERROR(INDEX('Data Annex'!$K$1:$AO$871,MATCH(Assets!L$46&"|"&Assets!$B54,'Data Annex'!$K$1:$K$871,0),MATCH(Assets!L$47,'Data Annex'!$K$1:$AO$1,0)),"") -> 1113.998201 | M54: =IFERROR(INDEX('Data Annex'!$K$1:$AO$871,MATCH(Assets!M$46&"|"&Assets!$B54,'Data Annex'!$K$1:$K$871,0),MATCH(Assets!M$47,'Data Annex'!$K$1:$AO$1,0)),"") -> 1133.306731 | N54: =M54/I54 -> 0.9412902315 | O54: BE | Q54: =IFERROR(INDEX('Data Annex'!$K$1:$AO$871,MATCH(Assets!Q$46&"|"&Assets!$B54,'Data Annex'!$K$1:$K$871,0),MATCH(Assets!Q$47,'Data Annex'!$K$1:$AO$1,0)),"") -> 0.88450117 | R54: =IFERROR(INDEX('Data Annex'!$K$1:$AO$871,MATCH(Assets!R$46&"|"&Assets!$B54,'Data Annex'!$K$1:$K$871,0),MATCH(Assets!R$47,'Data Annex'!$K$1:$AO$1,0)),"") -> 0.895160655 | S54: =IFERROR(INDEX('Data Annex'!$K$1:$AO$871,MATCH(Assets!S$46&"|"&Assets!$B54,'Data Annex'!$K$1:$K$871,0),MATCH(Assets!S$47,'Data Annex'!$K$1:$AO$1,0)),"") -> 0.8843426539 | T54: =IFERROR(INDEX('Data Annex'!$K$1:$AO$871,MATCH(Assets!T$46&"|"&Assets!$B54,'Data Annex'!$K$1:$K$871,0),MATCH(Assets!T$47,'Data Annex'!$K$1:$AO$1,0)),"") -> 0.8868220369 | U54: =IFERROR(INDEX('Data Annex'!$K$1:$AO$871,MATCH(Assets!U$46&"|"&Assets!$B54,'Data Annex'!$K$1:$K$871,0),MATCH(Assets!U$47,'Data Annex'!$K$1:$AO$1,0)),"") -> 0.0408240938 | V54: =IFERROR(INDEX('Data Annex'!$K$1:$AO$871,MATCH(Assets!V$46&"|"&Assets!$B54,'Data Annex'!$K$1:$K$871,0),MATCH(Assets!V$47,'Data Annex'!$K$1:$AO$1,0)),"") -> 0.0391387976 | W54: =IFERROR(INDEX('Data Annex'!$K$1:$AO$871,MATCH(Assets!W$46&"|"&Assets!$B54,'Data Annex'!$K$1:$K$871,0),MATCH(Assets!W$47,'Data Annex'!$K$1:$AO$1,0)),"") -> 0.0384907027 | X54: =IFERROR(INDEX('Data Annex'!$K$1:$AO$871,MATCH(Assets!X$46&"|"&Assets!$B54,'Data Annex'!$K$1:$K$871,0),MATCH(Assets!X$47,'Data Annex'!$K$1:$AO$1,0)),"") -> 0.0406516805 | Y54: =IFERROR(INDEX('Data Annex'!$K$1:$AO$871,MATCH(Assets!Y$46&"|"&Assets!$B54,'Data Annex'!$K$1:$K$871,0),MATCH(Assets!Y$47,'Data Annex'!$K$1:$AO$1,0)),"") -> 0.0746747363 | Z54: =IFERROR(INDEX('Data Annex'!$K$1:$AO$871,MATCH(Assets!Z$46&"|"&Assets!$B54,'Data Annex'!$K$1:$K$871,0),MATCH(Assets!Z$47,'Data Annex'!$K$1:$AO$1,0)),"") -> 0.0657005474 | AA54: =IFERROR(INDEX('Data Annex'!$K$1:$AO$871,MATCH(Assets!AA$46&"|"&Assets!$B54,'Data Annex'!$K$1:$K$871,0),MATCH(Assets!AA$47,'Data Annex'!$K$1:$AO$1,0)),"") -> 0.0771666434 | AB54: =IFERROR(INDEX('Data Annex'!$K$1:$AO$871,MATCH(Assets!AB$46&"|"&Assets!$B54,'Data Annex'!$K$1:$K$871,0),MATCH(Assets!AB$47,'Data Annex'!$K$1:$AO$1,0)),"") -> 0.0725262826
B55: BG | D55: BG | F55: =IFERROR(INDEX('Data Annex'!$K$1:$AO$871,MATCH(Assets!F$46&"|"&Assets!$B55,'Data Annex'!$K$1:$K$871,0),MATCH(Assets!F$47,'Data Annex'!$K$1:$AO$1,0)),"") -> 33.42308978 | G55: =IFERROR(INDEX('Data Annex'!$K$1:$AO$871,MATCH(Assets!G$46&"|"&Assets!$B55,'Data Annex'!$K$1:$K$871,0),MATCH(Assets!G$47,'Data Annex'!$K$1:$AO$1,0)),"") -> 34.11148993 | H55: =IFERROR(INDEX('Data Annex'!$K$1:$AO$871,MATCH(Assets!H$46&"|"&Assets!$B55,'Data Annex'!$K$1:$K$871,0),MATCH(Assets!H$47,'Data Annex'!$K$1:$AO$1,0)),"") -> 33.88459147 | I55: =IFERROR(INDEX('Data Annex'!$K$1:$AO$871,MATCH(Assets!I$46&"|"&Assets!$B55,'Data Annex'!$K$1:$K$871,0),MATCH(Assets!I$47,'Data Annex'!$K$1:$AO$1,0)),"") -> 34.0637151 | J55: =IFERROR(INDEX('Data Annex'!$K$1:$AO$871,MATCH(Assets!J$46&"|"&Assets!$B55,'Data Annex'!$K$1:$K$871,0),MATCH(Assets!J$47,'Data Annex'!$K$1:$AO$1,0)),"") -> 31.88633551 | K55: =IFERROR(INDEX('Data Annex'!$K$1:$AO$871,MATCH(Assets!K$46&"|"&Assets!$B55,'Data Annex'!$K$1:$K$871,0),MATCH(Assets!K$47,'Data Annex'!$K$1:$AO$1,0)),"") -> 32.49944268 | L55: =IFERROR(INDEX('Data Annex'!$K$1:$AO$871,MATCH(Assets!L$46&"|"&Assets!$B55,'Data Annex'!$K$1:$K$871,0),MATCH(Assets!L$47,'Data Annex'!$K$1:$AO$1,0)),"") -> 32.14101237 | M55: =IFERROR(INDEX('Data Annex'!$K$1:$AO$871,MATCH(Assets!M$46&"|"&Assets!$B55,'Data Annex'!$K$1:$K$871,0),MATCH(Assets!M$47,'Data Annex'!$K$1:$AO$1,0)),"") -> 32.46579303 | N55: 0.9530901996 | O55: BG | Q55: =IFERROR(INDEX('Data Annex'!$K$1:$AO$871,MATCH(Assets!Q$46&"|"&Assets!$B55,'Data Annex'!$K$1:$K$871,0),MATCH(Assets!Q$47,'Data Annex'!$K$1:$AO$1,0)),"") -> 0.8786474961 | R55: =IFERROR(INDEX('Data Annex'!$K$1:$AO$871,MATCH(Assets!R$46&"|"&Assets!$B55,'Data Annex'!$K$1:$K$871,0),MATCH(Assets!R$47,'Data Annex'!$K$1:$AO$1,0)),"") -> 0.8779622579 | S55: =IFERROR(INDEX('Data Annex'!$K$1:$AO$871,MATCH(Assets!S$46&"|"&Assets!$B55,'Data Annex'!$K$1:$K$871,0),MATCH(Assets!S$47,'Data Annex'!$K$1:$AO$1,0)),"") -> 0.8715538943 | T55: =IFERROR(INDEX('Data Annex'!$K$1:$AO$871,MATCH(Assets!T$46&"|"&Assets!$B55,'Data Annex'!$K$1:$K$871,0),MATCH(Assets!T$47,'Data Annex'!$K$1:$AO$1,0)),"") -> 0.8748735798 | U55: =IFERROR(INDEX('Data Annex'!$K$1:$AO$871,MATCH(Assets!U$46&"|"&Assets!$B55,'Data Annex'!$K$1:$K$871,0),MATCH(Assets!U$47,'Data Annex'!$K$1:$AO$1,0)),"") -> 0.1110899288 | V55: =IFERROR(INDEX('Data Annex'!$K$1:$AO$871,MATCH(Assets!V$46&"|"&Assets!$B55,'Data Annex'!$K$1:$K$871,0),MATCH(Assets!V$47,'Data Annex'!$K$1:$AO$1,0)),"") -> 0.1087698374 | W55: =IFERROR(INDEX('Data Annex'!$K$1:$AO$871,MATCH(Assets!W$46&"|"&Assets!$B55,'Data Annex'!$K$1:$K$871,0),MATCH(Assets!W$47,'Data Annex'!$K$1:$AO$1,0)),"") -> 0.1165408173 | X55: =IFERROR(INDEX('Data Annex'!$K$1:$AO$871,MATCH(Assets!X$46&"|"&Assets!$B55,'Data Annex'!$K$1:$K$871,0),MATCH(Assets!X$47,'Data Annex'!$K$1:$AO$1,0)),"") -> 0.1150578335 | Y55: =IFERROR(INDEX('Data Annex'!$K$1:$AO$871,MATCH(Assets!Y$46&"|"&Assets!$B55,'Data Annex'!$K$1:$K$871,0),MATCH(Assets!Y$47,'Data Annex'!$K$1:$AO$1,0)),"") -> 0.0102625751 | Z55: =IFERROR(INDEX('Data Annex'!$K$1:$AO$871,MATCH(Assets!Z$46&"|"&Assets!$B55,'Data Annex'!$K$1:$K$871,0),MATCH(Assets!Z$47,'Data Annex'!$K$1:$AO$1,0)),"") -> 0.0132679047 | AA55: =IFERROR(INDEX('Data Annex'!$K$1:$AO$871,MATCH(Assets!AA$46&"|"&Assets!$B55,'Data Annex'!$K$1:$K$871,0),MATCH(Assets!AA$47,'Data Annex'!$K$1:$AO$1,0)),"") -> 0.0119052884 | AB55: =IFERROR(INDEX('Data Annex'!$K$1:$AO$871,MATCH(Assets!AB$46&"|"&Assets!$B55,'Data Annex'!$K$1:$K$871,0),MATCH(Assets!AB$47,'Data Annex'!$K$1:$AO$1,0)),"") -> 0.0100685867
B56: CY | D56: CY | F56: =IFERROR(INDEX('Data Annex'!$K$1:$AO$871,MATCH(Assets!F$46&"|"&Assets!$B56,'Data Annex'!$K$1:$K$871,0),MATCH(Assets!F$47,'Data Annex'!$K$1:$AO$1,0)),"") -> 36.581959 | G56: =IFERROR(INDEX('Data Annex'!$K$1:$AO$871,MATCH(Assets!G$46&"|"&Assets!$B56,'Data Annex'!$K$1:$K$871,0),MATCH(Assets!G$47,'Data Annex'!$K$1:$AO$1,0)),"") -> 36.476452 | H56: =IFERROR(INDEX('Data Annex'!$K$1:$AO$871,MATCH(Assets!H$46&"|"&Assets!$B56,'Data Annex'!$K$1:$K$871,0),MATCH(Assets!H$47,'Data Annex'!$K$1:$AO$1,0)),"") -> 35.332268 | I56: =IFERROR(INDEX('Data Annex'!$K$1:$AO$871,MATCH(Assets!I$46&"|"&Assets!$B56,'Data Annex'!$K$1:$K$871,0),MATCH(Assets!I$47,'Data Annex'!$K$1:$AO$1,0)),"") -> 36.30966965 | J56: =IFERROR(INDEX('Data Annex'!$K$1:$AO$871,MATCH(Assets!J$46&"|"&Assets!$B56,'Data Annex'!$K$1:$K$871,0),MATCH(Assets!J$47,'Data Annex'!$K$1:$AO$1,0)),"") -> 33.42897 | K56: =IFERROR(INDEX('Data Annex'!$K$1:$AO$871,MATCH(Assets!K$46&"|"&Assets!$B56,'Data Annex'!$K$1:$K$871,0),MATCH(Assets!K$47,'Data Annex'!$K$1:$AO$1,0)),"") -> 33.488944 | L56: =IFERROR(INDEX('Data Annex'!$K$1:$AO$871,MATCH(Assets!L$46&"|"&Assets!$B56,'Data Annex'!$K$1:$K$871,0),MATCH(Assets!L$47,'Data Annex'!$K$1:$AO$1,0)),"") -> 32.356458 | M56: =IFERROR(INDEX('Data Annex'!$K$1:$AO$871,MATCH(Assets!M$46&"|"&Assets!$B56,'Data Annex'!$K$1:$K$871,0),MATCH(Assets!M$47,'Data Annex'!$K$1:$AO$1,0)),"") -> 33.04124488 | N56: 0.9099847287 | O56: CY | Q56: =IFERROR(INDEX('Data Annex'!$K$1:$AO$871,MATCH(Assets!Q$46&"|"&Assets!$B56,'Data Annex'!$K$1:$K$871,0),MATCH(Assets!Q$47,'Data Annex'!$K$1:$AO$1,0)),"") -> 0.9411430864 | R56: =IFERROR(INDEX('Data Annex'!$K$1:$AO$871,MATCH(Assets!R$46&"|"&Assets!$B56,'Data Annex'!$K$1:$K$871,0),MATCH(Assets!R$47,'Data Annex'!$K$1:$AO$1,0)),"") -> 0.945706171 | S56: =IFERROR(INDEX('Data Annex'!$K$1:$AO$871,MATCH(Assets!S$46&"|"&Assets!$B56,'Data Annex'!$K$1:$K$871,0),MATCH(Assets!S$47,'Data Annex'!$K$1:$AO$1,0)),"") -> 0.9483834417 | T56: =IFERROR(INDEX('Data Annex'!$K$1:$AO$871,MATCH(Assets!T$46&"|"&Assets!$B56,'Data Annex'!$K$1:$K$871,0),MATCH(Assets!T$47,'Data Annex'!$K$1:$AO$1,0)),"") -> 0.9543674369 | U56: =IFERROR(INDEX('Data Annex'!$K$1:$AO$871,MATCH(Assets!U$46&"|"&Assets!$B56,'Data Annex'!$K$1:$K$871,0),MATCH(Assets!U$47,'Data Annex'!$K$1:$AO$1,0)),"") -> 0.0461426421 | V56: =IFERROR(INDEX('Data Annex'!$K$1:$AO$871,MATCH(Assets!V$46&"|"&Assets!$B56,'Data Annex'!$K$1:$K$871,0),MATCH(Assets!V$47,'Data Annex'!$K$1:$AO$1,0)),"") -> 0.041623976 | W56: =IFERROR(INDEX('Data Annex'!$K$1:$AO$871,MATCH(Assets!W$46&"|"&Assets!$B56,'Data Annex'!$K$1:$K$871,0),MATCH(Assets!W$47,'Data Annex'!$K$1:$AO$1,0)),"") -> 0.0411619529 | X56: =IFERROR(INDEX('Data Annex'!$K$1:$AO$871,MATCH(Assets!X$46&"|"&Assets!$B56,'Data Annex'!$K$1:$K$871,0),MATCH(Assets!X$47,'Data Annex'!$K$1:$AO$1,0)),"") -> 0.0351523743 | Y56: =IFERROR(INDEX('Data Annex'!$K$1:$AO$871,MATCH(Assets!Y$46&"|"&Assets!$B56,'Data Annex'!$K$1:$K$871,0),MATCH(Assets!Y$47,'Data Annex'!$K$1:$AO$1,0)),"") -> 0.0127142715 | Z56: =IFERROR(INDEX('Data Annex'!$K$1:$AO$871,MATCH(Assets!Z$46&"|"&Assets!$B56,'Data Annex'!$K$1:$K$871,0),MATCH(Assets!Z$47,'Data Annex'!$K$1:$AO$1,0)),"") -> 0.0126698531 | AA56: =IFERROR(INDEX('Data Annex'!$K$1:$AO$871,MATCH(Assets!AA$46&"|"&Assets!$B56,'Data Annex'!$K$1:$K$871,0),MATCH(Assets!AA$47,'Data Annex'!$K$1:$AO$1,0)),"") -> 0.0104546054 | AB56: =IFERROR(INDEX('Data Annex'!$K$1:$AO$871,MATCH(Assets!AB$46&"|"&Assets!$B56,'Data Annex'!$K$1:$K$871,0),MATCH(Assets!AB$47,'Data Annex'!$K$1:$AO$1,0)),"") -> 0.0104801887
B57: CZ | D57: CZ | F57: =IFERROR(INDEX('Data Annex'!$K$1:$AO$871,MATCH(Assets!F$46&"|"&Assets!$B57,'Data Annex'!$K$1:$K$871,0),MATCH(Assets!F$47,'Data Annex'!$K$1:$AO$1,0)),"") -> 173.9527694 | G57: =IFERROR(INDEX('Data Annex'!$K$1:$AO$871,MATCH(Assets!G$46&"|"&Assets!$B57,'Data Annex'!$K$1:$K$871,0),MATCH(Assets!G$47,'Data Annex'!$K$1:$AO$1,0)),"") -> 163.999169 | H57: =IFERROR(INDEX('Data Annex'!$K$1:$AO$871,MATCH(Assets!H$46&"|"&Assets!$B57,'Data Annex'!$K$1:$K$871,0),MATCH(Assets!H$47,'Data Annex'!$K$1:$AO$1,0)),"") -> 172.8526044 | I57: =IFERROR(INDEX('Data Annex'!$K$1:$AO$871,MATCH(Assets!I$46&"|"&Assets!$B57,'Data Annex'!$K$1:$K$871,0),MATCH(Assets!I$47,'Data Annex'!$K$1:$AO$1,0)),"") -> 174.4290417 | J57: =IFERROR(INDEX('Data Annex'!$K$1:$AO$871,MATCH(Assets!J$46&"|"&Assets!$B57,'Data Annex'!$K$1:$K$871,0),MATCH(Assets!J$47,'Data Annex'!$K$1:$AO$1,0)),"") -> 171.0862765 | K57: =IFERROR(INDEX('Data Annex'!$K$1:$AO$871,MATCH(Assets!K$46&"|"&Assets!$B57,'Data Annex'!$K$1:$K$871,0),MATCH(Assets!K$47,'Data Annex'!$K$1:$AO$1,0)),"") -> 161.0859203 | L57: =IFERROR(INDEX('Data Annex'!$K$1:$AO$871,MATCH(Assets!L$46&"|"&Assets!$B57,'Data Annex'!$K$1:$K$871,0),MATCH(Assets!L$47,'Data Annex'!$K$1:$AO$1,0)),"") -> 169.600824 | M57: =IFERROR(INDEX('Data Annex'!$K$1:$AO$871,MATCH(Assets!M$46&"|"&Assets!$B57,'Data Annex'!$K$1:$K$871,0),MATCH(Assets!M$47,'Data Annex'!$K$1:$AO$1,0)),"") -> 171.0277075 | N57: 0.9805001838 | O57: CZ | Q57: =IFERROR(INDEX('Data Annex'!$K$1:$AO$871,MATCH(Assets!Q$46&"|"&Assets!$B57,'Data Annex'!$K$1:$K$871,0),MATCH(Assets!Q$47,'Data Annex'!$K$1:$AO$1,0)),"") -> 0.955136498 | R57: =IFERROR(INDEX('Data Annex'!$K$1:$AO$871,MATCH(Assets!R$46&"|"&Assets!$B57,'Data Annex'!$K$1:$K$871,0),MATCH(Assets!R$47,'Data Annex'!$K$1:$AO$1,0)),"") -> 0.9607579019 | S57: =IFERROR(INDEX('Data Annex'!$K$1:$AO$871,MATCH(Assets!S$46&"|"&Assets!$B57,'Data Annex'!$K$1:$K$871,0),MATCH(Assets!S$47,'Data Annex'!$K$1:$AO$1,0)),"") -> 0.9489489939 | T57: =IFERROR(INDEX('Data Annex'!$K$1:$AO$871,MATCH(Assets!T$46&"|"&Assets!$B57,'Data Annex'!$K$1:$K$871,0),MATCH(Assets!T$47,'Data Annex'!$K$1:$AO$1,0)),"") -> 0.9412799347 | U57: =IFERROR(INDEX('Data Annex'!$K$1:$AO$871,MATCH(Assets!U$46&"|"&Assets!$B57,'Data Annex'!$K$1:$K$871,0),MATCH(Assets!U$47,'Data Annex'!$K$1:$AO$1,0)),"") -> 0.0173107317 | V57: =IFERROR(INDEX('Data Annex'!$K$1:$AO$871,MATCH(Assets!V$46&"|"&Assets!$B57,'Data Annex'!$K$1:$K$871,0),MATCH(Assets!V$47,'Data Annex'!$K$1:$AO$1,0)),"") -> 0.0180417976 | W57: =IFERROR(INDEX('Data Annex'!$K$1:$AO$871,MATCH(Assets!W$46&"|"&Assets!$B57,'Data Annex'!$K$1:$K$871,0),MATCH(Assets!W$47,'Data Annex'!$K$1:$AO$1,0)),"") -> 0.016243105 | X57: =IFERROR(INDEX('Data Annex'!$K$1:$AO$871,MATCH(Assets!X$46&"|"&Assets!$B57,'Data Annex'!$K$1:$K$871,0),MATCH(Assets!X$47,'Data Annex'!$K$1:$AO$1,0)),"") -> 0.0227793656 | Y57: =IFERROR(INDEX('Data Annex'!$K$1:$AO$871,MATCH(Assets!Y$46&"|"&Assets!$B57,'Data Annex'!$K$1:$K$871,0),MATCH(Assets!Y$47,'Data Annex'!$K$1:$AO$1,0)),"") -> 0.0275527703 | Z57: =IFERROR(INDEX('Data Annex'!$K$1:$AO$871,MATCH(Assets!Z$46&"|"&Assets!$B57,'Data Annex'!$K$1:$K$871,0),MATCH(Assets!Z$47,'Data Annex'!$K$1:$AO$1,0)),"") -> 0.0212003005 | AA57: =IFERROR(INDEX('Data Annex'!$K$1:$AO$871,MATCH(Assets!AA$46&"|"&Assets!$B57,'Data Annex'!$K$1:$K$871,0),MATCH(Assets!AA$47,'Data Annex'!$K$1:$AO$1,0)),"") -> 0.0348079011 | AB57: =IFERROR(INDEX('Data Annex'!$K$1:$AO$871,MATCH(Assets!AB$46&"|"&Assets!$B57,'Data Annex'!$K$1:$K$871,0),MATCH(Assets!AB$47,'Data Annex'!$K$1:$AO$1,0)),"") -> 0.0359406997
B58: DE | D58: DE | F58: =IFERROR(INDEX('Data Annex'!$K$1:$AO$871,MATCH(Assets!F$46&"|"&Assets!$B58,'Data Annex'!$K$1:$K$871,0),MATCH(Assets!F$47,'Data Annex'!$K$1:$AO$1,0)),"") -> 3896.979132 | G58: =IFERROR(INDEX('Data Annex'!$K$1:$AO$871,MATCH(Assets!G$46&"|"&Assets!$B58,'Data Annex'!$K$1:$K$871,0),MATCH(Assets!G$47,'Data Annex'!$K$1:$AO$1,0)),"") -> 3532.180816 | H58: =IFERROR(INDEX('Data Annex'!$K$1:$AO$871,MATCH(Assets!H$46&"|"&Assets!$B58,'Data Annex'!$K$1:$K$871,0),MATCH(Assets!H$47,'Data Annex'!$K$1:$AO$1,0)),"") -> 3940.609298 | I58: =IFERROR(INDEX('Data Annex'!$K$1:$AO$871,MATCH(Assets!I$46&"|"&Assets!$B58,'Data Annex'!$K$1:$K$871,0),MATCH(Assets!I$47,'Data Annex'!$K$1:$AO$1,0)),"") -> 3938.499893 | J58: =IFERROR(INDEX('Data Annex'!$K$1:$AO$871,MATCH(Assets!J$46&"|"&Assets!$B58,'Data Annex'!$K$1:$K$871,0),MATCH(Assets!J$47,'Data Annex'!$K$1:$AO$1,0)),"") -> 3783.719496 | K58: =IFERROR(INDEX('Data Annex'!$K$1:$AO$871,MATCH(Assets!K$46&"|"&Assets!$B58,'Data Annex'!$K$1:$K$871,0),MATCH(Assets!K$47,'Data Annex'!$K$1:$AO$1,0)),"") -> 3427.529636 | L58: =IFERROR(INDEX('Data Annex'!$K$1:$AO$871,MATCH(Assets!L$46&"|"&Assets!$B58,'Data Annex'!$K$1:$K$871,0),MATCH(Assets!L$47,'Data Annex'!$K$1:$AO$1,0)),"") -> 3834.191326 | M58: =IFERROR(INDEX('Data Annex'!$K$1:$AO$871,MATCH(Assets!M$46&"|"&Assets!$B58,'Data Annex'!$K$1:$K$871,0),MATCH(Assets!M$47,'Data Annex'!$K$1:$AO$1,0)),"") -> 3836.154822 | N58: 0.9740142 | O58: DE | Q58: =IFERROR(INDEX('Data Annex'!$K$1:$AO$871,MATCH(Assets!Q$46&"|"&Assets!$B58,'Data Annex'!$K$1:$K$871,0),MATCH(Assets!Q$47,'Data Annex'!$K$1:$AO$1,0)),"") -> 0.6729955882 | R58: =IFERROR(INDEX('Data Annex'!$K$1:$AO$871,MATCH(Assets!R$46&"|"&Assets!$B58,'Data Annex'!$K$1:$K$871,0),MATCH(Assets!R$47,'Data Annex'!$K$1:$AO$1,0)),"") -> 0.6978204706 | S58: =IFERROR(INDEX('Data Annex'!$K$1:$AO$871,MATCH(Assets!S$46&"|"&Assets!$B58,'Data Annex'!$K$1:$K$871,0),MATCH(Assets!S$47,'Data Annex'!$K$1:$AO$1,0)),"") -> 0.682269238 | T58: =IFERROR(INDEX('Data Annex'!$K$1:$AO$871,MATCH(Assets!T$46&"|"&Assets!$B58,'Data Annex'!$K$1:$K$871,0),MATCH(Assets!T$47,'Data Annex'!$K$1:$AO$1,0)),"") -> 0.6967062709 | U58: =IFERROR(INDEX('Data Annex'!$K$1:$AO$871,MATCH(Assets!U$46&"|"&Assets!$B58,'Data Annex'!$K$1:$K$871,0),MATCH(Assets!U$47,'Data Annex'!$K$1:$AO$1,0)),"") -> 0.0588317293 | V58: =IFERROR(INDEX('Data Annex'!$K$1:$AO$871,MATCH(Assets!V$46&"|"&Assets!$B58,'Data Annex'!$K$1:$K$871,0),MATCH(Assets!V$47,'Data Annex'!$K$1:$AO$1,0)),"") -> 0.0640255383 | W58: =IFERROR(INDEX('Data Annex'!$K$1:$AO$871,MATCH(Assets!W$46&"|"&Assets!$B58,'Data Annex'!$K$1:$K$871,0),MATCH(Assets!W$47,'Data Annex'!$K$1:$AO$1,0)),"") -> 0.0595575027 | X58: =IFERROR(INDEX('Data Annex'!$K$1:$AO$871,MATCH(Assets!X$46&"|"&Assets!$B58,'Data Annex'!$K$1:$K$871,0),MATCH(Assets!X$47,'Data Annex'!$K$1:$AO$1,0)),"") -> 0.0623231241 | Y58: =IFERROR(INDEX('Data Annex'!$K$1:$AO$871,MATCH(Assets!Y$46&"|"&Assets!$B58,'Data Annex'!$K$1:$K$871,0),MATCH(Assets!Y$47,'Data Annex'!$K$1:$AO$1,0)),"") -> 0.2681726825 | Z58: =IFERROR(INDEX('Data Annex'!$K$1:$AO$871,MATCH(Assets!Z$46&"|"&Assets!$B58,'Data Annex'!$K$1:$K$871,0),MATCH(Assets!Z$47,'Data Annex'!$K$1:$AO$1,0)),"") -> 0.2381539912 | AA58: =IFERROR(INDEX('Data Annex'!$K$1:$AO$871,MATCH(Assets!AA$46&"|"&Assets!$B58,'Data Annex'!$K$1:$K$871,0),MATCH(Assets!AA$47,'Data Annex'!$K$1:$AO$1,0)),"") -> 0.2581732593 | AB58: =IFERROR(INDEX('Data Annex'!$K$1:$AO$871,MATCH(Assets!AB$46&"|"&Assets!$B58,'Data Annex'!$K$1:$K$871,0),MATCH(Assets!AB$47,'Data Annex'!$K$1:$AO$1,0)),"") -> 0.2409706049
B59: DK | D59: DK | F59: =IFERROR(INDEX('Data Annex'!$K$1:$AO$871,MATCH(Assets!F$46&"|"&Assets!$B59,'Data Annex'!$K$1:$K$871,0),MATCH(Assets!F$47,'Data Annex'!$K$1:$AO$1,0)),"") -> 782.3443382 | G59: =IFERROR(INDEX('Data Annex'!$K$1:$AO$871,MATCH(Assets!G$46&"|"&Assets!$B59,'Data Annex'!$K$1:$K$871,0),MATCH(Assets!G$47,'Data Annex'!$K$1:$AO$1,0)),"") -> 757.9905203 | H59: =IFERROR(INDEX('Data Annex'!$K$1:$AO$871,MATCH(Assets!H$46&"|"&Assets!$B59,'Data Annex'!$K$1:$K$871,0),MATCH(Assets!H$47,'Data Annex'!$K$1:$AO$1,0)),"") -> 789.7571494 | I59: =IFERROR(INDEX('Data Annex'!$K$1:$AO$871,MATCH(Assets!I$46&"|"&Assets!$B59,'Data Annex'!$K$1:$K$871,0),MATCH(Assets!I$47,'Data Annex'!$K$1:$AO$1,0)),"") -> 791.2617091 | J59: =IFERROR(INDEX('Data Annex'!$K$1:$AO$871,MATCH(Assets!J$46&"|"&Assets!$B59,'Data Annex'!$K$1:$K$871,0),MATCH(Assets!J$47,'Data Annex'!$K$1:$AO$1,0)),"") -> 762.6674216 | K59: =IFERROR(INDEX('Data Annex'!$K$1:$AO$871,MATCH(Assets!K$46&"|"&Assets!$B59,'Data Annex'!$K$1:$K$871,0),MATCH(Assets!K$47,'Data Annex'!$K$1:$AO$1,0)),"") -> 738.4546104 | L59: =IFERROR(INDEX('Data Annex'!$K$1:$AO$871,MATCH(Assets!L$46&"|"&Assets!$B59,'Data Annex'!$K$1:$K$871,0),MATCH(Assets!L$47,'Data Annex'!$K$1:$AO$1,0)),"") -> 769.5362274 | M59: =IFERROR(INDEX('Data Annex'!$K$1:$AO$871,MATCH(Assets!M$46&"|"&Assets!$B59,'Data Annex'!$K$1:$K$871,0),MATCH(Assets!M$47,'Data Annex'!$K$1:$AO$1,0)),"") -> 772.4552703 | N59: 0.9762323405 | O59: DK | Q59: =IFERROR(INDEX('Data Annex'!$K$1:$AO$871,MATCH(Assets!Q$46&"|"&Assets!$B59,'Data Annex'!$K$1:$K$871,0),MATCH(Assets!Q$47,'Data Annex'!$K$1:$AO$1,0)),"") -> 0.3120975984 | R59: =IFERROR(INDEX('Data Annex'!$K$1:$AO$871,MATCH(Assets!R$46&"|"&Assets!$B59,'Data Annex'!$K$1:$K$871,0),MATCH(Assets!R$47,'Data Annex'!$K$1:$AO$1,0)),"") -> 0.3208439411 | S59: =IFERROR(INDEX('Data Annex'!$K$1:$AO$871,MATCH(Assets!S$46&"|"&Assets!$B59,'Data Annex'!$K$1:$K$871,0),MATCH(Assets!S$47,'Data Annex'!$K$1:$AO$1,0)),"") -> 0.3133201889 | T59: =IFERROR(INDEX('Data Annex'!$K$1:$AO$871,MATCH(Assets!T$46&"|"&Assets!$B59,'Data Annex'!$K$1:$K$871,0),MATCH(Assets!T$47,'Data Annex'!$K$1:$AO$1,0)),"") -> 0.3167152098 | U59: =IFERROR(INDEX('Data Annex'!$K$1:$AO$871,MATCH(Assets!U$46&"|"&Assets!$B59,'Data Annex'!$K$1:$K$871,0),MATCH(Assets!U$47,'Data Annex'!$K$1:$AO$1,0)),"") -> 0.0194976657 | V59: =IFERROR(INDEX('Data Annex'!$K$1:$AO$871,MATCH(Assets!V$46&"|"&Assets!$B59,'Data Annex'!$K$1:$K$871,0),MATCH(Assets!V$47,'Data Annex'!$K$1:$AO$1,0)),"") -> 0.0196029874 | W59: =IFERROR(INDEX('Data Annex'!$K$1:$AO$871,MATCH(Assets!W$46&"|"&Assets!$B59,'Data Annex'!$K$1:$K$871,0),MATCH(Assets!W$47,'Data Annex'!$K$1:$AO$1,0)),"") -> 0.0191292582 | X59: =IFERROR(INDEX('Data Annex'!$K$1:$AO$871,MATCH(Assets!X$46&"|"&Assets!$B59,'Data Annex'!$K$1:$K$871,0),MATCH(Assets!X$47,'Data Annex'!$K$1:$AO$1,0)),"") -> 0.020043518 | Y59: =IFERROR(INDEX('Data Annex'!$K$1:$AO$871,MATCH(Assets!Y$46&"|"&Assets!$B59,'Data Annex'!$K$1:$K$871,0),MATCH(Assets!Y$47,'Data Annex'!$K$1:$AO$1,0)),"") -> 0.6684047359 | Z59: =IFERROR(INDEX('Data Annex'!$K$1:$AO$871,MATCH(Assets!Z$46&"|"&Assets!$B59,'Data Annex'!$K$1:$K$871,0),MATCH(Assets!Z$47,'Data Annex'!$K$1:$AO$1,0)),"") -> 0.6595530715 | AA59: =IFERROR(INDEX('Data Annex'!$K$1:$AO$871,MATCH(Assets!AA$46&"|"&Assets!$B59,'Data Annex'!$K$1:$K$871,0),MATCH(Assets!AA$47,'Data Annex'!$K$1:$AO$1,0)),"") -> 0.667550553 | AB59: =IFERROR(INDEX('Data Annex'!$K$1:$AO$871,MATCH(Assets!AB$46&"|"&Assets!$B59,'Data Annex'!$K$1:$K$871,0),MATCH(Assets!AB$47,'Data Annex'!$K$1:$AO$1,0)),"") -> 0.6632412723
B60: EE | D60: EE | F60: =IFERROR(INDEX('Data Annex'!$K$1:$AO$871,MATCH(Assets!F$46&"|"&Assets!$B60,'Data Annex'!$K$1:$K$871,0),MATCH(Assets!F$47,'Data Annex'!$K$1:$AO$1,0)),"") -> 34.22971203 | G60: =IFERROR(INDEX('Data Annex'!$K$1:$AO$871,MATCH(Assets!G$46&"|"&Assets!$B60,'Data Annex'!$K$1:$K$871,0),MATCH(Assets!G$47,'Data Annex'!$K$1:$AO$1,0)),"") -> 34.7158835 | H60: =IFERROR(INDEX('Data Annex'!$K$1:$AO$871,MATCH(Assets!H$46&"|"&Assets!$B60,'Data Annex'!$K$1:$K$871,0),MATCH(Assets!H$47,'Data Annex'!$K$1:$AO$1,0)),"") -> 35.17831801 | I60: =IFERROR(INDEX('Data Annex'!$K$1:$AO$871,MATCH(Assets!I$46&"|"&Assets!$B60,'Data Annex'!$K$1:$K$871,0),MATCH(Assets!I$47,'Data Annex'!$K$1:$AO$1,0)),"") -> 38.1909144 | J60: =IFERROR(INDEX('Data Annex'!$K$1:$AO$871,MATCH(Assets!J$46&"|"&Assets!$B60,'Data Annex'!$K$1:$K$871,0),MATCH(Assets!J$47,'Data Annex'!$K$1:$AO$1,0)),"") -> 33.74900153 | K60: =IFERROR(INDEX('Data Annex'!$K$1:$AO$871,MATCH(Assets!K$46&"|"&Assets!$B60,'Data Annex'!$K$1:$K$871,0),MATCH(Assets!K$47,'Data Annex'!$K$1:$AO$1,0)),"") -> 34.27566941 | L60: =IFERROR(INDEX('Data Annex'!$K$1:$AO$871,MATCH(Assets!L$46&"|"&Assets!$B60,'Data Annex'!$K$1:$K$871,0),MATCH(Assets!L$47,'Data Annex'!$K$1:$AO$1,0)),"") -> 34.77545278 | M60: =IFERROR(INDEX('Data Annex'!$K$1:$AO$871,MATCH(Assets!M$46&"|"&Assets!$B60,'Data Annex'!$K$1:$K$871,0),MATCH(Assets!M$47,'Data Annex'!$K$1:$AO$1,0)),"") -> 37.78401105 | N60: 0.9893455458 | O60: EE | Q60: =IFERROR(INDEX('Data Annex'!$K$1:$AO$871,MATCH(Assets!Q$46&"|"&Assets!$B60,'Data Annex'!$K$1:$K$871,0),MATCH(Assets!Q$47,'Data Annex'!$K$1:$AO$1,0)),"") -> 0.9774617065 | R60: =IFERROR(INDEX('Data Annex'!$K$1:$AO$871,MATCH(Assets!R$46&"|"&Assets!$B60,'Data Annex'!$K$1:$K$871,0),MATCH(Assets!R$47,'Data Annex'!$K$1:$AO$1,0)),"") -> 0.9805092064 | S60: =IFERROR(INDEX('Data Annex'!$K$1:$AO$871,MATCH(Assets!S$46&"|"&Assets!$B60,'Data Annex'!$K$1:$K$871,0),MATCH(Assets!S$47,'Data Annex'!$K$1:$AO$1,0)),"") -> 0.9754661 | T60: =IFERROR(INDEX('Data Annex'!$K$1:$AO$871,MATCH(Assets!T$46&"|"&Assets!$B60,'Data Annex'!$K$1:$K$871,0),MATCH(Assets!T$47,'Data Annex'!$K$1:$AO$1,0)),"") -> 0.917327646 | U60: =IFERROR(INDEX('Data Annex'!$K$1:$AO$871,MATCH(Assets!U$46&"|"&Assets!$B60,'Data Annex'!$K$1:$K$871,0),MATCH(Assets!U$47,'Data Annex'!$K$1:$AO$1,0)),"") -> 0.0003732738 | V60: =IFERROR(INDEX('Data Annex'!$K$1:$AO$871,MATCH(Assets!V$46&"|"&Assets!$B60,'Data Annex'!$K$1:$K$871,0),MATCH(Assets!V$47,'Data Annex'!$K$1:$AO$1,0)),"") -> 1.66864e-05 | W60: =IFERROR(INDEX('Data Annex'!$K$1:$AO$871,MATCH(Assets!W$46&"|"&Assets!$B60,'Data Annex'!$K$1:$K$871,0),MATCH(Assets!W$47,'Data Annex'!$K$1:$AO$1,0)),"") -> 1.64466e-05 | X60: =IFERROR(INDEX('Data Annex'!$K$1:$AO$871,MATCH(Assets!X$46&"|"&Assets!$B60,'Data Annex'!$K$1:$K$871,0),MATCH(Assets!X$47,'Data Annex'!$K$1:$AO$1,0)),"") -> 2.09701e-05 | Y60: =IFERROR(INDEX('Data Annex'!$K$1:$AO$871,MATCH(Assets!Y$46&"|"&Assets!$B60,'Data Annex'!$K$1:$K$871,0),MATCH(Assets!Y$47,'Data Annex'!$K$1:$AO$1,0)),"") -> 0.0221650196 | Z60: =IFERROR(INDEX('Data Annex'!$K$1:$AO$871,MATCH(Assets!Z$46&"|"&Assets!$B60,'Data Annex'!$K$1:$K$871,0),MATCH(Assets!Z$47,'Data Annex'!$K$1:$AO$1,0)),"") -> 0.0194741072 | AA60: =IFERROR(INDEX('Data Annex'!$K$1:$AO$871,MATCH(Assets!AA$46&"|"&Assets!$B60,'Data Annex'!$K$1:$K$871,0),MATCH(Assets!AA$47,'Data Annex'!$K$1:$AO$1,0)),"") -> 0.0245174534 | AB60: =IFERROR(INDEX('Data Annex'!$K$1:$AO$871,MATCH(Assets!AB$46&"|"&Assets!$B60,'Data Annex'!$K$1:$K$871,0),MATCH(Assets!AB$47,'Data Annex'!$K$1:$AO$1,0)),"") -> 0.0826513838
B61: ES | D61: ES | F61: =IFERROR(INDEX('Data Annex'!$K$1:$AO$871,MATCH(Assets!F$46&"|"&Assets!$B61,'Data Annex'!$K$1:$K$871,0),MATCH(Assets!F$47,'Data Annex'!$K$1:$AO$1,0)),"") -> 3361.312214 | G61: =IFERROR(INDEX('Data Annex'!$K$1:$AO$871,MATCH(Assets!G$46&"|"&Assets!$B61,'Data Annex'!$K$1:$K$871,0),MATCH(Assets!G$47,'Data Annex'!$K$1:$AO$1,0)),"") -> 3340.278815 | H61: =IFERROR(INDEX('Data Annex'!$K$1:$AO$871,MATCH(Assets!H$46&"|"&Assets!$B61,'Data Annex'!$K$1:$K$871,0),MATCH(Assets!H$47,'Data Annex'!$K$1:$AO$1,0)),"") -> 3418.587811 | I61: =IFERROR(INDEX('Data Annex'!$K$1:$AO$871,MATCH(Assets!I$46&"|"&Assets!$B61,'Data Annex'!$K$1:$K$871,0),MATCH(Assets!I$47,'Data Annex'!$K$1:$AO$1,0)),"") -> 3558.886843 | J61: =IFERROR(INDEX('Data Annex'!$K$1:$AO$871,MATCH(Assets!J$46&"|"&Assets!$B61,'Data Annex'!$K$1:$K$871,0),MATCH(Assets!J$47,'Data Annex'!$K$1:$AO$1,0)),"") -> 3089.502742 | K61: =IFERROR(INDEX('Data Annex'!$K$1:$AO$871,MATCH(Assets!K$46&"|"&Assets!$B61,'Data Annex'!$K$1:$K$871,0),MATCH(Assets!K$47,'Data Annex'!$K$1:$AO$1,0)),"") -> 3079.126992 | L61: =IFERROR(INDEX('Data Annex'!$K$1:$AO$871,MATCH(Assets!L$46&"|"&Assets!$B61,'Data Annex'!$K$1:$K$871,0),MATCH(Assets!L$47,'Data Annex'!$K$1:$AO$1,0)),"") -> 3156.685301 | M61: =IFERROR(INDEX('Data Annex'!$K$1:$AO$871,MATCH(Assets!M$46&"|"&Assets!$B61,'Data Annex'!$K$1:$K$871,0),MATCH(Assets!M$47,'Data Annex'!$K$1:$AO$1,0)),"") -> 3317.372509 | N61: 0.9321376755 | O61: ES | Q61: =IFERROR(INDEX('Data Annex'!$K$1:$AO$871,MATCH(Assets!Q$46&"|"&Assets!$B61,'Data Annex'!$K$1:$K$871,0),MATCH(Assets!Q$47,'Data Annex'!$K$1:$AO$1,0)),"") -> 0.8147857584 | R61: =IFERROR(INDEX('Data Annex'!$K$1:$AO$871,MATCH(Assets!R$46&"|"&Assets!$B61,'Data Annex'!$K$1:$K$871,0),MATCH(Assets!R$47,'Data Annex'!$K$1:$AO$1,0)),"") -> 0.8258300599 | S61: =IFERROR(INDEX('Data Annex'!$K$1:$AO$871,MATCH(Assets!S$46&"|"&Assets!$B61,'Data Annex'!$K$1:$K$871,0),MATCH(Assets!S$47,'Data Annex'!$K$1:$AO$1,0)),"") -> 0.8199395491 | T61: =IFERROR(INDEX('Data Annex'!$K$1:$AO$871,MATCH(Assets!T$46&"|"&Assets!$B61,'Data Annex'!$K$1:$K$871,0),MATCH(Assets!T$47,'Data Annex'!$K$1:$AO$1,0)),"") -> 0.8156548724 | U61: =IFERROR(INDEX('Data Annex'!$K$1:$AO$871,MATCH(Assets!U$46&"|"&Assets!$B61,'Data Annex'!$K$1:$K$871,0),MATCH(Assets!U$47,'Data Annex'!$K$1:$AO$1,0)),"") -> 0.0688309893 | V61: =IFERROR(INDEX('Data Annex'!$K$1:$AO$871,MATCH(Assets!V$46&"|"&Assets!$B61,'Data Annex'!$K$1:$K$871,0),MATCH(Assets!V$47,'Data Annex'!$K$1:$AO$1,0)),"") -> 0.0696146951 | W61: =IFERROR(INDEX('Data Annex'!$K$1:$AO$871,MATCH(Assets!W$46&"|"&Assets!$B61,'Data Annex'!$K$1:$K$871,0),MATCH(Assets!W$47,'Data Annex'!$K$1:$AO$1,0)),"") -> 0.0620797779 | X61: =IFERROR(INDEX('Data Annex'!$K$1:$AO$871,MATCH(Assets!X$46&"|"&Assets!$B61,'Data Annex'!$K$1:$K$871,0),MATCH(Assets!X$47,'Data Annex'!$K$1:$AO$1,0)),"") -> 0.0665238781 | Y61: =IFERROR(INDEX('Data Annex'!$K$1:$AO$871,MATCH(Assets!Y$46&"|"&Assets!$B61,'Data Annex'!$K$1:$K$871,0),MATCH(Assets!Y$47,'Data Annex'!$K$1:$AO$1,0)),"") -> 0.1163832524 | Z61: =IFERROR(INDEX('Data Annex'!$K$1:$AO$871,MATCH(Assets!Z$46&"|"&Assets!$B61,'Data Annex'!$K$1:$K$871,0),MATCH(Assets!Z$47,'Data Annex'!$K$1:$AO$1,0)),"") -> 0.104555245 | AA61: =IFERROR(INDEX('Data Annex'!$K$1:$AO$871,MATCH(Assets!AA$46&"|"&Assets!$B61,'Data Annex'!$K$1:$K$871,0),MATCH(Assets!AA$47,'Data Annex'!$K$1:$AO$1,0)),"") -> 0.1179806731 | AB61: =IFERROR(INDEX('Data Annex'!$K$1:$AO$871,MATCH(Assets!AB$46&"|"&Assets!$B61,'Data Annex'!$K$1:$K$871,0),MATCH(Assets!AB$47,'Data Annex'!$K$1:$AO$1,0)),"") -> 0.1178212495
B62: FI | D62: FI | F62: =IFERROR(INDEX('Data Annex'!$K$1:$AO$871,MATCH(Assets!F$46&"|"&Assets!$B62,'Data Annex'!$K$1:$K$871,0),MATCH(Assets!F$47,'Data Annex'!$K$1:$AO$1,0)),"") -> 717.4657021 | G62: =IFERROR(INDEX('Data Annex'!$K$1:$AO$871,MATCH(Assets!G$46&"|"&Assets!$B62,'Data Annex'!$K$1:$K$871,0),MATCH(Assets!G$47,'Data Annex'!$K$1:$AO$1,0)),"") -> 686.1835796 | H62: =IFERROR(INDEX('Data Annex'!$K$1:$AO$871,MATCH(Assets!H$46&"|"&Assets!$B62,'Data Annex'!$K$1:$K$871,0),MATCH(Assets!H$47,'Data Annex'!$K$1:$AO$1,0)),"") -> 742.4337193 | I62: =IFERROR(INDEX('Data Annex'!$K$1:$AO$871,MATCH(Assets!I$46&"|"&Assets!$B62,'Data Annex'!$K$1:$K$871,0),MATCH(Assets!I$47,'Data Annex'!$K$1:$AO$1,0)),"") -> 737.7686125 | J62: =IFERROR(INDEX('Data Annex'!$K$1:$AO$871,MATCH(Assets!J$46&"|"&Assets!$B62,'Data Annex'!$K$1:$K$871,0),MATCH(Assets!J$47,'Data Annex'!$K$1:$AO$1,0)),"") -> 684.2110917 | K62: =IFERROR(INDEX('Data Annex'!$K$1:$AO$871,MATCH(Assets!K$46&"|"&Assets!$B62,'Data Annex'!$K$1:$K$871,0),MATCH(Assets!K$47,'Data Annex'!$K$1:$AO$1,0)),"") -> 670.1670562 | L62: =IFERROR(INDEX('Data Annex'!$K$1:$AO$871,MATCH(Assets!L$46&"|"&Assets!$B62,'Data Annex'!$K$1:$K$871,0),MATCH(Assets!L$47,'Data Annex'!$K$1:$AO$1,0)),"") -> 723.7529537 | M62: =IFERROR(INDEX('Data Annex'!$K$1:$AO$871,MATCH(Assets!M$46&"|"&Assets!$B62,'Data Annex'!$K$1:$K$871,0),MATCH(Assets!M$47,'Data Annex'!$K$1:$AO$1,0)),"") -> 720.7055516 | N62: 0.9768720699 | O62: FI | Q62: =IFERROR(INDEX('Data Annex'!$K$1:$AO$871,MATCH(Assets!Q$46&"|"&Assets!$B62,'Data Annex'!$K$1:$K$871,0),MATCH(Assets!Q$47,'Data Annex'!$K$1:$AO$1,0)),"") -> 0.6290236137 | R62: =IFERROR(INDEX('Data Annex'!$K$1:$AO$871,MATCH(Assets!R$46&"|"&Assets!$B62,'Data Annex'!$K$1:$K$871,0),MATCH(Assets!R$47,'Data Annex'!$K$1:$AO$1,0)),"") -> 0.6543367585 | S62: =IFERROR(INDEX('Data Annex'!$K$1:$AO$871,MATCH(Assets!S$46&"|"&Assets!$B62,'Data Annex'!$K$1:$K$871,0),MATCH(Assets!S$47,'Data Annex'!$K$1:$AO$1,0)),"") -> 0.6171210416 | T62: =IFERROR(INDEX('Data Annex'!$K$1:$AO$871,MATCH(Assets!T$46&"|"&Assets!$B62,'Data Annex'!$K$1:$K$871,0),MATCH(Assets!T$47,'Data Annex'!$K$1:$AO$1,0)),"") -> 0.6393878324 | U62: =IFERROR(INDEX('Data Annex'!$K$1:$AO$871,MATCH(Assets!U$46&"|"&Assets!$B62,'Data Annex'!$K$1:$K$871,0),MATCH(Assets!U$47,'Data Annex'!$K$1:$AO$1,0)),"") -> 0.0595436114 | V62: =IFERROR(INDEX('Data Annex'!$K$1:$AO$871,MATCH(Assets!V$46&"|"&Assets!$B62,'Data Annex'!$K$1:$K$871,0),MATCH(Assets!V$47,'Data Annex'!$K$1:$AO$1,0)),"") -> 0.0662295794 | W62: =IFERROR(INDEX('Data Annex'!$K$1:$AO$871,MATCH(Assets!W$46&"|"&Assets!$B62,'Data Annex'!$K$1:$K$871,0),MATCH(Assets!W$47,'Data Annex'!$K$1:$AO$1,0)),"") -> 0.0663093228 | X62: =IFERROR(INDEX('Data Annex'!$K$1:$AO$871,MATCH(Assets!X$46&"|"&Assets!$B62,'Data Annex'!$K$1:$K$871,0),MATCH(Assets!X$47,'Data Annex'!$K$1:$AO$1,0)),"") -> 0.0692564117 | Y62: =IFERROR(INDEX('Data Annex'!$K$1:$AO$871,MATCH(Assets!Y$46&"|"&Assets!$B62,'Data Annex'!$K$1:$K$871,0),MATCH(Assets!Y$47,'Data Annex'!$K$1:$AO$1,0)),"") -> 0.3114327748 | Z62: =IFERROR(INDEX('Data Annex'!$K$1:$AO$871,MATCH(Assets!Z$46&"|"&Assets!$B62,'Data Annex'!$K$1:$K$871,0),MATCH(Assets!Z$47,'Data Annex'!$K$1:$AO$1,0)),"") -> 0.2794336621 | AA62: =IFERROR(INDEX('Data Annex'!$K$1:$AO$871,MATCH(Assets!AA$46&"|"&Assets!$B62,'Data Annex'!$K$1:$K$871,0),MATCH(Assets!AA$47,'Data Annex'!$K$1:$AO$1,0)),"") -> 0.3165696355 | AB62: =IFERROR(INDEX('Data Annex'!$K$1:$AO$871,MATCH(Assets!AB$46&"|"&Assets!$B62,'Data Annex'!$K$1:$K$871,0),MATCH(Assets!AB$47,'Data Annex'!$K$1:$AO$1,0)),"") -> 0.2913557559
B63: FR | D63: FR | F63: =IFERROR(INDEX('Data Annex'!$K$1:$AO$871,MATCH(Assets!F$46&"|"&Assets!$B63,'Data Annex'!$K$1:$K$871,0),MATCH(Assets!F$47,'Data Annex'!$K$1:$AO$1,0)),"") -> 7887.396259 | G63: =IFERROR(INDEX('Data Annex'!$K$1:$AO$871,MATCH(Assets!G$46&"|"&Assets!$B63,'Data Annex'!$K$1:$K$871,0),MATCH(Assets!G$47,'Data Annex'!$K$1:$AO$1,0)),"") -> 7438.10487 | H63: =IFERROR(INDEX('Data Annex'!$K$1:$AO$871,MATCH(Assets!H$46&"|"&Assets!$B63,'Data Annex'!$K$1:$K$871,0),MATCH(Assets!H$47,'Data Annex'!$K$1:$AO$1,0)),"") -> 8336.611511 | I63: =IFERROR(INDEX('Data Annex'!$K$1:$AO$871,MATCH(Assets!I$46&"|"&Assets!$B63,'Data Annex'!$K$1:$K$871,0),MATCH(Assets!I$47,'Data Annex'!$K$1:$AO$1,0)),"") -> 8445.979585 | J63: =IFERROR(INDEX('Data Annex'!$K$1:$AO$871,MATCH(Assets!J$46&"|"&Assets!$B63,'Data Annex'!$K$1:$K$871,0),MATCH(Assets!J$47,'Data Annex'!$K$1:$AO$1,0)),"") -> 7315.352104 | K63: =IFERROR(INDEX('Data Annex'!$K$1:$AO$871,MATCH(Assets!K$46&"|"&Assets!$B63,'Data Annex'!$K$1:$K$871,0),MATCH(Assets!K$47,'Data Annex'!$K$1:$AO$1,0)),"") -> 6916.246479 | L63: =IFERROR(INDEX('Data Annex'!$K$1:$AO$871,MATCH(Assets!L$46&"|"&Assets!$B63,'Data Annex'!$K$1:$K$871,0),MATCH(Assets!L$47,'Data Annex'!$K$1:$AO$1,0)),"") -> 7727.572056 | M63: =IFERROR(INDEX('Data Annex'!$K$1:$AO$871,MATCH(Assets!M$46&"|"&Assets!$B63,'Data Annex'!$K$1:$K$871,0),MATCH(Assets!M$47,'Data Annex'!$K$1:$AO$1,0)),"") -> 7896.422445 | N63: 0.9349326938 | O63: FR | Q63: =IFERROR(INDEX('Data Annex'!$K$1:$AO$871,MATCH(Assets!Q$46&"|"&Assets!$B63,'Data Annex'!$K$1:$K$871,0),MATCH(Assets!Q$47,'Data Annex'!$K$1:$AO$1,0)),"") -> 0.6767182306 | R63: =IFERROR(INDEX('Data Annex'!$K$1:$AO$871,MATCH(Assets!R$46&"|"&Assets!$B63,'Data Annex'!$K$1:$K$871,0),MATCH(Assets!R$47,'Data Annex'!$K$1:$AO$1,0)),"") -> 0.7249182281 | S63: =IFERROR(INDEX('Data Annex'!$K$1:$AO$871,MATCH(Assets!S$46&"|"&Assets!$B63,'Data Annex'!$K$1:$K$871,0),MATCH(Assets!S$47,'Data Annex'!$K$1:$AO$1,0)),"") -> 0.6830074204 | T63: =IFERROR(INDEX('Data Annex'!$K$1:$AO$871,MATCH(Assets!T$46&"|"&Assets!$B63,'Data Annex'!$K$1:$K$871,0),MATCH(Assets!T$47,'Data Annex'!$K$1:$AO$1,0)),"") -> 0.7142591836 | U63: =IFERROR(INDEX('Data Annex'!$K$1:$AO$871,MATCH(Assets!U$46&"|"&Assets!$B63,'Data Annex'!$K$1:$K$871,0),MATCH(Assets!U$47,'Data Annex'!$K$1:$AO$1,0)),"") -> 0.0395005126 | V63: =IFERROR(INDEX('Data Annex'!$K$1:$AO$871,MATCH(Assets!V$46&"|"&Assets!$B63,'Data Annex'!$K$1:$K$871,0),MATCH(Assets!V$47,'Data Annex'!$K$1:$AO$1,0)),"") -> 0.0402667437 | W63: =IFERROR(INDEX('Data Annex'!$K$1:$AO$871,MATCH(Assets!W$46&"|"&Assets!$B63,'Data Annex'!$K$1:$K$871,0),MATCH(Assets!W$47,'Data Annex'!$K$1:$AO$1,0)),"") -> 0.0390971138 | X63: =IFERROR(INDEX('Data Annex'!$K$1:$AO$871,MATCH(Assets!X$46&"|"&Assets!$B63,'Data Annex'!$K$1:$K$871,0),MATCH(Assets!X$47,'Data Annex'!$K$1:$AO$1,0)),"") -> 0.0396748238 | Y63: =IFERROR(INDEX('Data Annex'!$K$1:$AO$871,MATCH(Assets!Y$46&"|"&Assets!$B63,'Data Annex'!$K$1:$K$871,0),MATCH(Assets!Y$47,'Data Annex'!$K$1:$AO$1,0)),"") -> 0.2837812569 | Z63: =IFERROR(INDEX('Data Annex'!$K$1:$AO$871,MATCH(Assets!Z$46&"|"&Assets!$B63,'Data Annex'!$K$1:$K$871,0),MATCH(Assets!Z$47,'Data Annex'!$K$1:$AO$1,0)),"") -> 0.2348150282 | AA63: =IFERROR(INDEX('Data Annex'!$K$1:$AO$871,MATCH(Assets!AA$46&"|"&Assets!$B63,'Data Annex'!$K$1:$K$871,0),MATCH(Assets!AA$47,'Data Annex'!$K$1:$AO$1,0)),"") -> 0.2778954657 | AB63: =IFERROR(INDEX('Data Annex'!$K$1:$AO$871,MATCH(Assets!AB$46&"|"&Assets!$B63,'Data Annex'!$K$1:$K$871,0),MATCH(Assets!AB$47,'Data Annex'!$K$1:$AO$1,0)),"") -> 0.2460659925
B64: GR | D64: GR | F64: =IFERROR(INDEX('Data Annex'!$K$1:$AO$871,MATCH(Assets!F$46&"|"&Assets!$B64,'Data Annex'!$K$1:$K$871,0),MATCH(Assets!F$47,'Data Annex'!$K$1:$AO$1,0)),"") -> 248.7226449 | G64: =IFERROR(INDEX('Data Annex'!$K$1:$AO$871,MATCH(Assets!G$46&"|"&Assets!$B64,'Data Annex'!$K$1:$K$871,0),MATCH(Assets!G$47,'Data Annex'!$K$1:$AO$1,0)),"") -> 250.4331165 | H64: =IFERROR(INDEX('Data Annex'!$K$1:$AO$871,MATCH(Assets!H$46&"|"&Assets!$B64,'Data Annex'!$K$1:$K$871,0),MATCH(Assets!H$47,'Data Annex'!$K$1:$AO$1,0)),"") -> 258.7232788 | I64: =IFERROR(INDEX('Data Annex'!$K$1:$AO$871,MATCH(Assets!I$46&"|"&Assets!$B64,'Data Annex'!$K$1:$K$871,0),MATCH(Assets!I$47,'Data Annex'!$K$1:$AO$1,0)),"") -> 270.7626866 | J64: =IFERROR(INDEX('Data Annex'!$K$1:$AO$871,MATCH(Assets!J$46&"|"&Assets!$B64,'Data Annex'!$K$1:$K$871,0),MATCH(Assets!J$47,'Data Annex'!$K$1:$AO$1,0)),"") -> 203.6709742 | K64: =IFERROR(INDEX('Data Annex'!$K$1:$AO$871,MATCH(Assets!K$46&"|"&Assets!$B64,'Data Annex'!$K$1:$K$871,0),MATCH(Assets!K$47,'Data Annex'!$K$1:$AO$1,0)),"") -> 207.033898 | L64: =IFERROR(INDEX('Data Annex'!$K$1:$AO$871,MATCH(Assets!L$46&"|"&Assets!$B64,'Data Annex'!$K$1:$K$871,0),MATCH(Assets!L$47,'Data Annex'!$K$1:$AO$1,0)),"") -> 215.5847347 | M64: =IFERROR(INDEX('Data Annex'!$K$1:$AO$871,MATCH(Assets!M$46&"|"&Assets!$B64,'Data Annex'!$K$1:$K$871,0),MATCH(Assets!M$47,'Data Annex'!$K$1:$AO$1,0)),"") -> 225.0877121 | N64: 0.8313099376 | O64: GR | Q64: =IFERROR(INDEX('Data Annex'!$K$1:$AO$871,MATCH(Assets!Q$46&"|"&Assets!$B64,'Data Annex'!$K$1:$K$871,0),MATCH(Assets!Q$47,'Data Annex'!$K$1:$AO$1,0)),"") -> 0.8499207073 | R64: =IFERROR(INDEX('Data Annex'!$K$1:$AO$871,MATCH(Assets!R$46&"|"&Assets!$B64,'Data Annex'!$K$1:$K$871,0),MATCH(Assets!R$47,'Data Annex'!$K$1:$AO$1,0)),"") -> 0.8623501397 | S64: =IFERROR(INDEX('Data Annex'!$K$1:$AO$871,MATCH(Assets!S$46&"|"&Assets!$B64,'Data Annex'!$K$1:$K$871,0),MATCH(Assets!S$47,'Data Annex'!$K$1:$AO$1,0)),"") -> 0.8722019047 | T64: =IFERROR(INDEX('Data Annex'!$K$1:$AO$871,MATCH(Assets!T$46&"|"&Assets!$B64,'Data Annex'!$K$1:$K$871,0),MATCH(Assets!T$47,'Data Annex'!$K$1:$AO$1,0)),"") -> 0.8687229472 | U64: =IFERROR(INDEX('Data Annex'!$K$1:$AO$871,MATCH(Assets!U$46&"|"&Assets!$B64,'Data Annex'!$K$1:$K$871,0),MATCH(Assets!U$47,'Data Annex'!$K$1:$AO$1,0)),"") -> 0.0891975707 | V64: =IFERROR(INDEX('Data Annex'!$K$1:$AO$871,MATCH(Assets!V$46&"|"&Assets!$B64,'Data Annex'!$K$1:$K$871,0),MATCH(Assets!V$47,'Data Annex'!$K$1:$AO$1,0)),"") -> 0.0860275742 | W64: =IFERROR(INDEX('Data Annex'!$K$1:$AO$871,MATCH(Assets!W$46&"|"&Assets!$B64,'Data Annex'!$K$1:$K$871,0),MATCH(Assets!W$47,'Data Annex'!$K$1:$AO$1,0)),"") -> 0.0736192929 | X64: =IFERROR(INDEX('Data Annex'!$K$1:$AO$871,MATCH(Assets!X$46&"|"&Assets!$B64,'Data Annex'!$K$1:$K$871,0),MATCH(Assets!X$47,'Data Annex'!$K$1:$AO$1,0)),"") -> 0.0781357989 | Y64: =IFERROR(INDEX('Data Annex'!$K$1:$AO$871,MATCH(Assets!Y$46&"|"&Assets!$B64,'Data Annex'!$K$1:$K$871,0),MATCH(Assets!Y$47,'Data Annex'!$K$1:$AO$1,0)),"") -> 0.060881722 | Z64: =IFERROR(INDEX('Data Annex'!$K$1:$AO$871,MATCH(Assets!Z$46&"|"&Assets!$B64,'Data Annex'!$K$1:$K$871,0),MATCH(Assets!Z$47,'Data Annex'!$K$1:$AO$1,0)),"") -> 0.0516222861 | AA64: =IFERROR(INDEX('Data Annex'!$K$1:$AO$871,MATCH(Assets!AA$46&"|"&Assets!$B64,'Data Annex'!$K$1:$K$871,0),MATCH(Assets!AA$47,'Data Annex'!$K$1:$AO$1,0)),"") -> 0.0541788024 | AB64: =IFERROR(INDEX('Data Annex'!$K$1:$AO$871,MATCH(Assets!AB$46&"|"&Assets!$B64,'Data Annex'!$K$1:$K$871,0),MATCH(Assets!AB$47,'Data Annex'!$K$1:$AO$1,0)),"") -> 0.0531412539
B65: HR | D65: HR | F65: =IFERROR(INDEX('Data Annex'!$K$1:$AO$871,MATCH(Assets!F$46&"|"&Assets!$B65,'Data Annex'!$K$1:$K$871,0),MATCH(Assets!F$47,'Data Annex'!$K$1:$AO$1,0)),"") -> 45.03750523 | G65: =IFERROR(INDEX('Data Annex'!$K$1:$AO$871,MATCH(Assets!G$46&"|"&Assets!$B65,'Data Annex'!$K$1:$K$871,0),MATCH(Assets!G$47,'Data Annex'!$K$1:$AO$1,0)),"") -> 45.33786368 | H65: =IFERROR(INDEX('Data Annex'!$K$1:$AO$871,MATCH(Assets!H$46&"|"&Assets!$B65,'Data Annex'!$K$1:$K$871,0),MATCH(Assets!H$47,'Data Annex'!$K$1:$AO$1,0)),"") -> 45.47576744 | I65: =IFERROR(INDEX('Data Annex'!$K$1:$AO$871,MATCH(Assets!I$46&"|"&Assets!$B65,'Data Annex'!$K$1:$K$871,0),MATCH(Assets!I$47,'Data Annex'!$K$1:$AO$1,0)),"") -> 46.64333852 | J65: =IFERROR(INDEX('Data Annex'!$K$1:$AO$871,MATCH(Assets!J$46&"|"&Assets!$B65,'Data Annex'!$K$1:$K$871,0),MATCH(Assets!J$47,'Data Annex'!$K$1:$AO$1,0)),"") -> 43.87148822 | K65: =IFERROR(INDEX('Data Annex'!$K$1:$AO$871,MATCH(Assets!K$46&"|"&Assets!$B65,'Data Annex'!$K$1:$K$871,0),MATCH(Assets!K$47,'Data Annex'!$K$1:$AO$1,0)),"") -> 44.19662281 | L65: =IFERROR(INDEX('Data Annex'!$K$1:$AO$871,MATCH(Assets!L$46&"|"&Assets!$B65,'Data Annex'!$K$1:$K$871,0),MATCH(Assets!L$47,'Data Annex'!$K$1:$AO$1,0)),"") -> 44.36211331 | M65: =IFERROR(INDEX('Data Annex'!$K$1:$AO$871,MATCH(Assets!M$46&"|"&Assets!$B65,'Data Annex'!$K$1:$K$871,0),MATCH(Assets!M$47,'Data Annex'!$K$1:$AO$1,0)),"") -> 45.49530257 | N65: 0.9753869259 | O65: HR | Q65: =IFERROR(INDEX('Data Annex'!$K$1:$AO$871,MATCH(Assets!Q$46&"|"&Assets!$B65,'Data Annex'!$K$1:$K$871,0),MATCH(Assets!Q$47,'Data Annex'!$K$1:$AO$1,0)),"") -> 0.8765823029 | R65: =IFERROR(INDEX('Data Annex'!$K$1:$AO$871,MATCH(Assets!R$46&"|"&Assets!$B65,'Data Annex'!$K$1:$K$871,0),MATCH(Assets!R$47,'Data Annex'!$K$1:$AO$1,0)),"") -> 0.8817233926 | S65: =IFERROR(INDEX('Data Annex'!$K$1:$AO$871,MATCH(Assets!S$46&"|"&Assets!$B65,'Data Annex'!$K$1:$K$871,0),MATCH(Assets!S$47,'Data Annex'!$K$1:$AO$1,0)),"") -> 0.8839805785 | T65: =IFERROR(INDEX('Data Annex'!$K$1:$AO$871,MATCH(Assets!T$46&"|"&Assets!$B65,'Data Annex'!$K$1:$K$871,0),MATCH(Assets!T$47,'Data Annex'!$K$1:$AO$1,0)),"") -> 0.8886704138 | U65: =IFERROR(INDEX('Data Annex'!$K$1:$AO$871,MATCH(Assets!U$46&"|"&Assets!$B65,'Data Annex'!$K$1:$K$871,0),MATCH(Assets!U$47,'Data Annex'!$K$1:$AO$1,0)),"") -> 0.1116653897 | V65: =IFERROR(INDEX('Data Annex'!$K$1:$AO$871,MATCH(Assets!V$46&"|"&Assets!$B65,'Data Annex'!$K$1:$K$871,0),MATCH(Assets!V$47,'Data Annex'!$K$1:$AO$1,0)),"") -> 0.1062950329 | W65: =IFERROR(INDEX('Data Annex'!$K$1:$AO$871,MATCH(Assets!W$46&"|"&Assets!$B65,'Data Annex'!$K$1:$K$871,0),MATCH(Assets!W$47,'Data Annex'!$K$1:$AO$1,0)),"") -> 0.102436067 | X65: =IFERROR(INDEX('Data Annex'!$K$1:$AO$871,MATCH(Assets!X$46&"|"&Assets!$B65,'Data Annex'!$K$1:$K$871,0),MATCH(Assets!X$47,'Data Annex'!$K$1:$AO$1,0)),"") -> 0.0996071298 | Y65: =IFERROR(INDEX('Data Annex'!$K$1:$AO$871,MATCH(Assets!Y$46&"|"&Assets!$B65,'Data Annex'!$K$1:$K$871,0),MATCH(Assets!Y$47,'Data Annex'!$K$1:$AO$1,0)),"") -> 0.0117523074 | Z65: =IFERROR(INDEX('Data Annex'!$K$1:$AO$871,MATCH(Assets!Z$46&"|"&Assets!$B65,'Data Annex'!$K$1:$K$871,0),MATCH(Assets!Z$47,'Data Annex'!$K$1:$AO$1,0)),"") -> 0.0119815745 | AA65: =IFERROR(INDEX('Data Annex'!$K$1:$AO$871,MATCH(Assets!AA$46&"|"&Assets!$B65,'Data Annex'!$K$1:$K$871,0),MATCH(Assets!AA$47,'Data Annex'!$K$1:$AO$1,0)),"") -> 0.0135833545 | AB65: =IFERROR(INDEX('Data Annex'!$K$1:$AO$871,MATCH(Assets!AB$46&"|"&Assets!$B65,'Data Annex'!$K$1:$K$871,0),MATCH(Assets!AB$47,'Data Annex'!$K$1:$AO$1,0)),"") -> 0.0117224565
B66: HU | D66: HU | F66: =IFERROR(INDEX('Data Annex'!$K$1:$AO$871,MATCH(Assets!F$46&"|"&Assets!$B66,'Data Annex'!$K$1:$K$871,0),MATCH(Assets!F$47,'Data Annex'!$K$1:$AO$1,0)),"") -> 76.3841678 | G66: =IFERROR(INDEX('Data Annex'!$K$1:$AO$871,MATCH(Assets!G$46&"|"&Assets!$B66,'Data Annex'!$K$1:$K$871,0),MATCH(Assets!G$47,'Data Annex'!$K$1:$AO$1,0)),"") -> 81.92888357 | H66: =IFERROR(INDEX('Data Annex'!$K$1:$AO$871,MATCH(Assets!H$46&"|"&Assets!$B66,'Data Annex'!$K$1:$K$871,0),MATCH(Assets!H$47,'Data Annex'!$K$1:$AO$1,0)),"") -> 80.52061871 | I66: =IFERROR(INDEX('Data Annex'!$K$1:$AO$871,MATCH(Assets!I$46&"|"&Assets!$B66,'Data Annex'!$K$1:$K$871,0),MATCH(Assets!I$47,'Data Annex'!$K$1:$AO$1,0)),"") -> 82.35589576 | J66: =IFERROR(INDEX('Data Annex'!$K$1:$AO$871,MATCH(Assets!J$46&"|"&Assets!$B66,'Data Annex'!$K$1:$K$871,0),MATCH(Assets!J$47,'Data Annex'!$K$1:$AO$1,0)),"") -> 72.94165801 | K66: =IFERROR(INDEX('Data Annex'!$K$1:$AO$871,MATCH(Assets!K$46&"|"&Assets!$B66,'Data Annex'!$K$1:$K$871,0),MATCH(Assets!K$47,'Data Annex'!$K$1:$AO$1,0)),"") -> 78.35780998 | L66: =IFERROR(INDEX('Data Annex'!$K$1:$AO$871,MATCH(Assets!L$46&"|"&Assets!$B66,'Data Annex'!$K$1:$K$871,0),MATCH(Assets!L$47,'Data Annex'!$K$1:$AO$1,0)),"") -> 77.05530522 | M66: =IFERROR(INDEX('Data Annex'!$K$1:$AO$871,MATCH(Assets!M$46&"|"&Assets!$B66,'Data Annex'!$K$1:$K$871,0),MATCH(Assets!M$47,'Data Annex'!$K$1:$AO$1,0)),"") -> 78.75278804 | N66: 0.9562495473 | O66: HU | Q66: =IFERROR(INDEX('Data Annex'!$K$1:$AO$871,MATCH(Assets!Q$46&"|"&Assets!$B66,'Data Annex'!$K$1:$K$871,0),MATCH(Assets!Q$47,'Data Annex'!$K$1:$AO$1,0)),"") -> 0.8392290929 | R66: =IFERROR(INDEX('Data Annex'!$K$1:$AO$871,MATCH(Assets!R$46&"|"&Assets!$B66,'Data Annex'!$K$1:$K$871,0),MATCH(Assets!R$47,'Data Annex'!$K$1:$AO$1,0)),"") -> 0.8514946916 | S66: =IFERROR(INDEX('Data Annex'!$K$1:$AO$871,MATCH(Assets!S$46&"|"&Assets!$B66,'Data Annex'!$K$1:$K$871,0),MATCH(Assets!S$47,'Data Annex'!$K$1:$AO$1,0)),"") -> 0.8619282997 | T66: =IFERROR(INDEX('Data Annex'!$K$1:$AO$871,MATCH(Assets!T$46&"|"&Assets!$B66,'Data Annex'!$K$1:$K$871,0),MATCH(Assets!T$47,'Data Annex'!$K$1:$AO$1,0)),"") -> 0.88515992 | U66: =IFERROR(INDEX('Data Annex'!$K$1:$AO$871,MATCH(Assets!U$46&"|"&Assets!$B66,'Data Annex'!$K$1:$K$871,0),MATCH(Assets!U$47,'Data Annex'!$K$1:$AO$1,0)),"") -> 0.133099926 | V66: =IFERROR(INDEX('Data Annex'!$K$1:$AO$871,MATCH(Assets!V$46&"|"&Assets!$B66,'Data Annex'!$K$1:$K$871,0),MATCH(Assets!V$47,'Data Annex'!$K$1:$AO$1,0)),"") -> 0.1240882588 | W66: =IFERROR(INDEX('Data Annex'!$K$1:$AO$871,MATCH(Assets!W$46&"|"&Assets!$B66,'Data Annex'!$K$1:$K$871,0),MATCH(Assets!W$47,'Data Annex'!$K$1:$AO$1,0)),"") -> 0.1068820323 | X66: =IFERROR(INDEX('Data Annex'!$K$1:$AO$871,MATCH(Assets!X$46&"|"&Assets!$B66,'Data Annex'!$K$1:$K$871,0),MATCH(Assets!X$47,'Data Annex'!$K$1:$AO$1,0)),"") -> 0.0891916038 | Y66: =IFERROR(INDEX('Data Annex'!$K$1:$AO$871,MATCH(Assets!Y$46&"|"&Assets!$B66,'Data Annex'!$K$1:$K$871,0),MATCH(Assets!Y$47,'Data Annex'!$K$1:$AO$1,0)),"") -> 0.0276709811 | Z66: =IFERROR(INDEX('Data Annex'!$K$1:$AO$871,MATCH(Assets!Z$46&"|"&Assets!$B66,'Data Annex'!$K$1:$K$871,0),MATCH(Assets!Z$47,'Data Annex'!$K$1:$AO$1,0)),"") -> 0.0244170496 | AA66: =IFERROR(INDEX('Data Annex'!$K$1:$AO$871,MATCH(Assets!AA$46&"|"&Assets!$B66,'Data Annex'!$K$1:$K$871,0),MATCH(Assets!AA$47,'Data Annex'!$K$1:$AO$1,0)),"") -> 0.031189668 | AB66: =IFERROR(INDEX('Data Annex'!$K$1:$AO$871,MATCH(Assets!AB$46&"|"&Assets!$B66,'Data Annex'!$K$1:$K$871,0),MATCH(Assets!AB$47,'Data Annex'!$K$1:$AO$1,0)),"") -> 0.0256484762
B67: IE | D67: IE | F67: =IFERROR(INDEX('Data Annex'!$K$1:$AO$871,MATCH(Assets!F$46&"|"&Assets!$B67,'Data Annex'!$K$1:$K$871,0),MATCH(Assets!F$47,'Data Annex'!$K$1:$AO$1,0)),"") -> 263.2732872 | G67: =IFERROR(INDEX('Data Annex'!$K$1:$AO$871,MATCH(Assets!G$46&"|"&Assets!$B67,'Data Annex'!$K$1:$K$871,0),MATCH(Assets!G$47,'Data Annex'!$K$1:$AO$1,0)),"") -> 267.1571607 | H67: =IFERROR(INDEX('Data Annex'!$K$1:$AO$871,MATCH(Assets!H$46&"|"&Assets!$B67,'Data Annex'!$K$1:$K$871,0),MATCH(Assets!H$47,'Data Annex'!$K$1:$AO$1,0)),"") -> 276.0607329 | I67: =IFERROR(INDEX('Data Annex'!$K$1:$AO$871,MATCH(Assets!I$46&"|"&Assets!$B67,'Data Annex'!$K$1:$K$871,0),MATCH(Assets!I$47,'Data Annex'!$K$1:$AO$1,0)),"") -> 275.8759662 | J67: =IFERROR(INDEX('Data Annex'!$K$1:$AO$871,MATCH(Assets!J$46&"|"&Assets!$B67,'Data Annex'!$K$1:$K$871,0),MATCH(Assets!J$47,'Data Annex'!$K$1:$AO$1,0)),"") -> 250.3768177 | K67: =IFERROR(INDEX('Data Annex'!$K$1:$AO$871,MATCH(Assets!K$46&"|"&Assets!$B67,'Data Annex'!$K$1:$K$871,0),MATCH(Assets!K$47,'Data Annex'!$K$1:$AO$1,0)),"") -> 254.3723655 | L67: =IFERROR(INDEX('Data Annex'!$K$1:$AO$871,MATCH(Assets!L$46&"|"&Assets!$B67,'Data Annex'!$K$1:$K$871,0),MATCH(Assets!L$47,'Data Annex'!$K$1:$AO$1,0)),"") -> 260.3554655 | M67: =IFERROR(INDEX('Data Annex'!$K$1:$AO$871,MATCH(Assets!M$46&"|"&Assets!$B67,'Data Annex'!$K$1:$K$871,0),MATCH(Assets!M$47,'Data Annex'!$K$1:$AO$1,0)),"") -> 260.9006879 | N67: 0.9457173508 | O67: IE | Q67: =IFERROR(INDEX('Data Annex'!$K$1:$AO$871,MATCH(Assets!Q$46&"|"&Assets!$B67,'Data Annex'!$K$1:$K$871,0),MATCH(Assets!Q$47,'Data Annex'!$K$1:$AO$1,0)),"") -> 0.8302810785 | R67: =IFERROR(INDEX('Data Annex'!$K$1:$AO$871,MATCH(Assets!R$46&"|"&Assets!$B67,'Data Annex'!$K$1:$K$871,0),MATCH(Assets!R$47,'Data Annex'!$K$1:$AO$1,0)),"") -> 0.8456277359 | S67: =IFERROR(INDEX('Data Annex'!$K$1:$AO$871,MATCH(Assets!S$46&"|"&Assets!$B67,'Data Annex'!$K$1:$K$871,0),MATCH(Assets!S$47,'Data Annex'!$K$1:$AO$1,0)),"") -> 0.838801286 | T67: =IFERROR(INDEX('Data Annex'!$K$1:$AO$871,MATCH(Assets!T$46&"|"&Assets!$B67,'Data Annex'!$K$1:$K$871,0),MATCH(Assets!T$47,'Data Annex'!$K$1:$AO$1,0)),"") -> 0.8322741285 | U67: =IFERROR(INDEX('Data Annex'!$K$1:$AO$871,MATCH(Assets!U$46&"|"&Assets!$B67,'Data Annex'!$K$1:$K$871,0),MATCH(Assets!U$47,'Data Annex'!$K$1:$AO$1,0)),"") -> 0.1311883272 | V67: =IFERROR(INDEX('Data Annex'!$K$1:$AO$871,MATCH(Assets!V$46&"|"&Assets!$B67,'Data Annex'!$K$1:$K$871,0),MATCH(Assets!V$47,'Data Annex'!$K$1:$AO$1,0)),"") -> 0.1208014979 | W67: =IFERROR(INDEX('Data Annex'!$K$1:$AO$871,MATCH(Assets!W$46&"|"&Assets!$B67,'Data Annex'!$K$1:$K$871,0),MATCH(Assets!W$47,'Data Annex'!$K$1:$AO$1,0)),"") -> 0.1158589216 | X67: =IFERROR(INDEX('Data Annex'!$K$1:$AO$871,MATCH(Assets!X$46&"|"&Assets!$B67,'Data Annex'!$K$1:$K$871,0),MATCH(Assets!X$47,'Data Annex'!$K$1:$AO$1,0)),"") -> 0.1206746027 | Y67: =IFERROR(INDEX('Data Annex'!$K$1:$AO$871,MATCH(Assets!Y$46&"|"&Assets!$B67,'Data Annex'!$K$1:$K$871,0),MATCH(Assets!Y$47,'Data Annex'!$K$1:$AO$1,0)),"") -> 0.0385305943 | Z67: =IFERROR(INDEX('Data Annex'!$K$1:$AO$871,MATCH(Assets!Z$46&"|"&Assets!$B67,'Data Annex'!$K$1:$K$871,0),MATCH(Assets!Z$47,'Data Annex'!$K$1:$AO$1,0)),"") -> 0.0335707662 | AA67: =IFERROR(INDEX('Data Annex'!$K$1:$AO$871,MATCH(Assets!AA$46&"|"&Assets!$B67,'Data Annex'!$K$1:$K$871,0),MATCH(Assets!AA$47,'Data Annex'!$K$1:$AO$1,0)),"") -> 0.0453397924 | AB67: =IFERROR(INDEX('Data Annex'!$K$1:$AO$871,MATCH(Assets!AB$46&"|"&Assets!$B67,'Data Annex'!$K$1:$K$871,0),MATCH(Assets!AB$47,'Data Annex'!$K$1:$AO$1,0)),"") -> 0.0470512688
B68: IS | D68: IS | F68: =IFERROR(INDEX('Data Annex'!$K$1:$AO$871,MATCH(Assets!F$46&"|"&Assets!$B68,'Data Annex'!$K$1:$K$871,0),MATCH(Assets!F$47,'Data Annex'!$K$1:$AO$1,0)),"") -> 28.58526593 | G68: =IFERROR(INDEX('Data Annex'!$K$1:$AO$871,MATCH(Assets!G$46&"|"&Assets!$B68,'Data Annex'!$K$1:$K$871,0),MATCH(Assets!G$47,'Data Annex'!$K$1:$AO$1,0)),"") -> 27.30244753 | H68: =IFERROR(INDEX('Data Annex'!$K$1:$AO$871,MATCH(Assets!H$46&"|"&Assets!$B68,'Data Annex'!$K$1:$K$871,0),MATCH(Assets!H$47,'Data Annex'!$K$1:$AO$1,0)),"") -> 25.49290494 | I68: =IFERROR(INDEX('Data Annex'!$K$1:$AO$871,MATCH(Assets!I$46&"|"&Assets!$B68,'Data Annex'!$K$1:$K$871,0),MATCH(Assets!I$47,'Data Annex'!$K$1:$AO$1,0)),"") -> 25.65389929 | J68: =IFERROR(INDEX('Data Annex'!$K$1:$AO$871,MATCH(Assets!J$46&"|"&Assets!$B68,'Data Annex'!$K$1:$K$871,0),MATCH(Assets!J$47,'Data Annex'!$K$1:$AO$1,0)),"") -> 27.54986541 | K68: =IFERROR(INDEX('Data Annex'!$K$1:$AO$871,MATCH(Assets!K$46&"|"&Assets!$B68,'Data Annex'!$K$1:$K$871,0),MATCH(Assets!K$47,'Data Annex'!$K$1:$AO$1,0)),"") -> 26.42487025 | L68: =IFERROR(INDEX('Data Annex'!$K$1:$AO$871,MATCH(Assets!L$46&"|"&Assets!$B68,'Data Annex'!$K$1:$K$871,0),MATCH(Assets!L$47,'Data Annex'!$K$1:$AO$1,0)),"") -> 24.6708315 | M68: =IFERROR(INDEX('Data Annex'!$K$1:$AO$871,MATCH(Assets!M$46&"|"&Assets!$B68,'Data Annex'!$K$1:$K$871,0),MATCH(Assets!M$47,'Data Annex'!$K$1:$AO$1,0)),"") -> 24.81608029 | N68: 0.9673414562 | O68: IS | Q68: =IFERROR(INDEX('Data Annex'!$K$1:$AO$871,MATCH(Assets!Q$46&"|"&Assets!$B68,'Data Annex'!$K$1:$K$871,0),MATCH(Assets!Q$47,'Data Annex'!$K$1:$AO$1,0)),"") -> 0.8944621589 | R68: =IFERROR(INDEX('Data Annex'!$K$1:$AO$871,MATCH(Assets!R$46&"|"&Assets!$B68,'Data Annex'!$K$1:$K$871,0),MATCH(Assets!R$47,'Data Annex'!$K$1:$AO$1,0)),"") -> 0.9016424384 | S68: =IFERROR(INDEX('Data Annex'!$K$1:$AO$871,MATCH(Assets!S$46&"|"&Assets!$B68,'Data Annex'!$K$1:$K$871,0),MATCH(Assets!S$47,'Data Annex'!$K$1:$AO$1,0)),"") -> 0.887015497 | T68: =IFERROR(INDEX('Data Annex'!$K$1:$AO$871,MATCH(Assets!T$46&"|"&Assets!$B68,'Data Annex'!$K$1:$K$871,0),MATCH(Assets!T$47,'Data Annex'!$K$1:$AO$1,0)),"") -> 0.8714492601 | U68: =IFERROR(INDEX('Data Annex'!$K$1:$AO$871,MATCH(Assets!U$46&"|"&Assets!$B68,'Data Annex'!$K$1:$K$871,0),MATCH(Assets!U$47,'Data Annex'!$K$1:$AO$1,0)),"") -> 0.0270304399 | V68: =IFERROR(INDEX('Data Annex'!$K$1:$AO$871,MATCH(Assets!V$46&"|"&Assets!$B68,'Data Annex'!$K$1:$K$871,0),MATCH(Assets!V$47,'Data Annex'!$K$1:$AO$1,0)),"") -> 0.0144931816 | W68: =IFERROR(INDEX('Data Annex'!$K$1:$AO$871,MATCH(Assets!W$46&"|"&Assets!$B68,'Data Annex'!$K$1:$K$871,0),MATCH(Assets!W$47,'Data Annex'!$K$1:$AO$1,0)),"") -> 0.0293613616 | X68: =IFERROR(INDEX('Data Annex'!$K$1:$AO$871,MATCH(Assets!X$46&"|"&Assets!$B68,'Data Annex'!$K$1:$K$871,0),MATCH(Assets!X$47,'Data Annex'!$K$1:$AO$1,0)),"") -> 0.0316839913 | Y68: =IFERROR(INDEX('Data Annex'!$K$1:$AO$871,MATCH(Assets!Y$46&"|"&Assets!$B68,'Data Annex'!$K$1:$K$871,0),MATCH(Assets!Y$47,'Data Annex'!$K$1:$AO$1,0)),"") -> 0.0785074012 | Z68: =IFERROR(INDEX('Data Annex'!$K$1:$AO$871,MATCH(Assets!Z$46&"|"&Assets!$B68,'Data Annex'!$K$1:$K$871,0),MATCH(Assets!Z$47,'Data Annex'!$K$1:$AO$1,0)),"") -> 0.08386438 | AA68: =IFERROR(INDEX('Data Annex'!$K$1:$AO$871,MATCH(Assets!AA$46&"|"&Assets!$B68,'Data Annex'!$K$1:$K$871,0),MATCH(Assets!AA$47,'Data Annex'!$K$1:$AO$1,0)),"") -> 0.0836231414 | AB68: =IFERROR(INDEX('Data Annex'!$K$1:$AO$871,MATCH(Assets!AB$46&"|"&Assets!$B68,'Data Annex'!$K$1:$K$871,0),MATCH(Assets!AB$47,'Data Annex'!$K$1:$AO$1,0)),"") -> 0.0968667486
B69: IT | D69: IT | F69: =IFERROR(INDEX('Data Annex'!$K$1:$AO$871,MATCH(Assets!F$46&"|"&Assets!$B69,'Data Annex'!$K$1:$K$871,0),MATCH(Assets!F$47,'Data Annex'!$K$1:$AO$1,0)),"") -> 2473.095383 | G69: =IFERROR(INDEX('Data Annex'!$K$1:$AO$871,MATCH(Assets!G$46&"|"&Assets!$B69,'Data Annex'!$K$1:$K$871,0),MATCH(Assets!G$47,'Data Annex'!$K$1:$AO$1,0)),"") -> 2422.369582 | H69: =IFERROR(INDEX('Data Annex'!$K$1:$AO$871,MATCH(Assets!H$46&"|"&Assets!$B69,'Data Annex'!$K$1:$K$871,0),MATCH(Assets!H$47,'Data Annex'!$K$1:$AO$1,0)),"") -> 2466.60961 | I69: =IFERROR(INDEX('Data Annex'!$K$1:$AO$871,MATCH(Assets!I$46&"|"&Assets!$B69,'Data Annex'!$K$1:$K$871,0),MATCH(Assets!I$47,'Data Annex'!$K$1:$AO$1,0)),"") -> 2545.205695 | J69: =IFERROR(INDEX('Data Annex'!$K$1:$AO$871,MATCH(Assets!J$46&"|"&Assets!$B69,'Data Annex'!$K$1:$K$871,0),MATCH(Assets!J$47,'Data Annex'!$K$1:$AO$1,0)),"") -> 2316.132016 | K69: =IFERROR(INDEX('Data Annex'!$K$1:$AO$871,MATCH(Assets!K$46&"|"&Assets!$B69,'Data Annex'!$K$1:$K$871,0),MATCH(Assets!K$47,'Data Annex'!$K$1:$AO$1,0)),"") -> 2275.087421 | L69: =IFERROR(INDEX('Data Annex'!$K$1:$AO$871,MATCH(Assets!L$46&"|"&Assets!$B69,'Data Annex'!$K$1:$K$871,0),MATCH(Assets!L$47,'Data Annex'!$K$1:$AO$1,0)),"") -> 2320.95113 | M69: =IFERROR(INDEX('Data Annex'!$K$1:$AO$871,MATCH(Assets!M$46&"|"&Assets!$B69,'Data Annex'!$K$1:$K$871,0),MATCH(Assets!M$47,'Data Annex'!$K$1:$AO$1,0)),"") -> 2397.134886 | N69: 0.9418236374 | O69: IT | Q69: =IFERROR(INDEX('Data Annex'!$K$1:$AO$871,MATCH(Assets!Q$46&"|"&Assets!$B69,'Data Annex'!$K$1:$K$871,0),MATCH(Assets!Q$47,'Data Annex'!$K$1:$AO$1,0)),"") -> 0.8150190467 | R69: =IFERROR(INDEX('Data Annex'!$K$1:$AO$871,MATCH(Assets!R$46&"|"&Assets!$B69,'Data Annex'!$K$1:$K$871,0),MATCH(Assets!R$47,'Data Annex'!$K$1:$AO$1,0)),"") -> 0.8247553071 | S69: =IFERROR(INDEX('Data Annex'!$K$1:$AO$871,MATCH(Assets!S$46&"|"&Assets!$B69,'Data Annex'!$K$1:$K$871,0),MATCH(Assets!S$47,'Data Annex'!$K$1:$AO$1,0)),"") -> 0.8228961806 | T69: =IFERROR(INDEX('Data Annex'!$K$1:$AO$871,MATCH(Assets!T$46&"|"&Assets!$B69,'Data Annex'!$K$1:$K$871,0),MATCH(Assets!T$47,'Data Annex'!$K$1:$AO$1,0)),"") -> 0.8276775972 | U69: =IFERROR(INDEX('Data Annex'!$K$1:$AO$871,MATCH(Assets!U$46&"|"&Assets!$B69,'Data Annex'!$K$1:$K$871,0),MATCH(Assets!U$47,'Data Annex'!$K$1:$AO$1,0)),"") -> 0.0976192967 | V69: =IFERROR(INDEX('Data Annex'!$K$1:$AO$871,MATCH(Assets!V$46&"|"&Assets!$B69,'Data Annex'!$K$1:$K$871,0),MATCH(Assets!V$47,'Data Annex'!$K$1:$AO$1,0)),"") -> 0.0962681198 | W69: =IFERROR(INDEX('Data Annex'!$K$1:$AO$871,MATCH(Assets!W$46&"|"&Assets!$B69,'Data Annex'!$K$1:$K$871,0),MATCH(Assets!W$47,'Data Annex'!$K$1:$AO$1,0)),"") -> 0.0930693838 | X69: =IFERROR(INDEX('Data Annex'!$K$1:$AO$871,MATCH(Assets!X$46&"|"&Assets!$B69,'Data Annex'!$K$1:$K$871,0),MATCH(Assets!X$47,'Data Annex'!$K$1:$AO$1,0)),"") -> 0.0896259994 | Y69: =IFERROR(INDEX('Data Annex'!$K$1:$AO$871,MATCH(Assets!Y$46&"|"&Assets!$B69,'Data Annex'!$K$1:$K$871,0),MATCH(Assets!Y$47,'Data Annex'!$K$1:$AO$1,0)),"") -> 0.0873616566 | Z69: =IFERROR(INDEX('Data Annex'!$K$1:$AO$871,MATCH(Assets!Z$46&"|"&Assets!$B69,'Data Annex'!$K$1:$K$871,0),MATCH(Assets!Z$47,'Data Annex'!$K$1:$AO$1,0)),"") -> 0.078976573 | AA69: =IFERROR(INDEX('Data Annex'!$K$1:$AO$871,MATCH(Assets!AA$46&"|"&Assets!$B69,'Data Annex'!$K$1:$K$871,0),MATCH(Assets!AA$47,'Data Annex'!$K$1:$AO$1,0)),"") -> 0.0840344356 | AB69: =IFERROR(INDEX('Data Annex'!$K$1:$AO$871,MATCH(Assets!AB$46&"|"&Assets!$B69,'Data Annex'!$K$1:$K$871,0),MATCH(Assets!AB$47,'Data Annex'!$K$1:$AO$1,0)),"") -> 0.0826964034
B70: LT | D70: LT | F70: =IFERROR(INDEX('Data Annex'!$K$1:$AO$871,MATCH(Assets!F$46&"|"&Assets!$B70,'Data Annex'!$K$1:$K$871,0),MATCH(Assets!F$47,'Data Annex'!$K$1:$AO$1,0)),"") -> 20.055645 | G70: =IFERROR(INDEX('Data Annex'!$K$1:$AO$871,MATCH(Assets!G$46&"|"&Assets!$B70,'Data Annex'!$K$1:$K$871,0),MATCH(Assets!G$47,'Data Annex'!$K$1:$AO$1,0)),"") -> 21.553325 | H70: =IFERROR(INDEX('Data Annex'!$K$1:$AO$871,MATCH(Assets!H$46&"|"&Assets!$B70,'Data Annex'!$K$1:$K$871,0),MATCH(Assets!H$47,'Data Annex'!$K$1:$AO$1,0)),"") -> 22.044845 | I70: =IFERROR(INDEX('Data Annex'!$K$1:$AO$871,MATCH(Assets!I$46&"|"&Assets!$B70,'Data Annex'!$K$1:$K$871,0),MATCH(Assets!I$47,'Data Annex'!$K$1:$AO$1,0)),"") -> 23.313285 | J70: =IFERROR(INDEX('Data Annex'!$K$1:$AO$871,MATCH(Assets!J$46&"|"&Assets!$B70,'Data Annex'!$K$1:$K$871,0),MATCH(Assets!J$47,'Data Annex'!$K$1:$AO$1,0)),"") -> 19.836944 | K70: =IFERROR(INDEX('Data Annex'!$K$1:$AO$871,MATCH(Assets!K$46&"|"&Assets!$B70,'Data Annex'!$K$1:$K$871,0),MATCH(Assets!K$47,'Data Annex'!$K$1:$AO$1,0)),"") -> 21.349882 | L70: =IFERROR(INDEX('Data Annex'!$K$1:$AO$871,MATCH(Assets!L$46&"|"&Assets!$B70,'Data Annex'!$K$1:$K$871,0),MATCH(Assets!L$47,'Data Annex'!$K$1:$AO$1,0)),"") -> 21.858897 | M70: =IFERROR(INDEX('Data Annex'!$K$1:$AO$871,MATCH(Assets!M$46&"|"&Assets!$B70,'Data Annex'!$K$1:$K$871,0),MATCH(Assets!M$47,'Data Annex'!$K$1:$AO$1,0)),"") -> 23.095373 | N70: 0.9906528831 | O70: LT | Q70: =IFERROR(INDEX('Data Annex'!$K$1:$AO$871,MATCH(Assets!Q$46&"|"&Assets!$B70,'Data Annex'!$K$1:$K$871,0),MATCH(Assets!Q$47,'Data Annex'!$K$1:$AO$1,0)),"") -> 0.9633989994 | R70: =IFERROR(INDEX('Data Annex'!$K$1:$AO$871,MATCH(Assets!R$46&"|"&Assets!$B70,'Data Annex'!$K$1:$K$871,0),MATCH(Assets!R$47,'Data Annex'!$K$1:$AO$1,0)),"") -> 0.9652343278 | S70: =IFERROR(INDEX('Data Annex'!$K$1:$AO$871,MATCH(Assets!S$46&"|"&Assets!$B70,'Data Annex'!$K$1:$K$871,0),MATCH(Assets!S$47,'Data Annex'!$K$1:$AO$1,0)),"") -> 0.9770282096 | T70: =IFERROR(INDEX('Data Annex'!$K$1:$AO$871,MATCH(Assets!T$46&"|"&Assets!$B70,'Data Annex'!$K$1:$K$871,0),MATCH(Assets!T$47,'Data Annex'!$K$1:$AO$1,0)),"") -> 0.9684527286 | U70: =IFERROR(INDEX('Data Annex'!$K$1:$AO$871,MATCH(Assets!U$46&"|"&Assets!$B70,'Data Annex'!$K$1:$K$871,0),MATCH(Assets!U$47,'Data Annex'!$K$1:$AO$1,0)),"") -> 0.0004525899 | V70: =IFERROR(INDEX('Data Annex'!$K$1:$AO$871,MATCH(Assets!V$46&"|"&Assets!$B70,'Data Annex'!$K$1:$K$871,0),MATCH(Assets!V$47,'Data Annex'!$K$1:$AO$1,0)),"") -> 0.0004193466 | W70: =IFERROR(INDEX('Data Annex'!$K$1:$AO$871,MATCH(Assets!W$46&"|"&Assets!$B70,'Data Annex'!$K$1:$K$871,0),MATCH(Assets!W$47,'Data Annex'!$K$1:$AO$1,0)),"") -> 0.0003177196 | X70: =IFERROR(INDEX('Data Annex'!$K$1:$AO$871,MATCH(Assets!X$46&"|"&Assets!$B70,'Data Annex'!$K$1:$K$871,0),MATCH(Assets!X$47,'Data Annex'!$K$1:$AO$1,0)),"") -> 0.001598069 | Y70: =IFERROR(INDEX('Data Annex'!$K$1:$AO$871,MATCH(Assets!Y$46&"|"&Assets!$B70,'Data Annex'!$K$1:$K$871,0),MATCH(Assets!Y$47,'Data Annex'!$K$1:$AO$1,0)),"") -> 0.0361484108 | Z70: =IFERROR(INDEX('Data Annex'!$K$1:$AO$871,MATCH(Assets!Z$46&"|"&Assets!$B70,'Data Annex'!$K$1:$K$871,0),MATCH(Assets!Z$47,'Data Annex'!$K$1:$AO$1,0)),"") -> 0.0343463257 | AA70: =IFERROR(INDEX('Data Annex'!$K$1:$AO$871,MATCH(Assets!AA$46&"|"&Assets!$B70,'Data Annex'!$K$1:$K$871,0),MATCH(Assets!AA$47,'Data Annex'!$K$1:$AO$1,0)),"") -> 0.0226540708 | AB70: =IFERROR(INDEX('Data Annex'!$K$1:$AO$871,MATCH(Assets!AB$46&"|"&Assets!$B70,'Data Annex'!$K$1:$K$871,0),MATCH(Assets!AB$47,'Data Annex'!$K$1:$AO$1,0)),"") -> 0.0299492024
B71: LU | D71: LU | F71: =IFERROR(INDEX('Data Annex'!$K$1:$AO$871,MATCH(Assets!F$46&"|"&Assets!$B71,'Data Annex'!$K$1:$K$871,0),MATCH(Assets!F$47,'Data Annex'!$K$1:$AO$1,0)),"") -> 232.2738888 | G71: =IFERROR(INDEX('Data Annex'!$K$1:$AO$871,MATCH(Assets!G$46&"|"&Assets!$B71,'Data Annex'!$K$1:$K$871,0),MATCH(Assets!G$47,'Data Annex'!$K$1:$AO$1,0)),"") -> 233.7789342 | H71: =IFERROR(INDEX('Data Annex'!$K$1:$AO$871,MATCH(Assets!H$46&"|"&Assets!$B71,'Data Annex'!$K$1:$K$871,0),MATCH(Assets!H$47,'Data Annex'!$K$1:$AO$1,0)),"") -> 231.0255539 | I71: =IFERROR(INDEX('Data Annex'!$K$1:$AO$871,MATCH(Assets!I$46&"|"&Assets!$B71,'Data Annex'!$K$1:$K$871,0),MATCH(Assets!I$47,'Data Annex'!$K$1:$AO$1,0)),"") -> 221.3351309 | J71: =IFERROR(INDEX('Data Annex'!$K$1:$AO$871,MATCH(Assets!J$46&"|"&Assets!$B71,'Data Annex'!$K$1:$K$871,0),MATCH(Assets!J$47,'Data Annex'!$K$1:$AO$1,0)),"") -> 226.1819128 | K71: =IFERROR(INDEX('Data Annex'!$K$1:$AO$871,MATCH(Assets!K$46&"|"&Assets!$B71,'Data Annex'!$K$1:$K$871,0),MATCH(Assets!K$47,'Data Annex'!$K$1:$AO$1,0)),"") -> 228.5300286 | L71: =IFERROR(INDEX('Data Annex'!$K$1:$AO$871,MATCH(Assets!L$46&"|"&Assets!$B71,'Data Annex'!$K$1:$K$871,0),MATCH(Assets!L$47,'Data Annex'!$K$1:$AO$1,0)),"") -> 225.2481898 | M71: =IFERROR(INDEX('Data Annex'!$K$1:$AO$871,MATCH(Assets!M$46&"|"&Assets!$B71,'Data Annex'!$K$1:$K$871,0),MATCH(Assets!M$47,'Data Annex'!$K$1:$AO$1,0)),"") -> 215.6807873 | N71: 0.9744534742 | O71: LU | Q71: =IFERROR(INDEX('Data Annex'!$K$1:$AO$871,MATCH(Assets!Q$46&"|"&Assets!$B71,'Data Annex'!$K$1:$K$871,0),MATCH(Assets!Q$47,'Data Annex'!$K$1:$AO$1,0)),"") -> 0.6850891976 | R71: =IFERROR(INDEX('Data Annex'!$K$1:$AO$871,MATCH(Assets!R$46&"|"&Assets!$B71,'Data Annex'!$K$1:$K$871,0),MATCH(Assets!R$47,'Data Annex'!$K$1:$AO$1,0)),"") -> 0.6783048646 | S71: =IFERROR(INDEX('Data Annex'!$K$1:$AO$871,MATCH(Assets!S$46&"|"&Assets!$B71,'Data Annex'!$K$1:$K$871,0),MATCH(Assets!S$47,'Data Annex'!$K$1:$AO$1,0)),"") -> 0.7032551384 | T71: =IFERROR(INDEX('Data Annex'!$K$1:$AO$871,MATCH(Assets!T$46&"|"&Assets!$B71,'Data Annex'!$K$1:$K$871,0),MATCH(Assets!T$47,'Data Annex'!$K$1:$AO$1,0)),"") -> 0.7210186325 | U71: =IFERROR(INDEX('Data Annex'!$K$1:$AO$871,MATCH(Assets!U$46&"|"&Assets!$B71,'Data Annex'!$K$1:$K$871,0),MATCH(Assets!U$47,'Data Annex'!$K$1:$AO$1,0)),"") -> 0.0475983702 | V71: =IFERROR(INDEX('Data Annex'!$K$1:$AO$871,MATCH(Assets!V$46&"|"&Assets!$B71,'Data Annex'!$K$1:$K$871,0),MATCH(Assets!V$47,'Data Annex'!$K$1:$AO$1,0)),"") -> 0.0474572663 | W71: =IFERROR(INDEX('Data Annex'!$K$1:$AO$871,MATCH(Assets!W$46&"|"&Assets!$B71,'Data Annex'!$K$1:$K$871,0),MATCH(Assets!W$47,'Data Annex'!$K$1:$AO$1,0)),"") -> 0.0486689441 | X71: =IFERROR(INDEX('Data Annex'!$K$1:$AO$871,MATCH(Assets!X$46&"|"&Assets!$B71,'Data Annex'!$K$1:$K$871,0),MATCH(Assets!X$47,'Data Annex'!$K$1:$AO$1,0)),"") -> 0.0535360826 | Y71: =IFERROR(INDEX('Data Annex'!$K$1:$AO$871,MATCH(Assets!Y$46&"|"&Assets!$B71,'Data Annex'!$K$1:$K$871,0),MATCH(Assets!Y$47,'Data Annex'!$K$1:$AO$1,0)),"") -> 0.2673124323 | Z71: =IFERROR(INDEX('Data Annex'!$K$1:$AO$871,MATCH(Assets!Z$46&"|"&Assets!$B71,'Data Annex'!$K$1:$K$871,0),MATCH(Assets!Z$47,'Data Annex'!$K$1:$AO$1,0)),"") -> 0.2742378691 | AA71: =IFERROR(INDEX('Data Annex'!$K$1:$AO$871,MATCH(Assets!AA$46&"|"&Assets!$B71,'Data Annex'!$K$1:$K$871,0),MATCH(Assets!AA$47,'Data Annex'!$K$1:$AO$1,0)),"") -> 0.2480759175 | AB71: =IFERROR(INDEX('Data Annex'!$K$1:$AO$871,MATCH(Assets!AB$46&"|"&Assets!$B71,'Data Annex'!$K$1:$K$871,0),MATCH(Assets!AB$47,'Data Annex'!$K$1:$AO$1,0)),"") -> 0.2254452849
B72: LV | D72: LV | F72: =IFERROR(INDEX('Data Annex'!$K$1:$AO$871,MATCH(Assets!F$46&"|"&Assets!$B72,'Data Annex'!$K$1:$K$871,0),MATCH(Assets!F$47,'Data Annex'!$K$1:$AO$1,0)),"") -> 13.0403326 | G72: =IFERROR(INDEX('Data Annex'!$K$1:$AO$871,MATCH(Assets!G$46&"|"&Assets!$B72,'Data Annex'!$K$1:$K$871,0),MATCH(Assets!G$47,'Data Annex'!$K$1:$AO$1,0)),"") -> 13.46560941 | H72: =IFERROR(INDEX('Data Annex'!$K$1:$AO$871,MATCH(Assets!H$46&"|"&Assets!$B72,'Data Annex'!$K$1:$K$871,0),MATCH(Assets!H$47,'Data Annex'!$K$1:$AO$1,0)),"") -> 13.94709194 | I72: =IFERROR(INDEX('Data Annex'!$K$1:$AO$871,MATCH(Assets!I$46&"|"&Assets!$B72,'Data Annex'!$K$1:$K$871,0),MATCH(Assets!I$47,'Data Annex'!$K$1:$AO$1,0)),"") -> 15.49101397 | J72: =IFERROR(INDEX('Data Annex'!$K$1:$AO$871,MATCH(Assets!J$46&"|"&Assets!$B72,'Data Annex'!$K$1:$K$871,0),MATCH(Assets!J$47,'Data Annex'!$K$1:$AO$1,0)),"") -> 12.85098315 | K72: =IFERROR(INDEX('Data Annex'!$K$1:$AO$871,MATCH(Assets!K$46&"|"&Assets!$B72,'Data Annex'!$K$1:$K$871,0),MATCH(Assets!K$47,'Data Annex'!$K$1:$AO$1,0)),"") -> 13.28033135 | L72: =IFERROR(INDEX('Data Annex'!$K$1:$AO$871,MATCH(Assets!L$46&"|"&Assets!$B72,'Data Annex'!$K$1:$K$871,0),MATCH(Assets!L$47,'Data Annex'!$K$1:$AO$1,0)),"") -> 13.77045684 | M72: =IFERROR(INDEX('Data Annex'!$K$1:$AO$871,MATCH(Assets!M$46&"|"&Assets!$B72,'Data Annex'!$K$1:$K$871,0),MATCH(Assets!M$47,'Data Annex'!$K$1:$AO$1,0)),"") -> 15.31503411 | N72: 0.9886398753 | O72: LV | Q72: =IFERROR(INDEX('Data Annex'!$K$1:$AO$871,MATCH(Assets!Q$46&"|"&Assets!$B72,'Data Annex'!$K$1:$K$871,0),MATCH(Assets!Q$47,'Data Annex'!$K$1:$AO$1,0)),"") -> 0.9387081299 | R72: =IFERROR(INDEX('Data Annex'!$K$1:$AO$871,MATCH(Assets!R$46&"|"&Assets!$B72,'Data Annex'!$K$1:$K$871,0),MATCH(Assets!R$47,'Data Annex'!$K$1:$AO$1,0)),"") -> 0.9484417116 | S72: =IFERROR(INDEX('Data Annex'!$K$1:$AO$871,MATCH(Assets!S$46&"|"&Assets!$B72,'Data Annex'!$K$1:$K$871,0),MATCH(Assets!S$47,'Data Annex'!$K$1:$AO$1,0)),"") -> 0.9571372556 | T72: =IFERROR(INDEX('Data Annex'!$K$1:$AO$871,MATCH(Assets!T$46&"|"&Assets!$B72,'Data Annex'!$K$1:$K$871,0),MATCH(Assets!T$47,'Data Annex'!$K$1:$AO$1,0)),"") -> 0.8913249433 | U72: =IFERROR(INDEX('Data Annex'!$K$1:$AO$871,MATCH(Assets!U$46&"|"&Assets!$B72,'Data Annex'!$K$1:$K$871,0),MATCH(Assets!U$47,'Data Annex'!$K$1:$AO$1,0)),"") -> 0.0356303429 | V72: =IFERROR(INDEX('Data Annex'!$K$1:$AO$871,MATCH(Assets!V$46&"|"&Assets!$B72,'Data Annex'!$K$1:$K$871,0),MATCH(Assets!V$47,'Data Annex'!$K$1:$AO$1,0)),"") -> 0.0295689258 | W72: =IFERROR(INDEX('Data Annex'!$K$1:$AO$871,MATCH(Assets!W$46&"|"&Assets!$B72,'Data Annex'!$K$1:$K$871,0),MATCH(Assets!W$47,'Data Annex'!$K$1:$AO$1,0)),"") -> 0.0220874744 | X72: =IFERROR(INDEX('Data Annex'!$K$1:$AO$871,MATCH(Assets!X$46&"|"&Assets!$B72,'Data Annex'!$K$1:$K$871,0),MATCH(Assets!X$47,'Data Annex'!$K$1:$AO$1,0)),"") -> 0.0244807545 | Y72: =IFERROR(INDEX('Data Annex'!$K$1:$AO$871,MATCH(Assets!Y$46&"|"&Assets!$B72,'Data Annex'!$K$1:$K$871,0),MATCH(Assets!Y$47,'Data Annex'!$K$1:$AO$1,0)),"") -> 0.0256615272 | Z72: =IFERROR(INDEX('Data Annex'!$K$1:$AO$871,MATCH(Assets!Z$46&"|"&Assets!$B72,'Data Annex'!$K$1:$K$871,0),MATCH(Assets!Z$47,'Data Annex'!$K$1:$AO$1,0)),"") -> 0.0219893626 | AA72: =IFERROR(INDEX('Data Annex'!$K$1:$AO$871,MATCH(Assets!AA$46&"|"&Assets!$B72,'Data Annex'!$K$1:$K$871,0),MATCH(Assets!AA$47,'Data Annex'!$K$1:$AO$1,0)),"") -> 0.02077527 | AB72: =IFERROR(INDEX('Data Annex'!$K$1:$AO$871,MATCH(Assets!AB$46&"|"&Assets!$B72,'Data Annex'!$K$1:$K$871,0),MATCH(Assets!AB$47,'Data Annex'!$K$1:$AO$1,0)),"") -> 0.0841943021
B73: MT | D73: MT | F73: =IFERROR(INDEX('Data Annex'!$K$1:$AO$871,MATCH(Assets!F$46&"|"&Assets!$B73,'Data Annex'!$K$1:$K$871,0),MATCH(Assets!F$47,'Data Annex'!$K$1:$AO$1,0)),"") -> 20.99786726 | G73: =IFERROR(INDEX('Data Annex'!$K$1:$AO$871,MATCH(Assets!G$46&"|"&Assets!$B73,'Data Annex'!$K$1:$K$871,0),MATCH(Assets!G$47,'Data Annex'!$K$1:$AO$1,0)),"") -> 21.10272764 | H73: =IFERROR(INDEX('Data Annex'!$K$1:$AO$871,MATCH(Assets!H$46&"|"&Assets!$B73,'Data Annex'!$K$1:$K$871,0),MATCH(Assets!H$47,'Data Annex'!$K$1:$AO$1,0)),"") -> 21.73989099 | I73: =IFERROR(INDEX('Data Annex'!$K$1:$AO$871,MATCH(Assets!I$46&"|"&Assets!$B73,'Data Annex'!$K$1:$K$871,0),MATCH(Assets!I$47,'Data Annex'!$K$1:$AO$1,0)),"") -> 22.388761 | J73: =IFERROR(INDEX('Data Annex'!$K$1:$AO$871,MATCH(Assets!J$46&"|"&Assets!$B73,'Data Annex'!$K$1:$K$871,0),MATCH(Assets!J$47,'Data Annex'!$K$1:$AO$1,0)),"") -> 20.32665693 | K73: =IFERROR(INDEX('Data Annex'!$K$1:$AO$871,MATCH(Assets!K$46&"|"&Assets!$B73,'Data Annex'!$K$1:$K$871,0),MATCH(Assets!K$47,'Data Annex'!$K$1:$AO$1,0)),"") -> 20.36871244 | L73: =IFERROR(INDEX('Data Annex'!$K$1:$AO$871,MATCH(Assets!L$46&"|"&Assets!$B73,'Data Annex'!$K$1:$K$871,0),MATCH(Assets!L$47,'Data Annex'!$K$1:$AO$1,0)),"") -> 21.0329051 | M73: =IFERROR(INDEX('Data Annex'!$K$1:$AO$871,MATCH(Assets!M$46&"|"&Assets!$B73,'Data Annex'!$K$1:$K$871,0),MATCH(Assets!M$47,'Data Annex'!$K$1:$AO$1,0)),"") -> 21.69252473 | N73: 0.9689024205 | O73: MT | Q73: =IFERROR(INDEX('Data Annex'!$K$1:$AO$871,MATCH(Assets!Q$46&"|"&Assets!$B73,'Data Annex'!$K$1:$K$871,0),MATCH(Assets!Q$47,'Data Annex'!$K$1:$AO$1,0)),"") -> 0.9105117741 | R73: =IFERROR(INDEX('Data Annex'!$K$1:$AO$871,MATCH(Assets!R$46&"|"&Assets!$B73,'Data Annex'!$K$1:$K$871,0),MATCH(Assets!R$47,'Data Annex'!$K$1:$AO$1,0)),"") -> 0.8990752883 | S73: =IFERROR(INDEX('Data Annex'!$K$1:$AO$871,MATCH(Assets!S$46&"|"&Assets!$B73,'Data Annex'!$K$1:$K$871,0),MATCH(Assets!S$47,'Data Annex'!$K$1:$AO$1,0)),"") -> 0.9044110821 | T73: =IFERROR(INDEX('Data Annex'!$K$1:$AO$871,MATCH(Assets!T$46&"|"&Assets!$B73,'Data Annex'!$K$1:$K$871,0),MATCH(Assets!T$47,'Data Annex'!$K$1:$AO$1,0)),"") -> 0.8799770692 | U73: =IFERROR(INDEX('Data Annex'!$K$1:$AO$871,MATCH(Assets!U$46&"|"&Assets!$B73,'Data Annex'!$K$1:$K$871,0),MATCH(Assets!U$47,'Data Annex'!$K$1:$AO$1,0)),"") -> 0.0780332581 | V73: =IFERROR(INDEX('Data Annex'!$K$1:$AO$871,MATCH(Assets!V$46&"|"&Assets!$B73,'Data Annex'!$K$1:$K$871,0),MATCH(Assets!V$47,'Data Annex'!$K$1:$AO$1,0)),"") -> 0.0902006848 | W73: =IFERROR(INDEX('Data Annex'!$K$1:$AO$871,MATCH(Assets!W$46&"|"&Assets!$B73,'Data Annex'!$K$1:$K$871,0),MATCH(Assets!W$47,'Data Annex'!$K$1:$AO$1,0)),"") -> 0.0847910397 | X73: =IFERROR(INDEX('Data Annex'!$K$1:$AO$871,MATCH(Assets!X$46&"|"&Assets!$B73,'Data Annex'!$K$1:$K$871,0),MATCH(Assets!X$47,'Data Annex'!$K$1:$AO$1,0)),"") -> 0.1112069688 | Y73: =IFERROR(INDEX('Data Annex'!$K$1:$AO$871,MATCH(Assets!Y$46&"|"&Assets!$B73,'Data Annex'!$K$1:$K$871,0),MATCH(Assets!Y$47,'Data Annex'!$K$1:$AO$1,0)),"") -> 0.0114549678 | Z73: =IFERROR(INDEX('Data Annex'!$K$1:$AO$871,MATCH(Assets!Z$46&"|"&Assets!$B73,'Data Annex'!$K$1:$K$871,0),MATCH(Assets!Z$47,'Data Annex'!$K$1:$AO$1,0)),"") -> 0.0107240269 | AA73: =IFERROR(INDEX('Data Annex'!$K$1:$AO$871,MATCH(Assets!AA$46&"|"&Assets!$B73,'Data Annex'!$K$1:$K$871,0),MATCH(Assets!AA$47,'Data Annex'!$K$1:$AO$1,0)),"") -> 0.0107978782 | AB73: =IFERROR(INDEX('Data Annex'!$K$1:$AO$871,MATCH(Assets!AB$46&"|"&Assets!$B73,'Data Annex'!$K$1:$K$871,0),MATCH(Assets!AB$47,'Data Annex'!$K$1:$AO$1,0)),"") -> 0.0088159621
B74: NL | D74: NL | F74: =IFERROR(INDEX('Data Annex'!$K$1:$AO$871,MATCH(Assets!F$46&"|"&Assets!$B74,'Data Annex'!$K$1:$K$871,0),MATCH(Assets!F$47,'Data Annex'!$K$1:$AO$1,0)),"") -> 2112.241526 | G74: =IFERROR(INDEX('Data Annex'!$K$1:$AO$871,MATCH(Assets!G$46&"|"&Assets!$B74,'Data Annex'!$K$1:$K$871,0),MATCH(Assets!G$47,'Data Annex'!$K$1:$AO$1,0)),"") -> 2070.235907 | H74: =IFERROR(INDEX('Data Annex'!$K$1:$AO$871,MATCH(Assets!H$46&"|"&Assets!$B74,'Data Annex'!$K$1:$K$871,0),MATCH(Assets!H$47,'Data Annex'!$K$1:$AO$1,0)),"") -> 2212.146183 | I74: =IFERROR(INDEX('Data Annex'!$K$1:$AO$871,MATCH(Assets!I$46&"|"&Assets!$B74,'Data Annex'!$K$1:$K$871,0),MATCH(Assets!I$47,'Data Annex'!$K$1:$AO$1,0)),"") -> 2262.356289 | J74: =IFERROR(INDEX('Data Annex'!$K$1:$AO$871,MATCH(Assets!J$46&"|"&Assets!$B74,'Data Annex'!$K$1:$K$871,0),MATCH(Assets!J$47,'Data Annex'!$K$1:$AO$1,0)),"") -> 2036.48165 | K74: =IFERROR(INDEX('Data Annex'!$K$1:$AO$871,MATCH(Assets!K$46&"|"&Assets!$B74,'Data Annex'!$K$1:$K$871,0),MATCH(Assets!K$47,'Data Annex'!$K$1:$AO$1,0)),"") -> 2001.816622 | L74: =IFERROR(INDEX('Data Annex'!$K$1:$AO$871,MATCH(Assets!L$46&"|"&Assets!$B74,'Data Annex'!$K$1:$K$871,0),MATCH(Assets!L$47,'Data Annex'!$K$1:$AO$1,0)),"") -> 2135.95156 | M74: =IFERROR(INDEX('Data Annex'!$K$1:$AO$871,MATCH(Assets!M$46&"|"&Assets!$B74,'Data Annex'!$K$1:$K$871,0),MATCH(Assets!M$47,'Data Annex'!$K$1:$AO$1,0)),"") -> 2184.212768 | N74: 0.9654592329 | O74: NL | Q74: =IFERROR(INDEX('Data Annex'!$K$1:$AO$871,MATCH(Assets!Q$46&"|"&Assets!$B74,'Data Annex'!$K$1:$K$871,0),MATCH(Assets!Q$47,'Data Annex'!$K$1:$AO$1,0)),"") -> 0.8577989134 | R74: =IFERROR(INDEX('Data Annex'!$K$1:$AO$871,MATCH(Assets!R$46&"|"&Assets!$B74,'Data Annex'!$K$1:$K$871,0),MATCH(Assets!R$47,'Data Annex'!$K$1:$AO$1,0)),"") -> 0.8757384 | S74: =IFERROR(INDEX('Data Annex'!$K$1:$AO$871,MATCH(Assets!S$46&"|"&Assets!$B74,'Data Annex'!$K$1:$K$871,0),MATCH(Assets!S$47,'Data Annex'!$K$1:$AO$1,0)),"") -> 0.8630421445 | T74: =IFERROR(INDEX('Data Annex'!$K$1:$AO$871,MATCH(Assets!T$46&"|"&Assets!$B74,'Data Annex'!$K$1:$K$871,0),MATCH(Assets!T$47,'Data Annex'!$K$1:$AO$1,0)),"") -> 0.8683345005 | U74: =IFERROR(INDEX('Data Annex'!$K$1:$AO$871,MATCH(Assets!U$46&"|"&Assets!$B74,'Data Annex'!$K$1:$K$871,0),MATCH(Assets!U$47,'Data Annex'!$K$1:$AO$1,0)),"") -> 0.0514780808 | V74: =IFERROR(INDEX('Data Annex'!$K$1:$AO$871,MATCH(Assets!V$46&"|"&Assets!$B74,'Data Annex'!$K$1:$K$871,0),MATCH(Assets!V$47,'Data Annex'!$K$1:$AO$1,0)),"") -> 0.0517669744 | W74: =IFERROR(INDEX('Data Annex'!$K$1:$AO$871,MATCH(Assets!W$46&"|"&Assets!$B74,'Data Annex'!$K$1:$K$871,0),MATCH(Assets!W$47,'Data Annex'!$K$1:$AO$1,0)),"") -> 0.0514778986 | X74: =IFERROR(INDEX('Data Annex'!$K$1:$AO$871,MATCH(Assets!X$46&"|"&Assets!$B74,'Data Annex'!$K$1:$K$871,0),MATCH(Assets!X$47,'Data Annex'!$K$1:$AO$1,0)),"") -> 0.0530070786 | Y74: =IFERROR(INDEX('Data Annex'!$K$1:$AO$871,MATCH(Assets!Y$46&"|"&Assets!$B74,'Data Annex'!$K$1:$K$871,0),MATCH(Assets!Y$47,'Data Annex'!$K$1:$AO$1,0)),"") -> 0.0907230058 | Z74: =IFERROR(INDEX('Data Annex'!$K$1:$AO$871,MATCH(Assets!Z$46&"|"&Assets!$B74,'Data Annex'!$K$1:$K$871,0),MATCH(Assets!Z$47,'Data Annex'!$K$1:$AO$1,0)),"") -> 0.0724946255 | AA74: =IFERROR(INDEX('Data Annex'!$K$1:$AO$871,MATCH(Assets!AA$46&"|"&Assets!$B74,'Data Annex'!$K$1:$K$871,0),MATCH(Assets!AA$47,'Data Annex'!$K$1:$AO$1,0)),"") -> 0.0854799569 | AB74: =IFERROR(INDEX('Data Annex'!$K$1:$AO$871,MATCH(Assets!AB$46&"|"&Assets!$B74,'Data Annex'!$K$1:$K$871,0),MATCH(Assets!AB$47,'Data Annex'!$K$1:$AO$1,0)),"") -> 0.078658421
B75: NO | D75: NO | F75: =IFERROR(INDEX('Data Annex'!$K$1:$AO$871,MATCH(Assets!F$46&"|"&Assets!$B75,'Data Annex'!$K$1:$K$871,0),MATCH(Assets!F$47,'Data Annex'!$K$1:$AO$1,0)),"") -> 313.972025 | G75: =IFERROR(INDEX('Data Annex'!$K$1:$AO$871,MATCH(Assets!G$46&"|"&Assets!$B75,'Data Annex'!$K$1:$K$871,0),MATCH(Assets!G$47,'Data Annex'!$K$1:$AO$1,0)),"") -> 303.9875954 | H75: =IFERROR(INDEX('Data Annex'!$K$1:$AO$871,MATCH(Assets!H$46&"|"&Assets!$B75,'Data Annex'!$K$1:$K$871,0),MATCH(Assets!H$47,'Data Annex'!$K$1:$AO$1,0)),"") -> 301.5625295 | I75: =IFERROR(INDEX('Data Annex'!$K$1:$AO$871,MATCH(Assets!I$46&"|"&Assets!$B75,'Data Annex'!$K$1:$K$871,0),MATCH(Assets!I$47,'Data Annex'!$K$1:$AO$1,0)),"") -> 303.6580119 | J75: =IFERROR(INDEX('Data Annex'!$K$1:$AO$871,MATCH(Assets!J$46&"|"&Assets!$B75,'Data Annex'!$K$1:$K$871,0),MATCH(Assets!J$47,'Data Annex'!$K$1:$AO$1,0)),"") -> 309.2298614 | K75: =IFERROR(INDEX('Data Annex'!$K$1:$AO$871,MATCH(Assets!K$46&"|"&Assets!$B75,'Data Annex'!$K$1:$K$871,0),MATCH(Assets!K$47,'Data Annex'!$K$1:$AO$1,0)),"") -> 299.7667949 | L75: =IFERROR(INDEX('Data Annex'!$K$1:$AO$871,MATCH(Assets!L$46&"|"&Assets!$B75,'Data Annex'!$K$1:$K$871,0),MATCH(Assets!L$47,'Data Annex'!$K$1:$AO$1,0)),"") -> 297.1586388 | M75: =IFERROR(INDEX('Data Annex'!$K$1:$AO$871,MATCH(Assets!M$46&"|"&Assets!$B75,'Data Annex'!$K$1:$K$871,0),MATCH(Assets!M$47,'Data Annex'!$K$1:$AO$1,0)),"") -> 298.6709538 | N75: 0.9835767279 | O75: NO | Q75: =IFERROR(INDEX('Data Annex'!$K$1:$AO$871,MATCH(Assets!Q$46&"|"&Assets!$B75,'Data Annex'!$K$1:$K$871,0),MATCH(Assets!Q$47,'Data Annex'!$K$1:$AO$1,0)),"") -> 0.8131984022 | R75: =IFERROR(INDEX('Data Annex'!$K$1:$AO$871,MATCH(Assets!R$46&"|"&Assets!$B75,'Data Annex'!$K$1:$K$871,0),MATCH(Assets!R$47,'Data Annex'!$K$1:$AO$1,0)),"") -> 0.8057150424 | S75: =IFERROR(INDEX('Data Annex'!$K$1:$AO$871,MATCH(Assets!S$46&"|"&Assets!$B75,'Data Annex'!$K$1:$K$871,0),MATCH(Assets!S$47,'Data Annex'!$K$1:$AO$1,0)),"") -> 0.777571454 | T75: =IFERROR(INDEX('Data Annex'!$K$1:$AO$871,MATCH(Assets!T$46&"|"&Assets!$B75,'Data Annex'!$K$1:$K$871,0),MATCH(Assets!T$47,'Data Annex'!$K$1:$AO$1,0)),"") -> 0.7662843486 | U75: =IFERROR(INDEX('Data Annex'!$K$1:$AO$871,MATCH(Assets!U$46&"|"&Assets!$B75,'Data Annex'!$K$1:$K$871,0),MATCH(Assets!U$47,'Data Annex'!$K$1:$AO$1,0)),"") -> 0.038744981 | V75: =IFERROR(INDEX('Data Annex'!$K$1:$AO$871,MATCH(Assets!V$46&"|"&Assets!$B75,'Data Annex'!$K$1:$K$871,0),MATCH(Assets!V$47,'Data Annex'!$K$1:$AO$1,0)),"") -> 0.0458548778 | W75: =IFERROR(INDEX('Data Annex'!$K$1:$AO$871,MATCH(Assets!W$46&"|"&Assets!$B75,'Data Annex'!$K$1:$K$871,0),MATCH(Assets!W$47,'Data Annex'!$K$1:$AO$1,0)),"") -> 0.047335695 | X75: =IFERROR(INDEX('Data Annex'!$K$1:$AO$871,MATCH(Assets!X$46&"|"&Assets!$B75,'Data Annex'!$K$1:$K$871,0),MATCH(Assets!X$47,'Data Annex'!$K$1:$AO$1,0)),"") -> 0.0514201702 | Y75: =IFERROR(INDEX('Data Annex'!$K$1:$AO$871,MATCH(Assets!Y$46&"|"&Assets!$B75,'Data Annex'!$K$1:$K$871,0),MATCH(Assets!Y$47,'Data Annex'!$K$1:$AO$1,0)),"") -> 0.1480566168 | Z75: =IFERROR(INDEX('Data Annex'!$K$1:$AO$871,MATCH(Assets!Z$46&"|"&Assets!$B75,'Data Annex'!$K$1:$K$871,0),MATCH(Assets!Z$47,'Data Annex'!$K$1:$AO$1,0)),"") -> 0.1484300797 | AA75: =IFERROR(INDEX('Data Annex'!$K$1:$AO$871,MATCH(Assets!AA$46&"|"&Assets!$B75,'Data Annex'!$K$1:$K$871,0),MATCH(Assets!AA$47,'Data Annex'!$K$1:$AO$1,0)),"") -> 0.175092851 | AB75: =IFERROR(INDEX('Data Annex'!$K$1:$AO$871,MATCH(Assets!AB$46&"|"&Assets!$B75,'Data Annex'!$K$1:$K$871,0),MATCH(Assets!AB$47,'Data Annex'!$K$1:$AO$1,0)),"") -> 0.1822954812
B76: PL | D76: PL | F76: =IFERROR(INDEX('Data Annex'!$K$1:$AO$871,MATCH(Assets!F$46&"|"&Assets!$B76,'Data Annex'!$K$1:$K$871,0),MATCH(Assets!F$47,'Data Annex'!$K$1:$AO$1,0)),"") -> 169.4516557 | G76: =IFERROR(INDEX('Data Annex'!$K$1:$AO$871,MATCH(Assets!G$46&"|"&Assets!$B76,'Data Annex'!$K$1:$K$871,0),MATCH(Assets!G$47,'Data Annex'!$K$1:$AO$1,0)),"") -> 178.1356942 | H76: =IFERROR(INDEX('Data Annex'!$K$1:$AO$871,MATCH(Assets!H$46&"|"&Assets!$B76,'Data Annex'!$K$1:$K$871,0),MATCH(Assets!H$47,'Data Annex'!$K$1:$AO$1,0)),"") -> 174.8445108 | I76: =IFERROR(INDEX('Data Annex'!$K$1:$AO$871,MATCH(Assets!I$46&"|"&Assets!$B76,'Data Annex'!$K$1:$K$871,0),MATCH(Assets!I$47,'Data Annex'!$K$1:$AO$1,0)),"") -> 186.7362212 | J76: =IFERROR(INDEX('Data Annex'!$K$1:$AO$871,MATCH(Assets!J$46&"|"&Assets!$B76,'Data Annex'!$K$1:$K$871,0),MATCH(Assets!J$47,'Data Annex'!$K$1:$AO$1,0)),"") -> 163.052006 | K76: =IFERROR(INDEX('Data Annex'!$K$1:$AO$871,MATCH(Assets!K$46&"|"&Assets!$B76,'Data Annex'!$K$1:$K$871,0),MATCH(Assets!K$47,'Data Annex'!$K$1:$AO$1,0)),"") -> 171.6833641 | L76: =IFERROR(INDEX('Data Annex'!$K$1:$AO$871,MATCH(Assets!L$46&"|"&Assets!$B76,'Data Annex'!$K$1:$K$871,0),MATCH(Assets!L$47,'Data Annex'!$K$1:$AO$1,0)),"") -> 168.7776961 | M76: =IFERROR(INDEX('Data Annex'!$K$1:$AO$871,MATCH(Assets!M$46&"|"&Assets!$B76,'Data Annex'!$K$1:$K$871,0),MATCH(Assets!M$47,'Data Annex'!$K$1:$AO$1,0)),"") -> 180.7310921 | N76: 0.9678416483 | O76: PL | Q76: =IFERROR(INDEX('Data Annex'!$K$1:$AO$871,MATCH(Assets!Q$46&"|"&Assets!$B76,'Data Annex'!$K$1:$K$871,0),MATCH(Assets!Q$47,'Data Annex'!$K$1:$AO$1,0)),"") -> 0.7911952834 | R76: =IFERROR(INDEX('Data Annex'!$K$1:$AO$871,MATCH(Assets!R$46&"|"&Assets!$B76,'Data Annex'!$K$1:$K$871,0),MATCH(Assets!R$47,'Data Annex'!$K$1:$AO$1,0)),"") -> 0.7812758453 | S76: =IFERROR(INDEX('Data Annex'!$K$1:$AO$871,MATCH(Assets!S$46&"|"&Assets!$B76,'Data Annex'!$K$1:$K$871,0),MATCH(Assets!S$47,'Data Annex'!$K$1:$AO$1,0)),"") -> 0.7821685287 | T76: =IFERROR(INDEX('Data Annex'!$K$1:$AO$871,MATCH(Assets!T$46&"|"&Assets!$B76,'Data Annex'!$K$1:$K$871,0),MATCH(Assets!T$47,'Data Annex'!$K$1:$AO$1,0)),"") -> 0.7440716971 | U76: =IFERROR(INDEX('Data Annex'!$K$1:$AO$871,MATCH(Assets!U$46&"|"&Assets!$B76,'Data Annex'!$K$1:$K$871,0),MATCH(Assets!U$47,'Data Annex'!$K$1:$AO$1,0)),"") -> 0.1752601007 | V76: =IFERROR(INDEX('Data Annex'!$K$1:$AO$871,MATCH(Assets!V$46&"|"&Assets!$B76,'Data Annex'!$K$1:$K$871,0),MATCH(Assets!V$47,'Data Annex'!$K$1:$AO$1,0)),"") -> 0.1896330541 | W76: =IFERROR(INDEX('Data Annex'!$K$1:$AO$871,MATCH(Assets!W$46&"|"&Assets!$B76,'Data Annex'!$K$1:$K$871,0),MATCH(Assets!W$47,'Data Annex'!$K$1:$AO$1,0)),"") -> 0.1801024739 | X76: =IFERROR(INDEX('Data Annex'!$K$1:$AO$871,MATCH(Assets!X$46&"|"&Assets!$B76,'Data Annex'!$K$1:$K$871,0),MATCH(Assets!X$47,'Data Annex'!$K$1:$AO$1,0)),"") -> 0.2210887401 | Y76: =IFERROR(INDEX('Data Annex'!$K$1:$AO$871,MATCH(Assets!Y$46&"|"&Assets!$B76,'Data Annex'!$K$1:$K$871,0),MATCH(Assets!Y$47,'Data Annex'!$K$1:$AO$1,0)),"") -> 0.0335446159 | Z76: =IFERROR(INDEX('Data Annex'!$K$1:$AO$871,MATCH(Assets!Z$46&"|"&Assets!$B76,'Data Annex'!$K$1:$K$871,0),MATCH(Assets!Z$47,'Data Annex'!$K$1:$AO$1,0)),"") -> 0.0290911006 | AA76: =IFERROR(INDEX('Data Annex'!$K$1:$AO$871,MATCH(Assets!AA$46&"|"&Assets!$B76,'Data Annex'!$K$1:$K$871,0),MATCH(Assets!AA$47,'Data Annex'!$K$1:$AO$1,0)),"") -> 0.0377289974 | AB76: =IFERROR(INDEX('Data Annex'!$K$1:$AO$871,MATCH(Assets!AB$46&"|"&Assets!$B76,'Data Annex'!$K$1:$K$871,0),MATCH(Assets!AB$47,'Data Annex'!$K$1:$AO$1,0)),"") -> 0.0348395628
B77: PT | D77: PT | F77: =IFERROR(INDEX('Data Annex'!$K$1:$AO$871,MATCH(Assets!F$46&"|"&Assets!$B77,'Data Annex'!$K$1:$K$871,0),MATCH(Assets!F$47,'Data Annex'!$K$1:$AO$1,0)),"") -> 338.0047963 | G77: =IFERROR(INDEX('Data Annex'!$K$1:$AO$871,MATCH(Assets!G$46&"|"&Assets!$B77,'Data Annex'!$K$1:$K$871,0),MATCH(Assets!G$47,'Data Annex'!$K$1:$AO$1,0)),"") -> 333.3544515 | H77: =IFERROR(INDEX('Data Annex'!$K$1:$AO$871,MATCH(Assets!H$46&"|"&Assets!$B77,'Data Annex'!$K$1:$K$871,0),MATCH(Assets!H$47,'Data Annex'!$K$1:$AO$1,0)),"") -> 337.6026169 | I77: =IFERROR(INDEX('Data Annex'!$K$1:$AO$871,MATCH(Assets!I$46&"|"&Assets!$B77,'Data Annex'!$K$1:$K$871,0),MATCH(Assets!I$47,'Data Annex'!$K$1:$AO$1,0)),"") -> 356.0361086 | J77: =IFERROR(INDEX('Data Annex'!$K$1:$AO$871,MATCH(Assets!J$46&"|"&Assets!$B77,'Data Annex'!$K$1:$K$871,0),MATCH(Assets!J$47,'Data Annex'!$K$1:$AO$1,0)),"") -> 314.2383514 | K77: =IFERROR(INDEX('Data Annex'!$K$1:$AO$871,MATCH(Assets!K$46&"|"&Assets!$B77,'Data Annex'!$K$1:$K$871,0),MATCH(Assets!K$47,'Data Annex'!$K$1:$AO$1,0)),"") -> 311.2193678 | L77: =IFERROR(INDEX('Data Annex'!$K$1:$AO$871,MATCH(Assets!L$46&"|"&Assets!$B77,'Data Annex'!$K$1:$K$871,0),MATCH(Assets!L$47,'Data Annex'!$K$1:$AO$1,0)),"") -> 315.4407639 | M77: =IFERROR(INDEX('Data Annex'!$K$1:$AO$871,MATCH(Assets!M$46&"|"&Assets!$B77,'Data Annex'!$K$1:$K$871,0),MATCH(Assets!M$47,'Data Annex'!$K$1:$AO$1,0)),"") -> 335.0759192 | N77: 0.9411290347 | O77: PT | Q77: =IFERROR(INDEX('Data Annex'!$K$1:$AO$871,MATCH(Assets!Q$46&"|"&Assets!$B77,'Data Annex'!$K$1:$K$871,0),MATCH(Assets!Q$47,'Data Annex'!$K$1:$AO$1,0)),"") -> 0.8230216977 | R77: =IFERROR(INDEX('Data Annex'!$K$1:$AO$871,MATCH(Assets!R$46&"|"&Assets!$B77,'Data Annex'!$K$1:$K$871,0),MATCH(Assets!R$47,'Data Annex'!$K$1:$AO$1,0)),"") -> 0.8317474026 | S77: =IFERROR(INDEX('Data Annex'!$K$1:$AO$871,MATCH(Assets!S$46&"|"&Assets!$B77,'Data Annex'!$K$1:$K$871,0),MATCH(Assets!S$47,'Data Annex'!$K$1:$AO$1,0)),"") -> 0.8342806062 | T77: =IFERROR(INDEX('Data Annex'!$K$1:$AO$871,MATCH(Assets!T$46&"|"&Assets!$B77,'Data Annex'!$K$1:$K$871,0),MATCH(Assets!T$47,'Data Annex'!$K$1:$AO$1,0)),"") -> 0.8319262862 | U77: =IFERROR(INDEX('Data Annex'!$K$1:$AO$871,MATCH(Assets!U$46&"|"&Assets!$B77,'Data Annex'!$K$1:$K$871,0),MATCH(Assets!U$47,'Data Annex'!$K$1:$AO$1,0)),"") -> 0.1224793659 | V77: =IFERROR(INDEX('Data Annex'!$K$1:$AO$871,MATCH(Assets!V$46&"|"&Assets!$B77,'Data Annex'!$K$1:$K$871,0),MATCH(Assets!V$47,'Data Annex'!$K$1:$AO$1,0)),"") -> 0.1166817899 | W77: =IFERROR(INDEX('Data Annex'!$K$1:$AO$871,MATCH(Assets!W$46&"|"&Assets!$B77,'Data Annex'!$K$1:$K$871,0),MATCH(Assets!W$47,'Data Annex'!$K$1:$AO$1,0)),"") -> 0.1103466609 | X77: =IFERROR(INDEX('Data Annex'!$K$1:$AO$871,MATCH(Assets!X$46&"|"&Assets!$B77,'Data Annex'!$K$1:$K$871,0),MATCH(Assets!X$47,'Data Annex'!$K$1:$AO$1,0)),"") -> 0.1167063041 | Y77: =IFERROR(INDEX('Data Annex'!$K$1:$AO$871,MATCH(Assets!Y$46&"|"&Assets!$B77,'Data Annex'!$K$1:$K$871,0),MATCH(Assets!Y$47,'Data Annex'!$K$1:$AO$1,0)),"") -> 0.0544989364 | Z77: =IFERROR(INDEX('Data Annex'!$K$1:$AO$871,MATCH(Assets!Z$46&"|"&Assets!$B77,'Data Annex'!$K$1:$K$871,0),MATCH(Assets!Z$47,'Data Annex'!$K$1:$AO$1,0)),"") -> 0.0515708074 | AA77: =IFERROR(INDEX('Data Annex'!$K$1:$AO$871,MATCH(Assets!AA$46&"|"&Assets!$B77,'Data Annex'!$K$1:$K$871,0),MATCH(Assets!AA$47,'Data Annex'!$K$1:$AO$1,0)),"") -> 0.0553727328 | AB77: =IFERROR(INDEX('Data Annex'!$K$1:$AO$871,MATCH(Assets!AB$46&"|"&Assets!$B77,'Data Annex'!$K$1:$K$871,0),MATCH(Assets!AB$47,'Data Annex'!$K$1:$AO$1,0)),"") -> 0.0513674097
B78: RO | D78: RO | F78: =IFERROR(INDEX('Data Annex'!$K$1:$AO$871,MATCH(Assets!F$46&"|"&Assets!$B78,'Data Annex'!$K$1:$K$871,0),MATCH(Assets!F$47,'Data Annex'!$K$1:$AO$1,0)),"") -> 45.12358034 | G78: =IFERROR(INDEX('Data Annex'!$K$1:$AO$871,MATCH(Assets!G$46&"|"&Assets!$B78,'Data Annex'!$K$1:$K$871,0),MATCH(Assets!G$47,'Data Annex'!$K$1:$AO$1,0)),"") -> 46.93965024 | H78: =IFERROR(INDEX('Data Annex'!$K$1:$AO$871,MATCH(Assets!H$46&"|"&Assets!$B78,'Data Annex'!$K$1:$K$871,0),MATCH(Assets!H$47,'Data Annex'!$K$1:$AO$1,0)),"") -> 48.40104522 | I78: =IFERROR(INDEX('Data Annex'!$K$1:$AO$871,MATCH(Assets!I$46&"|"&Assets!$B78,'Data Annex'!$K$1:$K$871,0),MATCH(Assets!I$47,'Data Annex'!$K$1:$AO$1,0)),"") -> 48.513647 | J78: =IFERROR(INDEX('Data Annex'!$K$1:$AO$871,MATCH(Assets!J$46&"|"&Assets!$B78,'Data Annex'!$K$1:$K$871,0),MATCH(Assets!J$47,'Data Annex'!$K$1:$AO$1,0)),"") -> 43.83610077 | K78: =IFERROR(INDEX('Data Annex'!$K$1:$AO$871,MATCH(Assets!K$46&"|"&Assets!$B78,'Data Annex'!$K$1:$K$871,0),MATCH(Assets!K$47,'Data Annex'!$K$1:$AO$1,0)),"") -> 45.67598617 | L78: =IFERROR(INDEX('Data Annex'!$K$1:$AO$871,MATCH(Assets!L$46&"|"&Assets!$B78,'Data Annex'!$K$1:$K$871,0),MATCH(Assets!L$47,'Data Annex'!$K$1:$AO$1,0)),"") -> 47.16755096 | M78: =IFERROR(INDEX('Data Annex'!$K$1:$AO$871,MATCH(Assets!M$46&"|"&Assets!$B78,'Data Annex'!$K$1:$K$871,0),MATCH(Assets!M$47,'Data Annex'!$K$1:$AO$1,0)),"") -> 47.27843191 | N78: 0.9745388119 | O78: RO | Q78: =IFERROR(INDEX('Data Annex'!$K$1:$AO$871,MATCH(Assets!Q$46&"|"&Assets!$B78,'Data Annex'!$K$1:$K$871,0),MATCH(Assets!Q$47,'Data Annex'!$K$1:$AO$1,0)),"") -> 0.7927034356 | R78: =IFERROR(INDEX('Data Annex'!$K$1:$AO$871,MATCH(Assets!R$46&"|"&Assets!$B78,'Data Annex'!$K$1:$K$871,0),MATCH(Assets!R$47,'Data Annex'!$K$1:$AO$1,0)),"") -> 0.7903788706 | S78: =IFERROR(INDEX('Data Annex'!$K$1:$AO$871,MATCH(Assets!S$46&"|"&Assets!$B78,'Data Annex'!$K$1:$K$871,0),MATCH(Assets!S$47,'Data Annex'!$K$1:$AO$1,0)),"") -> 0.7860061435 | T78: =IFERROR(INDEX('Data Annex'!$K$1:$AO$871,MATCH(Assets!T$46&"|"&Assets!$B78,'Data Annex'!$K$1:$K$871,0),MATCH(Assets!T$47,'Data Annex'!$K$1:$AO$1,0)),"") -> 0.7760492608 | U78: =IFERROR(INDEX('Data Annex'!$K$1:$AO$871,MATCH(Assets!U$46&"|"&Assets!$B78,'Data Annex'!$K$1:$K$871,0),MATCH(Assets!U$47,'Data Annex'!$K$1:$AO$1,0)),"") -> 0.1884987146 | V78: =IFERROR(INDEX('Data Annex'!$K$1:$AO$871,MATCH(Assets!V$46&"|"&Assets!$B78,'Data Annex'!$K$1:$K$871,0),MATCH(Assets!V$47,'Data Annex'!$K$1:$AO$1,0)),"") -> 0.1956086053 | W78: =IFERROR(INDEX('Data Annex'!$K$1:$AO$871,MATCH(Assets!W$46&"|"&Assets!$B78,'Data Annex'!$K$1:$K$871,0),MATCH(Assets!W$47,'Data Annex'!$K$1:$AO$1,0)),"") -> 0.1919226067 | X78: =IFERROR(INDEX('Data Annex'!$K$1:$AO$871,MATCH(Assets!X$46&"|"&Assets!$B78,'Data Annex'!$K$1:$K$871,0),MATCH(Assets!X$47,'Data Annex'!$K$1:$AO$1,0)),"") -> 0.2023029169 | Y78: =IFERROR(INDEX('Data Annex'!$K$1:$AO$871,MATCH(Assets!Y$46&"|"&Assets!$B78,'Data Annex'!$K$1:$K$871,0),MATCH(Assets!Y$47,'Data Annex'!$K$1:$AO$1,0)),"") -> 0.0187978498 | Z78: =IFERROR(INDEX('Data Annex'!$K$1:$AO$871,MATCH(Assets!Z$46&"|"&Assets!$B78,'Data Annex'!$K$1:$K$871,0),MATCH(Assets!Z$47,'Data Annex'!$K$1:$AO$1,0)),"") -> 0.014012524 | AA78: =IFERROR(INDEX('Data Annex'!$K$1:$AO$871,MATCH(Assets!AA$46&"|"&Assets!$B78,'Data Annex'!$K$1:$K$871,0),MATCH(Assets!AA$47,'Data Annex'!$K$1:$AO$1,0)),"") -> 0.0220712498 | AB78: =IFERROR(INDEX('Data Annex'!$K$1:$AO$871,MATCH(Assets!AB$46&"|"&Assets!$B78,'Data Annex'!$K$1:$K$871,0),MATCH(Assets!AB$47,'Data Annex'!$K$1:$AO$1,0)),"") -> 0.0216478223
B79: SE | D79: SE | F79: =IFERROR(INDEX('Data Annex'!$K$1:$AO$871,MATCH(Assets!F$46&"|"&Assets!$B79,'Data Annex'!$K$1:$K$871,0),MATCH(Assets!F$47,'Data Annex'!$K$1:$AO$1,0)),"") -> 880.0002448 | G79: =IFERROR(INDEX('Data Annex'!$K$1:$AO$871,MATCH(Assets!G$46&"|"&Assets!$B79,'Data Annex'!$K$1:$K$871,0),MATCH(Assets!G$47,'Data Annex'!$K$1:$AO$1,0)),"") -> 855.9430797 | H79: =IFERROR(INDEX('Data Annex'!$K$1:$AO$871,MATCH(Assets!H$46&"|"&Assets!$B79,'Data Annex'!$K$1:$K$871,0),MATCH(Assets!H$47,'Data Annex'!$K$1:$AO$1,0)),"") -> 940.1780551 | I79: =IFERROR(INDEX('Data Annex'!$K$1:$AO$871,MATCH(Assets!I$46&"|"&Assets!$B79,'Data Annex'!$K$1:$K$871,0),MATCH(Assets!I$47,'Data Annex'!$K$1:$AO$1,0)),"") -> 980.1949257 | J79: =IFERROR(INDEX('Data Annex'!$K$1:$AO$871,MATCH(Assets!J$46&"|"&Assets!$B79,'Data Annex'!$K$1:$K$871,0),MATCH(Assets!J$47,'Data Annex'!$K$1:$AO$1,0)),"") -> 867.6804695 | K79: =IFERROR(INDEX('Data Annex'!$K$1:$AO$871,MATCH(Assets!K$46&"|"&Assets!$B79,'Data Annex'!$K$1:$K$871,0),MATCH(Assets!K$47,'Data Annex'!$K$1:$AO$1,0)),"") -> 844.2310115 | L79: =IFERROR(INDEX('Data Annex'!$K$1:$AO$871,MATCH(Assets!L$46&"|"&Assets!$B79,'Data Annex'!$K$1:$K$871,0),MATCH(Assets!L$47,'Data Annex'!$K$1:$AO$1,0)),"") -> 928.4868195 | M79: =IFERROR(INDEX('Data Annex'!$K$1:$AO$871,MATCH(Assets!M$46&"|"&Assets!$B79,'Data Annex'!$K$1:$K$871,0),MATCH(Assets!M$47,'Data Annex'!$K$1:$AO$1,0)),"") -> 967.9162677 | N79: 0.9874732488 | O79: SE | Q79: =IFERROR(INDEX('Data Annex'!$K$1:$AO$871,MATCH(Assets!Q$46&"|"&Assets!$B79,'Data Annex'!$K$1:$K$871,0),MATCH(Assets!Q$47,'Data Annex'!$K$1:$AO$1,0)),"") -> 0.8402372607 | R79: =IFERROR(INDEX('Data Annex'!$K$1:$AO$871,MATCH(Assets!R$46&"|"&Assets!$B79,'Data Annex'!$K$1:$K$871,0),MATCH(Assets!R$47,'Data Annex'!$K$1:$AO$1,0)),"") -> 0.8575419083 | S79: =IFERROR(INDEX('Data Annex'!$K$1:$AO$871,MATCH(Assets!S$46&"|"&Assets!$B79,'Data Annex'!$K$1:$K$871,0),MATCH(Assets!S$47,'Data Annex'!$K$1:$AO$1,0)),"") -> 0.828298007 | T79: =IFERROR(INDEX('Data Annex'!$K$1:$AO$871,MATCH(Assets!T$46&"|"&Assets!$B79,'Data Annex'!$K$1:$K$871,0),MATCH(Assets!T$47,'Data Annex'!$K$1:$AO$1,0)),"") -> 0.8410936998 | U79: =IFERROR(INDEX('Data Annex'!$K$1:$AO$871,MATCH(Assets!U$46&"|"&Assets!$B79,'Data Annex'!$K$1:$K$871,0),MATCH(Assets!U$47,'Data Annex'!$K$1:$AO$1,0)),"") -> 0.0115447705 | V79: =IFERROR(INDEX('Data Annex'!$K$1:$AO$871,MATCH(Assets!V$46&"|"&Assets!$B79,'Data Annex'!$K$1:$K$871,0),MATCH(Assets!V$47,'Data Annex'!$K$1:$AO$1,0)),"") -> 0.0110336304 | W79: =IFERROR(INDEX('Data Annex'!$K$1:$AO$871,MATCH(Assets!W$46&"|"&Assets!$B79,'Data Annex'!$K$1:$K$871,0),MATCH(Assets!W$47,'Data Annex'!$K$1:$AO$1,0)),"") -> 0.0123938793 | X79: =IFERROR(INDEX('Data Annex'!$K$1:$AO$871,MATCH(Assets!X$46&"|"&Assets!$B79,'Data Annex'!$K$1:$K$871,0),MATCH(Assets!X$47,'Data Annex'!$K$1:$AO$1,0)),"") -> 0.00979873 | Y79: =IFERROR(INDEX('Data Annex'!$K$1:$AO$871,MATCH(Assets!Y$46&"|"&Assets!$B79,'Data Annex'!$K$1:$K$871,0),MATCH(Assets!Y$47,'Data Annex'!$K$1:$AO$1,0)),"") -> 0.1482179688 | Z79: =IFERROR(INDEX('Data Annex'!$K$1:$AO$871,MATCH(Assets!Z$46&"|"&Assets!$B79,'Data Annex'!$K$1:$K$871,0),MATCH(Assets!Z$47,'Data Annex'!$K$1:$AO$1,0)),"") -> 0.1314244613 | AA79: =IFERROR(INDEX('Data Annex'!$K$1:$AO$871,MATCH(Assets!AA$46&"|"&Assets!$B79,'Data Annex'!$K$1:$K$871,0),MATCH(Assets!AA$47,'Data Annex'!$K$1:$AO$1,0)),"") -> 0.1593081136 | AB79: =IFERROR(INDEX('Data Annex'!$K$1:$AO$871,MATCH(Assets!AB$46&"|"&Assets!$B79,'Data Annex'!$K$1:$K$871,0),MATCH(Assets!AB$47,'Data Annex'!$K$1:$AO$1,0)),"") -> 0.1491075702
B80: SI | D80: SI | F80: =IFERROR(INDEX('Data Annex'!$K$1:$AO$871,MATCH(Assets!F$46&"|"&Assets!$B80,'Data Annex'!$K$1:$K$871,0),MATCH(Assets!F$47,'Data Annex'!$K$1:$AO$1,0)),"") -> 22.313604 | G80: =IFERROR(INDEX('Data Annex'!$K$1:$AO$871,MATCH(Assets!G$46&"|"&Assets!$B80,'Data Annex'!$K$1:$K$871,0),MATCH(Assets!G$47,'Data Annex'!$K$1:$AO$1,0)),"") -> 23.067165 | H80: =IFERROR(INDEX('Data Annex'!$K$1:$AO$871,MATCH(Assets!H$46&"|"&Assets!$B80,'Data Annex'!$K$1:$K$871,0),MATCH(Assets!H$47,'Data Annex'!$K$1:$AO$1,0)),"") -> 26.61125482 | I80: =IFERROR(INDEX('Data Annex'!$K$1:$AO$871,MATCH(Assets!I$46&"|"&Assets!$B80,'Data Annex'!$K$1:$K$871,0),MATCH(Assets!I$47,'Data Annex'!$K$1:$AO$1,0)),"") -> 27.4030235 | J80: =IFERROR(INDEX('Data Annex'!$K$1:$AO$871,MATCH(Assets!J$46&"|"&Assets!$B80,'Data Annex'!$K$1:$K$871,0),MATCH(Assets!J$47,'Data Annex'!$K$1:$AO$1,0)),"") -> 21.666659 | K80: =IFERROR(INDEX('Data Annex'!$K$1:$AO$871,MATCH(Assets!K$46&"|"&Assets!$B80,'Data Annex'!$K$1:$K$871,0),MATCH(Assets!K$47,'Data Annex'!$K$1:$AO$1,0)),"") -> 22.424922 | L80: =IFERROR(INDEX('Data Annex'!$K$1:$AO$871,MATCH(Assets!L$46&"|"&Assets!$B80,'Data Annex'!$K$1:$K$871,0),MATCH(Assets!L$47,'Data Annex'!$K$1:$AO$1,0)),"") -> 25.88324025 | M80: =IFERROR(INDEX('Data Annex'!$K$1:$AO$871,MATCH(Assets!M$46&"|"&Assets!$B80,'Data Annex'!$K$1:$K$871,0),MATCH(Assets!M$47,'Data Annex'!$K$1:$AO$1,0)),"") -> 26.70001613 | N80: 0.9743456276 | O80: SI | Q80: =IFERROR(INDEX('Data Annex'!$K$1:$AO$871,MATCH(Assets!Q$46&"|"&Assets!$B80,'Data Annex'!$K$1:$K$871,0),MATCH(Assets!Q$47,'Data Annex'!$K$1:$AO$1,0)),"") -> 0.8346380492 | R80: =IFERROR(INDEX('Data Annex'!$K$1:$AO$871,MATCH(Assets!R$46&"|"&Assets!$B80,'Data Annex'!$K$1:$K$871,0),MATCH(Assets!R$47,'Data Annex'!$K$1:$AO$1,0)),"") -> 0.8416344101 | S80: =IFERROR(INDEX('Data Annex'!$K$1:$AO$871,MATCH(Assets!S$46&"|"&Assets!$B80,'Data Annex'!$K$1:$K$871,0),MATCH(Assets!S$47,'Data Annex'!$K$1:$AO$1,0)),"") -> 0.816409491 | T80: =IFERROR(INDEX('Data Annex'!$K$1:$AO$871,MATCH(Assets!T$46&"|"&Assets!$B80,'Data Annex'!$K$1:$K$871,0),MATCH(Assets!T$47,'Data Annex'!$K$1:$AO$1,0)),"") -> 0.8300208526 | U80: =IFERROR(INDEX('Data Annex'!$K$1:$AO$871,MATCH(Assets!U$46&"|"&Assets!$B80,'Data Annex'!$K$1:$K$871,0),MATCH(Assets!U$47,'Data Annex'!$K$1:$AO$1,0)),"") -> 0.1567963016 | V80: =IFERROR(INDEX('Data Annex'!$K$1:$AO$871,MATCH(Assets!V$46&"|"&Assets!$B80,'Data Annex'!$K$1:$K$871,0),MATCH(Assets!V$47,'Data Annex'!$K$1:$AO$1,0)),"") -> 0.1535417604 | W80: =IFERROR(INDEX('Data Annex'!$K$1:$AO$871,MATCH(Assets!W$46&"|"&Assets!$B80,'Data Annex'!$K$1:$K$871,0),MATCH(Assets!W$47,'Data Annex'!$K$1:$AO$1,0)),"") -> 0.176875199 | X80: =IFERROR(INDEX('Data Annex'!$K$1:$AO$871,MATCH(Assets!X$46&"|"&Assets!$B80,'Data Annex'!$K$1:$K$871,0),MATCH(Assets!X$47,'Data Annex'!$K$1:$AO$1,0)),"") -> 0.1637986256 | Y80: =IFERROR(INDEX('Data Annex'!$K$1:$AO$871,MATCH(Assets!Y$46&"|"&Assets!$B80,'Data Annex'!$K$1:$K$871,0),MATCH(Assets!Y$47,'Data Annex'!$K$1:$AO$1,0)),"") -> 0.0085656492 | Z80: =IFERROR(INDEX('Data Annex'!$K$1:$AO$871,MATCH(Assets!Z$46&"|"&Assets!$B80,'Data Annex'!$K$1:$K$871,0),MATCH(Assets!Z$47,'Data Annex'!$K$1:$AO$1,0)),"") -> 0.0048238295 | AA80: =IFERROR(INDEX('Data Annex'!$K$1:$AO$871,MATCH(Assets!AA$46&"|"&Assets!$B80,'Data Annex'!$K$1:$K$871,0),MATCH(Assets!AA$47,'Data Annex'!$K$1:$AO$1,0)),"") -> 0.0067153101 | AB80: =IFERROR(INDEX('Data Annex'!$K$1:$AO$871,MATCH(Assets!AB$46&"|"&Assets!$B80,'Data Annex'!$K$1:$K$871,0),MATCH(Assets!AB$47,'Data Annex'!$K$1:$AO$1,0)),"") -> 0.0061805218
B81: SK | D81: SK | F81: =IFERROR(INDEX('Data Annex'!$K$1:$AO$871,MATCH(Assets!F$46&"|"&Assets!$B81,'Data Annex'!$K$1:$K$871,0),MATCH(Assets!F$47,'Data Annex'!$K$1:$AO$1,0)),"") -> 49.95225775 | G81: =IFERROR(INDEX('Data Annex'!$K$1:$AO$871,MATCH(Assets!G$46&"|"&Assets!$B81,'Data Annex'!$K$1:$K$871,0),MATCH(Assets!G$47,'Data Annex'!$K$1:$AO$1,0)),"") -> 50.7706776 | H81: =IFERROR(INDEX('Data Annex'!$K$1:$AO$871,MATCH(Assets!H$46&"|"&Assets!$B81,'Data Annex'!$K$1:$K$871,0),MATCH(Assets!H$47,'Data Annex'!$K$1:$AO$1,0)),"") -> 50.62370566 | I81: =IFERROR(INDEX('Data Annex'!$K$1:$AO$871,MATCH(Assets!I$46&"|"&Assets!$B81,'Data Annex'!$K$1:$K$871,0),MATCH(Assets!I$47,'Data Annex'!$K$1:$AO$1,0)),"") -> 52.76961206 | J81: =IFERROR(INDEX('Data Annex'!$K$1:$AO$871,MATCH(Assets!J$46&"|"&Assets!$B81,'Data Annex'!$K$1:$K$871,0),MATCH(Assets!J$47,'Data Annex'!$K$1:$AO$1,0)),"") -> 48.93647101 | K81: =IFERROR(INDEX('Data Annex'!$K$1:$AO$871,MATCH(Assets!K$46&"|"&Assets!$B81,'Data Annex'!$K$1:$K$871,0),MATCH(Assets!K$47,'Data Annex'!$K$1:$AO$1,0)),"") -> 49.79908646 | L81: =IFERROR(INDEX('Data Annex'!$K$1:$AO$871,MATCH(Assets!L$46&"|"&Assets!$B81,'Data Annex'!$K$1:$K$871,0),MATCH(Assets!L$47,'Data Annex'!$K$1:$AO$1,0)),"") -> 49.6410712 | M81: =IFERROR(INDEX('Data Annex'!$K$1:$AO$871,MATCH(Assets!M$46&"|"&Assets!$B81,'Data Annex'!$K$1:$K$871,0),MATCH(Assets!M$47,'Data Annex'!$K$1:$AO$1,0)),"") -> 51.77489981 | N81: 0.9811499039 | O81: SK | Q81: =IFERROR(INDEX('Data Annex'!$K$1:$AO$871,MATCH(Assets!Q$46&"|"&Assets!$B81,'Data Annex'!$K$1:$K$871,0),MATCH(Assets!Q$47,'Data Annex'!$K$1:$AO$1,0)),"") -> 0.960463756 | R81: =IFERROR(INDEX('Data Annex'!$K$1:$AO$871,MATCH(Assets!R$46&"|"&Assets!$B81,'Data Annex'!$K$1:$K$871,0),MATCH(Assets!R$47,'Data Annex'!$K$1:$AO$1,0)),"") -> 0.9540339287 | S81: =IFERROR(INDEX('Data Annex'!$K$1:$AO$871,MATCH(Assets!S$46&"|"&Assets!$B81,'Data Annex'!$K$1:$K$871,0),MATCH(Assets!S$47,'Data Annex'!$K$1:$AO$1,0)),"") -> 0.9597650937 | T81: =IFERROR(INDEX('Data Annex'!$K$1:$AO$871,MATCH(Assets!T$46&"|"&Assets!$B81,'Data Annex'!$K$1:$K$871,0),MATCH(Assets!T$47,'Data Annex'!$K$1:$AO$1,0)),"") -> 0.9482174247 | U81: =IFERROR(INDEX('Data Annex'!$K$1:$AO$871,MATCH(Assets!U$46&"|"&Assets!$B81,'Data Annex'!$K$1:$K$871,0),MATCH(Assets!U$47,'Data Annex'!$K$1:$AO$1,0)),"") -> 0.0310082322 | V81: =IFERROR(INDEX('Data Annex'!$K$1:$AO$871,MATCH(Assets!V$46&"|"&Assets!$B81,'Data Annex'!$K$1:$K$871,0),MATCH(Assets!V$47,'Data Annex'!$K$1:$AO$1,0)),"") -> 0.0413626575 | W81: =IFERROR(INDEX('Data Annex'!$K$1:$AO$871,MATCH(Assets!W$46&"|"&Assets!$B81,'Data Annex'!$K$1:$K$871,0),MATCH(Assets!W$47,'Data Annex'!$K$1:$AO$1,0)),"") -> 0.033982166 | X81: =IFERROR(INDEX('Data Annex'!$K$1:$AO$871,MATCH(Assets!X$46&"|"&Assets!$B81,'Data Annex'!$K$1:$K$871,0),MATCH(Assets!X$47,'Data Annex'!$K$1:$AO$1,0)),"") -> 0.0419812895 | Y81: =IFERROR(INDEX('Data Annex'!$K$1:$AO$871,MATCH(Assets!Y$46&"|"&Assets!$B81,'Data Annex'!$K$1:$K$871,0),MATCH(Assets!Y$47,'Data Annex'!$K$1:$AO$1,0)),"") -> 0.0085280118 | Z81: =IFERROR(INDEX('Data Annex'!$K$1:$AO$871,MATCH(Assets!Z$46&"|"&Assets!$B81,'Data Annex'!$K$1:$K$871,0),MATCH(Assets!Z$47,'Data Annex'!$K$1:$AO$1,0)),"") -> 0.0046034138 | AA81: =IFERROR(INDEX('Data Annex'!$K$1:$AO$871,MATCH(Assets!AA$46&"|"&Assets!$B81,'Data Annex'!$K$1:$K$871,0),MATCH(Assets!AA$47,'Data Annex'!$K$1:$AO$1,0)),"") -> 0.0062527403 | AB81: =IFERROR(INDEX('Data Annex'!$K$1:$AO$871,MATCH(Assets!AB$46&"|"&Assets!$B81,'Data Annex'!$K$1:$K$871,0),MATCH(Assets!AB$47,'Data Annex'!$K$1:$AO$1,0)),"") -> 0.0098012858
B82: EU | D82: =+D42 -> EU/EEA | F82: =IFERROR(INDEX('Data Annex'!$K$1:$AO$871,MATCH(Assets!F$46&"|"&Assets!$B82,'Data Annex'!$K$1:$K$871,0),MATCH(Assets!F$47,'Data Annex'!$K$1:$AO$1,0)),"") -> 31708.14441 | G82: =IFERROR(INDEX('Data Annex'!$K$1:$AO$871,MATCH(Assets!G$46&"|"&Assets!$B82,'Data Annex'!$K$1:$K$871,0),MATCH(Assets!G$47,'Data Annex'!$K$1:$AO$1,0)),"") -> 30314.83121 | H82: =IFERROR(INDEX('Data Annex'!$K$1:$AO$871,MATCH(Assets!H$46&"|"&Assets!$B82,'Data Annex'!$K$1:$K$871,0),MATCH(Assets!H$47,'Data Annex'!$K$1:$AO$1,0)),"") -> 25510.15191 | I82: =IFERROR(INDEX('Data Annex'!$K$1:$AO$871,MATCH(Assets!I$46&"|"&Assets!$B82,'Data Annex'!$K$1:$K$871,0),MATCH(Assets!I$47,'Data Annex'!$K$1:$AO$1,0)),"") -> 26001.24193 | J82: =IFERROR(INDEX('Data Annex'!$K$1:$AO$871,MATCH(Assets!J$46&"|"&Assets!$B82,'Data Annex'!$K$1:$K$871,0),MATCH(Assets!J$47,'Data Annex'!$K$1:$AO$1,0)),"") -> 30006.37841 | K82: =IFERROR(INDEX('Data Annex'!$K$1:$AO$871,MATCH(Assets!K$46&"|"&Assets!$B82,'Data Annex'!$K$1:$K$871,0),MATCH(Assets!K$47,'Data Annex'!$K$1:$AO$1,0)),"") -> 28839.2512 | L82: =IFERROR(INDEX('Data Annex'!$K$1:$AO$871,MATCH(Assets!L$46&"|"&Assets!$B82,'Data Annex'!$K$1:$K$871,0),MATCH(Assets!L$47,'Data Annex'!$K$1:$AO$1,0)),"") -> 24121.84738 | M82: =IFERROR(INDEX('Data Annex'!$K$1:$AO$871,MATCH(Assets!M$46&"|"&Assets!$B82,'Data Annex'!$K$1:$K$871,0),MATCH(Assets!M$47,'Data Annex'!$K$1:$AO$1,0)),"") -> 24692.92573 | N82: 0.9496825495 | O82: =D82 -> EU/EEA | Q82: =IFERROR(INDEX('Data Annex'!$K$1:$AO$871,MATCH(Assets!Q$46&"|"&Assets!$B82,'Data Annex'!$K$1:$K$871,0),MATCH(Assets!Q$47,'Data Annex'!$K$1:$AO$1,0)),"") -> 0.7088204359 | R82: =IFERROR(INDEX('Data Annex'!$K$1:$AO$871,MATCH(Assets!R$46&"|"&Assets!$B82,'Data Annex'!$K$1:$K$871,0),MATCH(Assets!R$47,'Data Annex'!$K$1:$AO$1,0)),"") -> 0.7337042636 | S82: =IFERROR(INDEX('Data Annex'!$K$1:$AO$871,MATCH(Assets!S$46&"|"&Assets!$B82,'Data Annex'!$K$1:$K$871,0),MATCH(Assets!S$47,'Data Annex'!$K$1:$AO$1,0)),"") -> 0.7404211164 | T82: =IFERROR(INDEX('Data Annex'!$K$1:$AO$871,MATCH(Assets!T$46&"|"&Assets!$B82,'Data Annex'!$K$1:$K$871,0),MATCH(Assets!T$47,'Data Annex'!$K$1:$AO$1,0)),"") -> 0.7553298868 | U82: =IFERROR(INDEX('Data Annex'!$K$1:$AO$871,MATCH(Assets!U$46&"|"&Assets!$B82,'Data Annex'!$K$1:$K$871,0),MATCH(Assets!U$47,'Data Annex'!$K$1:$AO$1,0)),"") -> 0.0641827076 | V82: =IFERROR(INDEX('Data Annex'!$K$1:$AO$871,MATCH(Assets!V$46&"|"&Assets!$B82,'Data Annex'!$K$1:$K$871,0),MATCH(Assets!V$47,'Data Annex'!$K$1:$AO$1,0)),"") -> 0.0657211931 | W82: =IFERROR(INDEX('Data Annex'!$K$1:$AO$871,MATCH(Assets!W$46&"|"&Assets!$B82,'Data Annex'!$K$1:$K$871,0),MATCH(Assets!W$47,'Data Annex'!$K$1:$AO$1,0)),"") -> 0.0541225618 | X82: =IFERROR(INDEX('Data Annex'!$K$1:$AO$871,MATCH(Assets!X$46&"|"&Assets!$B82,'Data Annex'!$K$1:$K$871,0),MATCH(Assets!X$47,'Data Annex'!$K$1:$AO$1,0)),"") -> 0.0555363686 | Y82: =IFERROR(INDEX('Data Annex'!$K$1:$AO$871,MATCH(Assets!Y$46&"|"&Assets!$B82,'Data Annex'!$K$1:$K$871,0),MATCH(Assets!Y$47,'Data Annex'!$K$1:$AO$1,0)),"") -> 0.2269968565 | Z82: =IFERROR(INDEX('Data Annex'!$K$1:$AO$871,MATCH(Assets!Z$46&"|"&Assets!$B82,'Data Annex'!$K$1:$K$871,0),MATCH(Assets!Z$47,'Data Annex'!$K$1:$AO$1,0)),"") -> 0.2005745433 | AA82: =IFERROR(INDEX('Data Annex'!$K$1:$AO$871,MATCH(Assets!AA$46&"|"&Assets!$B82,'Data Annex'!$K$1:$K$871,0),MATCH(Assets!AA$47,'Data Annex'!$K$1:$AO$1,0)),"") -> 0.2054563217 | AB82: =IFERROR(INDEX('Data Annex'!$K$1:$AO$871,MATCH(Assets!AB$46&"|"&Assets!$B82,'Data Annex'!$K$1:$K$871,0),MATCH(Assets!AB$47,'Data Annex'!$K$1:$AO$1,0)),"") -> 0.1891337446 | AC82: =#REF!/H82-S42 -> 
B83: GB | D83: =IF(OR(F83="n.a.",G83="n.a.",H83="n.a.",I83="n.a.",J83="n.a.",K83="n.a.",L83="n.a.",M83="n.a."),$B83&"*",$B83) -> GB | F83: =IFERROR(INDEX('Data Annex'!$K$1:$AO$871,MATCH(Assets!F$46&"|"&Assets!$B83,'Data Annex'!$K$1:$K$871,0),MATCH(Assets!F$47,'Data Annex'!$K$1:$AO$1,0)),"") -> 7211.908769 | G83: =IFERROR(INDEX('Data Annex'!$K$1:$AO$871,MATCH(Assets!G$46&"|"&Assets!$B83,'Data Annex'!$K$1:$K$871,0),MATCH(Assets!G$47,'Data Annex'!$K$1:$AO$1,0)),"") -> 6839.92462 | H83: =IFERROR(INDEX('Data Annex'!$K$1:$AO$871,MATCH(Assets!H$46&"|"&Assets!$B83,'Data Annex'!$K$1:$K$871,0),MATCH(Assets!H$47,'Data Annex'!$K$1:$AO$1,0)),"") -> 7679.590801 | I83: =IFERROR(INDEX('Data Annex'!$K$1:$AO$871,MATCH(Assets!I$46&"|"&Assets!$B83,'Data Annex'!$K$1:$K$871,0),MATCH(Assets!I$47,'Data Annex'!$K$1:$AO$1,0)),"") -> 7359.789883 | J83: =IFERROR(INDEX('Data Annex'!$K$1:$AO$871,MATCH(Assets!J$46&"|"&Assets!$B83,'Data Annex'!$K$1:$K$871,0),MATCH(Assets!J$47,'Data Annex'!$K$1:$AO$1,0)),"") -> 6885.532785 | K83: =IFERROR(INDEX('Data Annex'!$K$1:$AO$871,MATCH(Assets!K$46&"|"&Assets!$B83,'Data Annex'!$K$1:$K$871,0),MATCH(Assets!K$47,'Data Annex'!$K$1:$AO$1,0)),"") -> 6631.739172 | L83: =IFERROR(INDEX('Data Annex'!$K$1:$AO$871,MATCH(Assets!L$46&"|"&Assets!$B83,'Data Annex'!$K$1:$K$871,0),MATCH(Assets!L$47,'Data Annex'!$K$1:$AO$1,0)),"") -> 7333.673087 | M83: =IFERROR(INDEX('Data Annex'!$K$1:$AO$871,MATCH(Assets!M$46&"|"&Assets!$B83,'Data Annex'!$K$1:$K$871,0),MATCH(Assets!M$47,'Data Annex'!$K$1:$AO$1,0)),"") -> 7015.294532 | N83: =M83/I83 -> 0.9531922301 | O83: =+D83 -> GB | Q83: =IFERROR(INDEX('Data Annex'!$K$1:$AO$871,MATCH(Assets!Q$46&"|"&Assets!$B83,'Data Annex'!$K$1:$K$871,0),MATCH(Assets!Q$47,'Data Annex'!$K$1:$AO$1,0)),"") -> 0.6134735726 | R83: =IFERROR(INDEX('Data Annex'!$K$1:$AO$871,MATCH(Assets!R$46&"|"&Assets!$B83,'Data Annex'!$K$1:$K$871,0),MATCH(Assets!R$47,'Data Annex'!$K$1:$AO$1,0)),"") -> 0.6321714329 | S83: =IFERROR(INDEX('Data Annex'!$K$1:$AO$871,MATCH(Assets!S$46&"|"&Assets!$B83,'Data Annex'!$K$1:$K$871,0),MATCH(Assets!S$47,'Data Annex'!$K$1:$AO$1,0)),"") -> 0.6029359614 | T83: =IFERROR(INDEX('Data Annex'!$K$1:$AO$871,MATCH(Assets!T$46&"|"&Assets!$B83,'Data Annex'!$K$1:$K$871,0),MATCH(Assets!T$47,'Data Annex'!$K$1:$AO$1,0)),"") -> 0.6220726367 | U83: =IFERROR(INDEX('Data Annex'!$K$1:$AO$871,MATCH(Assets!U$46&"|"&Assets!$B83,'Data Annex'!$K$1:$K$871,0),MATCH(Assets!U$47,'Data Annex'!$K$1:$AO$1,0)),"") -> 0.0905997494 | V83: =IFERROR(INDEX('Data Annex'!$K$1:$AO$871,MATCH(Assets!V$46&"|"&Assets!$B83,'Data Annex'!$K$1:$K$871,0),MATCH(Assets!V$47,'Data Annex'!$K$1:$AO$1,0)),"") -> 0.0928891514 | W83: =IFERROR(INDEX('Data Annex'!$K$1:$AO$871,MATCH(Assets!W$46&"|"&Assets!$B83,'Data Annex'!$K$1:$K$871,0),MATCH(Assets!W$47,'Data Annex'!$K$1:$AO$1,0)),"") -> 0.0871355541 | X83: =IFERROR(INDEX('Data Annex'!$K$1:$AO$871,MATCH(Assets!X$46&"|"&Assets!$B83,'Data Annex'!$K$1:$K$871,0),MATCH(Assets!X$47,'Data Annex'!$K$1:$AO$1,0)),"") -> 0.095475443 | Y83: =IFERROR(INDEX('Data Annex'!$K$1:$AO$871,MATCH(Assets!Y$46&"|"&Assets!$B83,'Data Annex'!$K$1:$K$871,0),MATCH(Assets!Y$47,'Data Annex'!$K$1:$AO$1,0)),"") -> 0.295926678 | Z83: =IFERROR(INDEX('Data Annex'!$K$1:$AO$871,MATCH(Assets!Z$46&"|"&Assets!$B83,'Data Annex'!$K$1:$K$871,0),MATCH(Assets!Z$47,'Data Annex'!$K$1:$AO$1,0)),"") -> 0.2749394158 | AA83: =IFERROR(INDEX('Data Annex'!$K$1:$AO$871,MATCH(Assets!AA$46&"|"&Assets!$B83,'Data Annex'!$K$1:$K$871,0),MATCH(Assets!AA$47,'Data Annex'!$K$1:$AO$1,0)),"") -> 0.3099284846 | AB83: =IFERROR(INDEX('Data Annex'!$K$1:$AO$871,MATCH(Assets!AB$46&"|"&Assets!$B83,'Data Annex'!$K$1:$K$871,0),MATCH(Assets!AB$47,'Data Annex'!$K$1:$AO$1,0)),"") -> 0.2824519202
N85: =H42+L42+P42+T42+X42 -> 0.9496825495
D86: Individual country data includes subsidiaries, which are excluded from EU aggregate. For example, at country level the subsidiary in country X of a bank domiciled in country Y is included both in data for countries X and Y (for the latter as part of the consolidated entity). In the EU aggregate, only the consolidated entity domiciled in country Y is considered. The sample of banks is unbalanced and reviewed annually. As of Q1 2020 onwards UK banks are removed from the EU/EEA aggregate and subsidiaries of UK banks in EU member states are used instead.
D87: * To ensure confidentiality, figures by country are only disclosed if there are at least 3 institutions potentially reporting data, unless institutions provide explicit consent for the publication of country aggregates with less than 3 institutions.

Sheet Loans Composition (hidden)
E1: T20_1 | F1: T20_1 | G1: T20_1 | H1: T20_1 | I1: T20_2 | J1: T20_2 | K1: T20_2 | L1: T20_2 | M1: T20_3 | N1: T20_3 | O1: T20_3 | P1: T20_3 | Q1: T20_4 | R1: T20_4 | S1: T20_4 | T1: T20_4 | U1: T20_5 | V1: T20_5 | W1: T20_5 | X1: T20_5 | Y1: T20_6 | Z1: T20_6 | AA1: T20_6 | AB1: T20_6
A2: 202006 | E2: =TEXT(E50,"YYYYMM")+0 -> 201909 | F2: 201912 | G2: 202003 | H2: 202006 | I2: 201909 | J2: 201912 | K2: 202003 | L2: 202006 | M2: 201909 | N2: 201912 | O2: 202003 | P2: 202006 | Q2: 201909 | R2: 201912 | S2: 202003 | T2: 202006 | U2: 201909 | V2: 201912 | W2: 202003 | X2: 202006 | Y2: 201909 | Z2: 201912 | AA2: 202003 | AB2: 202006
A3: =DATE(LEFT(A2,4),RIGHT(A2,2),1) -> 2020-06-01 | D3: Statistical Annex
D4: Loans: composition and asset quality
I7: of which: loans and advances at amortised cost - by segment (volumes) (2)
D9: Volumes bn EUR
E10: Loans and advances (1) | I10: HHs | M10: …of which mortgages | Q10: NFCs | U10: …of which SMEs | Y10: …of which CRE
E11: =EOMONTH($A$3,-9) -> 2019-09-30 | F11: =EOMONTH($A$3,-6) -> 2019-12-31 | G11: =EOMONTH($A$3,-3) -> 2020-03-31 | H11: =EOMONTH($A$3,0) -> 2020-06-30 | I11: =EOMONTH($A$3,-9) -> 2019-09-30 | J11: =EOMONTH($A$3,-6) -> 2019-12-31 | K11: =EOMONTH($A$3,-3) -> 2020-03-31 | L11: =EOMONTH($A$3,0) -> 2020-06-30 | M11: =EOMONTH($A$3,-9) -> 2019-09-30 | N11: =EOMONTH($A$3,-6) -> 2019-12-31 | O11: =EOMONTH($A$3,-3) -> 2020-03-31 | P11: =EOMONTH($A$3,0) -> 2020-06-30 | Q11: =EOMONTH($A$3,-9) -> 2019-09-30 | R11: =EOMONTH($A$3,-6) -> 2019-12-31 | S11: =EOMONTH($A$3,-3) -> 2020-03-31 | T11: =EOMONTH($A$3,0) -> 2020-06-30 | U11: =EOMONTH($A$3,-9) -> 2019-09-30 | V11: =EOMONTH($A$3,-6) -> 2019-12-31 | W11: =EOMONTH($A$3,-3) -> 2020-03-31 | X11: =EOMONTH($A$3,0) -> 2020-06-30 | Y11: =EOMONTH($A$3,-9) -> 2019-09-30 | Z11: =EOMONTH($A$3,-6) -> 2019-12-31 | AA11: =EOMONTH($A$3,-3) -> 2020-03-31 | AB11: =EOMONTH($A$3,0) -> 2020-06-30
A12: 1 | B12: AT | D12: AT | E12: =IFERROR(INDEX('Data Annex'!$K$1:$AO$5000,MATCH(E$1&"|"&$B12,'Data Annex'!$K$1:$K$5000,0),MATCH(E$2,'Data Annex'!$K$1:$AO$1,0)),"") -> 498.3171544 | F12: =IFERROR(INDEX('Data Annex'!$K$1:$AO$5000,MATCH(F$1&"|"&$B12,'Data Annex'!$K$1:$K$5000,0),MATCH(F$2,'Data Annex'!$K$1:$AO$1,0)),"") -> 498.0364366 | G12: =IFERROR(INDEX('Data Annex'!$K$1:$AO$5000,MATCH(G$1&"|"&$B12,'Data Annex'!$K$1:$K$5000,0),MATCH(G$2,'Data Annex'!$K$1:$AO$1,0)),"") -> 513.6239329 | H12: =IFERROR(INDEX('Data Annex'!$K$1:$AO$5000,MATCH(H$1&"|"&$B12,'Data Annex'!$K$1:$K$5000,0),MATCH(H$2,'Data Annex'!$K$1:$AO$1,0)),"") -> 541.4673964 | I12: =IFERROR(INDEX('Data Annex'!$K$1:$AO$5000,MATCH(I$1&"|"&$B12,'Data Annex'!$K$1:$K$5000,0),MATCH(I$2,'Data Annex'!$K$1:$AO$1,0)),"") -> 164.2418705 | J12: =IFERROR(INDEX('Data Annex'!$K$1:$AO$5000,MATCH(J$1&"|"&$B12,'Data Annex'!$K$1:$K$5000,0),MATCH(J$2,'Data Annex'!$K$1:$AO$1,0)),"") -> 166.756034 | K12: =IFERROR(INDEX('Data Annex'!$K$1:$AO$5000,MATCH(K$1&"|"&$B12,'Data Annex'!$K$1:$K$5000,0),MATCH(K$2,'Data Annex'!$K$1:$AO$1,0)),"") -> 165.1013373 | L12: =IFERROR(INDEX('Data Annex'!$K$1:$AO$5000,MATCH(L$1&"|"&$B12,'Data Annex'!$K$1:$K$5000,0),MATCH(L$2,'Data Annex'!$K$1:$AO$1,0)),"") -> 167.1057763 | M12: =IFERROR(INDEX('Data Annex'!$K$1:$AO$5000,MATCH(M$1&"|"&$B12,'Data Annex'!$K$1:$K$5000,0),MATCH(M$2,'Data Annex'!$K$1:$AO$1,0)),"") -> 109.059028 | N12: =IFERROR(INDEX('Data Annex'!$K$1:$AO$5000,MATCH(N$1&"|"&$B12,'Data Annex'!$K$1:$K$5000,0),MATCH(N$2,'Data Annex'!$K$1:$AO$1,0)),"") -> 111.0581891 | O12: =IFERROR(INDEX('Data Annex'!$K$1:$AO$5000,MATCH(O$1&"|"&$B12,'Data Annex'!$K$1:$K$5000,0),MATCH(O$2,'Data Annex'!$K$1:$AO$1,0)),"") -> 110.6687294 | P12: =IFERROR(INDEX('Data Annex'!$K$1:$AO$5000,MATCH(P$1&"|"&$B12,'Data Annex'!$K$1:$K$5000,0),MATCH(P$2,'Data Annex'!$K$1:$AO$1,0)),"") -> 114.3511309 | Q12: =IFERROR(INDEX('Data Annex'!$K$1:$AO$5000,MATCH(Q$1&"|"&$B12,'Data Annex'!$K$1:$K$5000,0),MATCH(Q$2,'Data Annex'!$K$1:$AO$1,0)),"") -> 195.876906 | R12: =IFERROR(INDEX('Data Annex'!$K$1:$AO$5000,MATCH(R$1&"|"&$B12,'Data Annex'!$K$1:$K$5000,0),MATCH(R$2,'Data Annex'!$K$1:$AO$1,0)),"") -> 196.3540453 | S12: =IFERROR(INDEX('Data Annex'!$K$1:$AO$5000,MATCH(S$1&"|"&$B12,'Data Annex'!$K$1:$K$5000,0),MATCH(S$2,'Data Annex'!$K$1:$AO$1,0)),"") -> 200.4708278 | T12: =IFERROR(INDEX('Data Annex'!$K$1:$AO$5000,MATCH(T$1&"|"&$B12,'Data Annex'!$K$1:$K$5000,0),MATCH(T$2,'Data Annex'!$K$1:$AO$1,0)),"") -> 201.9844438 | U12: =IFERROR(INDEX('Data Annex'!$K$1:$AO$5000,MATCH(U$1&"|"&$B12,'Data Annex'!$K$1:$K$5000,0),MATCH(U$2,'Data Annex'!$K$1:$AO$1,0)),"") -> 70.88110781 | V12: =IFERROR(INDEX('Data Annex'!$K$1:$AO$5000,MATCH(V$1&"|"&$B12,'Data Annex'!$K$1:$K$5000,0),MATCH(V$2,'Data Annex'!$K$1:$AO$1,0)),"") -> 71.38553217 | W12: =IFERROR(INDEX('Data Annex'!$K$1:$AO$5000,MATCH(W$1&"|"&$B12,'Data Annex'!$K$1:$K$5000,0),MATCH(W$2,'Data Annex'!$K$1:$AO$1,0)),"") -> 70.94270536 | X12: =IFERROR(INDEX('Data Annex'!$K$1:$AO$5000,MATCH(X$1&"|"&$B12,'Data Annex'!$K$1:$K$5000,0),MATCH(X$2,'Data Annex'!$K$1:$AO$1,0)),"") -> 71.59376493 | Y12: =IFERROR(INDEX('Data Annex'!$K$1:$AO$5000,MATCH(Y$1&"|"&$B12,'Data Annex'!$K$1:$K$5000,0),MATCH(Y$2,'Data Annex'!$K$1:$AO$1,0)),"") -> 53.85113149 | Z12: =IFERROR(INDEX('Data Annex'!$K$1:$AO$5000,MATCH(Z$1&"|"&$B12,'Data Annex'!$K$1:$K$5000,0),MATCH(Z$2,'Data Annex'!$K$1:$AO$1,0)),"") -> 55.87980614 | AA12: =IFERROR(INDEX('Data Annex'!$K$1:$AO$5000,MATCH(AA$1&"|"&$B12,'Data Annex'!$K$1:$K$5000,0),MATCH(AA$2,'Data Annex'!$K$1:$AO$1,0)),"") -> 56.25144727 | AB12: =IFERROR(INDEX('Data Annex'!$K$1:$AO$5000,MATCH(AB$1&"|"&$B12,'Data Annex'!$K$1:$K$5000,0),MATCH(AB$2,'Data Annex'!$K$1:$AO$1,0)),"") -> 59.06616623
A13: 2 | B13: BE | D13: BE | E13: =IFERROR(INDEX('Data Annex'!$K$1:$AO$5000,MATCH(E$1&"|"&$B13,'Data Annex'!$K$1:$K$5000,0),MATCH(E$2,'Data Annex'!$K$1:$AO$1,0)),"") -> 855.98632 | F13: =IFERROR(INDEX('Data Annex'!$K$1:$AO$5000,MATCH(F$1&"|"&$B13,'Data Annex'!$K$1:$K$5000,0),MATCH(F$2,'Data Annex'!$K$1:$AO$1,0)),"") -> 831.3535802 | G13: =IFERROR(INDEX('Data Annex'!$K$1:$AO$5000,MATCH(G$1&"|"&$B13,'Data Annex'!$K$1:$K$5000,0),MATCH(G$2,'Data Annex'!$K$1:$AO$1,0)),"") -> 878.5680226 | H13: =IFERROR(INDEX('Data Annex'!$K$1:$AO$5000,MATCH(H$1&"|"&$B13,'Data Annex'!$K$1:$K$5000,0),MATCH(H$2,'Data Annex'!$K$1:$AO$1,0)),"") -> 891.2261612 | I13: =IFERROR(INDEX('Data Annex'!$K$1:$AO$5000,MATCH(I$1&"|"&$B13,'Data Annex'!$K$1:$K$5000,0),MATCH(I$2,'Data Annex'!$K$1:$AO$1,0)),"") -> 287.0649715 | J13: =IFERROR(INDEX('Data Annex'!$K$1:$AO$5000,MATCH(J$1&"|"&$B13,'Data Annex'!$K$1:$K$5000,0),MATCH(J$2,'Data Annex'!$K$1:$AO$1,0)),"") -> 292.8063372 | K13: =IFERROR(INDEX('Data Annex'!$K$1:$AO$5000,MATCH(K$1&"|"&$B13,'Data Annex'!$K$1:$K$5000,0),MATCH(K$2,'Data Annex'!$K$1:$AO$1,0)),"") -> 291.9083902 | L13: =IFERROR(INDEX('Data Annex'!$K$1:$AO$5000,MATCH(L$1&"|"&$B13,'Data Annex'!$K$1:$K$5000,0),MATCH(L$2,'Data Annex'!$K$1:$AO$1,0)),"") -> 293.5902375 | M13: =IFERROR(INDEX('Data Annex'!$K$1:$AO$5000,MATCH(M$1&"|"&$B13,'Data Annex'!$K$1:$K$5000,0),MATCH(M$2,'Data Annex'!$K$1:$AO$1,0)),"") -> 237.3454889 | N13: =IFERROR(INDEX('Data Annex'!$K$1:$AO$5000,MATCH(N$1&"|"&$B13,'Data Annex'!$K$1:$K$5000,0),MATCH(N$2,'Data Annex'!$K$1:$AO$1,0)),"") -> 242.3464816 | O13: =IFERROR(INDEX('Data Annex'!$K$1:$AO$5000,MATCH(O$1&"|"&$B13,'Data Annex'!$K$1:$K$5000,0),MATCH(O$2,'Data Annex'!$K$1:$AO$1,0)),"") -> 241.2796803 | P13: =IFERROR(INDEX('Data Annex'!$K$1:$AO$5000,MATCH(P$1&"|"&$B13,'Data Annex'!$K$1:$K$5000,0),MATCH(P$2,'Data Annex'!$K$1:$AO$1,0)),"") -> 245.60803 | Q13: =IFERROR(INDEX('Data Annex'!$K$1:$AO$5000,MATCH(Q$1&"|"&$B13,'Data Annex'!$K$1:$K$5000,0),MATCH(Q$2,'Data Annex'!$K$1:$AO$1,0)),"") -> 260.9417798 | R13: =IFERROR(INDEX('Data Annex'!$K$1:$AO$5000,MATCH(R$1&"|"&$B13,'Data Annex'!$K$1:$K$5000,0),MATCH(R$2,'Data Annex'!$K$1:$AO$1,0)),"") -> 260.569175 | S13: =IFERROR(INDEX('Data Annex'!$K$1:$AO$5000,MATCH(S$1&"|"&$B13,'Data Annex'!$K$1:$K$5000,0),MATCH(S$2,'Data Annex'!$K$1:$AO$1,0)),"") -> 261.2638246 | T13: =IFERROR(INDEX('Data Annex'!$K$1:$AO$5000,MATCH(T$1&"|"&$B13,'Data Annex'!$K$1:$K$5000,0),MATCH(T$2,'Data Annex'!$K$1:$AO$1,0)),"") -> 252.6027663 | U13: =IFERROR(INDEX('Data Annex'!$K$1:$AO$5000,MATCH(U$1&"|"&$B13,'Data Annex'!$K$1:$K$5000,0),MATCH(U$2,'Data Annex'!$K$1:$AO$1,0)),"") -> 102.3937254 | V13: =IFERROR(INDEX('Data Annex'!$K$1:$AO$5000,MATCH(V$1&"|"&$B13,'Data Annex'!$K$1:$K$5000,0),MATCH(V$2,'Data Annex'!$K$1:$AO$1,0)),"") -> 103.6445283 | W13: =IFERROR(INDEX('Data Annex'!$K$1:$AO$5000,MATCH(W$1&"|"&$B13,'Data Annex'!$K$1:$K$5000,0),MATCH(W$2,'Data Annex'!$K$1:$AO$1,0)),"") -> 113.0184865 | X13: =IFERROR(INDEX('Data Annex'!$K$1:$AO$5000,MATCH(X$1&"|"&$B13,'Data Annex'!$K$1:$K$5000,0),MATCH(X$2,'Data Annex'!$K$1:$AO$1,0)),"") -> 113.5604788 | Y13: =IFERROR(INDEX('Data Annex'!$K$1:$AO$5000,MATCH(Y$1&"|"&$B13,'Data Annex'!$K$1:$K$5000,0),MATCH(Y$2,'Data Annex'!$K$1:$AO$1,0)),"") -> 49.38359284 | Z13: =IFERROR(INDEX('Data Annex'!$K$1:$AO$5000,MATCH(Z$1&"|"&$B13,'Data Annex'!$K$1:$K$5000,0),MATCH(Z$2,'Data Annex'!$K$1:$AO$1,0)),"") -> 50.74518027 | AA13: =IFERROR(INDEX('Data Annex'!$K$1:$AO$5000,MATCH(AA$1&"|"&$B13,'Data Annex'!$K$1:$K$5000,0),MATCH(AA$2,'Data Annex'!$K$1:$AO$1,0)),"") -> 50.58783914 | AB13: =IFERROR(INDEX('Data Annex'!$K$1:$AO$5000,MATCH(AB$1&"|"&$B13,'Data Annex'!$K$1:$K$5000,0),MATCH(AB$2,'Data Annex'!$K$1:$AO$1,0)),"") -> 58.04695572
